Workbook

Sheet MainDisplay
O1: =TODAY() -> 2018-07-13
B2: =MOD(RTD("cqg.rtd", ,"SystemInfo", "Linetime"),1) -> 10:26:52 | F2: CQG CME Globex 10-Day Map | AA2: =RTD("cqg.rtd", ,"SystemInfo", "Linetime") -> 43294.43532
B4: Symbol | D4: Equities | F4: =IF(RTD("cqg.rtd", ,"ContractData",Sheet3!$D$12, "NetLastTradeToday",, "T")>=0,"+",0) -> + | G4: Last | H4: =TEXT(RTD("cqg.rtd", ,"ContractData",Sheet3!$D$12, "LastTradeToday",, "T"),Sheet3!$F$17) -> 7402.75 | J4: Net | K4: =IF(F4="+","+"&TEXT(RTD("cqg.rtd", ,"ContractData",Sheet3!$D$12, "NetLastTradeToday",, "T"),Sheet3!$F$17),TEXT(RTD("cqg.rtd", ,"ContractData",Sheet3!$D$12, "NetLastTradeToday",, "T"),Sheet3!$F$17)) -> +20.00 | M4: Net $ Change | R4: Symbol | T4: Energy | V4: =IF(RTD("cqg.rtd", ,"ContractData",'Sheet3 (2)'!$D$12, "NetLastTradeToday",, "T")>=0,"+",0) -> + | W4: Last | X4: =TEXT(RTD("cqg.rtd", ,"ContractData",'Sheet3 (2)'!$D$12, "LastTradeToday",, "T"),'Sheet3 (2)'!$F$17) -> 71.11 | Z4: Net | AA4: =IF(V4="+","+"&TEXT(RTD("cqg.rtd", ,"ContractData",'Sheet3 (2)'!$D$12, "NetLastTradeToday",, "T"),'Sheet3 (2)'!$F$17),TEXT(RTD("cqg.rtd", ,"ContractData",'Sheet3 (2)'!$D$12, "NetLastTradeToday",, "T"),'Sheet3 (2)'!$F$17)) -> +.78 | AC4: Net $ Change
B5: ENQ | C5: =" "&RTD("cqg.rtd", ,"ContractData",Sheet3!$D$12, "LongDescription",, "T")&" " -> E-mini NASDAQ-100, Sep 18 | G5: Trade | J5: Change | M5: =IFERROR(1/RTD("cqg.rtd",,"ContractData","Tsize("&B5&")","LastQuoteToday",,"T")*RTD("cqg.rtd",,"ContractData","PriceToDollar(Tsize("&B5&"))","LastQuoteToday")*RTD("cqg.rtd", ,"ContractData", B5, "NetLastTrade"),"") -> 400 | R5: CLE | S5: =" "&RTD("cqg.rtd", ,"ContractData",'Sheet3 (2)'!D12, "LongDescription",, "T")&" " -> Crude Light (Globex), Aug 18 | W5: Trade | Z5: Change | AC5: =IFERROR(1/RTD("cqg.rtd",,"ContractData","Tsize("&R5&")","LastQuoteToday",,"T")*RTD("cqg.rtd",,"ContractData","PriceToDollar(Tsize("&R5&"))","LastQuoteToday")*RTD("cqg.rtd", ,"ContractData", R5, "NetLastTrade"),"") -> 780
B6: =2*RTD("cqg.rtd",,"ContractData","Tsize("&B5&")","LastQuoteToday",,"T") -> 0.5 | G6: Open | H6: =TEXT(RTD("cqg.rtd", ,"ContractData",Sheet3!$D$12, "Open",, "T"),Sheet3!$F$17) -> 7382.00 | I6: High | J6: =TEXT(RTD("cqg.rtd", ,"ContractData",Sheet3!$D$12, "High",, "T"),Sheet3!$F$17) -> 7414.25 | K6: Low | L6: =TEXT(RTD("cqg.rtd", ,"ContractData",Sheet3!$D$12, "Low",, "T"),Sheet3!$F$17) -> 7367.00 | R6: =2*RTD("cqg.rtd",,"ContractData","Tsize("&R5&")","LastQuoteToday",,"T") -> 0.02 | W6: Open | X6: =TEXT(RTD("cqg.rtd", ,"ContractData",'Sheet3 (2)'!$D$12, "Open",, "T"),'Sheet3 (2)'!$F$17) -> 70.38 | Y6: High | Z6: =TEXT(RTD("cqg.rtd", ,"ContractData",'Sheet3 (2)'!$D$12, "High",, "T"),'Sheet3 (2)'!$F$17) -> 71.26 | AA6: Low | AB6: =TEXT(RTD("cqg.rtd", ,"ContractData",'Sheet3 (2)'!$D$12, "Low",, "T"),'Sheet3 (2)'!$F$17) -> 69.84
M7: =IF(J6-H4<=B6,1,0) -> 0 | O7: =IF(H4-L6<=B6,1,0) -> 0 | AC7: =IF(Z6-X4<=R6,1,0) -> 0 | AE7: =IF(X4-AB6<=R6,1,0) -> 0
B8: =Sheet4!I85+1 -> 2 | C8: =RTD("cqg.rtd", ,"ContractData",Sheet3!$D$12, "MT_LastBidVolume",, "T") -> 5 | E8: =TEXT(RTD("cqg.rtd", ,"ContractData",Sheet3!$D$12, "Bid",, "T"),Sheet3!$F$17) -> 7402.75 | G8: =TEXT(RTD("cqg.rtd", ,"ContractData",Sheet3!$D$12, "Ask",, "T"),Sheet3!$F$17) -> 7403.00 | I8: =RTD("cqg.rtd", ,"ContractData",Sheet3!$D$12, "MT_LastAskVolume",, "T") -> 8 | K8: Top Correlation to: | M8: Highlight | R8: ='Sheet4 (2)'!I85+1 -> 6 | S8: =RTD("cqg.rtd", ,"ContractData",'Sheet3 (2)'!$D$12, "MT_LastBidVolume",, "T") -> 6 | U8: =TEXT(RTD("cqg.rtd", ,"ContractData",'Sheet3 (2)'!$D$12, "Bid",, "T"),'Sheet3 (2)'!$F$17) -> 71.11 | W8: =TEXT(RTD("cqg.rtd", ,"ContractData",'Sheet3 (2)'!$D$12, "Ask",, "T"),'Sheet3 (2)'!$F$17) -> 71.12 | Y8: =RTD("cqg.rtd", ,"ContractData",'Sheet3 (2)'!$D$12, "MT_LastAskVolume",, "T") -> 27 | AA8: Top Correlation to: | AC8: Highlight
K9: =IFERROR(Sheet4!G85,"") -> 2018-07-12 | L9: =IFERROR(Sheet4!H85,"") -> 0.6502899948 | M9: Reset | AA9: =IFERROR('Sheet4 (2)'!G85,"") -> 2018-07-06 | AB9: =IFERROR('Sheet4 (2)'!H85,"") -> 0.8673600476 | AC9: Reset
A10: =IF(M14=$O$1,1,0) -> 0 | Q10: =IF(AC14=$O$1,1,0) -> 1
A11: =IF(M15=$O$1,1,0) -> 0 | Q11: =IF(AC15=$O$1,1,0) -> 0
A12: 0 | M12: Bar Time | N12: Corr | O12: =IFERROR(IF(TIME(0,5,0)-(MOD(B2,1)-M13)<0,1,TIME(0,5,0)-(MOD(B2,1)-M13)),"") -> 00:03:08 | Q12: 0 | AC12: Bar Time | AD12: Corr | AE12: =IFERROR(IF(TIME(0,5,0)-(MOD(B2,1)-AC13)<0,1,TIME(0,5,0)-(MOD(B2,1)-AC13)),"") -> 00:03:08
A13: 0 | M13: =IFERROR(Sheet3!AC12,"") -> 10:25:00 | N13: Now | O13: % NC | Q13: 0 | AC13: =IFERROR('Sheet3 (2)'!AC12,"") -> 10:25:00 | AD13: Now | AE13: % NC
A14: 0 | M14: =IFERROR(Sheet3!AG1,"") -> 2018-07-12 | N14: =IFERROR(VLOOKUP(M14,Sheet4!$G$85:$H$93,2,FALSE),"") -> 0.6502899948 | O14: =IFERROR(Sheet3!AH1,"") -> 0.01285541961 | Q14: 0 | AC14: =IFERROR('Sheet3 (2)'!AG1,"") -> 2018-07-13 | AD14: =IFERROR(VLOOKUP(AC14,'Sheet4 (2)'!$G$85:$H$93,2,FALSE),"") ->  | AE14: =IFERROR('Sheet3 (2)'!AH1,"") -> 0.01109057301
A15: 1 | M15: =IFERROR(Sheet3!AG2,"") -> 2018-07-06 | N15: =IFERROR(VLOOKUP(M15,Sheet4!$G$85:$H$93,2,FALSE),"") -> 0.5122029026 | O15: =IFERROR(Sheet3!AH2,"") -> 0.01010419956 | Q15: 0 | AC15: =IFERROR('Sheet3 (2)'!AG2,"") -> 2018-06-29 | AD15: =IFERROR(VLOOKUP(AC15,'Sheet4 (2)'!$G$85:$H$93,2,FALSE),"") -> 0.6760787373 | AE15: =IFERROR('Sheet3 (2)'!AH2,"") -> 0.009530292716
A16: 0 | M16: =IFERROR(Sheet3!AG3,"") -> 2018-07-05 | N16: =IFERROR(VLOOKUP(M16,Sheet4!$G$85:$H$93,2,FALSE),"") -> -0.4301274172 | O16: =IFERROR(Sheet3!AH3,"") -> 0.008008542445 | Q16: 0 | AC16: =IFERROR('Sheet3 (2)'!AG3,"") -> 2018-07-06 | AD16: =IFERROR(VLOOKUP(AC16,'Sheet4 (2)'!$G$85:$H$93,2,FALSE),"") -> 0.8673600476 | AE16: =IFERROR('Sheet3 (2)'!AH3,"") -> 0.007403345215
A17: 0 | M17: =IFERROR(Sheet3!AG4,"") -> 2018-06-29 | N17: =IFERROR(VLOOKUP(M17,Sheet4!$G$85:$H$93,2,FALSE),"") -> 0.07929956252 | O17: =IFERROR(Sheet3!AH4,"") -> 0.006267261525 | Q17: 0 | AC17: =IFERROR('Sheet3 (2)'!AG4,"") -> 2018-07-10 | AD17: =IFERROR(VLOOKUP(AC17,'Sheet4 (2)'!$G$85:$H$93,2,FALSE),"") -> -0.7559493481 | AE17: =IFERROR('Sheet3 (2)'!AH4,"") -> 0.001760324983
A18: 0 | M18: =IFERROR(Sheet3!AG5,"") -> 2018-07-09 | N18: =IFERROR(VLOOKUP(M18,Sheet4!$G$85:$H$93,2,FALSE),"") -> -0.08235982958 | O18: =IFERROR(Sheet3!AH5,"") -> 0.004285615539 | Q18: 0 | AC18: =IFERROR('Sheet3 (2)'!AG5,"") -> 2018-07-09 | AD18: =IFERROR(VLOOKUP(AC18,'Sheet4 (2)'!$G$85:$H$93,2,FALSE),"") -> -0.1595756094 | AE18: =IFERROR('Sheet3 (2)'!AH5,"") -> -0.005149051491
A19: =IF(M23=$O$1,1,0) -> 0 | M19: =IFERROR(Sheet3!AG6,"") -> 2018-07-13 | N19: =IFERROR(VLOOKUP(M19,Sheet4!$G$85:$H$93,2,FALSE),"") ->  | O19: =IFERROR(Sheet3!AH6,"") -> 0.002709017642 | Q19: 0 | AC19: =IFERROR('Sheet3 (2)'!AG6,"") -> 2018-07-02 | AD19: =IFERROR(VLOOKUP(AC19,'Sheet4 (2)'!$G$85:$H$93,2,FALSE),"") -> -0.4957636056 | AE19: =IFERROR('Sheet3 (2)'!AH6,"") -> -0.006473364801
M20: =IFERROR(Sheet3!AG7,"") -> 2018-07-10 | N20: =IFERROR(VLOOKUP(M20,Sheet4!$G$85:$H$93,2,FALSE),"") -> 0.5331806699 | O20: =IFERROR(Sheet3!AH7,"") -> 0.0001027362077 | AC20: =IFERROR('Sheet3 (2)'!AG7,"") -> 2018-07-05 | AD20: =IFERROR(VLOOKUP(AC20,'Sheet4 (2)'!$G$85:$H$93,2,FALSE),"") -> -0.6464587882 | AE20: =IFERROR('Sheet3 (2)'!AH7,"") -> -0.009441596979
M21: =IFERROR(Sheet3!AG8,"") -> 2018-07-02 | N21: =IFERROR(VLOOKUP(M21,Sheet4!$G$85:$H$93,2,FALSE),"") -> 0.4373759867 | O21: =IFERROR(Sheet3!AH8,"") -> -0.002087239537 | AC21: =IFERROR('Sheet3 (2)'!AG8,"") -> 2018-07-12 | AD21: =IFERROR(VLOOKUP(AC21,'Sheet4 (2)'!$G$85:$H$93,2,FALSE),"") -> -0.8807075599 | AE21: =IFERROR('Sheet3 (2)'!AH8,"") -> -0.009661835749
M22: =IFERROR(Sheet3!AG9,"") -> 2018-07-03 | N22: =IFERROR(VLOOKUP(M22,Sheet4!$G$85:$H$93,2,FALSE),"") -> 0.1789826372 | O22: =IFERROR(Sheet3!AH9,"") -> -0.002178036956 | AC22: =IFERROR('Sheet3 (2)'!AG9,"") -> 2018-07-03 | AD22: =IFERROR(VLOOKUP(AC22,'Sheet4 (2)'!$G$85:$H$93,2,FALSE),"") -> -0.8562252629 | AE22: =IFERROR('Sheet3 (2)'!AH9,"") -> -0.01244252096
M23: =IFERROR(Sheet3!AG10,"") -> 2018-07-11 | N23: =IFERROR(VLOOKUP(M23,Sheet4!$G$85:$H$93,2,FALSE),"") -> 0.07780137051 | O23: =IFERROR(Sheet3!AH10,"") -> -0.006197356708 | AC23: =IFERROR('Sheet3 (2)'!AG10,"") -> 2018-07-11 | AD23: =IFERROR(VLOOKUP(AC23,'Sheet4 (2)'!$G$85:$H$93,2,FALSE),"") -> -0.7500039169 | AE23: =IFERROR('Sheet3 (2)'!AH10,"") -> -0.02077992174
B28: Primary Session: 8:30 - 15:15 | R28: Primary Session 8:00 - 13:30
B30: Symbol | D30: FOREX | F30: =IF(RTD("cqg.rtd", ,"ContractData",'Sheet3 (3)'!$D$12, "NetLastTradeToday",, "T")="","",IF(RTD("cqg.rtd", ,"ContractData",'Sheet3 (3)'!$D$12, "NetLastTradeToday",, "T")>=0,"+",0)) -> 0 | G30: Last | H30: =TEXT(RTD("cqg.rtd", ,"ContractData",'Sheet3 (3)'!$D$12, "LastTradeToday",, "T"),'Sheet3 (3)'!$F$17) -> 1.17180 | J30: Net | K30: =IF(F30="","",IF(F30="+","+"&TEXT(RTD("cqg.rtd", ,"ContractData",'Sheet3 (3)'!$D$12, "NetLastTradeToday",, "T"),'Sheet3 (3)'!$F$17),TEXT(RTD("cqg.rtd", ,"ContractData",'Sheet3 (3)'!$D$12, "NetLastTradeToday",, "T"),'Sheet3 (3)'!$F$17))) -> -.00075 | M30: Net $ Change | R30: Symbol | T30: Fixed Income | V30: =IF(RTD("cqg.rtd", ,"ContractData",'Sheet3 (4)'!$D$12, "NetLastTradeToday",, "T")>=0,"+",0) -> + | W30: Last | X30: =IF('Sheet3 (4)'!F16="B",RTD("cqg.rtd", ,"ContractData",'Sheet3 (4)'!$D$12, "LastTradeToday",, "B"),TEXT(RTD("cqg.rtd", ,"ContractData",'Sheet3 (4)'!$D$12, "LastTradeToday",, "T"),'Sheet3 (4)'!$F$16)) -> 120.312500 | Z30: Net | AA30: =IF(V30="+",""&(IF('Sheet3 (4)'!F16="B",RTD("cqg.rtd",,"ContractData",'Sheet3 (4)'!$D$12,"NetLastTradeToday",,"B"),TEXT(RTD("cqg.rtd",,"ContractData",'Sheet3 (4)'!$D$12,"NetLastTradeToday",,"T"),'Sheet3 (4)'!$F$16))),IF('Sheet3 (4)'!F16="B",RTD("cqg.rtd",,"ContractData",'Sheet3 (4)'!$D$12,"NetLastTradeToday",,"B"),TEXT(RTD("cqg.rtd",,"ContractData",'Sheet3 (4)'!$D$12,"NetLastTradeToday",,"T"),'Sheet3 (4)'!$F$16))) -> +0.156250 | AC30: Net $ Change
B31: EU6 | C31: =" "&RTD("cqg.rtd", ,"ContractData",'Sheet3 (3)'!$D$12, "LongDescription",, "T")&" " -> Euro FX (Globex), Sep 18 | G31: Trade | J31: Change | M31: =IFERROR(1/RTD("cqg.rtd",,"ContractData","Tsize("&B31&")","LastQuoteToday",,"T")*RTD("cqg.rtd",,"ContractData","PriceToDollar(Tsize("&B31&"))","LastQuoteToday")*RTD("cqg.rtd", ,"ContractData", B31, "NetLastTrade"),"") -> -93.75 | R31: TYA | S31: =" "&RTD("cqg.rtd", ,"ContractData",'Sheet3 (4)'!D12, "LongDescription",, "T")&" " -> 10yr US Treasury Notes (Globex), Sep 18 | W31: Trade | Z31: Change | AC31: =IFERROR(1/RTD("cqg.rtd",,"ContractData","Tsize("&R31&")","LastQuoteToday",,"T")*RTD("cqg.rtd",,"ContractData","PriceToDollar(Tsize("&R31&"))","LastQuoteToday")*RTD("cqg.rtd", ,"ContractData", R31, "NetLastTrade",,"T"),"") -> 156.25
B32: =2*RTD("cqg.rtd",,"ContractData","Tsize("&B31&")","LastQuoteToday",,"T") -> 0.0001 | G32: Open | H32: =TEXT(RTD("cqg.rtd", ,"ContractData",'Sheet3 (3)'!$D$12, "Open",, "T"),'Sheet3 (3)'!$F$17) -> 1.17230 | I32: High | J32: =TEXT(RTD("cqg.rtd", ,"ContractData",'Sheet3 (3)'!$D$12, "High",, "T"),'Sheet3 (3)'!$F$17) -> 1.17285 | K32: Low | L32: =TEXT(RTD("cqg.rtd", ,"ContractData",'Sheet3 (3)'!$D$12, "Low",, "T"),'Sheet3 (3)'!$F$17) -> 1.16665 | R32: =2*RTD("cqg.rtd",,"ContractData","Tsize("&R31&")","LastQuoteToday",,"T") -> 0.03125 | W32: Open | X32: =IF('Sheet3 (4)'!F16="B",RTD("cqg.rtd", ,"ContractData",'Sheet3 (4)'!$D$12, "Open",, "B"),TEXT(RTD("cqg.rtd", ,"ContractData",'Sheet3 (4)'!$D$12, "Open",, "T"),'Sheet3 (4)'!$F$16)) -> 120.218750 | Y32: High | Z32: =IF('Sheet3 (4)'!F16="B",RTD("cqg.rtd", ,"ContractData",'Sheet3 (4)'!$D$12, "High",, "B"),TEXT(RTD("cqg.rtd", ,"ContractData",'Sheet3 (4)'!$D$12, "High",, "T"),'Sheet3 (4)'!$F$16)) -> 120.375000 | AA32: Low | AB32: =IF('Sheet3 (4)'!F16="B",RTD("cqg.rtd", ,"ContractData",'Sheet3 (4)'!$D$12, "Low",, "B"),TEXT(RTD("cqg.rtd", ,"ContractData",'Sheet3 (4)'!$D$12, "Low",, "T"),'Sheet3 (4)'!$F$16)) -> 120.125000
M33: =IF(J32-H30<=B32,1,0) -> 0 | O33: =IF(H30-L32<=B32,1,0) -> 0 | AC33: =IF(RTD("cqg.rtd", ,"ContractData",'Sheet3 (4)'!$D$12, "High",, "T")-RTD("cqg.rtd", ,"ContractData",'Sheet3 (4)'!$D$12, "LastTrade",, "T")<=R32,1,0) -> 0 | AE33: =IF(RTD("cqg.rtd", ,"ContractData",'Sheet3 (4)'!$D$12, "LastTrade",, "T")-RTD("cqg.rtd", ,"ContractData",'Sheet3 (4)'!$D$12, "Low",, "T")<=R32,1,0) -> 0
B34: ='Sheet4 (3)'!I93+1 -> 9 | C34: =RTD("cqg.rtd", ,"ContractData",'Sheet3 (3)'!$D$12, "MT_LastBidVolume",, "T") -> 11 | E34: =TEXT(RTD("cqg.rtd", ,"ContractData",'Sheet3 (3)'!$D$12, "Bid",, "T"),'Sheet3 (3)'!$F$17) -> 1.17180 | G34: =TEXT(RTD("cqg.rtd", ,"ContractData",'Sheet3 (3)'!$D$12, "Ask",, "T"),'Sheet3 (3)'!$F$17) -> 1.17185 | I34: =RTD("cqg.rtd", ,"ContractData",'Sheet3 (3)'!$D$12, "MT_LastAskVolume",, "T") -> 13 | K34: Top Correlation to: | M34: Highlight | R34: ='Sheet4 (4)'!I93+1 -> 8 | S34: =RTD("cqg.rtd", ,"ContractData",'Sheet3 (4)'!$D$12, "MT_LastBidVolume",, "T") -> 4000 | U34: =IF('Sheet3 (4)'!F16="B",RTD("cqg.rtd", ,"ContractData",'Sheet3 (4)'!$D$12, "Bid",, "B"),TEXT(RTD("cqg.rtd", ,"ContractData",'Sheet3 (4)'!$D$12, "Bid",, "T"),'Sheet3 (4)'!$F$16)) -> 120.296875 | W34: =IF('Sheet3 (4)'!F16="B",RTD("cqg.rtd", ,"ContractData",'Sheet3 (4)'!$D$12, "Ask",, "B"),TEXT(RTD("cqg.rtd", ,"ContractData",'Sheet3 (4)'!$D$12, "Ask",, "T"),'Sheet3 (4)'!$F$16)) -> 120.312500 | Y34: =RTD("cqg.rtd", ,"ContractData",'Sheet3 (4)'!$D$12, "MT_LastAskVolume",, "T") -> 1412 | AA34: Top Correlation to: | AC34: Highlight
K35: =IFERROR('Sheet4 (3)'!G93,"") -> 2018-06-29 | L35: =IFERROR('Sheet4 (3)'!H93,"") -> 0.923253488 | M35: Reset | AA35: =IFERROR('Sheet4 (4)'!G93,"") -> 2018-07-03 | AB35: =IFERROR('Sheet4 (4)'!H93,"") -> 0.6738144419 | AC35: Reset
A36: =IF(M40=$O$1,1,0) -> 0 | Q36: =IF(AC40=$O$1,1,0) -> 0
A37: =IF(M41=$O$1,1,0) -> 0 | Q37: =IF(AC41=$O$1,1,0) -> 1
A38: 0 | M38: Bar Time | N38: Corr | O38: =IFERROR(IF(TIME(0,5,0)-(MOD(B2,1)-M39)<0,1,TIME(0,5,0)-(MOD(B2,1)-M39)),"") -> 00:03:08 | Q38: 0 | AC38: Bar Time | AD38: Corr | AE38: =IFERROR(IF(TIME(0,5,0)-(MOD(B2,1)-AC39)<0,1,TIME(0,5,0)-(MOD(B2,1)-AC39)),"") -> 00:03:08
A39: 0 | M39: =IFERROR('Sheet3 (3)'!AC12,"") -> 10:25:00 | N39: Now | O39: % NC | Q39: 0 | AC39: =IFERROR('Sheet3 (4)'!AC12,"") -> 10:25:00 | AD39: Now | AE39: % NC
A40: 0 | M40: =IFERROR('Sheet3 (3)'!AG1,"") -> 2018-07-06 | N40: =IFERROR(VLOOKUP(M40,'Sheet4 (3)'!$G$93:$H$101,2,FALSE),"") -> 0.09793760696 | O40: =IFERROR('Sheet3 (3)'!AH1,"") -> 0.006515628992 | Q40: 0 | AC40: =IFERROR('Sheet3 (4)'!AG1,"") -> 2018-07-03 | AD40: =IFERROR(VLOOKUP(AC40,'Sheet4 (4)'!$G$93:$H$101,2,FALSE),"") -> 0.6738144419 | AE40: =IFERROR('Sheet3 (4)'!AH1,"") -> 0.001951854262
A41: 0 | M41: =IFERROR('Sheet3 (3)'!AG2,"") -> 2018-07-03 | N41: =IFERROR(VLOOKUP(M41,'Sheet4 (3)'!$G$93:$H$101,2,FALSE),"") -> 0.4390441844 | O41: =IFERROR('Sheet3 (3)'!AH2,"") -> 0.004068696732 | Q41: 0 | AC41: =IFERROR('Sheet3 (4)'!AG2,"") -> 2018-07-13 | AD41: =IFERROR(VLOOKUP(AC41,'Sheet4 (4)'!$G$93:$H$101,2,FALSE),"") ->  | AE41: =IFERROR('Sheet3 (4)'!AH2,"") -> 0.001300390117
A42: 0 | M42: =IFERROR('Sheet3 (3)'!AG3,"") -> 2018-07-05 | N42: =IFERROR(VLOOKUP(M42,'Sheet4 (3)'!$G$93:$H$101,2,FALSE),"") -> -0.07852596664 | O42: =IFERROR('Sheet3 (3)'!AH3,"") -> 0.003969439583 | Q42: 0 | AC42: =IFERROR('Sheet3 (4)'!AG3,"") -> 2018-07-11 | AD42: =IFERROR(VLOOKUP(AC42,'Sheet4 (4)'!$G$93:$H$101,2,FALSE),"") -> -0.8140691011 | AE42: =IFERROR('Sheet3 (4)'!AH3,"") -> 0.001171722432
A43: 1 | M43: =IFERROR('Sheet3 (3)'!AG4,"") -> 2018-06-28 | N43: =IFERROR(VLOOKUP(M43,'Sheet4 (3)'!$G$93:$H$101,2,FALSE),"") -> 0.4708477372 | O43: =IFERROR('Sheet3 (3)'!AH4,"") -> 0.002882092313 | Q43: 0 | AC43: =IFERROR('Sheet3 (4)'!AG4,"") -> 2018-07-06 | AD43: =IFERROR(VLOOKUP(AC43,'Sheet4 (4)'!$G$93:$H$101,2,FALSE),"") -> -0.03388313192 | AE43: =IFERROR('Sheet3 (4)'!AH4,"") -> 0.0007796257796
A44: 0 | M44: =IFERROR('Sheet3 (3)'!AG5,"") -> 2018-07-12 | N44: =IFERROR(VLOOKUP(M44,'Sheet4 (3)'!$G$93:$H$101,2,FALSE),"") -> 0.6103914171 | O44: =IFERROR('Sheet3 (3)'!AH5,"") -> 0.0007672634271 | Q44: 0 | AC44: =IFERROR('Sheet3 (4)'!AG5,"") -> 2018-07-05 | AD44: =IFERROR(VLOOKUP(AC44,'Sheet4 (4)'!$G$93:$H$101,2,FALSE),"") -> 0.5609715526 | AE44: =IFERROR('Sheet3 (4)'!AH5,"") -> 0.0005194805195
A45: 0 | M45: =IFERROR('Sheet3 (3)'!AG6,"") -> 2018-07-09 | N45: =IFERROR(VLOOKUP(M45,'Sheet4 (3)'!$G$93:$H$101,2,FALSE),"") -> -0.6822789437 | O45: =IFERROR('Sheet3 (3)'!AH6,"") -> 0.0003811944091 | Q45: 0 | AC45: =IFERROR('Sheet3 (4)'!AG6,"") -> 2018-06-29 | AD45: =IFERROR(VLOOKUP(AC45,'Sheet4 (4)'!$G$93:$H$101,2,FALSE),"") -> 0.001897982022 | AE45: =IFERROR('Sheet3 (4)'!AH6,"") -> -0.0003900156006
M46: =IFERROR('Sheet3 (3)'!AG7,"") -> 2018-06-29 | N46: =IFERROR(VLOOKUP(M46,'Sheet4 (3)'!$G$93:$H$101,2,FALSE),"") -> 0.923253488 | O46: =IFERROR('Sheet3 (3)'!AH7,"") -> -0.0002130106931 | AC46: =IFERROR('Sheet3 (4)'!AG7,"") -> 2018-07-10 | AD46: =IFERROR(VLOOKUP(AC46,'Sheet4 (4)'!$G$93:$H$101,2,FALSE),"") -> 0.4975356964 | AE46: =IFERROR('Sheet3 (4)'!AH7,"") -> -0.0003902185224
M47: =IFERROR('Sheet3 (3)'!AG8,"") -> 2018-07-13 | N47: =IFERROR(VLOOKUP(M47,'Sheet4 (3)'!$G$93:$H$101,2,FALSE),"") ->  | O47: =IFERROR('Sheet3 (3)'!AH8,"") -> -0.0006396315722 | AC47: =IFERROR('Sheet3 (4)'!AG8,"") -> 2018-07-12 | AD47: =IFERROR(VLOOKUP(AC47,'Sheet4 (4)'!$G$93:$H$101,2,FALSE),"") -> 0.4447566715 | AE47: =IFERROR('Sheet3 (4)'!AH8,"") -> -0.0006496881497
M48: =IFERROR('Sheet3 (3)'!AG9,"") -> 2018-07-10 | N48: =IFERROR(VLOOKUP(M48,'Sheet4 (3)'!$G$93:$H$101,2,FALSE),"") -> 0.6672692996 | O48: =IFERROR('Sheet3 (3)'!AH9,"") -> -0.001778304683 | AC48: =IFERROR('Sheet3 (4)'!AG9,"") -> 2018-07-02 | AD48: =IFERROR(VLOOKUP(AC48,'Sheet4 (4)'!$G$93:$H$101,2,FALSE),"") -> -0.7574302574 | AE48: =IFERROR('Sheet3 (4)'!AH9,"") -> -0.000650026001
M49: =IFERROR('Sheet3 (3)'!AG10,"") -> 2018-07-11 | N49: =IFERROR(VLOOKUP(M49,'Sheet4 (3)'!$G$93:$H$101,2,FALSE),"") -> -0.9292092618 | O49: =IFERROR('Sheet3 (3)'!AH10,"") -> -0.002541511352 | AC49: =IFERROR('Sheet3 (4)'!AG10,"") -> 2018-07-09 | AD49: =IFERROR(VLOOKUP(AC49,'Sheet4 (4)'!$G$93:$H$101,2,FALSE),"") -> 0.6494453767 | AE49: =IFERROR('Sheet3 (4)'!AH10,"") -> -0.001428200467
B54: Session: 8:00 - 15:15 | R54: Session: 8:00 - 14:00
D55: Copyright © 2018 | J55: Designed by Thom Hartle

Sheet Sheet3 (hidden)
A1: 0 | B1: 08:30:00 | C1: =RTD("cqg.rtd",,"StudyData",$D$12, "Bar", "", "Time","D","0",,,,,"T") -> 2018-07-13 | D1: =YEAR(C1) -> 2018 | E1: =MONTH(C1) -> 7 | F1: =DAY(C1) -> 13 | H1: =RTD("cqg.rtd",,"StudyData", "Close("&$D$12&") when LocalYear("&$D$12&")="&$D$1&" and localMonth("&$D$12&") ="&$E$1&" and LocalDay("&$D$12&")="&$F$1&" and Barix("&$D$12&",reference:=StartOfSession)="&A1&"", "Bar", "", "Close","5","0","PrimaryOnly",,,"False","T","EveryTick") -> 7393.25 | I1: =IFERROR((H1-$G$2)/$G$2,NA()) -> 0.001422234262 | J1: =RTD("cqg.rtd",,"StudyData", "Close("&$D$12&") when LocalYear("&$D$12&")="&$D$2&" and localMonth("&$D$12&") ="&$E$2&" and LocalDay("&$D$12&")="&$F$2&" and Barix("&$D$12&",reference:=StartOfSession)="&A1&"", "Bar", "", "Close","5","0","PrimaryOnly",,,"False","T","EveryTick") -> 7300.75 | K1: =IFERROR((J1-$G$3)/$G$3,NA()) -> 0.006479407203 | L1: =RTD("cqg.rtd",,"StudyData", "Close("&$D$12&") when LocalYear("&$D$12&")="&$D$3&" and localMonth("&$D$12&") ="&$E$3&" and LocalDay("&$D$12&")="&$F$3&" and Barix("&$D$12&",reference:=StartOfSession)="&A1&"", "Bar", "", "Close","5","0","PrimaryOnly",,,"False","T","EveryTick") -> 7261.75 | M1: =IFERROR((L1-$G$4)/$G$4,NA()) -> -0.005444086831 | N1: =RTD("cqg.rtd",,"StudyData", "Close("&$D$12&") when LocalYear("&$D$12&")="&$D$4&" and localMonth("&$D$12&") ="&$E$4&" and LocalDay("&$D$12&")="&$F$4&" and Barix("&$D$12&",reference:=StartOfSession)="&A1&"", "Bar", "", "Close","5","0","PrimaryOnly",,,"False","T","EveryTick") -> 7295.75 | O1: =IFERROR((N1-$G$5)/$G$5,NA()) -> -0.000616417246 | P1: =RTD("cqg.rtd",,"StudyData", "Close("&$D$12&") when LocalYear("&$D$12&")="&$D$5&" and localMonth("&$D$12&") ="&$E$5&" and LocalDay("&$D$12&")="&$F$5&" and Barix("&$D$12&",reference:=StartOfSession)="&A1&"", "Bar", "", "Close","5","0","PrimaryOnly",,,"False","T","EveryTick") -> 7277 | Q1: =IFERROR((P1-$G$6)/$G$6,NA()) -> 0.006013686321 | R1: =RTD("cqg.rtd",,"StudyData", "Close("&$D$12&") when LocalYear("&$D$12&")="&$D$6&" and localMonth("&$D$12&") ="&$E$6&" and LocalDay("&$D$12&")="&$F$6&" and Barix("&$D$12&",reference:=StartOfSession)="&A1&"", "Bar", "", "Close","5","0","PrimaryOnly",,,"False","T","EveryTick") -> 7132 | S1: =IFERROR((R1-$G$7)/$G$7,NA()) -> 0.0008771006561 | T1: =RTD("cqg.rtd",,"StudyData", "Close("&$D$12&") when LocalYear("&$D$12&")="&$D$7&" and localMonth("&$D$12&") ="&$E$7&" and LocalDay("&$D$12&")="&$F$7&" and Barix("&$D$12&",reference:=StartOfSession)="&A1&"", "Bar", "", "Close","5","0","PrimaryOnly",,,"False","T","EveryTick") -> 7085.5 | U1: =IFERROR((T1-$G$8)/$G$8,NA()) -> 0.008791599929 | V1: =RTD("cqg.rtd",,"StudyData", "Close("&$D$12&") when LocalYear("&$D$12&")="&$D$8&" and localMonth("&$D$12&") ="&$E$8&" and LocalDay("&$D$12&")="&$F$8&" and Barix("&$D$12&",reference:=StartOfSession)="&A1&"", "Bar", "", "Close","5","0","PrimaryOnly",,,"False","T","EveryTick") -> 7127.75 | W1: =IFERROR((V1-$G$9)/$G$9,NA()) -> 0.001580833275 | X1: =RTD("cqg.rtd",,"StudyData", "Close("&$D$12&") when LocalYear("&$D$12&")="&$D$9&" and localMonth("&$D$12&") ="&$E$9&" and LocalDay("&$D$12&")="&$F$9&" and Barix("&$D$12&",reference:=StartOfSession)="&A1&"", "Bar", "", "Close","5","0","PrimaryOnly",,,"False","T","EveryTick") -> 7000.75 | Y1: =IFERROR((X1-$G$10)/$G$10,NA()) -> -0.009339512506 | Z1: =RTD("cqg.rtd",,"StudyData", "Close("&$D$12&") when LocalYear("&$D$12&")="&$D$10&" and localMonth("&$D$12&") ="&$E$10&" and LocalDay("&$D$12&")="&$F$10&" and Barix("&$D$12&",reference:=StartOfSession)="&A1&"", "Bar", "", "Close","5","0","PrimaryOnly",,,"False","T","EveryTick") -> 7096.25 | AA1: =IFERROR((Z1-$G$11)/$G$11,NA()) -> 0.00506338078 | AB1: =RANK(AD1,$AD$1:$AD$10)+COUNTIF($AD$1:AD1,AD1)-1 -> 6 | AC1: =DATE(D1,E1,F1) -> 2018-07-13 | AD1: =IFERROR(VLOOKUP(MAX(AE2:AE81),A1:I81,9,FALSE),"") -> 0.002709017642 | AF1: 1 | AG1: =VLOOKUP(AF1,$AB$1:$AD$10,2,FALSE) -> 2018-07-12 | AH1: =VLOOKUP(AF1,$AB$1:$AD$10,3,FALSE) -> 0.01285541961 | AK1: =AG1 -> 2018-07-12 | AL1: =AC1 -> 2018-07-13 | AM1: 0 | AN1: =VLOOKUP(AK1,$AL$1:$AM$10,2,FALSE) -> 1
A2: =A1+1 -> 1 | B2: 08:35:00 | C2: =RTD("cqg.rtd",,"StudyData",$D$12, "Bar", "", "Time","D","-1",,,,,"T") -> 2018-07-12 | D2: =YEAR(C2) -> 2018 | E2: =MONTH(C2) -> 7 | F2: =DAY(C2) -> 12 | G2: =RTD("cqg.rtd",,"StudyData",$D$12, "Bar", "", "Close","D","-1",,,,,"T") -> 7382.75 | H2: =RTD("cqg.rtd",,"StudyData", "Close("&$D$12&") when LocalYear("&$D$12&")="&$D$1&" and localMonth("&$D$12&") ="&$E$1&" and LocalDay("&$D$12&")="&$F$1&" and Barix("&$D$12&",reference:=StartOfSession)="&A2&"", "Bar", "", "Close","5","0","PrimaryOnly",,,"False","T","EveryTick") -> 7392 | I2: =IFERROR((H2-$G$2)/$G$2,NA()) -> 0.00125292066 | J2: =RTD("cqg.rtd",,"StudyData", "Close("&$D$12&") when LocalYear("&$D$12&")="&$D$2&" and localMonth("&$D$12&") ="&$E$2&" and LocalDay("&$D$12&")="&$F$2&" and Barix("&$D$12&",reference:=StartOfSession)="&A2&"", "Bar", "", "Close","5","0","PrimaryOnly",,,"False","T","EveryTick") -> 7308.25 | K2: =IFERROR((J2-$G$3)/$G$3,NA()) -> 0.007513355161 | L2: =RTD("cqg.rtd",,"StudyData", "Close("&$D$12&") when LocalYear("&$D$12&")="&$D$3&" and localMonth("&$D$12&") ="&$E$3&" and LocalDay("&$D$12&")="&$F$3&" and Barix("&$D$12&",reference:=StartOfSession)="&A2&"", "Bar", "", "Close","5","0","PrimaryOnly",,,"False","T","EveryTick") -> 7265.5 | M2: =IFERROR((L2-$G$4)/$G$4,NA()) -> -0.004930493734 | N2: =RTD("cqg.rtd",,"StudyData", "Close("&$D$12&") when LocalYear("&$D$12&")="&$D$4&" and localMonth("&$D$12&") ="&$E$4&" and LocalDay("&$D$12&")="&$F$4&" and Barix("&$D$12&",reference:=StartOfSession)="&A2&"", "Bar", "", "Close","5","0","PrimaryOnly",,,"False","T","EveryTick") -> 7305.25 | O2: =IFERROR((N2-$G$5)/$G$5,NA()) -> 0.0006849080511 | P2: =RTD("cqg.rtd",,"StudyData", "Close("&$D$12&") when LocalYear("&$D$12&")="&$D$5&" and localMonth("&$D$12&") ="&$E$5&" and LocalDay("&$D$12&")="&$F$5&" and Barix("&$D$12&",reference:=StartOfSession)="&A2&"", "Bar", "", "Close","5","0","PrimaryOnly",,,"False","T","EveryTick") -> 7274.75 | Q2: =IFERROR((P2-$G$6)/$G$6,NA()) -> 0.00570263358 | R2: =RTD("cqg.rtd",,"StudyData", "Close("&$D$12&") when LocalYear("&$D$12&")="&$D$6&" and localMonth("&$D$12&") ="&$E$6&" and LocalDay("&$D$12&")="&$F$6&" and Barix("&$D$12&",reference:=StartOfSession)="&A2&"", "Bar", "", "Close","5","0","PrimaryOnly",,,"False","T","EveryTick") -> 7150.75 | S2: =IFERROR((R2-$G$7)/$G$7,NA()) -> 0.003508402624 | T2: =RTD("cqg.rtd",,"StudyData", "Close("&$D$12&") when LocalYear("&$D$12&")="&$D$7&" and localMonth("&$D$12&") ="&$E$7&" and LocalDay("&$D$12&")="&$F$7&" and Barix("&$D$12&",reference:=StartOfSession)="&A2&"", "Bar", "", "Close","5","0","PrimaryOnly",,,"False","T","EveryTick") -> 7094.75 | U2: =IFERROR((T2-$G$8)/$G$8,NA()) -> 0.01010856024 | V2: =RTD("cqg.rtd",,"StudyData", "Close("&$D$12&") when LocalYear("&$D$12&")="&$D$8&" and localMonth("&$D$12&") ="&$E$8&" and LocalDay("&$D$12&")="&$F$8&" and Barix("&$D$12&",reference:=StartOfSession)="&A2&"", "Bar", "", "Close","5","0","PrimaryOnly",,,"False","T","EveryTick") -> 7110 | W2: =IFERROR((V2-$G$9)/$G$9,NA()) -> -0.0009133703365 | X2: =RTD("cqg.rtd",,"StudyData", "Close("&$D$12&") when LocalYear("&$D$12&")="&$D$9&" and localMonth("&$D$12&") ="&$E$9&" and LocalDay("&$D$12&")="&$F$9&" and Barix("&$D$12&",reference:=StartOfSession)="&A2&"", "Bar", "", "Close","5","0","PrimaryOnly",,,"False","T","EveryTick") -> 7020 | Y2: =IFERROR((X2-$G$10)/$G$10,NA()) -> -0.006615488025 | Z2: =RTD("cqg.rtd",,"StudyData", "Close("&$D$12&") when LocalYear("&$D$12&")="&$D$10&" and localMonth("&$D$12&") ="&$E$10&" and LocalDay("&$D$12&")="&$F$10&" and Barix("&$D$12&",reference:=StartOfSession)="&A2&"", "Bar", "", "Close","5","0","PrimaryOnly",,,"False","T","EveryTick") -> 7094 | AA2: =IFERROR((Z2-$G$11)/$G$11,NA()) -> 0.004744706466 | AB2: =RANK(AD2,$AD$1:$AD$10)+COUNTIF($AD$1:AD2,AD2)-1 -> 1 | AC2: =DATE(D2,E2,F2) -> 2018-07-12 | AD2: =IFERROR(VLOOKUP(MAX(AE2:AE81),A1:K81,11,FALSE),"") -> 0.01285541961 | AE2: =IF(AND(H1<>"",H2<>"",H3=""),A2,"") ->  | AF2: 2 | AG2: =VLOOKUP(AF2,$AB$1:$AD$10,2,FALSE) -> 2018-07-06 | AH2: =VLOOKUP(AF2,$AB$1:$AD$10,3,FALSE) -> 0.01010419956 | AK2: =AG2 -> 2018-07-06 | AL2: =AC2 -> 2018-07-12 | AM2: 1 | AN2: =VLOOKUP(AK2,$AL$1:$AM$10,2,FALSE) -> 5
A3: =A2+1 -> 2 | B3: 08:40:00 | C3: =RTD("cqg.rtd",,"StudyData",$D$12, "Bar", "", "Time","D","-2",,,,,"T") -> 2018-07-11 | D3: 2018 | E3: 7 | F3: 11 | G3: =RTD("cqg.rtd",,"StudyData",$D$12, "Bar", "", "Close","D","-2",,,,,"T") -> 7253.75 | H3: =RTD("cqg.rtd",,"StudyData", "Close("&$D$12&") when LocalYear("&$D$12&")="&$D$1&" and localMonth("&$D$12&") ="&$E$1&" and LocalDay("&$D$12&")="&$F$1&" and Barix("&$D$12&",reference:=StartOfSession)="&A3&"", "Bar", "", "Close","5","0","PrimaryOnly",,,"False","T","EveryTick") -> 7386 | I3: =IFERROR((H3-$G$2)/$G$2,NA()) -> 0.0004402153669 | J3: =RTD("cqg.rtd",,"StudyData", "Close("&$D$12&") when LocalYear("&$D$12&")="&$D$2&" and localMonth("&$D$12&") ="&$E$2&" and LocalDay("&$D$12&")="&$F$2&" and Barix("&$D$12&",reference:=StartOfSession)="&A3&"", "Bar", "", "Close","5","0","PrimaryOnly",,,"False","T","EveryTick") -> 7305 | K3: 0.007065311046 | L3: =RTD("cqg.rtd",,"StudyData", "Close("&$D$12&") when LocalYear("&$D$12&")="&$D$3&" and localMonth("&$D$12&") ="&$E$3&" and LocalDay("&$D$12&")="&$F$3&" and Barix("&$D$12&",reference:=StartOfSession)="&A3&"", "Bar", "", "Close","5","0","PrimaryOnly",,,"False","T","EveryTick") -> 7258 | M3: -0.005957679929 | N3: =RTD("cqg.rtd",,"StudyData", "Close("&$D$12&") when LocalYear("&$D$12&")="&$D$4&" and localMonth("&$D$12&") ="&$E$4&" and LocalDay("&$D$12&")="&$F$4&" and Barix("&$D$12&",reference:=StartOfSession)="&A3&"", "Bar", "", "Close","5","0","PrimaryOnly",,,"False","T","EveryTick") -> 7303.25 | O3: 0.0004109448307 | P3: =RTD("cqg.rtd",,"StudyData", "Close("&$D$12&") when LocalYear("&$D$12&")="&$D$5&" and localMonth("&$D$12&") ="&$E$5&" and LocalDay("&$D$12&")="&$F$5&" and Barix("&$D$12&",reference:=StartOfSession)="&A3&"", "Bar", "", "Close","5","0","PrimaryOnly",,,"False","T","EveryTick") -> 7277 | Q3: 0.006013686321 | R3: =RTD("cqg.rtd",,"StudyData", "Close("&$D$12&") when LocalYear("&$D$12&")="&$D$6&" and localMonth("&$D$12&") ="&$E$6&" and LocalDay("&$D$12&")="&$F$6&" and Barix("&$D$12&",reference:=StartOfSession)="&A3&"", "Bar", "", "Close","5","0","PrimaryOnly",,,"False","T","EveryTick") -> 7150.5 | S3: 0.003473318598 | T3: =RTD("cqg.rtd",,"StudyData", "Close("&$D$12&") when LocalYear("&$D$12&")="&$D$7&" and localMonth("&$D$12&") ="&$E$7&" and LocalDay("&$D$12&")="&$F$7&" and Barix("&$D$12&",reference:=StartOfSession)="&A3&"", "Bar", "", "Close","5","0","PrimaryOnly",,,"False","T","EveryTick") -> 7097 | U3: 0.01042890194 | V3: =RTD("cqg.rtd",,"StudyData", "Close("&$D$12&") when LocalYear("&$D$12&")="&$D$8&" and localMonth("&$D$12&") ="&$E$8&" and LocalDay("&$D$12&")="&$F$8&" and Barix("&$D$12&",reference:=StartOfSession)="&A3&"", "Bar", "", "Close","5","0","PrimaryOnly",,,"False","T","EveryTick") -> 7103.75 | W3: -0.001791611045 | X3: =RTD("cqg.rtd",,"StudyData", "Close("&$D$12&") when LocalYear("&$D$12&")="&$D$9&" and localMonth("&$D$12&") ="&$E$9&" and LocalDay("&$D$12&")="&$F$9&" and Barix("&$D$12&",reference:=StartOfSession)="&A3&"", "Bar", "", "Close","5","0","PrimaryOnly",,,"False","T","EveryTick") -> 7013.25 | Y3: -0.00757066544 | Z3: =RTD("cqg.rtd",,"StudyData", "Close("&$D$12&") when LocalYear("&$D$12&")="&$D$10&" and localMonth("&$D$12&") ="&$E$10&" and LocalDay("&$D$12&")="&$F$10&" and Barix("&$D$12&",reference:=StartOfSession)="&A3&"", "Bar", "", "Close","5","0","PrimaryOnly",,,"False","T","EveryTick") -> 7109.75 | AA3: 0.006975426669 | AB3: =RANK(AD3,$AD$1:$AD$10)+COUNTIF($AD$1:AD3,AD3)-1 -> 10 | AC3: 2018-07-11 | AD3: =IFERROR(VLOOKUP(MAX(AE2:AE81),A1:M81,13,FALSE),"") -> -0.006197356708 | AE3: =IF(AND(H2<>"",H3<>"",H4=""),A3,"") ->  | AF3: 3 | AG3: 2018-07-05 | AH3: 0.008008542445 | AK3: 2018-07-05 | AL3: 2018-07-11 | AM3: 2 | AN3: 6
A4: 3 | B4: 08:45:00 | C4: =RTD("cqg.rtd",,"StudyData",$D$12, "Bar", "", "Time","D","-3",,,,,"T") -> 2018-07-10 | D4: 2018 | E4: 7 | F4: 10 | G4: =RTD("cqg.rtd",,"StudyData",$D$12, "Bar", "", "Close","D","-3",,,,,"T") -> 7301.5 | H4: =RTD("cqg.rtd",,"StudyData", "Close("&$D$12&") when LocalYear("&$D$12&")="&$D$1&" and localMonth("&$D$12&") ="&$E$1&" and LocalDay("&$D$12&")="&$F$1&" and Barix("&$D$12&",reference:=StartOfSession)="&A4&"", "Bar", "", "Close","5","0","PrimaryOnly",,,"False","T","EveryTick") -> 7387.75 | I4: 0.0006772544106 | J4: =RTD("cqg.rtd",,"StudyData", "Close("&$D$12&") when LocalYear("&$D$12&")="&$D$2&" and localMonth("&$D$12&") ="&$E$2&" and LocalDay("&$D$12&")="&$F$2&" and Barix("&$D$12&",reference:=StartOfSession)="&A4&"", "Bar", "", "Close","5","0","PrimaryOnly",,,"False","T","EveryTick") -> 7304 | K4: 0.006927451318 | L4: =RTD("cqg.rtd",,"StudyData", "Close("&$D$12&") when LocalYear("&$D$12&")="&$D$3&" and localMonth("&$D$12&") ="&$E$3&" and LocalDay("&$D$12&")="&$F$3&" and Barix("&$D$12&",reference:=StartOfSession)="&A4&"", "Bar", "", "Close","5","0","PrimaryOnly",,,"False","T","EveryTick") -> 7260 | M4: -0.00568376361 | N4: =RTD("cqg.rtd",,"StudyData", "Close("&$D$12&") when LocalYear("&$D$12&")="&$D$4&" and localMonth("&$D$12&") ="&$E$4&" and LocalDay("&$D$12&")="&$F$4&" and Barix("&$D$12&",reference:=StartOfSession)="&A4&"", "Bar", "", "Close","5","0","PrimaryOnly",,,"False","T","EveryTick") -> 7292.5 | O4: -0.001061607479 | P4: =RTD("cqg.rtd",,"StudyData", "Close("&$D$12&") when LocalYear("&$D$12&")="&$D$5&" and localMonth("&$D$12&") ="&$E$5&" and LocalDay("&$D$12&")="&$F$5&" and Barix("&$D$12&",reference:=StartOfSession)="&A4&"", "Bar", "", "Close","5","0","PrimaryOnly",,,"False","T","EveryTick") -> 7274.25 | Q4: 0.005633510749 | R4: =RTD("cqg.rtd",,"StudyData", "Close("&$D$12&") when LocalYear("&$D$12&")="&$D$6&" and localMonth("&$D$12&") ="&$E$6&" and LocalDay("&$D$12&")="&$F$6&" and Barix("&$D$12&",reference:=StartOfSession)="&A4&"", "Bar", "", "Close","5","0","PrimaryOnly",,,"False","T","EveryTick") -> 7147.75 | S4: 0.003087394309 | T4: =RTD("cqg.rtd",,"StudyData", "Close("&$D$12&") when LocalYear("&$D$12&")="&$D$7&" and localMonth("&$D$12&") ="&$E$7&" and LocalDay("&$D$12&")="&$F$7&" and Barix("&$D$12&",reference:=StartOfSession)="&A4&"", "Bar", "", "Close","5","0","PrimaryOnly",,,"False","T","EveryTick") -> 7092 | U4: 0.0097170315 | V4: =RTD("cqg.rtd",,"StudyData", "Close("&$D$12&") when LocalYear("&$D$12&")="&$D$8&" and localMonth("&$D$12&") ="&$E$8&" and LocalDay("&$D$12&")="&$F$8&" and Barix("&$D$12&",reference:=StartOfSession)="&A4&"", "Bar", "", "Close","5","0","PrimaryOnly",,,"False","T","EveryTick") -> 7105.5 | W4: -0.001545703646 | X4: =RTD("cqg.rtd",,"StudyData", "Close("&$D$12&") when LocalYear("&$D$12&")="&$D$9&" and localMonth("&$D$12&") ="&$E$9&" and LocalDay("&$D$12&")="&$F$9&" and Barix("&$D$12&",reference:=StartOfSession)="&A4&"", "Bar", "", "Close","5","0","PrimaryOnly",,,"False","T","EveryTick") -> 7029.5 | Y4: -0.005271164255 | Z4: =RTD("cqg.rtd",,"StudyData", "Close("&$D$12&") when LocalYear("&$D$12&")="&$D$10&" and localMonth("&$D$12&") ="&$E$10&" and LocalDay("&$D$12&")="&$F$10&" and Barix("&$D$12&",reference:=StartOfSession)="&A4&"", "Bar", "", "Close","5","0","PrimaryOnly",,,"False","T","EveryTick") -> 7109 | AA4: 0.006869201898 | AB4: =RANK(AD4,$AD$1:$AD$10)+COUNTIF($AD$1:AD4,AD4)-1 -> 7 | AC4: 2018-07-10 | AD4: =IFERROR(VLOOKUP(MAX(AE2:AE81),A1:O81,15,FALSE),"") -> 0.0001027362077 | AF4: 4 | AG4: 2018-06-29 | AH4: 0.006267261525 | AK4: 2018-06-29 | AL4: 2018-07-10 | AM4: 3 | AN4: 9
A5: 4 | B5: 08:50:00 | C5: =RTD("cqg.rtd",,"StudyData",$D$12, "Bar", "", "Time","D","-4",,,,,"T") -> 2018-07-09 | D5: 2018 | E5: 7 | F5: 9 | G5: =RTD("cqg.rtd",,"StudyData",$D$12, "Bar", "", "Close","D","-4",,,,,"T") -> 7300.25 | H5: =RTD("cqg.rtd",,"StudyData", "Close("&$D$12&") when LocalYear("&$D$12&")="&$D$1&" and localMonth("&$D$12&") ="&$E$1&" and LocalDay("&$D$12&")="&$F$1&" and Barix("&$D$12&",reference:=StartOfSession)="&A5&"", "Bar", "", "Close","5","0","PrimaryOnly",,,"False","T","EveryTick") -> 7373.25 | I5: -0.00128678338 | J5: =RTD("cqg.rtd",,"StudyData", "Close("&$D$12&") when LocalYear("&$D$12&")="&$D$2&" and localMonth("&$D$12&") ="&$E$2&" and LocalDay("&$D$12&")="&$F$2&" and Barix("&$D$12&",reference:=StartOfSession)="&A5&"", "Bar", "", "Close","5","0","PrimaryOnly",,,"False","T","EveryTick") -> 7312 | K5: 0.00803032914 | L5: =RTD("cqg.rtd",,"StudyData", "Close("&$D$12&") when LocalYear("&$D$12&")="&$D$3&" and localMonth("&$D$12&") ="&$E$3&" and LocalDay("&$D$12&")="&$F$3&" and Barix("&$D$12&",reference:=StartOfSession)="&A5&"", "Bar", "", "Close","5","0","PrimaryOnly",,,"False","T","EveryTick") -> 7268 | M5: -0.004588098336 | N5: =RTD("cqg.rtd",,"StudyData", "Close("&$D$12&") when LocalYear("&$D$12&")="&$D$4&" and localMonth("&$D$12&") ="&$E$4&" and LocalDay("&$D$12&")="&$F$4&" and Barix("&$D$12&",reference:=StartOfSession)="&A5&"", "Bar", "", "Close","5","0","PrimaryOnly",,,"False","T","EveryTick") -> 7290.5 | O5: -0.0013355707 | P5: =RTD("cqg.rtd",,"StudyData", "Close("&$D$12&") when LocalYear("&$D$12&")="&$D$5&" and localMonth("&$D$12&") ="&$E$5&" and LocalDay("&$D$12&")="&$F$5&" and Barix("&$D$12&",reference:=StartOfSession)="&A5&"", "Bar", "", "Close","5","0","PrimaryOnly",,,"False","T","EveryTick") -> 7257 | Q5: 0.00324877307 | R5: =RTD("cqg.rtd",,"StudyData", "Close("&$D$12&") when LocalYear("&$D$12&")="&$D$6&" and localMonth("&$D$12&") ="&$E$6&" and LocalDay("&$D$12&")="&$F$6&" and Barix("&$D$12&",reference:=StartOfSession)="&A5&"", "Bar", "", "Close","5","0","PrimaryOnly",,,"False","T","EveryTick") -> 7155.25 | S5: 0.004139915097 | T5: =RTD("cqg.rtd",,"StudyData", "Close("&$D$12&") when LocalYear("&$D$12&")="&$D$7&" and localMonth("&$D$12&") ="&$E$7&" and LocalDay("&$D$12&")="&$F$7&" and Barix("&$D$12&",reference:=StartOfSession)="&A5&"", "Bar", "", "Close","5","0","PrimaryOnly",,,"False","T","EveryTick") -> 7088 | U5: 0.009147535149 | V5: =RTD("cqg.rtd",,"StudyData", "Close("&$D$12&") when LocalYear("&$D$12&")="&$D$8&" and localMonth("&$D$12&") ="&$E$8&" and LocalDay("&$D$12&")="&$F$8&" and Barix("&$D$12&",reference:=StartOfSession)="&A5&"", "Bar", "", "Close","5","0","PrimaryOnly",,,"False","T","EveryTick") -> 7098 | W5: -0.002599592496 | X5: =RTD("cqg.rtd",,"StudyData", "Close("&$D$12&") when LocalYear("&$D$12&")="&$D$9&" and localMonth("&$D$12&") ="&$E$9&" and LocalDay("&$D$12&")="&$F$9&" and Barix("&$D$12&",reference:=StartOfSession)="&A5&"", "Bar", "", "Close","5","0","PrimaryOnly",,,"False","T","EveryTick") -> 7033.25 | Y5: -0.004740510135 | Z5: =RTD("cqg.rtd",,"StudyData", "Close("&$D$12&") when LocalYear("&$D$12&")="&$D$10&" and localMonth("&$D$12&") ="&$E$10&" and LocalDay("&$D$12&")="&$F$10&" and Barix("&$D$12&",reference:=StartOfSession)="&A5&"", "Bar", "", "Close","5","0","PrimaryOnly",,,"False","T","EveryTick") -> 7106.5 | AA5: 0.006515119326 | AB5: =RANK(AD5,$AD$1:$AD$10)+COUNTIF($AD$1:AD5,AD5)-1 -> 5 | AC5: 2018-07-09 | AD5: =IFERROR(VLOOKUP(MAX(AE2:AE81),A1:Q81,17,FALSE),"") -> 0.004285615539 | AF5: 5 | AG5: 2018-07-09 | AH5: 0.004285615539 | AK5: 2018-07-09 | AL5: 2018-07-09 | AM5: 4 | AN5: 4
A6: 5 | B6: 08:55:00 | C6: =RTD("cqg.rtd",,"StudyData",$D$12, "Bar", "", "Time","D","-5",,,,,"T") -> 2018-07-06 | D6: 2018 | E6: 7 | F6: 6 | G6: =RTD("cqg.rtd",,"StudyData",$D$12, "Bar", "", "Close","D","-5",,,,,"T") -> 7233.5 | H6: =RTD("cqg.rtd",,"StudyData", "Close("&$D$12&") when LocalYear("&$D$12&")="&$D$1&" and localMonth("&$D$12&") ="&$E$1&" and LocalDay("&$D$12&")="&$F$1&" and Barix("&$D$12&",reference:=StartOfSession)="&A6&"", "Bar", "", "Close","5","0","PrimaryOnly",,,"False","T","EveryTick") -> 7373.25 | I6: -0.00128678338 | J6: =RTD("cqg.rtd",,"StudyData", "Close("&$D$12&") when LocalYear("&$D$12&")="&$D$2&" and localMonth("&$D$12&") ="&$E$2&" and LocalDay("&$D$12&")="&$F$2&" and Barix("&$D$12&",reference:=StartOfSession)="&A6&"", "Bar", "", "Close","5","0","PrimaryOnly",,,"False","T","EveryTick") -> 7317.5 | K6: 0.008788557643 | L6: =RTD("cqg.rtd",,"StudyData", "Close("&$D$12&") when LocalYear("&$D$12&")="&$D$3&" and localMonth("&$D$12&") ="&$E$3&" and LocalDay("&$D$12&")="&$F$3&" and Barix("&$D$12&",reference:=StartOfSession)="&A6&"", "Bar", "", "Close","5","0","PrimaryOnly",,,"False","T","EveryTick") -> 7263.75 | M6: -0.005170170513 | N6: =RTD("cqg.rtd",,"StudyData", "Close("&$D$12&") when LocalYear("&$D$12&")="&$D$4&" and localMonth("&$D$12&") ="&$E$4&" and LocalDay("&$D$12&")="&$F$4&" and Barix("&$D$12&",reference:=StartOfSession)="&A6&"", "Bar", "", "Close","5","0","PrimaryOnly",,,"False","T","EveryTick") -> 7294.25 | O6: -0.0008218896613 | P6: =RTD("cqg.rtd",,"StudyData", "Close("&$D$12&") when LocalYear("&$D$12&")="&$D$5&" and localMonth("&$D$12&") ="&$E$5&" and LocalDay("&$D$12&")="&$F$5&" and Barix("&$D$12&",reference:=StartOfSession)="&A6&"", "Bar", "", "Close","5","0","PrimaryOnly",,,"False","T","EveryTick") -> 7263.5 | Q6: 0.004147369876 | R6: =RTD("cqg.rtd",,"StudyData", "Close("&$D$12&") when LocalYear("&$D$12&")="&$D$6&" and localMonth("&$D$12&") ="&$E$6&" and LocalDay("&$D$12&")="&$F$6&" and Barix("&$D$12&",reference:=StartOfSession)="&A6&"", "Bar", "", "Close","5","0","PrimaryOnly",,,"False","T","EveryTick") -> 7161.75 | S6: 0.005052099779 | T6: =RTD("cqg.rtd",,"StudyData", "Close("&$D$12&") when LocalYear("&$D$12&")="&$D$7&" and localMonth("&$D$12&") ="&$E$7&" and LocalDay("&$D$12&")="&$F$7&" and Barix("&$D$12&",reference:=StartOfSession)="&A6&"", "Bar", "", "Close","5","0","PrimaryOnly",,,"False","T","EveryTick") -> 7077.25 | U6: 0.007617013704 | V6: =RTD("cqg.rtd",,"StudyData", "Close("&$D$12&") when LocalYear("&$D$12&")="&$D$8&" and localMonth("&$D$12&") ="&$E$8&" and LocalDay("&$D$12&")="&$F$8&" and Barix("&$D$12&",reference:=StartOfSession)="&A6&"", "Bar", "", "Close","5","0","PrimaryOnly",,,"False","T","EveryTick") -> 7102.5 | W6: -0.001967259186 | X6: =RTD("cqg.rtd",,"StudyData", "Close("&$D$12&") when LocalYear("&$D$12&")="&$D$9&" and localMonth("&$D$12&") ="&$E$9&" and LocalDay("&$D$12&")="&$F$9&" and Barix("&$D$12&",reference:=StartOfSession)="&A6&"", "Bar", "", "Close","5","0","PrimaryOnly",,,"False","T","EveryTick") -> 7034.5 | Y6: -0.004563625429 | Z6: =RTD("cqg.rtd",,"StudyData", "Close("&$D$12&") when LocalYear("&$D$12&")="&$D$10&" and localMonth("&$D$12&") ="&$E$10&" and LocalDay("&$D$12&")="&$F$10&" and Barix("&$D$12&",reference:=StartOfSession)="&A6&"", "Bar", "", "Close","5","0","PrimaryOnly",,,"False","T","EveryTick") -> 7105.75 | AA6: 0.006408894554 | AB6: =RANK(AD6,$AD$1:$AD$10)+COUNTIF($AD$1:AD6,AD6)-1 -> 2 | AC6: 2018-07-06 | AD6: =IFERROR(VLOOKUP(MAX(AE2:AE81),A1:S81,19,FALSE),"") -> 0.01010419956 | AF6: 6 | AG6: 2018-07-13 | AH6: 0.002709017642 | AK6: 2018-07-13 | AL6: 2018-07-06 | AM6: 5 | AN6: 0
A7: 6 | B7: 09:00:00 | C7: =RTD("cqg.rtd",,"StudyData",$D$12, "Bar", "", "Time","D","-6",,,,,"T") -> 2018-07-05 | D7: 2018 | E7: 7 | F7: 5 | G7: =RTD("cqg.rtd",,"StudyData",$D$12, "Bar", "", "Close","D","-6",,,,,"T") -> 7125.75 | H7: =RTD("cqg.rtd",,"StudyData", "Close("&$D$12&") when LocalYear("&$D$12&")="&$D$1&" and localMonth("&$D$12&") ="&$E$1&" and LocalDay("&$D$12&")="&$F$1&" and Barix("&$D$12&",reference:=StartOfSession)="&A7&"", "Bar", "", "Close","5","0","PrimaryOnly",,,"False","T","EveryTick") -> 7383 | I7: 3.386272053e-05 | J7: =RTD("cqg.rtd",,"StudyData", "Close("&$D$12&") when LocalYear("&$D$12&")="&$D$2&" and localMonth("&$D$12&") ="&$E$2&" and LocalDay("&$D$12&")="&$F$2&" and Barix("&$D$12&",reference:=StartOfSession)="&A7&"", "Bar", "", "Close","5","0","PrimaryOnly",,,"False","T","EveryTick") -> 7324.75 | K7: 0.009788040669 | L7: =RTD("cqg.rtd",,"StudyData", "Close("&$D$12&") when LocalYear("&$D$12&")="&$D$3&" and localMonth("&$D$12&") ="&$E$3&" and LocalDay("&$D$12&")="&$F$3&" and Barix("&$D$12&",reference:=StartOfSession)="&A7&"", "Bar", "", "Close","5","0","PrimaryOnly",,,"False","T","EveryTick") -> 7278.5 | M7: -0.003150037663 | N7: =RTD("cqg.rtd",,"StudyData", "Close("&$D$12&") when LocalYear("&$D$12&")="&$D$4&" and localMonth("&$D$12&") ="&$E$4&" and LocalDay("&$D$12&")="&$F$4&" and Barix("&$D$12&",reference:=StartOfSession)="&A7&"", "Bar", "", "Close","5","0","PrimaryOnly",,,"False","T","EveryTick") -> 7296.75 | O7: -0.0004794356358 | P7: =RTD("cqg.rtd",,"StudyData", "Close("&$D$12&") when LocalYear("&$D$12&")="&$D$5&" and localMonth("&$D$12&") ="&$E$5&" and LocalDay("&$D$12&")="&$F$5&" and Barix("&$D$12&",reference:=StartOfSession)="&A7&"", "Bar", "", "Close","5","0","PrimaryOnly",,,"False","T","EveryTick") -> 7260.5 | Q7: 0.003732632889 | R7: =RTD("cqg.rtd",,"StudyData", "Close("&$D$12&") when LocalYear("&$D$12&")="&$D$6&" and localMonth("&$D$12&") ="&$E$6&" and LocalDay("&$D$12&")="&$F$6&" and Barix("&$D$12&",reference:=StartOfSession)="&A7&"", "Bar", "", "Close","5","0","PrimaryOnly",,,"False","T","EveryTick") -> 7163.75 | S7: 0.005332771989 | T7: =RTD("cqg.rtd",,"StudyData", "Close("&$D$12&") when LocalYear("&$D$12&")="&$D$7&" and localMonth("&$D$12&") ="&$E$7&" and LocalDay("&$D$12&")="&$F$7&" and Barix("&$D$12&",reference:=StartOfSession)="&A7&"", "Bar", "", "Close","5","0","PrimaryOnly",,,"False","T","EveryTick") -> 7073.75 | U7: 0.007118704396 | V7: =RTD("cqg.rtd",,"StudyData", "Close("&$D$12&") when LocalYear("&$D$12&")="&$D$8&" and localMonth("&$D$12&") ="&$E$8&" and LocalDay("&$D$12&")="&$F$8&" and Barix("&$D$12&",reference:=StartOfSession)="&A7&"", "Bar", "", "Close","5","0","PrimaryOnly",,,"False","T","EveryTick") -> 7104 | W7: -0.001756481416 | X7: =RTD("cqg.rtd",,"StudyData", "Close("&$D$12&") when LocalYear("&$D$12&")="&$D$9&" and localMonth("&$D$12&") ="&$E$9&" and LocalDay("&$D$12&")="&$F$9&" and Barix("&$D$12&",reference:=StartOfSession)="&A7&"", "Bar", "", "Close","5","0","PrimaryOnly",,,"False","T","EveryTick") -> 7043.75 | Y7: -0.0032546786 | Z7: =RTD("cqg.rtd",,"StudyData", "Close("&$D$12&") when LocalYear("&$D$12&")="&$D$10&" and localMonth("&$D$12&") ="&$E$10&" and LocalDay("&$D$12&")="&$F$10&" and Barix("&$D$12&",reference:=StartOfSession)="&A7&"", "Bar", "", "Close","5","0","PrimaryOnly",,,"False","T","EveryTick") -> 7110 | AA7: 0.007010834927 | AB7: =RANK(AD7,$AD$1:$AD$10)+COUNTIF($AD$1:AD7,AD7)-1 -> 3 | AC7: 2018-07-05 | AD7: =IFERROR(VLOOKUP(MAX(AE2:AE81),A1:U81,21,FALSE),"") -> 0.008008542445 | AF7: 7 | AG7: 2018-07-10 | AH7: 0.0001027362077 | AK7: 2018-07-10 | AL7: 2018-07-05 | AM7: 6 | AN7: 3
A8: 7 | B8: 09:05:00 | C8: =RTD("cqg.rtd",,"StudyData",$D$12, "Bar", "", "Time","D","-7",,,,,"T") -> 2018-07-03 | D8: 2018 | E8: 7 | F8: 3 | G8: =RTD("cqg.rtd",,"StudyData",$D$12, "Bar", "", "Close","D","-7",,,,,"T") -> 7023.75 | H8: =RTD("cqg.rtd",,"StudyData", "Close("&$D$12&") when LocalYear("&$D$12&")="&$D$1&" and localMonth("&$D$12&") ="&$E$1&" and LocalDay("&$D$12&")="&$F$1&" and Barix("&$D$12&",reference:=StartOfSession)="&A8&"", "Bar", "", "Close","5","0","PrimaryOnly",,,"False","T","EveryTick") -> 7391.5 | I8: 0.001185195219 | J8: =RTD("cqg.rtd",,"StudyData", "Close("&$D$12&") when LocalYear("&$D$12&")="&$D$2&" and localMonth("&$D$12&") ="&$E$2&" and LocalDay("&$D$12&")="&$F$2&" and Barix("&$D$12&",reference:=StartOfSession)="&A8&"", "Bar", "", "Close","5","0","PrimaryOnly",,,"False","T","EveryTick") -> 7328.75 | K8: 0.01033947958 | L8: =RTD("cqg.rtd",,"StudyData", "Close("&$D$12&") when LocalYear("&$D$12&")="&$D$3&" and localMonth("&$D$12&") ="&$E$3&" and LocalDay("&$D$12&")="&$F$3&" and Barix("&$D$12&",reference:=StartOfSession)="&A8&"", "Bar", "", "Close","5","0","PrimaryOnly",,,"False","T","EveryTick") -> 7274 | M8: -0.00376634938 | N8: =RTD("cqg.rtd",,"StudyData", "Close("&$D$12&") when LocalYear("&$D$12&")="&$D$4&" and localMonth("&$D$12&") ="&$E$4&" and LocalDay("&$D$12&")="&$F$4&" and Barix("&$D$12&",reference:=StartOfSession)="&A8&"", "Bar", "", "Close","5","0","PrimaryOnly",,,"False","T","EveryTick") -> 7295.75 | O8: -0.000616417246 | P8: =RTD("cqg.rtd",,"StudyData", "Close("&$D$12&") when LocalYear("&$D$12&")="&$D$5&" and localMonth("&$D$12&") ="&$E$5&" and LocalDay("&$D$12&")="&$F$5&" and Barix("&$D$12&",reference:=StartOfSession)="&A8&"", "Bar", "", "Close","5","0","PrimaryOnly",,,"False","T","EveryTick") -> 7256.5 | Q8: 0.003179650238 | R8: =RTD("cqg.rtd",,"StudyData", "Close("&$D$12&") when LocalYear("&$D$12&")="&$D$6&" and localMonth("&$D$12&") ="&$E$6&" and LocalDay("&$D$12&")="&$F$6&" and Barix("&$D$12&",reference:=StartOfSession)="&A8&"", "Bar", "", "Close","5","0","PrimaryOnly",,,"False","T","EveryTick") -> 7164.5 | S8: 0.005438024068 | T8: =RTD("cqg.rtd",,"StudyData", "Close("&$D$12&") when LocalYear("&$D$12&")="&$D$7&" and localMonth("&$D$12&") ="&$E$7&" and LocalDay("&$D$12&")="&$F$7&" and Barix("&$D$12&",reference:=StartOfSession)="&A8&"", "Bar", "", "Close","5","0","PrimaryOnly",,,"False","T","EveryTick") -> 7082.25 | U8: 0.008328884143 | V8: =RTD("cqg.rtd",,"StudyData", "Close("&$D$12&") when LocalYear("&$D$12&")="&$D$8&" and localMonth("&$D$12&") ="&$E$8&" and LocalDay("&$D$12&")="&$F$8&" and Barix("&$D$12&",reference:=StartOfSession)="&A8&"", "Bar", "", "Close","5","0","PrimaryOnly",,,"False","T","EveryTick") -> 7103 | W8: -0.00189699993 | X8: =RTD("cqg.rtd",,"StudyData", "Close("&$D$12&") when LocalYear("&$D$12&")="&$D$9&" and localMonth("&$D$12&") ="&$E$9&" and LocalDay("&$D$12&")="&$F$9&" and Barix("&$D$12&",reference:=StartOfSession)="&A8&"", "Bar", "", "Close","5","0","PrimaryOnly",,,"False","T","EveryTick") -> 7040 | Y8: -0.00378533272 | Z8: =RTD("cqg.rtd",,"StudyData", "Close("&$D$12&") when LocalYear("&$D$12&")="&$D$10&" and localMonth("&$D$12&") ="&$E$10&" and LocalDay("&$D$12&")="&$F$10&" and Barix("&$D$12&",reference:=StartOfSession)="&A8&"", "Bar", "", "Close","5","0","PrimaryOnly",,,"False","T","EveryTick") -> 7103.75 | AA8: 0.006125628497 | AB8: =RANK(AD8,$AD$1:$AD$10)+COUNTIF($AD$1:AD8,AD8)-1 -> 9 | AC8: 2018-07-03 | AD8: =IFERROR(VLOOKUP(MAX(AE2:AE81),A1:W81,23,FALSE),"") -> -0.002178036956 | AF8: 8 | AG8: 2018-07-02 | AH8: -0.002087239537 | AK8: 2018-07-02 | AL8: 2018-07-03 | AM8: 7 | AN8: 8
A9: 8 | B9: 09:10:00 | C9: =RTD("cqg.rtd",,"StudyData",$D$12, "Bar", "", "Time","D","-8",,,,,"T") -> 2018-07-02 | D9: 2018 | E9: 7 | F9: 2 | G9: =RTD("cqg.rtd",,"StudyData",$D$12, "Bar", "", "Close","D","-8",,,,,"T") -> 7116.5 | H9: =RTD("cqg.rtd",,"StudyData", "Close("&$D$12&") when LocalYear("&$D$12&")="&$D$1&" and localMonth("&$D$12&") ="&$E$1&" and LocalDay("&$D$12&")="&$F$1&" and Barix("&$D$12&",reference:=StartOfSession)="&A9&"", "Bar", "", "Close","5","0","PrimaryOnly",,,"False","T","EveryTick") -> 7392 | I9: 0.00125292066 | J9: =RTD("cqg.rtd",,"StudyData", "Close("&$D$12&") when LocalYear("&$D$12&")="&$D$2&" and localMonth("&$D$12&") ="&$E$2&" and LocalDay("&$D$12&")="&$F$2&" and Barix("&$D$12&",reference:=StartOfSession)="&A9&"", "Bar", "", "Close","5","0","PrimaryOnly",,,"False","T","EveryTick") -> 7325.75 | K9: 0.009925900396 | L9: =RTD("cqg.rtd",,"StudyData", "Close("&$D$12&") when LocalYear("&$D$12&")="&$D$3&" and localMonth("&$D$12&") ="&$E$3&" and LocalDay("&$D$12&")="&$F$3&" and Barix("&$D$12&",reference:=StartOfSession)="&A9&"", "Bar", "", "Close","5","0","PrimaryOnly",,,"False","T","EveryTick") -> 7270.5 | M9: -0.004245702938 | N9: =RTD("cqg.rtd",,"StudyData", "Close("&$D$12&") when LocalYear("&$D$12&")="&$D$4&" and localMonth("&$D$12&") ="&$E$4&" and LocalDay("&$D$12&")="&$F$4&" and Barix("&$D$12&",reference:=StartOfSession)="&A9&"", "Bar", "", "Close","5","0","PrimaryOnly",,,"False","T","EveryTick") -> 7290.75 | O9: -0.001301325297 | P9: =RTD("cqg.rtd",,"StudyData", "Close("&$D$12&") when LocalYear("&$D$12&")="&$D$5&" and localMonth("&$D$12&") ="&$E$5&" and LocalDay("&$D$12&")="&$F$5&" and Barix("&$D$12&",reference:=StartOfSession)="&A9&"", "Bar", "", "Close","5","0","PrimaryOnly",,,"False","T","EveryTick") -> 7244.25 | Q9: 0.001486140872 | R9: =RTD("cqg.rtd",,"StudyData", "Close("&$D$12&") when LocalYear("&$D$12&")="&$D$6&" and localMonth("&$D$12&") ="&$E$6&" and LocalDay("&$D$12&")="&$F$6&" and Barix("&$D$12&",reference:=StartOfSession)="&A9&"", "Bar", "", "Close","5","0","PrimaryOnly",,,"False","T","EveryTick") -> 7163.5 | S9: 0.005297687963 | T9: =RTD("cqg.rtd",,"StudyData", "Close("&$D$12&") when LocalYear("&$D$12&")="&$D$7&" and localMonth("&$D$12&") ="&$E$7&" and LocalDay("&$D$12&")="&$F$7&" and Barix("&$D$12&",reference:=StartOfSession)="&A9&"", "Bar", "", "Close","5","0","PrimaryOnly",,,"False","T","EveryTick") -> 7068.25 | U9: 0.006335646912 | V9: =RTD("cqg.rtd",,"StudyData", "Close("&$D$12&") when LocalYear("&$D$12&")="&$D$8&" and localMonth("&$D$12&") ="&$E$8&" and LocalDay("&$D$12&")="&$F$8&" and Barix("&$D$12&",reference:=StartOfSession)="&A9&"", "Bar", "", "Close","5","0","PrimaryOnly",,,"False","T","EveryTick") -> 7109.75 | W9: -0.0009484999649 | X9: =RTD("cqg.rtd",,"StudyData", "Close("&$D$12&") when LocalYear("&$D$12&")="&$D$9&" and localMonth("&$D$12&") ="&$E$9&" and LocalDay("&$D$12&")="&$F$9&" and Barix("&$D$12&",reference:=StartOfSession)="&A9&"", "Bar", "", "Close","5","0","PrimaryOnly",,,"False","T","EveryTick") -> 7026 | Y9: -0.005766441433 | Z9: =RTD("cqg.rtd",,"StudyData", "Close("&$D$12&") when LocalYear("&$D$12&")="&$D$10&" and localMonth("&$D$12&") ="&$E$10&" and LocalDay("&$D$12&")="&$F$10&" and Barix("&$D$12&",reference:=StartOfSession)="&A9&"", "Bar", "", "Close","5","0","PrimaryOnly",,,"False","T","EveryTick") -> 7095.75 | AA9: 0.004992564266 | AB9: =RANK(AD9,$AD$1:$AD$10)+COUNTIF($AD$1:AD9,AD9)-1 -> 8 | AC9: 2018-07-02 | AD9: =IFERROR(VLOOKUP(MAX(AE2:AE81),A1:Y81,25,FALSE),"") -> -0.002087239537 | AF9: 9 | AG9: 2018-07-03 | AH9: -0.002178036956 | AK9: 2018-07-03 | AL9: 2018-07-02 | AM9: 8 | AN9: 7
A10: 9 | B10: 09:15:00 | C10: =RTD("cqg.rtd",,"StudyData",$D$12, "Bar", "", "Time","D","-9",,,,,"T") -> 2018-06-29 | D10: 2018 | E10: 6 | F10: 29 | G10: =RTD("cqg.rtd",,"StudyData",$D$12, "Bar", "", "Close","D","-9",,,,,"T") -> 7066.75 | H10: =RTD("cqg.rtd",,"StudyData", "Close("&$D$12&") when LocalYear("&$D$12&")="&$D$1&" and localMonth("&$D$12&") ="&$E$1&" and LocalDay("&$D$12&")="&$F$1&" and Barix("&$D$12&",reference:=StartOfSession)="&A10&"", "Bar", "", "Close","5","0","PrimaryOnly",,,"False","T","EveryTick") -> 7386.25 | I10: 0.0004740780874 | J10: =RTD("cqg.rtd",,"StudyData", "Close("&$D$12&") when LocalYear("&$D$12&")="&$D$2&" and localMonth("&$D$12&") ="&$E$2&" and LocalDay("&$D$12&")="&$F$2&" and Barix("&$D$12&",reference:=StartOfSession)="&A10&"", "Bar", "", "Close","5","0","PrimaryOnly",,,"False","T","EveryTick") -> 7329.5 | K10: 0.01044287438 | L10: =RTD("cqg.rtd",,"StudyData", "Close("&$D$12&") when LocalYear("&$D$12&")="&$D$3&" and localMonth("&$D$12&") ="&$E$3&" and LocalDay("&$D$12&")="&$F$3&" and Barix("&$D$12&",reference:=StartOfSession)="&A10&"", "Bar", "", "Close","5","0","PrimaryOnly",,,"False","T","EveryTick") -> 7284 | M10: -0.002396767787 | N10: =RTD("cqg.rtd",,"StudyData", "Close("&$D$12&") when LocalYear("&$D$12&")="&$D$4&" and localMonth("&$D$12&") ="&$E$4&" and LocalDay("&$D$12&")="&$F$4&" and Barix("&$D$12&",reference:=StartOfSession)="&A10&"", "Bar", "", "Close","5","0","PrimaryOnly",,,"False","T","EveryTick") -> 7300.25 | O10: 0 | P10: =RTD("cqg.rtd",,"StudyData", "Close("&$D$12&") when LocalYear("&$D$12&")="&$D$5&" and localMonth("&$D$12&") ="&$E$5&" and LocalDay("&$D$12&")="&$F$5&" and Barix("&$D$12&",reference:=StartOfSession)="&A10&"", "Bar", "", "Close","5","0","PrimaryOnly",,,"False","T","EveryTick") -> 7245.5 | Q10: 0.001658947951 | R10: =RTD("cqg.rtd",,"StudyData", "Close("&$D$12&") when LocalYear("&$D$12&")="&$D$6&" and localMonth("&$D$12&") ="&$E$6&" and LocalDay("&$D$12&")="&$F$6&" and Barix("&$D$12&",reference:=StartOfSession)="&A10&"", "Bar", "", "Close","5","0","PrimaryOnly",,,"False","T","EveryTick") -> 7160 | S10: 0.004806511595 | T10: =RTD("cqg.rtd",,"StudyData", "Close("&$D$12&") when LocalYear("&$D$12&")="&$D$7&" and localMonth("&$D$12&") ="&$E$7&" and LocalDay("&$D$12&")="&$F$7&" and Barix("&$D$12&",reference:=StartOfSession)="&A10&"", "Bar", "", "Close","5","0","PrimaryOnly",,,"False","T","EveryTick") -> 7065.5 | U10: 0.00594411817 | V10: =RTD("cqg.rtd",,"StudyData", "Close("&$D$12&") when LocalYear("&$D$12&")="&$D$8&" and localMonth("&$D$12&") ="&$E$8&" and LocalDay("&$D$12&")="&$F$8&" and Barix("&$D$12&",reference:=StartOfSession)="&A10&"", "Bar", "", "Close","5","0","PrimaryOnly",,,"False","T","EveryTick") -> 7113 | W10: -0.0004918147966 | X10: =RTD("cqg.rtd",,"StudyData", "Close("&$D$12&") when LocalYear("&$D$12&")="&$D$9&" and localMonth("&$D$12&") ="&$E$9&" and LocalDay("&$D$12&")="&$F$9&" and Barix("&$D$12&",reference:=StartOfSession)="&A10&"", "Bar", "", "Close","5","0","PrimaryOnly",,,"False","T","EveryTick") -> 7038.25 | Y10: -0.004032971309 | Z10: =RTD("cqg.rtd",,"StudyData", "Close("&$D$12&") when LocalYear("&$D$12&")="&$D$10&" and localMonth("&$D$12&") ="&$E$10&" and LocalDay("&$D$12&")="&$F$10&" and Barix("&$D$12&",reference:=StartOfSession)="&A10&"", "Bar", "", "Close","5","0","PrimaryOnly",,,"False","T","EveryTick") -> 7098.5 | AA10: 0.005382055095 | AB10: =RANK(AD10,$AD$1:$AD$10)+COUNTIF($AD$1:AD10,AD10)-1 -> 4 | AC10: 2018-06-29 | AD10: =IFERROR(VLOOKUP(MAX(AE2:AE81),A1:AA81,27,FALSE),"") -> 0.006267261525 | AF10: 10 | AG10: 2018-07-11 | AH10: -0.006197356708 | AK10: 2018-07-11 | AL10: 2018-06-29 | AM10: 9 | AN10: 2
A11: 10 | B11: 09:20:00 | C11: =RTD("cqg.rtd",,"StudyData",$D$12, "Bar", "", "Time","D","-10",,,,,"T") -> 2018-06-28 | D11: 2018 | E11: 6 | F11: 28 | G11: =RTD("cqg.rtd",,"StudyData",$D$12, "Bar", "", "Close","D","-10",,,,,"T") -> 7060.5 | H11: =RTD("cqg.rtd",,"StudyData", "Close("&$D$12&") when LocalYear("&$D$12&")="&$D$1&" and localMonth("&$D$12&") ="&$E$1&" and LocalDay("&$D$12&")="&$F$1&" and Barix("&$D$12&",reference:=StartOfSession)="&A11&"", "Bar", "", "Close","5","0","PrimaryOnly",,,"False","T","EveryTick") -> 7393.5 | I11: 0.001456096983 | J11: =RTD("cqg.rtd",,"StudyData", "Close("&$D$12&") when LocalYear("&$D$12&")="&$D$2&" and localMonth("&$D$12&") ="&$E$2&" and LocalDay("&$D$12&")="&$F$2&" and Barix("&$D$12&",reference:=StartOfSession)="&A11&"", "Bar", "", "Close","5","0","PrimaryOnly",,,"False","T","EveryTick") -> 7328.75 | K11: 0.01033947958 | L11: =RTD("cqg.rtd",,"StudyData", "Close("&$D$12&") when LocalYear("&$D$12&")="&$D$3&" and localMonth("&$D$12&") ="&$E$3&" and LocalDay("&$D$12&")="&$F$3&" and Barix("&$D$12&",reference:=StartOfSession)="&A11&"", "Bar", "", "Close","5","0","PrimaryOnly",,,"False","T","EveryTick") -> 7284.75 | M11: -0.002294049168 | N11: =RTD("cqg.rtd",,"StudyData", "Close("&$D$12&") when LocalYear("&$D$12&")="&$D$4&" and localMonth("&$D$12&") ="&$E$4&" and LocalDay("&$D$12&")="&$F$4&" and Barix("&$D$12&",reference:=StartOfSession)="&A11&"", "Bar", "", "Close","5","0","PrimaryOnly",,,"False","T","EveryTick") -> 7298.5 | O11: -0.0002397178179 | P11: =RTD("cqg.rtd",,"StudyData", "Close("&$D$12&") when LocalYear("&$D$12&")="&$D$5&" and localMonth("&$D$12&") ="&$E$5&" and LocalDay("&$D$12&")="&$F$5&" and Barix("&$D$12&",reference:=StartOfSession)="&A11&"", "Bar", "", "Close","5","0","PrimaryOnly",,,"False","T","EveryTick") -> 7250.75 | Q11: 0.002384737679 | R11: =RTD("cqg.rtd",,"StudyData", "Close("&$D$12&") when LocalYear("&$D$12&")="&$D$6&" and localMonth("&$D$12&") ="&$E$6&" and LocalDay("&$D$12&")="&$F$6&" and Barix("&$D$12&",reference:=StartOfSession)="&A11&"", "Bar", "", "Close","5","0","PrimaryOnly",,,"False","T","EveryTick") -> 7157.5 | S11: 0.004455671333 | T11: =RTD("cqg.rtd",,"StudyData", "Close("&$D$12&") when LocalYear("&$D$12&")="&$D$7&" and localMonth("&$D$12&") ="&$E$7&" and LocalDay("&$D$12&")="&$F$7&" and Barix("&$D$12&",reference:=StartOfSession)="&A11&"", "Bar", "", "Close","5","0","PrimaryOnly",,,"False","T","EveryTick") -> 7065.25 | U11: 0.005908524649 | V11: =RTD("cqg.rtd",,"StudyData", "Close("&$D$12&") when LocalYear("&$D$12&")="&$D$8&" and localMonth("&$D$12&") ="&$E$8&" and LocalDay("&$D$12&")="&$F$8&" and Barix("&$D$12&",reference:=StartOfSession)="&A11&"", "Bar", "", "Close","5","0","PrimaryOnly",,,"False","T","EveryTick") -> 7112.25 | W11: -0.0005972036816 | X11: =RTD("cqg.rtd",,"StudyData", "Close("&$D$12&") when LocalYear("&$D$12&")="&$D$9&" and localMonth("&$D$12&") ="&$E$9&" and LocalDay("&$D$12&")="&$F$9&" and Barix("&$D$12&",reference:=StartOfSession)="&A11&"", "Bar", "", "Close","5","0","PrimaryOnly",,,"False","T","EveryTick") -> 7039.75 | Y11: -0.003820709661 | Z11: =RTD("cqg.rtd",,"StudyData", "Close("&$D$12&") when LocalYear("&$D$12&")="&$D$10&" and localMonth("&$D$12&") ="&$E$10&" and LocalDay("&$D$12&")="&$F$10&" and Barix("&$D$12&",reference:=StartOfSession)="&A11&"", "Bar", "", "Close","5","0","PrimaryOnly",,,"False","T","EveryTick") -> 7105.75 | AA11: 0.006408894554
A12: 11 | B12: 09:25:00 | D12: =MainDisplay!B5 -> ENQ | H12: =RTD("cqg.rtd",,"StudyData", "Close("&$D$12&") when LocalYear("&$D$12&")="&$D$1&" and localMonth("&$D$12&") ="&$E$1&" and LocalDay("&$D$12&")="&$F$1&" and Barix("&$D$12&",reference:=StartOfSession)="&A12&"", "Bar", "", "Close","5","0","PrimaryOnly",,,"False","T","EveryTick") -> 7396.25 | I12: 0.001828586909 | J12: =RTD("cqg.rtd",,"StudyData", "Close("&$D$12&") when LocalYear("&$D$12&")="&$D$2&" and localMonth("&$D$12&") ="&$E$2&" and LocalDay("&$D$12&")="&$F$2&" and Barix("&$D$12&",reference:=StartOfSession)="&A12&"", "Bar", "", "Close","5","0","PrimaryOnly",,,"False","T","EveryTick") -> 7340 | K12: 0.01189040152 | L12: =RTD("cqg.rtd",,"StudyData", "Close("&$D$12&") when LocalYear("&$D$12&")="&$D$3&" and localMonth("&$D$12&") ="&$E$3&" and LocalDay("&$D$12&")="&$F$3&" and Barix("&$D$12&",reference:=StartOfSession)="&A12&"", "Bar", "", "Close","5","0","PrimaryOnly",,,"False","T","EveryTick") -> 7285.75 | M12: -0.002157091009 | N12: =RTD("cqg.rtd",,"StudyData", "Close("&$D$12&") when LocalYear("&$D$12&")="&$D$4&" and localMonth("&$D$12&") ="&$E$4&" and LocalDay("&$D$12&")="&$F$4&" and Barix("&$D$12&",reference:=StartOfSession)="&A12&"", "Bar", "", "Close","5","0","PrimaryOnly",,,"False","T","EveryTick") -> 7300.5 | O12: 3.424540255e-05 | P12: =RTD("cqg.rtd",,"StudyData", "Close("&$D$12&") when LocalYear("&$D$12&")="&$D$5&" and localMonth("&$D$12&") ="&$E$5&" and LocalDay("&$D$12&")="&$F$5&" and Barix("&$D$12&",reference:=StartOfSession)="&A12&"", "Bar", "", "Close","5","0","PrimaryOnly",,,"False","T","EveryTick") -> 7244 | Q12: 0.001451579457 | R12: =RTD("cqg.rtd",,"StudyData", "Close("&$D$12&") when LocalYear("&$D$12&")="&$D$6&" and localMonth("&$D$12&") ="&$E$6&" and LocalDay("&$D$12&")="&$F$6&" and Barix("&$D$12&",reference:=StartOfSession)="&A12&"", "Bar", "", "Close","5","0","PrimaryOnly",,,"False","T","EveryTick") -> 7162.25 | S12: 0.005122267831 | T12: =RTD("cqg.rtd",,"StudyData", "Close("&$D$12&") when LocalYear("&$D$12&")="&$D$7&" and localMonth("&$D$12&") ="&$E$7&" and LocalDay("&$D$12&")="&$F$7&" and Barix("&$D$12&",reference:=StartOfSession)="&A12&"", "Bar", "", "Close","5","0","PrimaryOnly",,,"False","T","EveryTick") -> 7066 | U12: 0.006015305214 | V12: =RTD("cqg.rtd",,"StudyData", "Close("&$D$12&") when LocalYear("&$D$12&")="&$D$8&" and localMonth("&$D$12&") ="&$E$8&" and LocalDay("&$D$12&")="&$F$8&" and Barix("&$D$12&",reference:=StartOfSession)="&A12&"", "Bar", "", "Close","5","0","PrimaryOnly",,,"False","T","EveryTick") -> 7109 | W12: -0.00105388885 | X12: =RTD("cqg.rtd",,"StudyData", "Close("&$D$12&") when LocalYear("&$D$12&")="&$D$9&" and localMonth("&$D$12&") ="&$E$9&" and LocalDay("&$D$12&")="&$F$9&" and Barix("&$D$12&",reference:=StartOfSession)="&A12&"", "Bar", "", "Close","5","0","PrimaryOnly",,,"False","T","EveryTick") -> 7051.75 | Y12: -0.002122616479 | Z12: =RTD("cqg.rtd",,"StudyData", "Close("&$D$12&") when LocalYear("&$D$12&")="&$D$10&" and localMonth("&$D$12&") ="&$E$10&" and LocalDay("&$D$12&")="&$F$10&" and Barix("&$D$12&",reference:=StartOfSession)="&A12&"", "Bar", "", "Close","5","0","PrimaryOnly",,,"False","T","EveryTick") -> 7097 | AA12: 0.005169605552 | AC12: =VLOOKUP(MAX(AE2:AE81),A1:B81,2,FALSE) -> 10:25:00
A13: 12 | B13: 09:30:00 | D13: =RTD("cqg.rtd", ,"ContractData",D12, "LastQuoteToday",, "T") -> 7403 | G13: =C1 -> 2018-07-13 | H13: =RTD("cqg.rtd",,"StudyData", "Close("&$D$12&") when LocalYear("&$D$12&")="&$D$1&" and localMonth("&$D$12&") ="&$E$1&" and LocalDay("&$D$12&")="&$F$1&" and Barix("&$D$12&",reference:=StartOfSession)="&A13&"", "Bar", "", "Close","5","0","PrimaryOnly",,,"False","T","EveryTick") -> 7394.5 | I13: 0.001591547865 | J13: =RTD("cqg.rtd",,"StudyData", "Close("&$D$12&") when LocalYear("&$D$12&")="&$D$2&" and localMonth("&$D$12&") ="&$E$2&" and LocalDay("&$D$12&")="&$F$2&" and Barix("&$D$12&",reference:=StartOfSession)="&A13&"", "Bar", "", "Close","5","0","PrimaryOnly",,,"False","T","EveryTick") -> 7343 | K13: 0.0123039807 | L13: =RTD("cqg.rtd",,"StudyData", "Close("&$D$12&") when LocalYear("&$D$12&")="&$D$3&" and localMonth("&$D$12&") ="&$E$3&" and LocalDay("&$D$12&")="&$F$3&" and Barix("&$D$12&",reference:=StartOfSession)="&A13&"", "Bar", "", "Close","5","0","PrimaryOnly",,,"False","T","EveryTick") -> 7282.5 | M13: -0.002602205026 | N13: =RTD("cqg.rtd",,"StudyData", "Close("&$D$12&") when LocalYear("&$D$12&")="&$D$4&" and localMonth("&$D$12&") ="&$E$4&" and LocalDay("&$D$12&")="&$F$4&" and Barix("&$D$12&",reference:=StartOfSession)="&A13&"", "Bar", "", "Close","5","0","PrimaryOnly",,,"False","T","EveryTick") -> 7306 | O13: 0.0007876442588 | P13: =RTD("cqg.rtd",,"StudyData", "Close("&$D$12&") when LocalYear("&$D$12&")="&$D$5&" and localMonth("&$D$12&") ="&$E$5&" and LocalDay("&$D$12&")="&$F$5&" and Barix("&$D$12&",reference:=StartOfSession)="&A13&"", "Bar", "", "Close","5","0","PrimaryOnly",,,"False","T","EveryTick") -> 7242.5 | Q13: 0.001244210963 | R13: =RTD("cqg.rtd",,"StudyData", "Close("&$D$12&") when LocalYear("&$D$12&")="&$D$6&" and localMonth("&$D$12&") ="&$E$6&" and LocalDay("&$D$12&")="&$F$6&" and Barix("&$D$12&",reference:=StartOfSession)="&A13&"", "Bar", "", "Close","5","0","PrimaryOnly",,,"False","T","EveryTick") -> 7156.5 | S13: 0.004315335228 | T13: =RTD("cqg.rtd",,"StudyData", "Close("&$D$12&") when LocalYear("&$D$12&")="&$D$7&" and localMonth("&$D$12&") ="&$E$7&" and LocalDay("&$D$12&")="&$F$7&" and Barix("&$D$12&",reference:=StartOfSession)="&A13&"", "Bar", "", "Close","5","0","PrimaryOnly",,,"False","T","EveryTick") -> 7061.75 | U13: 0.005410215341 | V13: =RTD("cqg.rtd",,"StudyData", "Close("&$D$12&") when LocalYear("&$D$12&")="&$D$8&" and localMonth("&$D$12&") ="&$E$8&" and LocalDay("&$D$12&")="&$F$8&" and Barix("&$D$12&",reference:=StartOfSession)="&A13&"", "Bar", "", "Close","5","0","PrimaryOnly",,,"False","T","EveryTick") -> 7118.25 | W13: 0.0002459073983 | X13: =RTD("cqg.rtd",,"StudyData", "Close("&$D$12&") when LocalYear("&$D$12&")="&$D$9&" and localMonth("&$D$12&") ="&$E$9&" and LocalDay("&$D$12&")="&$F$9&" and Barix("&$D$12&",reference:=StartOfSession)="&A13&"", "Bar", "", "Close","5","0","PrimaryOnly",,,"False","T","EveryTick") -> 7056.75 | Y13: -0.001415077652 | Z13: =RTD("cqg.rtd",,"StudyData", "Close("&$D$12&") when LocalYear("&$D$12&")="&$D$10&" and localMonth("&$D$12&") ="&$E$10&" and LocalDay("&$D$12&")="&$F$10&" and Barix("&$D$12&",reference:=StartOfSession)="&A13&"", "Bar", "", "Close","5","0","PrimaryOnly",,,"False","T","EveryTick") -> 7102.25 | AA13: 0.005913178953
A14: 13 | B14: 09:35:00 | D14: =RTD("cqg.rtd", ,"ContractData",D12, "LongDescription",, "T") -> E-mini NASDAQ-100, Sep 18 | G14: =C2 -> 2018-07-12 | H14: =RTD("cqg.rtd",,"StudyData", "Close("&$D$12&") when LocalYear("&$D$12&")="&$D$1&" and localMonth("&$D$12&") ="&$E$1&" and LocalDay("&$D$12&")="&$F$1&" and Barix("&$D$12&",reference:=StartOfSession)="&A14&"", "Bar", "", "Close","5","0","PrimaryOnly",,,"False","T","EveryTick") -> 7399.25 | I14: 0.002234939555 | J14: =RTD("cqg.rtd",,"StudyData", "Close("&$D$12&") when LocalYear("&$D$12&")="&$D$2&" and localMonth("&$D$12&") ="&$E$2&" and LocalDay("&$D$12&")="&$F$2&" and Barix("&$D$12&",reference:=StartOfSession)="&A14&"", "Bar", "", "Close","5","0","PrimaryOnly",,,"False","T","EveryTick") -> 7342.5 | K14: 0.01223505084 | L14: =RTD("cqg.rtd",,"StudyData", "Close("&$D$12&") when LocalYear("&$D$12&")="&$D$3&" and localMonth("&$D$12&") ="&$E$3&" and LocalDay("&$D$12&")="&$F$3&" and Barix("&$D$12&",reference:=StartOfSession)="&A14&"", "Bar", "", "Close","5","0","PrimaryOnly",,,"False","T","EveryTick") -> 7284.25 | M14: -0.002362528248 | N14: =RTD("cqg.rtd",,"StudyData", "Close("&$D$12&") when LocalYear("&$D$12&")="&$D$4&" and localMonth("&$D$12&") ="&$E$4&" and LocalDay("&$D$12&")="&$F$4&" and Barix("&$D$12&",reference:=StartOfSession)="&A14&"", "Bar", "", "Close","5","0","PrimaryOnly",,,"False","T","EveryTick") -> 7310.25 | O14: 0.001369816102 | P14: =RTD("cqg.rtd",,"StudyData", "Close("&$D$12&") when LocalYear("&$D$12&")="&$D$5&" and localMonth("&$D$12&") ="&$E$5&" and LocalDay("&$D$12&")="&$F$5&" and Barix("&$D$12&",reference:=StartOfSession)="&A14&"", "Bar", "", "Close","5","0","PrimaryOnly",,,"False","T","EveryTick") -> 7251.25 | Q14: 0.00245386051 | R14: =RTD("cqg.rtd",,"StudyData", "Close("&$D$12&") when LocalYear("&$D$12&")="&$D$6&" and localMonth("&$D$12&") ="&$E$6&" and LocalDay("&$D$12&")="&$F$6&" and Barix("&$D$12&",reference:=StartOfSession)="&A14&"", "Bar", "", "Close","5","0","PrimaryOnly",,,"False","T","EveryTick") -> 7161 | S14: 0.0049468477 | T14: =RTD("cqg.rtd",,"StudyData", "Close("&$D$12&") when LocalYear("&$D$12&")="&$D$7&" and localMonth("&$D$12&") ="&$E$7&" and LocalDay("&$D$12&")="&$F$7&" and Barix("&$D$12&",reference:=StartOfSession)="&A14&"", "Bar", "", "Close","5","0","PrimaryOnly",,,"False","T","EveryTick") -> 7054.75 | U14: 0.004413596725 | V14: =RTD("cqg.rtd",,"StudyData", "Close("&$D$12&") when LocalYear("&$D$12&")="&$D$8&" and localMonth("&$D$12&") ="&$E$8&" and LocalDay("&$D$12&")="&$F$8&" and Barix("&$D$12&",reference:=StartOfSession)="&A14&"", "Bar", "", "Close","5","0","PrimaryOnly",,,"False","T","EveryTick") -> 7120.75 | W14: 0.0005972036816 | X14: =RTD("cqg.rtd",,"StudyData", "Close("&$D$12&") when LocalYear("&$D$12&")="&$D$9&" and localMonth("&$D$12&") ="&$E$9&" and LocalDay("&$D$12&")="&$F$9&" and Barix("&$D$12&",reference:=StartOfSession)="&A14&"", "Bar", "", "Close","5","0","PrimaryOnly",,,"False","T","EveryTick") -> 7059.5 | Y14: -0.001025931298 | Z14: =RTD("cqg.rtd",,"StudyData", "Close("&$D$12&") when LocalYear("&$D$12&")="&$D$10&" and localMonth("&$D$12&") ="&$E$10&" and LocalDay("&$D$12&")="&$F$10&" and Barix("&$D$12&",reference:=StartOfSession)="&A14&"", "Bar", "", "Close","5","0","PrimaryOnly",,,"False","T","EveryTick") -> 7106 | AA14: 0.006444302811
A15: 14 | B15: 09:40:00 | G15: 2018-07-11 | H15: =RTD("cqg.rtd",,"StudyData", "Close("&$D$12&") when LocalYear("&$D$12&")="&$D$1&" and localMonth("&$D$12&") ="&$E$1&" and LocalDay("&$D$12&")="&$F$1&" and Barix("&$D$12&",reference:=StartOfSession)="&A15&"", "Bar", "", "Close","5","0","PrimaryOnly",,,"False","T","EveryTick") -> 7396.5 | I15: 0.001862449629 | J15: =RTD("cqg.rtd",,"StudyData", "Close("&$D$12&") when LocalYear("&$D$12&")="&$D$2&" and localMonth("&$D$12&") ="&$E$2&" and LocalDay("&$D$12&")="&$F$2&" and Barix("&$D$12&",reference:=StartOfSession)="&A15&"", "Bar", "", "Close","5","0","PrimaryOnly",,,"False","T","EveryTick") -> 7339.25 | K15: 0.01178700672 | L15: =RTD("cqg.rtd",,"StudyData", "Close("&$D$12&") when LocalYear("&$D$12&")="&$D$3&" and localMonth("&$D$12&") ="&$E$3&" and LocalDay("&$D$12&")="&$F$3&" and Barix("&$D$12&",reference:=StartOfSession)="&A15&"", "Bar", "", "Close","5","0","PrimaryOnly",,,"False","T","EveryTick") -> 7279.75 | M15: -0.002978839964 | N15: =RTD("cqg.rtd",,"StudyData", "Close("&$D$12&") when LocalYear("&$D$12&")="&$D$4&" and localMonth("&$D$12&") ="&$E$4&" and LocalDay("&$D$12&")="&$F$4&" and Barix("&$D$12&",reference:=StartOfSession)="&A15&"", "Bar", "", "Close","5","0","PrimaryOnly",,,"False","T","EveryTick") -> 7314.25 | O15: 0.001917742543 | P15: =RTD("cqg.rtd",,"StudyData", "Close("&$D$12&") when LocalYear("&$D$12&")="&$D$5&" and localMonth("&$D$12&") ="&$E$5&" and LocalDay("&$D$12&")="&$F$5&" and Barix("&$D$12&",reference:=StartOfSession)="&A15&"", "Bar", "", "Close","5","0","PrimaryOnly",,,"False","T","EveryTick") -> 7247.25 | Q15: 0.00190087786 | R15: =RTD("cqg.rtd",,"StudyData", "Close("&$D$12&") when LocalYear("&$D$12&")="&$D$6&" and localMonth("&$D$12&") ="&$E$6&" and LocalDay("&$D$12&")="&$F$6&" and Barix("&$D$12&",reference:=StartOfSession)="&A15&"", "Bar", "", "Close","5","0","PrimaryOnly",,,"False","T","EveryTick") -> 7172 | S15: 0.006490544855 | T15: =RTD("cqg.rtd",,"StudyData", "Close("&$D$12&") when LocalYear("&$D$12&")="&$D$7&" and localMonth("&$D$12&") ="&$E$7&" and LocalDay("&$D$12&")="&$F$7&" and Barix("&$D$12&",reference:=StartOfSession)="&A15&"", "Bar", "", "Close","5","0","PrimaryOnly",,,"False","T","EveryTick") -> 7061.5 | U15: 0.005374621819 | V15: =RTD("cqg.rtd",,"StudyData", "Close("&$D$12&") when LocalYear("&$D$12&")="&$D$8&" and localMonth("&$D$12&") ="&$E$8&" and LocalDay("&$D$12&")="&$F$8&" and Barix("&$D$12&",reference:=StartOfSession)="&A15&"", "Bar", "", "Close","5","0","PrimaryOnly",,,"False","T","EveryTick") -> 7117.75 | W15: 0.0001756481416 | X15: =RTD("cqg.rtd",,"StudyData", "Close("&$D$12&") when LocalYear("&$D$12&")="&$D$9&" and localMonth("&$D$12&") ="&$E$9&" and LocalDay("&$D$12&")="&$F$9&" and Barix("&$D$12&",reference:=StartOfSession)="&A15&"", "Bar", "", "Close","5","0","PrimaryOnly",,,"False","T","EveryTick") -> 7060 | Y15: -0.0009551774154 | Z15: =RTD("cqg.rtd",,"StudyData", "Close("&$D$12&") when LocalYear("&$D$12&")="&$D$10&" and localMonth("&$D$12&") ="&$E$10&" and LocalDay("&$D$12&")="&$F$10&" and Barix("&$D$12&",reference:=StartOfSession)="&A15&"", "Bar", "", "Close","5","0","PrimaryOnly",,,"False","T","EveryTick") -> 7107.25 | AA15: 0.006621344097
A16: 15 | B16: 09:45:00 | D16: =RTD("cqg.rtd", ,"ContractData",D12, "Ticksize",, "T") -> 0.25 | G16: 2018-07-10 | H16: =RTD("cqg.rtd",,"StudyData", "Close("&$D$12&") when LocalYear("&$D$12&")="&$D$1&" and localMonth("&$D$12&") ="&$E$1&" and LocalDay("&$D$12&")="&$F$1&" and Barix("&$D$12&",reference:=StartOfSession)="&A16&"", "Bar", "", "Close","5","0","PrimaryOnly",,,"False","T","EveryTick") -> 7393 | I16: 0.001388371542 | J16: =RTD("cqg.rtd",,"StudyData", "Close("&$D$12&") when LocalYear("&$D$12&")="&$D$2&" and localMonth("&$D$12&") ="&$E$2&" and LocalDay("&$D$12&")="&$F$2&" and Barix("&$D$12&",reference:=StartOfSession)="&A16&"", "Bar", "", "Close","5","0","PrimaryOnly",,,"False","T","EveryTick") -> 7335.75 | K16: 0.01130449767 | L16: =RTD("cqg.rtd",,"StudyData", "Close("&$D$12&") when LocalYear("&$D$12&")="&$D$3&" and localMonth("&$D$12&") ="&$E$3&" and LocalDay("&$D$12&")="&$F$3&" and Barix("&$D$12&",reference:=StartOfSession)="&A16&"", "Bar", "", "Close","5","0","PrimaryOnly",,,"False","T","EveryTick") -> 7272 | M16: -0.004040265699 | N16: =RTD("cqg.rtd",,"StudyData", "Close("&$D$12&") when LocalYear("&$D$12&")="&$D$4&" and localMonth("&$D$12&") ="&$E$4&" and LocalDay("&$D$12&")="&$F$4&" and Barix("&$D$12&",reference:=StartOfSession)="&A16&"", "Bar", "", "Close","5","0","PrimaryOnly",,,"False","T","EveryTick") -> 7308.75 | O16: 0.001164343687 | P16: =RTD("cqg.rtd",,"StudyData", "Close("&$D$12&") when LocalYear("&$D$12&")="&$D$5&" and localMonth("&$D$12&") ="&$E$5&" and LocalDay("&$D$12&")="&$F$5&" and Barix("&$D$12&",reference:=StartOfSession)="&A16&"", "Bar", "", "Close","5","0","PrimaryOnly",,,"False","T","EveryTick") -> 7250.75 | Q16: 0.002384737679 | R16: =RTD("cqg.rtd",,"StudyData", "Close("&$D$12&") when LocalYear("&$D$12&")="&$D$6&" and localMonth("&$D$12&") ="&$E$6&" and LocalDay("&$D$12&")="&$F$6&" and Barix("&$D$12&",reference:=StartOfSession)="&A16&"", "Bar", "", "Close","5","0","PrimaryOnly",,,"False","T","EveryTick") -> 7171 | S16: 0.00635020875 | T16: =RTD("cqg.rtd",,"StudyData", "Close("&$D$12&") when LocalYear("&$D$12&")="&$D$7&" and localMonth("&$D$12&") ="&$E$7&" and LocalDay("&$D$12&")="&$F$7&" and Barix("&$D$12&",reference:=StartOfSession)="&A16&"", "Bar", "", "Close","5","0","PrimaryOnly",,,"False","T","EveryTick") -> 7066.25 | U16: 0.006050898736 | V16: =RTD("cqg.rtd",,"StudyData", "Close("&$D$12&") when LocalYear("&$D$12&")="&$D$8&" and localMonth("&$D$12&") ="&$E$8&" and LocalDay("&$D$12&")="&$F$8&" and Barix("&$D$12&",reference:=StartOfSession)="&A16&"", "Bar", "", "Close","5","0","PrimaryOnly",,,"False","T","EveryTick") -> 7103.75 | W16: -0.001791611045 | X16: =RTD("cqg.rtd",,"StudyData", "Close("&$D$12&") when LocalYear("&$D$12&")="&$D$9&" and localMonth("&$D$12&") ="&$E$9&" and LocalDay("&$D$12&")="&$F$9&" and Barix("&$D$12&",reference:=StartOfSession)="&A16&"", "Bar", "", "Close","5","0","PrimaryOnly",,,"False","T","EveryTick") -> 7051.5 | Y16: -0.00215799342 | Z16: =RTD("cqg.rtd",,"StudyData", "Close("&$D$12&") when LocalYear("&$D$12&")="&$D$10&" and localMonth("&$D$12&") ="&$E$10&" and LocalDay("&$D$12&")="&$F$10&" and Barix("&$D$12&",reference:=StartOfSession)="&A16&"", "Bar", "", "Close","5","0","PrimaryOnly",,,"False","T","EveryTick") -> 7110.25 | AA16: 0.007046243184
A17: 16 | B17: 09:50:00 | D17: =IF(D16>=1,0,IF(LEN(D16)-2=1,2,LEN(D16)-2)) -> 2 | F17: =VLOOKUP(D17,D18:E25,2,FALSE) -> #.00 | G17: 2018-07-09 | H17: =RTD("cqg.rtd",,"StudyData", "Close("&$D$12&") when LocalYear("&$D$12&")="&$D$1&" and localMonth("&$D$12&") ="&$E$1&" and LocalDay("&$D$12&")="&$F$1&" and Barix("&$D$12&",reference:=StartOfSession)="&A17&"", "Bar", "", "Close","5","0","PrimaryOnly",,,"False","T","EveryTick") -> 7396.75 | I17: 0.00189631235 | J17: =RTD("cqg.rtd",,"StudyData", "Close("&$D$12&") when LocalYear("&$D$12&")="&$D$2&" and localMonth("&$D$12&") ="&$E$2&" and LocalDay("&$D$12&")="&$F$2&" and Barix("&$D$12&",reference:=StartOfSession)="&A17&"", "Bar", "", "Close","5","0","PrimaryOnly",,,"False","T","EveryTick") -> 7335.75 | K17: 0.01130449767 | L17: =RTD("cqg.rtd",,"StudyData", "Close("&$D$12&") when LocalYear("&$D$12&")="&$D$3&" and localMonth("&$D$12&") ="&$E$3&" and LocalDay("&$D$12&")="&$F$3&" and Barix("&$D$12&",reference:=StartOfSession)="&A17&"", "Bar", "", "Close","5","0","PrimaryOnly",,,"False","T","EveryTick") -> 7272.25 | M17: -0.004006026159 | N17: =RTD("cqg.rtd",,"StudyData", "Close("&$D$12&") when LocalYear("&$D$12&")="&$D$4&" and localMonth("&$D$12&") ="&$E$4&" and LocalDay("&$D$12&")="&$F$4&" and Barix("&$D$12&",reference:=StartOfSession)="&A17&"", "Bar", "", "Close","5","0","PrimaryOnly",,,"False","T","EveryTick") -> 7307.5 | O17: 0.0009931166741 | P17: =RTD("cqg.rtd",,"StudyData", "Close("&$D$12&") when LocalYear("&$D$12&")="&$D$5&" and localMonth("&$D$12&") ="&$E$5&" and LocalDay("&$D$12&")="&$F$5&" and Barix("&$D$12&",reference:=StartOfSession)="&A17&"", "Bar", "", "Close","5","0","PrimaryOnly",,,"False","T","EveryTick") -> 7257.75 | Q17: 0.003352457317 | R17: =RTD("cqg.rtd",,"StudyData", "Close("&$D$12&") when LocalYear("&$D$12&")="&$D$6&" and localMonth("&$D$12&") ="&$E$6&" and LocalDay("&$D$12&")="&$F$6&" and Barix("&$D$12&",reference:=StartOfSession)="&A17&"", "Bar", "", "Close","5","0","PrimaryOnly",,,"False","T","EveryTick") -> 7174 | S17: 0.006771217065 | T17: =RTD("cqg.rtd",,"StudyData", "Close("&$D$12&") when LocalYear("&$D$12&")="&$D$7&" and localMonth("&$D$12&") ="&$E$7&" and LocalDay("&$D$12&")="&$F$7&" and Barix("&$D$12&",reference:=StartOfSession)="&A17&"", "Bar", "", "Close","5","0","PrimaryOnly",,,"False","T","EveryTick") -> 7049 | U17: 0.00359494572 | V17: =RTD("cqg.rtd",,"StudyData", "Close("&$D$12&") when LocalYear("&$D$12&")="&$D$8&" and localMonth("&$D$12&") ="&$E$8&" and LocalDay("&$D$12&")="&$F$8&" and Barix("&$D$12&",reference:=StartOfSession)="&A17&"", "Bar", "", "Close","5","0","PrimaryOnly",,,"False","T","EveryTick") -> 7103.75 | W17: -0.001791611045 | X17: =RTD("cqg.rtd",,"StudyData", "Close("&$D$12&") when LocalYear("&$D$12&")="&$D$9&" and localMonth("&$D$12&") ="&$E$9&" and LocalDay("&$D$12&")="&$F$9&" and Barix("&$D$12&",reference:=StartOfSession)="&A17&"", "Bar", "", "Close","5","0","PrimaryOnly",,,"False","T","EveryTick") -> 7047.75 | Y17: -0.00268864754 | Z17: =RTD("cqg.rtd",,"StudyData", "Close("&$D$12&") when LocalYear("&$D$12&")="&$D$10&" and localMonth("&$D$12&") ="&$E$10&" and LocalDay("&$D$12&")="&$F$10&" and Barix("&$D$12&",reference:=StartOfSession)="&A17&"", "Bar", "", "Close","5","0","PrimaryOnly",,,"False","T","EveryTick") -> 7114.5 | AA17: 0.007648183556
A18: 17 | B18: 09:55:00 | D18: 0 | E18: # | G18: 2018-07-06 | H18: =RTD("cqg.rtd",,"StudyData", "Close("&$D$12&") when LocalYear("&$D$12&")="&$D$1&" and localMonth("&$D$12&") ="&$E$1&" and LocalDay("&$D$12&")="&$F$1&" and Barix("&$D$12&",reference:=StartOfSession)="&A18&"", "Bar", "", "Close","5","0","PrimaryOnly",,,"False","T","EveryTick") -> 7393.25 | I18: 0.001422234262 | J18: =RTD("cqg.rtd",,"StudyData", "Close("&$D$12&") when LocalYear("&$D$12&")="&$D$2&" and localMonth("&$D$12&") ="&$E$2&" and LocalDay("&$D$12&")="&$F$2&" and Barix("&$D$12&",reference:=StartOfSession)="&A18&"", "Bar", "", "Close","5","0","PrimaryOnly",,,"False","T","EveryTick") -> 7332.5 | K18: 0.01085645356 | L18: =RTD("cqg.rtd",,"StudyData", "Close("&$D$12&") when LocalYear("&$D$12&")="&$D$3&" and localMonth("&$D$12&") ="&$E$3&" and LocalDay("&$D$12&")="&$F$3&" and Barix("&$D$12&",reference:=StartOfSession)="&A18&"", "Bar", "", "Close","5","0","PrimaryOnly",,,"False","T","EveryTick") -> 7279.5 | M18: -0.003013079504 | N18: =RTD("cqg.rtd",,"StudyData", "Close("&$D$12&") when LocalYear("&$D$12&")="&$D$4&" and localMonth("&$D$12&") ="&$E$4&" and LocalDay("&$D$12&")="&$F$4&" and Barix("&$D$12&",reference:=StartOfSession)="&A18&"", "Bar", "", "Close","5","0","PrimaryOnly",,,"False","T","EveryTick") -> 7310.25 | O18: 0.001369816102 | P18: =RTD("cqg.rtd",,"StudyData", "Close("&$D$12&") when LocalYear("&$D$12&")="&$D$5&" and localMonth("&$D$12&") ="&$E$5&" and LocalDay("&$D$12&")="&$F$5&" and Barix("&$D$12&",reference:=StartOfSession)="&A18&"", "Bar", "", "Close","5","0","PrimaryOnly",,,"False","T","EveryTick") -> 7260.5 | Q18: 0.003732632889 | R18: =RTD("cqg.rtd",,"StudyData", "Close("&$D$12&") when LocalYear("&$D$12&")="&$D$6&" and localMonth("&$D$12&") ="&$E$6&" and LocalDay("&$D$12&")="&$F$6&" and Barix("&$D$12&",reference:=StartOfSession)="&A18&"", "Bar", "", "Close","5","0","PrimaryOnly",,,"False","T","EveryTick") -> 7175 | S18: 0.00691155317 | T18: =RTD("cqg.rtd",,"StudyData", "Close("&$D$12&") when LocalYear("&$D$12&")="&$D$7&" and localMonth("&$D$12&") ="&$E$7&" and LocalDay("&$D$12&")="&$F$7&" and Barix("&$D$12&",reference:=StartOfSession)="&A18&"", "Bar", "", "Close","5","0","PrimaryOnly",,,"False","T","EveryTick") -> 7050 | U18: 0.003737319808 | V18: =RTD("cqg.rtd",,"StudyData", "Close("&$D$12&") when LocalYear("&$D$12&")="&$D$8&" and localMonth("&$D$12&") ="&$E$8&" and LocalDay("&$D$12&")="&$F$8&" and Barix("&$D$12&",reference:=StartOfSession)="&A18&"", "Bar", "", "Close","5","0","PrimaryOnly",,,"False","T","EveryTick") -> 7101.25 | W18: -0.002142907328 | X18: =RTD("cqg.rtd",,"StudyData", "Close("&$D$12&") when LocalYear("&$D$12&")="&$D$9&" and localMonth("&$D$12&") ="&$E$9&" and LocalDay("&$D$12&")="&$F$9&" and Barix("&$D$12&",reference:=StartOfSession)="&A18&"", "Bar", "", "Close","5","0","PrimaryOnly",,,"False","T","EveryTick") -> 7052.5 | Y18: -0.002016485655 | Z18: =RTD("cqg.rtd",,"StudyData", "Close("&$D$12&") when LocalYear("&$D$12&")="&$D$10&" and localMonth("&$D$12&") ="&$E$10&" and LocalDay("&$D$12&")="&$F$10&" and Barix("&$D$12&",reference:=StartOfSession)="&A18&"", "Bar", "", "Close","5","0","PrimaryOnly",,,"False","T","EveryTick") -> 7114 | AA18: 0.007577367042
A19: 18 | B19: 10:00:00 | D19: 1 | E19: #.0 | G19: 2018-07-05 | H19: =RTD("cqg.rtd",,"StudyData", "Close("&$D$12&") when LocalYear("&$D$12&")="&$D$1&" and localMonth("&$D$12&") ="&$E$1&" and LocalDay("&$D$12&")="&$F$1&" and Barix("&$D$12&",reference:=StartOfSession)="&A19&"", "Bar", "", "Close","5","0","PrimaryOnly",,,"False","T","EveryTick") -> 7395.5 | I19: 0.001726998747 | J19: =RTD("cqg.rtd",,"StudyData", "Close("&$D$12&") when LocalYear("&$D$12&")="&$D$2&" and localMonth("&$D$12&") ="&$E$2&" and LocalDay("&$D$12&")="&$F$2&" and Barix("&$D$12&",reference:=StartOfSession)="&A19&"", "Bar", "", "Close","5","0","PrimaryOnly",,,"False","T","EveryTick") -> 7341.25 | K19: 0.01206272618 | L19: =RTD("cqg.rtd",,"StudyData", "Close("&$D$12&") when LocalYear("&$D$12&")="&$D$3&" and localMonth("&$D$12&") ="&$E$3&" and LocalDay("&$D$12&")="&$F$3&" and Barix("&$D$12&",reference:=StartOfSession)="&A19&"", "Bar", "", "Close","5","0","PrimaryOnly",,,"False","T","EveryTick") -> 7275.25 | M19: -0.003595151681 | N19: =RTD("cqg.rtd",,"StudyData", "Close("&$D$12&") when LocalYear("&$D$12&")="&$D$4&" and localMonth("&$D$12&") ="&$E$4&" and LocalDay("&$D$12&")="&$F$4&" and Barix("&$D$12&",reference:=StartOfSession)="&A19&"", "Bar", "", "Close","5","0","PrimaryOnly",,,"False","T","EveryTick") -> 7315 | O19: 0.002020478751 | P19: =RTD("cqg.rtd",,"StudyData", "Close("&$D$12&") when LocalYear("&$D$12&")="&$D$5&" and localMonth("&$D$12&") ="&$E$5&" and LocalDay("&$D$12&")="&$F$5&" and Barix("&$D$12&",reference:=StartOfSession)="&A19&"", "Bar", "", "Close","5","0","PrimaryOnly",,,"False","T","EveryTick") -> 7263 | Q19: 0.004078247045 | R19: =RTD("cqg.rtd",,"StudyData", "Close("&$D$12&") when LocalYear("&$D$12&")="&$D$6&" and localMonth("&$D$12&") ="&$E$6&" and LocalDay("&$D$12&")="&$F$6&" and Barix("&$D$12&",reference:=StartOfSession)="&A19&"", "Bar", "", "Close","5","0","PrimaryOnly",,,"False","T","EveryTick") -> 7178.25 | S19: 0.007367645511 | T19: =RTD("cqg.rtd",,"StudyData", "Close("&$D$12&") when LocalYear("&$D$12&")="&$D$7&" and localMonth("&$D$12&") ="&$E$7&" and LocalDay("&$D$12&")="&$F$7&" and Barix("&$D$12&",reference:=StartOfSession)="&A19&"", "Bar", "", "Close","5","0","PrimaryOnly",,,"False","T","EveryTick") -> 7051.5 | U19: 0.00395088094 | V19: =RTD("cqg.rtd",,"StudyData", "Close("&$D$12&") when LocalYear("&$D$12&")="&$D$8&" and localMonth("&$D$12&") ="&$E$8&" and LocalDay("&$D$12&")="&$F$8&" and Barix("&$D$12&",reference:=StartOfSession)="&A19&"", "Bar", "", "Close","5","0","PrimaryOnly",,,"False","T","EveryTick") -> 7103.75 | W19: -0.001791611045 | X19: =RTD("cqg.rtd",,"StudyData", "Close("&$D$12&") when LocalYear("&$D$12&")="&$D$9&" and localMonth("&$D$12&") ="&$E$9&" and LocalDay("&$D$12&")="&$F$9&" and Barix("&$D$12&",reference:=StartOfSession)="&A19&"", "Bar", "", "Close","5","0","PrimaryOnly",,,"False","T","EveryTick") -> 7064 | Y19: -0.0003891463544 | Z19: =RTD("cqg.rtd",,"StudyData", "Close("&$D$12&") when LocalYear("&$D$12&")="&$D$10&" and localMonth("&$D$12&") ="&$E$10&" and LocalDay("&$D$12&")="&$F$10&" and Barix("&$D$12&",reference:=StartOfSession)="&A19&"", "Bar", "", "Close","5","0","PrimaryOnly",,,"False","T","EveryTick") -> 7109 | AA19: 0.006869201898
A20: 19 | B20: 10:05:00 | D20: 2 | E20: #.00 | G20: 2018-07-03 | H20: =RTD("cqg.rtd",,"StudyData", "Close("&$D$12&") when LocalYear("&$D$12&")="&$D$1&" and localMonth("&$D$12&") ="&$E$1&" and LocalDay("&$D$12&")="&$F$1&" and Barix("&$D$12&",reference:=StartOfSession)="&A20&"", "Bar", "", "Close","5","0","PrimaryOnly",,,"False","T","EveryTick") -> 7393.5 | I20: 0.001456096983 | J20: =RTD("cqg.rtd",,"StudyData", "Close("&$D$12&") when LocalYear("&$D$12&")="&$D$2&" and localMonth("&$D$12&") ="&$E$2&" and LocalDay("&$D$12&")="&$F$2&" and Barix("&$D$12&",reference:=StartOfSession)="&A20&"", "Bar", "", "Close","5","0","PrimaryOnly",,,"False","T","EveryTick") -> 7342.25 | K20: 0.0122005859 | L20: =RTD("cqg.rtd",,"StudyData", "Close("&$D$12&") when LocalYear("&$D$12&")="&$D$3&" and localMonth("&$D$12&") ="&$E$3&" and LocalDay("&$D$12&")="&$F$3&" and Barix("&$D$12&",reference:=StartOfSession)="&A20&"", "Bar", "", "Close","5","0","PrimaryOnly",,,"False","T","EveryTick") -> 7273.75 | M20: -0.00380058892 | N20: =RTD("cqg.rtd",,"StudyData", "Close("&$D$12&") when LocalYear("&$D$12&")="&$D$4&" and localMonth("&$D$12&") ="&$E$4&" and LocalDay("&$D$12&")="&$F$4&" and Barix("&$D$12&",reference:=StartOfSession)="&A20&"", "Bar", "", "Close","5","0","PrimaryOnly",,,"False","T","EveryTick") -> 7314.75 | O20: 0.001986233348 | P20: =RTD("cqg.rtd",,"StudyData", "Close("&$D$12&") when LocalYear("&$D$12&")="&$D$5&" and localMonth("&$D$12&") ="&$E$5&" and LocalDay("&$D$12&")="&$F$5&" and Barix("&$D$12&",reference:=StartOfSession)="&A20&"", "Bar", "", "Close","5","0","PrimaryOnly",,,"False","T","EveryTick") -> 7263.25 | Q20: 0.004112808461 | R20: =RTD("cqg.rtd",,"StudyData", "Close("&$D$12&") when LocalYear("&$D$12&")="&$D$6&" and localMonth("&$D$12&") ="&$E$6&" and LocalDay("&$D$12&")="&$F$6&" and Barix("&$D$12&",reference:=StartOfSession)="&A20&"", "Bar", "", "Close","5","0","PrimaryOnly",,,"False","T","EveryTick") -> 7186.25 | S20: 0.008490334351 | T20: =RTD("cqg.rtd",,"StudyData", "Close("&$D$12&") when LocalYear("&$D$12&")="&$D$7&" and localMonth("&$D$12&") ="&$E$7&" and LocalDay("&$D$12&")="&$F$7&" and Barix("&$D$12&",reference:=StartOfSession)="&A20&"", "Bar", "", "Close","5","0","PrimaryOnly",,,"False","T","EveryTick") -> 7058 | U20: 0.004876312511 | V20: =RTD("cqg.rtd",,"StudyData", "Close("&$D$12&") when LocalYear("&$D$12&")="&$D$8&" and localMonth("&$D$12&") ="&$E$8&" and LocalDay("&$D$12&")="&$F$8&" and Barix("&$D$12&",reference:=StartOfSession)="&A20&"", "Bar", "", "Close","5","0","PrimaryOnly",,,"False","T","EveryTick") -> 7099.5 | W20: -0.002388814726 | X20: =RTD("cqg.rtd",,"StudyData", "Close("&$D$12&") when LocalYear("&$D$12&")="&$D$9&" and localMonth("&$D$12&") ="&$E$9&" and LocalDay("&$D$12&")="&$F$9&" and Barix("&$D$12&",reference:=StartOfSession)="&A20&"", "Bar", "", "Close","5","0","PrimaryOnly",,,"False","T","EveryTick") -> 7063.5 | Y20: -0.000459900237 | Z20: =RTD("cqg.rtd",,"StudyData", "Close("&$D$12&") when LocalYear("&$D$12&")="&$D$10&" and localMonth("&$D$12&") ="&$E$10&" and LocalDay("&$D$12&")="&$F$10&" and Barix("&$D$12&",reference:=StartOfSession)="&A20&"", "Bar", "", "Close","5","0","PrimaryOnly",,,"False","T","EveryTick") -> 7114.5 | AA20: 0.007648183556
A21: 20 | B21: 10:10:00 | D21: 3 | E21: #.000 | G21: 2018-07-02 | H21: =RTD("cqg.rtd",,"StudyData", "Close("&$D$12&") when LocalYear("&$D$12&")="&$D$1&" and localMonth("&$D$12&") ="&$E$1&" and LocalDay("&$D$12&")="&$F$1&" and Barix("&$D$12&",reference:=StartOfSession)="&A21&"", "Bar", "", "Close","5","0","PrimaryOnly",,,"False","T","EveryTick") -> 7397.5 | I21: 0.001997900511 | J21: =RTD("cqg.rtd",,"StudyData", "Close("&$D$12&") when LocalYear("&$D$12&")="&$D$2&" and localMonth("&$D$12&") ="&$E$2&" and LocalDay("&$D$12&")="&$F$2&" and Barix("&$D$12&",reference:=StartOfSession)="&A21&"", "Bar", "", "Close","5","0","PrimaryOnly",,,"False","T","EveryTick") -> 7346.5 | K21: 0.01278648975 | L21: =RTD("cqg.rtd",,"StudyData", "Close("&$D$12&") when LocalYear("&$D$12&")="&$D$3&" and localMonth("&$D$12&") ="&$E$3&" and LocalDay("&$D$12&")="&$F$3&" and Barix("&$D$12&",reference:=StartOfSession)="&A21&"", "Bar", "", "Close","5","0","PrimaryOnly",,,"False","T","EveryTick") -> 7266 | M21: -0.004862014655 | N21: =RTD("cqg.rtd",,"StudyData", "Close("&$D$12&") when LocalYear("&$D$12&")="&$D$4&" and localMonth("&$D$12&") ="&$E$4&" and LocalDay("&$D$12&")="&$F$4&" and Barix("&$D$12&",reference:=StartOfSession)="&A21&"", "Bar", "", "Close","5","0","PrimaryOnly",,,"False","T","EveryTick") -> 7303.5 | O21: 0.0004451902332 | P21: =RTD("cqg.rtd",,"StudyData", "Close("&$D$12&") when LocalYear("&$D$12&")="&$D$5&" and localMonth("&$D$12&") ="&$E$5&" and LocalDay("&$D$12&")="&$F$5&" and Barix("&$D$12&",reference:=StartOfSession)="&A21&"", "Bar", "", "Close","5","0","PrimaryOnly",,,"False","T","EveryTick") -> 7264 | Q21: 0.004216492708 | R21: =RTD("cqg.rtd",,"StudyData", "Close("&$D$12&") when LocalYear("&$D$12&")="&$D$6&" and localMonth("&$D$12&") ="&$E$6&" and LocalDay("&$D$12&")="&$F$6&" and Barix("&$D$12&",reference:=StartOfSession)="&A21&"", "Bar", "", "Close","5","0","PrimaryOnly",,,"False","T","EveryTick") -> 7187 | S21: 0.008595586429 | T21: =RTD("cqg.rtd",,"StudyData", "Close("&$D$12&") when LocalYear("&$D$12&")="&$D$7&" and localMonth("&$D$12&") ="&$E$7&" and LocalDay("&$D$12&")="&$F$7&" and Barix("&$D$12&",reference:=StartOfSession)="&A21&"", "Bar", "", "Close","5","0","PrimaryOnly",,,"False","T","EveryTick") -> 7062 | U21: 0.005445808863 | V21: =RTD("cqg.rtd",,"StudyData", "Close("&$D$12&") when LocalYear("&$D$12&")="&$D$8&" and localMonth("&$D$12&") ="&$E$8&" and LocalDay("&$D$12&")="&$F$8&" and Barix("&$D$12&",reference:=StartOfSession)="&A21&"", "Bar", "", "Close","5","0","PrimaryOnly",,,"False","T","EveryTick") -> 7099 | W21: -0.002459073983 | X21: =RTD("cqg.rtd",,"StudyData", "Close("&$D$12&") when LocalYear("&$D$12&")="&$D$9&" and localMonth("&$D$12&") ="&$E$9&" and LocalDay("&$D$12&")="&$F$9&" and Barix("&$D$12&",reference:=StartOfSession)="&A21&"", "Bar", "", "Close","5","0","PrimaryOnly",,,"False","T","EveryTick") -> 7053.25 | Y21: -0.001910354831 | Z21: =RTD("cqg.rtd",,"StudyData", "Close("&$D$12&") when LocalYear("&$D$12&")="&$D$10&" and localMonth("&$D$12&") ="&$E$10&" and LocalDay("&$D$12&")="&$F$10&" and Barix("&$D$12&",reference:=StartOfSession)="&A21&"", "Bar", "", "Close","5","0","PrimaryOnly",,,"False","T","EveryTick") -> 7110.25 | AA21: 0.007046243184
A22: 21 | B22: 10:15:00 | D22: 4 | E22: #.0000 | G22: 2018-06-29 | H22: =RTD("cqg.rtd",,"StudyData", "Close("&$D$12&") when LocalYear("&$D$12&")="&$D$1&" and localMonth("&$D$12&") ="&$E$1&" and LocalDay("&$D$12&")="&$F$1&" and Barix("&$D$12&",reference:=StartOfSession)="&A22&"", "Bar", "", "Close","5","0","PrimaryOnly",,,"False","T","EveryTick") -> 7400.25 | I22: 0.002370390437 | J22: =RTD("cqg.rtd",,"StudyData", "Close("&$D$12&") when LocalYear("&$D$12&")="&$D$2&" and localMonth("&$D$12&") ="&$E$2&" and LocalDay("&$D$12&")="&$F$2&" and Barix("&$D$12&",reference:=StartOfSession)="&A22&"", "Bar", "", "Close","5","0","PrimaryOnly",,,"False","T","EveryTick") -> 7345.25 | K22: 0.01261416509 | L22: =RTD("cqg.rtd",,"StudyData", "Close("&$D$12&") when LocalYear("&$D$12&")="&$D$3&" and localMonth("&$D$12&") ="&$E$3&" and LocalDay("&$D$12&")="&$F$3&" and Barix("&$D$12&",reference:=StartOfSession)="&A22&"", "Bar", "", "Close","5","0","PrimaryOnly",,,"False","T","EveryTick") -> 7265 | M22: -0.004998972814 | N22: =RTD("cqg.rtd",,"StudyData", "Close("&$D$12&") when LocalYear("&$D$12&")="&$D$4&" and localMonth("&$D$12&") ="&$E$4&" and LocalDay("&$D$12&")="&$F$4&" and Barix("&$D$12&",reference:=StartOfSession)="&A22&"", "Bar", "", "Close","5","0","PrimaryOnly",,,"False","T","EveryTick") -> 7307.5 | O22: 0.0009931166741 | P22: =RTD("cqg.rtd",,"StudyData", "Close("&$D$12&") when LocalYear("&$D$12&")="&$D$5&" and localMonth("&$D$12&") ="&$E$5&" and LocalDay("&$D$12&")="&$F$5&" and Barix("&$D$12&",reference:=StartOfSession)="&A22&"", "Bar", "", "Close","5","0","PrimaryOnly",,,"False","T","EveryTick") -> 7267 | Q22: 0.004631229695 | R22: =RTD("cqg.rtd",,"StudyData", "Close("&$D$12&") when LocalYear("&$D$12&")="&$D$6&" and localMonth("&$D$12&") ="&$E$6&" and LocalDay("&$D$12&")="&$F$6&" and Barix("&$D$12&",reference:=StartOfSession)="&A22&"", "Bar", "", "Close","5","0","PrimaryOnly",,,"False","T","EveryTick") -> 7190.5 | S22: 0.009086762797 | T22: =RTD("cqg.rtd",,"StudyData", "Close("&$D$12&") when LocalYear("&$D$12&")="&$D$7&" and localMonth("&$D$12&") ="&$E$7&" and LocalDay("&$D$12&")="&$F$7&" and Barix("&$D$12&",reference:=StartOfSession)="&A22&"", "Bar", "", "Close","5","0","PrimaryOnly",,,"False","T","EveryTick") -> 7071.75 | U22: 0.00683395622 | V22: =RTD("cqg.rtd",,"StudyData", "Close("&$D$12&") when LocalYear("&$D$12&")="&$D$8&" and localMonth("&$D$12&") ="&$E$8&" and LocalDay("&$D$12&")="&$F$8&" and Barix("&$D$12&",reference:=StartOfSession)="&A22&"", "Bar", "", "Close","5","0","PrimaryOnly",,,"False","T","EveryTick") -> 7102.25 | W22: -0.002002388815 | X22: =RTD("cqg.rtd",,"StudyData", "Close("&$D$12&") when LocalYear("&$D$12&")="&$D$9&" and localMonth("&$D$12&") ="&$E$9&" and LocalDay("&$D$12&")="&$F$9&" and Barix("&$D$12&",reference:=StartOfSession)="&A22&"", "Bar", "", "Close","5","0","PrimaryOnly",,,"False","T","EveryTick") -> 7047.25 | Y22: -0.002759401422 | Z22: =RTD("cqg.rtd",,"StudyData", "Close("&$D$12&") when LocalYear("&$D$12&")="&$D$10&" and localMonth("&$D$12&") ="&$E$10&" and LocalDay("&$D$12&")="&$F$10&" and Barix("&$D$12&",reference:=StartOfSession)="&A22&"", "Bar", "", "Close","5","0","PrimaryOnly",,,"False","T","EveryTick") -> 7110.75 | AA22: 0.007117059698
A23: 22 | B23: 10:20:00 | D23: 5 | E23: #.00000 | H23: =RTD("cqg.rtd",,"StudyData", "Close("&$D$12&") when LocalYear("&$D$12&")="&$D$1&" and localMonth("&$D$12&") ="&$E$1&" and LocalDay("&$D$12&")="&$F$1&" and Barix("&$D$12&",reference:=StartOfSession)="&A23&"", "Bar", "", "Close","5","0","PrimaryOnly",,,"False","T","EveryTick") -> 7401 | I23: 0.002471978599 | J23: =RTD("cqg.rtd",,"StudyData", "Close("&$D$12&") when LocalYear("&$D$12&")="&$D$2&" and localMonth("&$D$12&") ="&$E$2&" and LocalDay("&$D$12&")="&$F$2&" and Barix("&$D$12&",reference:=StartOfSession)="&A23&"", "Bar", "", "Close","5","0","PrimaryOnly",,,"False","T","EveryTick") -> 7342.25 | K23: 0.0122005859 | L23: =RTD("cqg.rtd",,"StudyData", "Close("&$D$12&") when LocalYear("&$D$12&")="&$D$3&" and localMonth("&$D$12&") ="&$E$3&" and LocalDay("&$D$12&")="&$F$3&" and Barix("&$D$12&",reference:=StartOfSession)="&A23&"", "Bar", "", "Close","5","0","PrimaryOnly",,,"False","T","EveryTick") -> 7261.75 | M23: -0.005444086831 | N23: =RTD("cqg.rtd",,"StudyData", "Close("&$D$12&") when LocalYear("&$D$12&")="&$D$4&" and localMonth("&$D$12&") ="&$E$4&" and LocalDay("&$D$12&")="&$F$4&" and Barix("&$D$12&",reference:=StartOfSession)="&A23&"", "Bar", "", "Close","5","0","PrimaryOnly",,,"False","T","EveryTick") -> 7300 | O23: -3.424540255e-05 | P23: =RTD("cqg.rtd",,"StudyData", "Close("&$D$12&") when LocalYear("&$D$12&")="&$D$5&" and localMonth("&$D$12&") ="&$E$5&" and LocalDay("&$D$12&")="&$F$5&" and Barix("&$D$12&",reference:=StartOfSession)="&A23&"", "Bar", "", "Close","5","0","PrimaryOnly",,,"False","T","EveryTick") -> 7264.25 | Q23: 0.004251054123 | R23: =RTD("cqg.rtd",,"StudyData", "Close("&$D$12&") when LocalYear("&$D$12&")="&$D$6&" and localMonth("&$D$12&") ="&$E$6&" and LocalDay("&$D$12&")="&$F$6&" and Barix("&$D$12&",reference:=StartOfSession)="&A23&"", "Bar", "", "Close","5","0","PrimaryOnly",,,"False","T","EveryTick") -> 7189.25 | S23: 0.008911342666 | T23: =RTD("cqg.rtd",,"StudyData", "Close("&$D$12&") when LocalYear("&$D$12&")="&$D$7&" and localMonth("&$D$12&") ="&$E$7&" and LocalDay("&$D$12&")="&$F$7&" and Barix("&$D$12&",reference:=StartOfSession)="&A23&"", "Bar", "", "Close","5","0","PrimaryOnly",,,"False","T","EveryTick") -> 7070.5 | U23: 0.00665598861 | V23: =RTD("cqg.rtd",,"StudyData", "Close("&$D$12&") when LocalYear("&$D$12&")="&$D$8&" and localMonth("&$D$12&") ="&$E$8&" and LocalDay("&$D$12&")="&$F$8&" and Barix("&$D$12&",reference:=StartOfSession)="&A23&"", "Bar", "", "Close","5","0","PrimaryOnly",,,"False","T","EveryTick") -> 7100.75 | W23: -0.002213166585 | X23: =RTD("cqg.rtd",,"StudyData", "Close("&$D$12&") when LocalYear("&$D$12&")="&$D$9&" and localMonth("&$D$12&") ="&$E$9&" and LocalDay("&$D$12&")="&$F$9&" and Barix("&$D$12&",reference:=StartOfSession)="&A23&"", "Bar", "", "Close","5","0","PrimaryOnly",,,"False","T","EveryTick") -> 7052.25 | Y23: -0.002051862596 | Z23: =RTD("cqg.rtd",,"StudyData", "Close("&$D$12&") when LocalYear("&$D$12&")="&$D$10&" and localMonth("&$D$12&") ="&$E$10&" and LocalDay("&$D$12&")="&$F$10&" and Barix("&$D$12&",reference:=StartOfSession)="&A23&"", "Bar", "", "Close","5","0","PrimaryOnly",,,"False","T","EveryTick") -> 7110.75 | AA23: 0.007117059698
A24: 23 | B24: 10:25:00 | D24: 6 | E24: #.000000 | H24: =RTD("cqg.rtd",,"StudyData", "Close("&$D$12&") when LocalYear("&$D$12&")="&$D$1&" and localMonth("&$D$12&") ="&$E$1&" and LocalDay("&$D$12&")="&$F$1&" and Barix("&$D$12&",reference:=StartOfSession)="&A24&"", "Bar", "", "Close","5","0","PrimaryOnly",,,"False","T","EveryTick") -> 7402.75 | I24: 0.002709017642 | J24: =RTD("cqg.rtd",,"StudyData", "Close("&$D$12&") when LocalYear("&$D$12&")="&$D$2&" and localMonth("&$D$12&") ="&$E$2&" and LocalDay("&$D$12&")="&$F$2&" and Barix("&$D$12&",reference:=StartOfSession)="&A24&"", "Bar", "", "Close","5","0","PrimaryOnly",,,"False","T","EveryTick") -> 7347 | K24: 0.01285541961 | L24: =RTD("cqg.rtd",,"StudyData", "Close("&$D$12&") when LocalYear("&$D$12&")="&$D$3&" and localMonth("&$D$12&") ="&$E$3&" and LocalDay("&$D$12&")="&$F$3&" and Barix("&$D$12&",reference:=StartOfSession)="&A24&"", "Bar", "", "Close","5","0","PrimaryOnly",,,"False","T","EveryTick") -> 7256.25 | M24: -0.006197356708 | N24: =RTD("cqg.rtd",,"StudyData", "Close("&$D$12&") when LocalYear("&$D$12&")="&$D$4&" and localMonth("&$D$12&") ="&$E$4&" and LocalDay("&$D$12&")="&$F$4&" and Barix("&$D$12&",reference:=StartOfSession)="&A24&"", "Bar", "", "Close","5","0","PrimaryOnly",,,"False","T","EveryTick") -> 7301 | O24: 0.0001027362077 | P24: =RTD("cqg.rtd",,"StudyData", "Close("&$D$12&") when LocalYear("&$D$12&")="&$D$5&" and localMonth("&$D$12&") ="&$E$5&" and LocalDay("&$D$12&")="&$F$5&" and Barix("&$D$12&",reference:=StartOfSession)="&A24&"", "Bar", "", "Close","5","0","PrimaryOnly",,,"False","T","EveryTick") -> 7264.5 | Q24: 0.004285615539 | R24: =RTD("cqg.rtd",,"StudyData", "Close("&$D$12&") when LocalYear("&$D$12&")="&$D$6&" and localMonth("&$D$12&") ="&$E$6&" and LocalDay("&$D$12&")="&$F$6&" and Barix("&$D$12&",reference:=StartOfSession)="&A24&"", "Bar", "", "Close","5","0","PrimaryOnly",,,"False","T","EveryTick") -> 7197.75 | S24: 0.01010419956 | T24: =RTD("cqg.rtd",,"StudyData", "Close("&$D$12&") when LocalYear("&$D$12&")="&$D$7&" and localMonth("&$D$12&") ="&$E$7&" and LocalDay("&$D$12&")="&$F$7&" and Barix("&$D$12&",reference:=StartOfSession)="&A24&"", "Bar", "", "Close","5","0","PrimaryOnly",,,"False","T","EveryTick") -> 7080 | U24: 0.008008542445 | V24: =RTD("cqg.rtd",,"StudyData", "Close("&$D$12&") when LocalYear("&$D$12&")="&$D$8&" and localMonth("&$D$12&") ="&$E$8&" and LocalDay("&$D$12&")="&$F$8&" and Barix("&$D$12&",reference:=StartOfSession)="&A24&"", "Bar", "", "Close","5","0","PrimaryOnly",,,"False","T","EveryTick") -> 7101 | W24: -0.002178036956 | X24: =RTD("cqg.rtd",,"StudyData", "Close("&$D$12&") when LocalYear("&$D$12&")="&$D$9&" and localMonth("&$D$12&") ="&$E$9&" and LocalDay("&$D$12&")="&$F$9&" and Barix("&$D$12&",reference:=StartOfSession)="&A24&"", "Bar", "", "Close","5","0","PrimaryOnly",,,"False","T","EveryTick") -> 7052 | Y24: -0.002087239537 | Z24: =RTD("cqg.rtd",,"StudyData", "Close("&$D$12&") when LocalYear("&$D$12&")="&$D$10&" and localMonth("&$D$12&") ="&$E$10&" and LocalDay("&$D$12&")="&$F$10&" and Barix("&$D$12&",reference:=StartOfSession)="&A24&"", "Bar", "", "Close","5","0","PrimaryOnly",,,"False","T","EveryTick") -> 7104.75 | AA24: 0.006267261525 | AE24: 23
A25: 24 | B25: 10:30:00 | D25: 7 | E25: #.0000000 | H25: =RTD("cqg.rtd",,"StudyData", "Close("&$D$12&") when LocalYear("&$D$12&")="&$D$1&" and localMonth("&$D$12&") ="&$E$1&" and LocalDay("&$D$12&")="&$F$1&" and Barix("&$D$12&",reference:=StartOfSession)="&A25&"", "Bar", "", "Close","5","0","PrimaryOnly",,,"False","T","EveryTick") ->  | J25: =RTD("cqg.rtd",,"StudyData", "Close("&$D$12&") when LocalYear("&$D$12&")="&$D$2&" and localMonth("&$D$12&") ="&$E$2&" and LocalDay("&$D$12&")="&$F$2&" and Barix("&$D$12&",reference:=StartOfSession)="&A25&"", "Bar", "", "Close","5","0","PrimaryOnly",,,"False","T","EveryTick") -> 7345 | K25: 0.01257970016 | L25: =RTD("cqg.rtd",,"StudyData", "Close("&$D$12&") when LocalYear("&$D$12&")="&$D$3&" and localMonth("&$D$12&") ="&$E$3&" and LocalDay("&$D$12&")="&$F$3&" and Barix("&$D$12&",reference:=StartOfSession)="&A25&"", "Bar", "", "Close","5","0","PrimaryOnly",,,"False","T","EveryTick") -> 7254.25 | M25: -0.006471273026 | N25: =RTD("cqg.rtd",,"StudyData", "Close("&$D$12&") when LocalYear("&$D$12&")="&$D$4&" and localMonth("&$D$12&") ="&$E$4&" and LocalDay("&$D$12&")="&$F$4&" and Barix("&$D$12&",reference:=StartOfSession)="&A25&"", "Bar", "", "Close","5","0","PrimaryOnly",,,"False","T","EveryTick") -> 7298.75 | O25: -0.0002054724153 | P25: =RTD("cqg.rtd",,"StudyData", "Close("&$D$12&") when LocalYear("&$D$12&")="&$D$5&" and localMonth("&$D$12&") ="&$E$5&" and LocalDay("&$D$12&")="&$F$5&" and Barix("&$D$12&",reference:=StartOfSession)="&A25&"", "Bar", "", "Close","5","0","PrimaryOnly",,,"False","T","EveryTick") -> 7261 | Q25: 0.00380175572 | R25: =RTD("cqg.rtd",,"StudyData", "Close("&$D$12&") when LocalYear("&$D$12&")="&$D$6&" and localMonth("&$D$12&") ="&$E$6&" and LocalDay("&$D$12&")="&$F$6&" and Barix("&$D$12&",reference:=StartOfSession)="&A25&"", "Bar", "", "Close","5","0","PrimaryOnly",,,"False","T","EveryTick") -> 7204.5 | S25: 0.01105146827 | T25: =RTD("cqg.rtd",,"StudyData", "Close("&$D$12&") when LocalYear("&$D$12&")="&$D$7&" and localMonth("&$D$12&") ="&$E$7&" and LocalDay("&$D$12&")="&$F$7&" and Barix("&$D$12&",reference:=StartOfSession)="&A25&"", "Bar", "", "Close","5","0","PrimaryOnly",,,"False","T","EveryTick") -> 7084 | U25: 0.008578038797 | V25: =RTD("cqg.rtd",,"StudyData", "Close("&$D$12&") when LocalYear("&$D$12&")="&$D$8&" and localMonth("&$D$12&") ="&$E$8&" and LocalDay("&$D$12&")="&$F$8&" and Barix("&$D$12&",reference:=StartOfSession)="&A25&"", "Bar", "", "Close","5","0","PrimaryOnly",,,"False","T","EveryTick") -> 7101.5 | W25: -0.0021077777 | X25: =RTD("cqg.rtd",,"StudyData", "Close("&$D$12&") when LocalYear("&$D$12&")="&$D$9&" and localMonth("&$D$12&") ="&$E$9&" and LocalDay("&$D$12&")="&$F$9&" and Barix("&$D$12&",reference:=StartOfSession)="&A25&"", "Bar", "", "Close","5","0","PrimaryOnly",,,"False","T","EveryTick") -> 7042.5 | Y25: -0.003431563307 | Z25: =RTD("cqg.rtd",,"StudyData", "Close("&$D$12&") when LocalYear("&$D$12&")="&$D$10&" and localMonth("&$D$12&") ="&$E$10&" and LocalDay("&$D$12&")="&$F$10&" and Barix("&$D$12&",reference:=StartOfSession)="&A25&"", "Bar", "", "Close","5","0","PrimaryOnly",,,"False","T","EveryTick") -> 7100 | AA25: 0.005594504638
A26: 25 | B26: 10:35:00 | H26: =RTD("cqg.rtd",,"StudyData", "Close("&$D$12&") when LocalYear("&$D$12&")="&$D$1&" and localMonth("&$D$12&") ="&$E$1&" and LocalDay("&$D$12&")="&$F$1&" and Barix("&$D$12&",reference:=StartOfSession)="&A26&"", "Bar", "", "Close","5","0","PrimaryOnly",,,"False","T","EveryTick") ->  | J26: =RTD("cqg.rtd",,"StudyData", "Close("&$D$12&") when LocalYear("&$D$12&")="&$D$2&" and localMonth("&$D$12&") ="&$E$2&" and LocalDay("&$D$12&")="&$F$2&" and Barix("&$D$12&",reference:=StartOfSession)="&A26&"", "Bar", "", "Close","5","0","PrimaryOnly",,,"False","T","EveryTick") -> 7345.75 | K26: 0.01268309495 | L26: =RTD("cqg.rtd",,"StudyData", "Close("&$D$12&") when LocalYear("&$D$12&")="&$D$3&" and localMonth("&$D$12&") ="&$E$3&" and LocalDay("&$D$12&")="&$F$3&" and Barix("&$D$12&",reference:=StartOfSession)="&A26&"", "Bar", "", "Close","5","0","PrimaryOnly",,,"False","T","EveryTick") -> 7259.25 | M26: -0.00578648223 | N26: =RTD("cqg.rtd",,"StudyData", "Close("&$D$12&") when LocalYear("&$D$12&")="&$D$4&" and localMonth("&$D$12&") ="&$E$4&" and LocalDay("&$D$12&")="&$F$4&" and Barix("&$D$12&",reference:=StartOfSession)="&A26&"", "Bar", "", "Close","5","0","PrimaryOnly",,,"False","T","EveryTick") -> 7304.5 | O26: 0.0005821718434 | P26: =RTD("cqg.rtd",,"StudyData", "Close("&$D$12&") when LocalYear("&$D$12&")="&$D$5&" and localMonth("&$D$12&") ="&$E$5&" and LocalDay("&$D$12&")="&$F$5&" and Barix("&$D$12&",reference:=StartOfSession)="&A26&"", "Bar", "", "Close","5","0","PrimaryOnly",,,"False","T","EveryTick") -> 7265.5 | Q26: 0.004423861201 | R26: =RTD("cqg.rtd",,"StudyData", "Close("&$D$12&") when LocalYear("&$D$12&")="&$D$6&" and localMonth("&$D$12&") ="&$E$6&" and LocalDay("&$D$12&")="&$F$6&" and Barix("&$D$12&",reference:=StartOfSession)="&A26&"", "Bar", "", "Close","5","0","PrimaryOnly",,,"False","T","EveryTick") -> 7212.25 | S26: 0.01213907308 | T26: =RTD("cqg.rtd",,"StudyData", "Close("&$D$12&") when LocalYear("&$D$12&")="&$D$7&" and localMonth("&$D$12&") ="&$E$7&" and LocalDay("&$D$12&")="&$F$7&" and Barix("&$D$12&",reference:=StartOfSession)="&A26&"", "Bar", "", "Close","5","0","PrimaryOnly",,,"False","T","EveryTick") -> 7081.5 | U26: 0.008222103577 | V26: =RTD("cqg.rtd",,"StudyData", "Close("&$D$12&") when LocalYear("&$D$12&")="&$D$8&" and localMonth("&$D$12&") ="&$E$8&" and LocalDay("&$D$12&")="&$F$8&" and Barix("&$D$12&",reference:=StartOfSession)="&A26&"", "Bar", "", "Close","5","0","PrimaryOnly",,,"False","T","EveryTick") -> 7102.5 | W26: -0.001967259186 | X26: =RTD("cqg.rtd",,"StudyData", "Close("&$D$12&") when LocalYear("&$D$12&")="&$D$9&" and localMonth("&$D$12&") ="&$E$9&" and LocalDay("&$D$12&")="&$F$9&" and Barix("&$D$12&",reference:=StartOfSession)="&A26&"", "Bar", "", "Close","5","0","PrimaryOnly",,,"False","T","EveryTick") -> 7042.25 | Y26: -0.003466940248 | Z26: =RTD("cqg.rtd",,"StudyData", "Close("&$D$12&") when LocalYear("&$D$12&")="&$D$10&" and localMonth("&$D$12&") ="&$E$10&" and LocalDay("&$D$12&")="&$F$10&" and Barix("&$D$12&",reference:=StartOfSession)="&A26&"", "Bar", "", "Close","5","0","PrimaryOnly",,,"False","T","EveryTick") -> 7098.75 | AA26: 0.005417463352
A27: 26 | B27: 10:40:00 | H27: =RTD("cqg.rtd",,"StudyData", "Close("&$D$12&") when LocalYear("&$D$12&")="&$D$1&" and localMonth("&$D$12&") ="&$E$1&" and LocalDay("&$D$12&")="&$F$1&" and Barix("&$D$12&",reference:=StartOfSession)="&A27&"", "Bar", "", "Close","5","0","PrimaryOnly",,,"False","T","EveryTick") ->  | J27: =RTD("cqg.rtd",,"StudyData", "Close("&$D$12&") when LocalYear("&$D$12&")="&$D$2&" and localMonth("&$D$12&") ="&$E$2&" and LocalDay("&$D$12&")="&$F$2&" and Barix("&$D$12&",reference:=StartOfSession)="&A27&"", "Bar", "", "Close","5","0","PrimaryOnly",,,"False","T","EveryTick") -> 7346.25 | K27: 0.01275202481 | L27: =RTD("cqg.rtd",,"StudyData", "Close("&$D$12&") when LocalYear("&$D$12&")="&$D$3&" and localMonth("&$D$12&") ="&$E$3&" and LocalDay("&$D$12&")="&$F$3&" and Barix("&$D$12&",reference:=StartOfSession)="&A27&"", "Bar", "", "Close","5","0","PrimaryOnly",,,"False","T","EveryTick") -> 7252.25 | M27: -0.006745189345 | N27: =RTD("cqg.rtd",,"StudyData", "Close("&$D$12&") when LocalYear("&$D$12&")="&$D$4&" and localMonth("&$D$12&") ="&$E$4&" and LocalDay("&$D$12&")="&$F$4&" and Barix("&$D$12&",reference:=StartOfSession)="&A27&"", "Bar", "", "Close","5","0","PrimaryOnly",,,"False","T","EveryTick") -> 7308 | O27: 0.001061607479 | P27: =RTD("cqg.rtd",,"StudyData", "Close("&$D$12&") when LocalYear("&$D$12&")="&$D$5&" and localMonth("&$D$12&") ="&$E$5&" and LocalDay("&$D$12&")="&$F$5&" and Barix("&$D$12&",reference:=StartOfSession)="&A27&"", "Bar", "", "Close","5","0","PrimaryOnly",,,"False","T","EveryTick") -> 7266.5 | Q27: 0.004562106864 | R27: =RTD("cqg.rtd",,"StudyData", "Close("&$D$12&") when LocalYear("&$D$12&")="&$D$6&" and localMonth("&$D$12&") ="&$E$6&" and LocalDay("&$D$12&")="&$F$6&" and Barix("&$D$12&",reference:=StartOfSession)="&A27&"", "Bar", "", "Close","5","0","PrimaryOnly",,,"False","T","EveryTick") -> 7212 | S27: 0.01210398905 | T27: =RTD("cqg.rtd",,"StudyData", "Close("&$D$12&") when LocalYear("&$D$12&")="&$D$7&" and localMonth("&$D$12&") ="&$E$7&" and LocalDay("&$D$12&")="&$F$7&" and Barix("&$D$12&",reference:=StartOfSession)="&A27&"", "Bar", "", "Close","5","0","PrimaryOnly",,,"False","T","EveryTick") -> 7081.5 | U27: 0.008222103577 | V27: =RTD("cqg.rtd",,"StudyData", "Close("&$D$12&") when LocalYear("&$D$12&")="&$D$8&" and localMonth("&$D$12&") ="&$E$8&" and LocalDay("&$D$12&")="&$F$8&" and Barix("&$D$12&",reference:=StartOfSession)="&A27&"", "Bar", "", "Close","5","0","PrimaryOnly",,,"False","T","EveryTick") -> 7098 | W27: -0.002599592496 | X27: =RTD("cqg.rtd",,"StudyData", "Close("&$D$12&") when LocalYear("&$D$12&")="&$D$9&" and localMonth("&$D$12&") ="&$E$9&" and LocalDay("&$D$12&")="&$F$9&" and Barix("&$D$12&",reference:=StartOfSession)="&A27&"", "Bar", "", "Close","5","0","PrimaryOnly",,,"False","T","EveryTick") -> 7040 | Y27: -0.00378533272 | Z27: =RTD("cqg.rtd",,"StudyData", "Close("&$D$12&") when LocalYear("&$D$12&")="&$D$10&" and localMonth("&$D$12&") ="&$E$10&" and LocalDay("&$D$12&")="&$F$10&" and Barix("&$D$12&",reference:=StartOfSession)="&A27&"", "Bar", "", "Close","5","0","PrimaryOnly",,,"False","T","EveryTick") -> 7099.25 | AA27: 0.005488279867
A28: 27 | B28: 10:45:00 | H28: =RTD("cqg.rtd",,"StudyData", "Close("&$D$12&") when LocalYear("&$D$12&")="&$D$1&" and localMonth("&$D$12&") ="&$E$1&" and LocalDay("&$D$12&")="&$F$1&" and Barix("&$D$12&",reference:=StartOfSession)="&A28&"", "Bar", "", "Close","5","0","PrimaryOnly",,,"False","T","EveryTick") ->  | J28: =RTD("cqg.rtd",,"StudyData", "Close("&$D$12&") when LocalYear("&$D$12&")="&$D$2&" and localMonth("&$D$12&") ="&$E$2&" and LocalDay("&$D$12&")="&$F$2&" and Barix("&$D$12&",reference:=StartOfSession)="&A28&"", "Bar", "", "Close","5","0","PrimaryOnly",,,"False","T","EveryTick") -> 7352.5 | K28: 0.01361364811 | L28: =RTD("cqg.rtd",,"StudyData", "Close("&$D$12&") when LocalYear("&$D$12&")="&$D$3&" and localMonth("&$D$12&") ="&$E$3&" and LocalDay("&$D$12&")="&$F$3&" and Barix("&$D$12&",reference:=StartOfSession)="&A28&"", "Bar", "", "Close","5","0","PrimaryOnly",,,"False","T","EveryTick") -> 7256.75 | M28: -0.006128877628 | N28: =RTD("cqg.rtd",,"StudyData", "Close("&$D$12&") when LocalYear("&$D$12&")="&$D$4&" and localMonth("&$D$12&") ="&$E$4&" and LocalDay("&$D$12&")="&$F$4&" and Barix("&$D$12&",reference:=StartOfSession)="&A28&"", "Bar", "", "Close","5","0","PrimaryOnly",,,"False","T","EveryTick") -> 7309.5 | O28: 0.001267079895 | P28: =RTD("cqg.rtd",,"StudyData", "Close("&$D$12&") when LocalYear("&$D$12&")="&$D$5&" and localMonth("&$D$12&") ="&$E$5&" and LocalDay("&$D$12&")="&$F$5&" and Barix("&$D$12&",reference:=StartOfSession)="&A28&"", "Bar", "", "Close","5","0","PrimaryOnly",,,"False","T","EveryTick") -> 7267.75 | Q28: 0.004734913942 | R28: =RTD("cqg.rtd",,"StudyData", "Close("&$D$12&") when LocalYear("&$D$12&")="&$D$6&" and localMonth("&$D$12&") ="&$E$6&" and LocalDay("&$D$12&")="&$F$6&" and Barix("&$D$12&",reference:=StartOfSession)="&A28&"", "Bar", "", "Close","5","0","PrimaryOnly",,,"False","T","EveryTick") -> 7213.5 | S28: 0.01231449321 | T28: =RTD("cqg.rtd",,"StudyData", "Close("&$D$12&") when LocalYear("&$D$12&")="&$D$7&" and localMonth("&$D$12&") ="&$E$7&" and LocalDay("&$D$12&")="&$F$7&" and Barix("&$D$12&",reference:=StartOfSession)="&A28&"", "Bar", "", "Close","5","0","PrimaryOnly",,,"False","T","EveryTick") -> 7087.25 | U28: 0.009040754583 | V28: =RTD("cqg.rtd",,"StudyData", "Close("&$D$12&") when LocalYear("&$D$12&")="&$D$8&" and localMonth("&$D$12&") ="&$E$8&" and LocalDay("&$D$12&")="&$F$8&" and Barix("&$D$12&",reference:=StartOfSession)="&A28&"", "Bar", "", "Close","5","0","PrimaryOnly",,,"False","T","EveryTick") -> 7099.5 | W28: -0.002388814726 | X28: =RTD("cqg.rtd",,"StudyData", "Close("&$D$12&") when LocalYear("&$D$12&")="&$D$9&" and localMonth("&$D$12&") ="&$E$9&" and LocalDay("&$D$12&")="&$F$9&" and Barix("&$D$12&",reference:=StartOfSession)="&A28&"", "Bar", "", "Close","5","0","PrimaryOnly",,,"False","T","EveryTick") -> 7037.25 | Y28: -0.004174479075 | Z28: =RTD("cqg.rtd",,"StudyData", "Close("&$D$12&") when LocalYear("&$D$12&")="&$D$10&" and localMonth("&$D$12&") ="&$E$10&" and LocalDay("&$D$12&")="&$F$10&" and Barix("&$D$12&",reference:=StartOfSession)="&A28&"", "Bar", "", "Close","5","0","PrimaryOnly",,,"False","T","EveryTick") -> 7099.75 | AA28: 0.005559096381
A29: 28 | B29: 10:50:00 | H29: =RTD("cqg.rtd",,"StudyData", "Close("&$D$12&") when LocalYear("&$D$12&")="&$D$1&" and localMonth("&$D$12&") ="&$E$1&" and LocalDay("&$D$12&")="&$F$1&" and Barix("&$D$12&",reference:=StartOfSession)="&A29&"", "Bar", "", "Close","5","0","PrimaryOnly",,,"False","T","EveryTick") ->  | J29: =RTD("cqg.rtd",,"StudyData", "Close("&$D$12&") when LocalYear("&$D$12&")="&$D$2&" and localMonth("&$D$12&") ="&$E$2&" and LocalDay("&$D$12&")="&$F$2&" and Barix("&$D$12&",reference:=StartOfSession)="&A29&"", "Bar", "", "Close","5","0","PrimaryOnly",,,"False","T","EveryTick") -> 7355.5 | K29: 0.0140272273 | L29: =RTD("cqg.rtd",,"StudyData", "Close("&$D$12&") when LocalYear("&$D$12&")="&$D$3&" and localMonth("&$D$12&") ="&$E$3&" and LocalDay("&$D$12&")="&$F$3&" and Barix("&$D$12&",reference:=StartOfSession)="&A29&"", "Bar", "", "Close","5","0","PrimaryOnly",,,"False","T","EveryTick") -> 7258.5 | M29: -0.005889200849 | N29: =RTD("cqg.rtd",,"StudyData", "Close("&$D$12&") when LocalYear("&$D$12&")="&$D$4&" and localMonth("&$D$12&") ="&$E$4&" and LocalDay("&$D$12&")="&$F$4&" and Barix("&$D$12&",reference:=StartOfSession)="&A29&"", "Bar", "", "Close","5","0","PrimaryOnly",,,"False","T","EveryTick") -> 7309.5 | O29: 0.001267079895 | P29: =RTD("cqg.rtd",,"StudyData", "Close("&$D$12&") when LocalYear("&$D$12&")="&$D$5&" and localMonth("&$D$12&") ="&$E$5&" and LocalDay("&$D$12&")="&$F$5&" and Barix("&$D$12&",reference:=StartOfSession)="&A29&"", "Bar", "", "Close","5","0","PrimaryOnly",,,"False","T","EveryTick") -> 7267.75 | Q29: 0.004734913942 | R29: =RTD("cqg.rtd",,"StudyData", "Close("&$D$12&") when LocalYear("&$D$12&")="&$D$6&" and localMonth("&$D$12&") ="&$E$6&" and LocalDay("&$D$12&")="&$F$6&" and Barix("&$D$12&",reference:=StartOfSession)="&A29&"", "Bar", "", "Close","5","0","PrimaryOnly",,,"False","T","EveryTick") -> 7207 | S29: 0.01140230853 | T29: =RTD("cqg.rtd",,"StudyData", "Close("&$D$12&") when LocalYear("&$D$12&")="&$D$7&" and localMonth("&$D$12&") ="&$E$7&" and LocalDay("&$D$12&")="&$F$7&" and Barix("&$D$12&",reference:=StartOfSession)="&A29&"", "Bar", "", "Close","5","0","PrimaryOnly",,,"False","T","EveryTick") -> 7091.5 | U29: 0.009645844456 | V29: =RTD("cqg.rtd",,"StudyData", "Close("&$D$12&") when LocalYear("&$D$12&")="&$D$8&" and localMonth("&$D$12&") ="&$E$8&" and LocalDay("&$D$12&")="&$F$8&" and Barix("&$D$12&",reference:=StartOfSession)="&A29&"", "Bar", "", "Close","5","0","PrimaryOnly",,,"False","T","EveryTick") -> 7085 | W29: -0.004426333169 | X29: =RTD("cqg.rtd",,"StudyData", "Close("&$D$12&") when LocalYear("&$D$12&")="&$D$9&" and localMonth("&$D$12&") ="&$E$9&" and LocalDay("&$D$12&")="&$F$9&" and Barix("&$D$12&",reference:=StartOfSession)="&A29&"", "Bar", "", "Close","5","0","PrimaryOnly",,,"False","T","EveryTick") -> 7042.75 | Y29: -0.003396186366 | Z29: =RTD("cqg.rtd",,"StudyData", "Close("&$D$12&") when LocalYear("&$D$12&")="&$D$10&" and localMonth("&$D$12&") ="&$E$10&" and LocalDay("&$D$12&")="&$F$10&" and Barix("&$D$12&",reference:=StartOfSession)="&A29&"", "Bar", "", "Close","5","0","PrimaryOnly",,,"False","T","EveryTick") -> 7092 | AA29: 0.004461440408
A30: 29 | B30: 10:55:00 | H30: =RTD("cqg.rtd",,"StudyData", "Close("&$D$12&") when LocalYear("&$D$12&")="&$D$1&" and localMonth("&$D$12&") ="&$E$1&" and LocalDay("&$D$12&")="&$F$1&" and Barix("&$D$12&",reference:=StartOfSession)="&A30&"", "Bar", "", "Close","5","0","PrimaryOnly",,,"False","T","EveryTick") ->  | J30: =RTD("cqg.rtd",,"StudyData", "Close("&$D$12&") when LocalYear("&$D$12&")="&$D$2&" and localMonth("&$D$12&") ="&$E$2&" and LocalDay("&$D$12&")="&$F$2&" and Barix("&$D$12&",reference:=StartOfSession)="&A30&"", "Bar", "", "Close","5","0","PrimaryOnly",,,"False","T","EveryTick") -> 7362 | K30: 0.01492331553 | L30: =RTD("cqg.rtd",,"StudyData", "Close("&$D$12&") when LocalYear("&$D$12&")="&$D$3&" and localMonth("&$D$12&") ="&$E$3&" and LocalDay("&$D$12&")="&$F$3&" and Barix("&$D$12&",reference:=StartOfSession)="&A30&"", "Bar", "", "Close","5","0","PrimaryOnly",,,"False","T","EveryTick") -> 7254.5 | M30: -0.006437033486 | N30: =RTD("cqg.rtd",,"StudyData", "Close("&$D$12&") when LocalYear("&$D$12&")="&$D$4&" and localMonth("&$D$12&") ="&$E$4&" and LocalDay("&$D$12&")="&$F$4&" and Barix("&$D$12&",reference:=StartOfSession)="&A30&"", "Bar", "", "Close","5","0","PrimaryOnly",,,"False","T","EveryTick") -> 7313.25 | O30: 0.001780760933 | P30: =RTD("cqg.rtd",,"StudyData", "Close("&$D$12&") when LocalYear("&$D$12&")="&$D$5&" and localMonth("&$D$12&") ="&$E$5&" and LocalDay("&$D$12&")="&$F$5&" and Barix("&$D$12&",reference:=StartOfSession)="&A30&"", "Bar", "", "Close","5","0","PrimaryOnly",,,"False","T","EveryTick") -> 7268.25 | Q30: 0.004804036773 | R30: =RTD("cqg.rtd",,"StudyData", "Close("&$D$12&") when LocalYear("&$D$12&")="&$D$6&" and localMonth("&$D$12&") ="&$E$6&" and LocalDay("&$D$12&")="&$F$6&" and Barix("&$D$12&",reference:=StartOfSession)="&A30&"", "Bar", "", "Close","5","0","PrimaryOnly",,,"False","T","EveryTick") -> 7209.25 | S30: 0.01171806477 | T30: =RTD("cqg.rtd",,"StudyData", "Close("&$D$12&") when LocalYear("&$D$12&")="&$D$7&" and localMonth("&$D$12&") ="&$E$7&" and LocalDay("&$D$12&")="&$F$7&" and Barix("&$D$12&",reference:=StartOfSession)="&A30&"", "Bar", "", "Close","5","0","PrimaryOnly",,,"False","T","EveryTick") -> 7088.5 | U30: 0.009218722193 | V30: =RTD("cqg.rtd",,"StudyData", "Close("&$D$12&") when LocalYear("&$D$12&")="&$D$8&" and localMonth("&$D$12&") ="&$E$8&" and LocalDay("&$D$12&")="&$F$8&" and Barix("&$D$12&",reference:=StartOfSession)="&A30&"", "Bar", "", "Close","5","0","PrimaryOnly",,,"False","T","EveryTick") -> 7090.75 | W30: -0.003618351718 | X30: =RTD("cqg.rtd",,"StudyData", "Close("&$D$12&") when LocalYear("&$D$12&")="&$D$9&" and localMonth("&$D$12&") ="&$E$9&" and LocalDay("&$D$12&")="&$F$9&" and Barix("&$D$12&",reference:=StartOfSession)="&A30&"", "Bar", "", "Close","5","0","PrimaryOnly",,,"False","T","EveryTick") -> 7041.5 | Y30: -0.003573071072 | Z30: =RTD("cqg.rtd",,"StudyData", "Close("&$D$12&") when LocalYear("&$D$12&")="&$D$10&" and localMonth("&$D$12&") ="&$E$10&" and LocalDay("&$D$12&")="&$F$10&" and Barix("&$D$12&",reference:=StartOfSession)="&A30&"", "Bar", "", "Close","5","0","PrimaryOnly",,,"False","T","EveryTick") -> 7092.75 | AA30: 0.00456766518
A31: 30 | B31: 11:00:00 | H31: =RTD("cqg.rtd",,"StudyData", "Close("&$D$12&") when LocalYear("&$D$12&")="&$D$1&" and localMonth("&$D$12&") ="&$E$1&" and LocalDay("&$D$12&")="&$F$1&" and Barix("&$D$12&",reference:=StartOfSession)="&A31&"", "Bar", "", "Close","5","0","PrimaryOnly",,,"False","T","EveryTick") ->  | J31: =RTD("cqg.rtd",,"StudyData", "Close("&$D$12&") when LocalYear("&$D$12&")="&$D$2&" and localMonth("&$D$12&") ="&$E$2&" and LocalDay("&$D$12&")="&$F$2&" and Barix("&$D$12&",reference:=StartOfSession)="&A31&"", "Bar", "", "Close","5","0","PrimaryOnly",,,"False","T","EveryTick") -> 7362.25 | K31: 0.01495778046 | L31: =RTD("cqg.rtd",,"StudyData", "Close("&$D$12&") when LocalYear("&$D$12&")="&$D$3&" and localMonth("&$D$12&") ="&$E$3&" and LocalDay("&$D$12&")="&$F$3&" and Barix("&$D$12&",reference:=StartOfSession)="&A31&"", "Bar", "", "Close","5","0","PrimaryOnly",,,"False","T","EveryTick") -> 7252.25 | M31: -0.006745189345 | N31: =RTD("cqg.rtd",,"StudyData", "Close("&$D$12&") when LocalYear("&$D$12&")="&$D$4&" and localMonth("&$D$12&") ="&$E$4&" and LocalDay("&$D$12&")="&$F$4&" and Barix("&$D$12&",reference:=StartOfSession)="&A31&"", "Bar", "", "Close","5","0","PrimaryOnly",,,"False","T","EveryTick") -> 7309.5 | O31: 0.001267079895 | P31: =RTD("cqg.rtd",,"StudyData", "Close("&$D$12&") when LocalYear("&$D$12&")="&$D$5&" and localMonth("&$D$12&") ="&$E$5&" and LocalDay("&$D$12&")="&$F$5&" and Barix("&$D$12&",reference:=StartOfSession)="&A31&"", "Bar", "", "Close","5","0","PrimaryOnly",,,"False","T","EveryTick") -> 7267.5 | Q31: 0.004700352526 | R31: =RTD("cqg.rtd",,"StudyData", "Close("&$D$12&") when LocalYear("&$D$12&")="&$D$6&" and localMonth("&$D$12&") ="&$E$6&" and LocalDay("&$D$12&")="&$F$6&" and Barix("&$D$12&",reference:=StartOfSession)="&A31&"", "Bar", "", "Close","5","0","PrimaryOnly",,,"False","T","EveryTick") -> 7211 | S31: 0.01196365295 | T31: =RTD("cqg.rtd",,"StudyData", "Close("&$D$12&") when LocalYear("&$D$12&")="&$D$7&" and localMonth("&$D$12&") ="&$E$7&" and LocalDay("&$D$12&")="&$F$7&" and Barix("&$D$12&",reference:=StartOfSession)="&A31&"", "Bar", "", "Close","5","0","PrimaryOnly",,,"False","T","EveryTick") -> 7099.5 | U31: 0.01078483716 | V31: =RTD("cqg.rtd",,"StudyData", "Close("&$D$12&") when LocalYear("&$D$12&")="&$D$8&" and localMonth("&$D$12&") ="&$E$8&" and LocalDay("&$D$12&")="&$F$8&" and Barix("&$D$12&",reference:=StartOfSession)="&A31&"", "Bar", "", "Close","5","0","PrimaryOnly",,,"False","T","EveryTick") -> 7086.75 | W31: -0.004180425771 | X31: =RTD("cqg.rtd",,"StudyData", "Close("&$D$12&") when LocalYear("&$D$12&")="&$D$9&" and localMonth("&$D$12&") ="&$E$9&" and LocalDay("&$D$12&")="&$F$9&" and Barix("&$D$12&",reference:=StartOfSession)="&A31&"", "Bar", "", "Close","5","0","PrimaryOnly",,,"False","T","EveryTick") -> 7041.25 | Y31: -0.003608448014 | Z31: =RTD("cqg.rtd",,"StudyData", "Close("&$D$12&") when LocalYear("&$D$12&")="&$D$10&" and localMonth("&$D$12&") ="&$E$10&" and LocalDay("&$D$12&")="&$F$10&" and Barix("&$D$12&",reference:=StartOfSession)="&A31&"", "Bar", "", "Close","5","0","PrimaryOnly",,,"False","T","EveryTick") -> 7095 | AA31: 0.004886339494
A32: 31 | B32: 11:05:00 | H32: =RTD("cqg.rtd",,"StudyData", "Close("&$D$12&") when LocalYear("&$D$12&")="&$D$1&" and localMonth("&$D$12&") ="&$E$1&" and LocalDay("&$D$12&")="&$F$1&" and Barix("&$D$12&",reference:=StartOfSession)="&A32&"", "Bar", "", "Close","5","0","PrimaryOnly",,,"False","T","EveryTick") ->  | J32: =RTD("cqg.rtd",,"StudyData", "Close("&$D$12&") when LocalYear("&$D$12&")="&$D$2&" and localMonth("&$D$12&") ="&$E$2&" and LocalDay("&$D$12&")="&$F$2&" and Barix("&$D$12&",reference:=StartOfSession)="&A32&"", "Bar", "", "Close","5","0","PrimaryOnly",,,"False","T","EveryTick") -> 7363.5 | K32: 0.01513010512 | L32: =RTD("cqg.rtd",,"StudyData", "Close("&$D$12&") when LocalYear("&$D$12&")="&$D$3&" and localMonth("&$D$12&") ="&$E$3&" and LocalDay("&$D$12&")="&$F$3&" and Barix("&$D$12&",reference:=StartOfSession)="&A32&"", "Bar", "", "Close","5","0","PrimaryOnly",,,"False","T","EveryTick") -> 7248.75 | M32: -0.007224542902 | N32: =RTD("cqg.rtd",,"StudyData", "Close("&$D$12&") when LocalYear("&$D$12&")="&$D$4&" and localMonth("&$D$12&") ="&$E$4&" and LocalDay("&$D$12&")="&$F$4&" and Barix("&$D$12&",reference:=StartOfSession)="&A32&"", "Bar", "", "Close","5","0","PrimaryOnly",,,"False","T","EveryTick") -> 7305.75 | O32: 0.0007533988562 | P32: =RTD("cqg.rtd",,"StudyData", "Close("&$D$12&") when LocalYear("&$D$12&")="&$D$5&" and localMonth("&$D$12&") ="&$E$5&" and LocalDay("&$D$12&")="&$F$5&" and Barix("&$D$12&",reference:=StartOfSession)="&A32&"", "Bar", "", "Close","5","0","PrimaryOnly",,,"False","T","EveryTick") -> 7269.5 | Q32: 0.004976843852 | R32: =RTD("cqg.rtd",,"StudyData", "Close("&$D$12&") when LocalYear("&$D$12&")="&$D$6&" and localMonth("&$D$12&") ="&$E$6&" and LocalDay("&$D$12&")="&$F$6&" and Barix("&$D$12&",reference:=StartOfSession)="&A32&"", "Bar", "", "Close","5","0","PrimaryOnly",,,"False","T","EveryTick") -> 7214.75 | S32: 0.01248991334 | T32: =RTD("cqg.rtd",,"StudyData", "Close("&$D$12&") when LocalYear("&$D$12&")="&$D$7&" and localMonth("&$D$12&") ="&$E$7&" and LocalDay("&$D$12&")="&$F$7&" and Barix("&$D$12&",reference:=StartOfSession)="&A32&"", "Bar", "", "Close","5","0","PrimaryOnly",,,"False","T","EveryTick") -> 7101.25 | U32: 0.01103399181 | V32: =RTD("cqg.rtd",,"StudyData", "Close("&$D$12&") when LocalYear("&$D$12&")="&$D$8&" and localMonth("&$D$12&") ="&$E$8&" and LocalDay("&$D$12&")="&$F$8&" and Barix("&$D$12&",reference:=StartOfSession)="&A32&"", "Bar", "", "Close","5","0","PrimaryOnly",,,"False","T","EveryTick") -> 7084 | W32: -0.004566851683 | X32: =RTD("cqg.rtd",,"StudyData", "Close("&$D$12&") when LocalYear("&$D$12&")="&$D$9&" and localMonth("&$D$12&") ="&$E$9&" and LocalDay("&$D$12&")="&$F$9&" and Barix("&$D$12&",reference:=StartOfSession)="&A32&"", "Bar", "", "Close","5","0","PrimaryOnly",,,"False","T","EveryTick") -> 7040.25 | Y32: -0.003749955779 | Z32: =RTD("cqg.rtd",,"StudyData", "Close("&$D$12&") when LocalYear("&$D$12&")="&$D$10&" and localMonth("&$D$12&") ="&$E$10&" and LocalDay("&$D$12&")="&$F$10&" and Barix("&$D$12&",reference:=StartOfSession)="&A32&"", "Bar", "", "Close","5","0","PrimaryOnly",,,"False","T","EveryTick") -> 7101 | AA32: 0.005736137667
A33: 32 | B33: 11:10:00 | H33: =RTD("cqg.rtd",,"StudyData", "Close("&$D$12&") when LocalYear("&$D$12&")="&$D$1&" and localMonth("&$D$12&") ="&$E$1&" and LocalDay("&$D$12&")="&$F$1&" and Barix("&$D$12&",reference:=StartOfSession)="&A33&"", "Bar", "", "Close","5","0","PrimaryOnly",,,"False","T","EveryTick") ->  | J33: =RTD("cqg.rtd",,"StudyData", "Close("&$D$12&") when LocalYear("&$D$12&")="&$D$2&" and localMonth("&$D$12&") ="&$E$2&" and LocalDay("&$D$12&")="&$F$2&" and Barix("&$D$12&",reference:=StartOfSession)="&A33&"", "Bar", "", "Close","5","0","PrimaryOnly",,,"False","T","EveryTick") -> 7366 | K33: 0.01547475444 | L33: =RTD("cqg.rtd",,"StudyData", "Close("&$D$12&") when LocalYear("&$D$12&")="&$D$3&" and localMonth("&$D$12&") ="&$E$3&" and LocalDay("&$D$12&")="&$F$3&" and Barix("&$D$12&",reference:=StartOfSession)="&A33&"", "Bar", "", "Close","5","0","PrimaryOnly",,,"False","T","EveryTick") -> 7251.75 | M33: -0.006813668424 | N33: =RTD("cqg.rtd",,"StudyData", "Close("&$D$12&") when LocalYear("&$D$12&")="&$D$4&" and localMonth("&$D$12&") ="&$E$4&" and LocalDay("&$D$12&")="&$F$4&" and Barix("&$D$12&",reference:=StartOfSession)="&A33&"", "Bar", "", "Close","5","0","PrimaryOnly",,,"False","T","EveryTick") -> 7308.5 | O33: 0.001130098284 | P33: =RTD("cqg.rtd",,"StudyData", "Close("&$D$12&") when LocalYear("&$D$12&")="&$D$5&" and localMonth("&$D$12&") ="&$E$5&" and LocalDay("&$D$12&")="&$F$5&" and Barix("&$D$12&",reference:=StartOfSession)="&A33&"", "Bar", "", "Close","5","0","PrimaryOnly",,,"False","T","EveryTick") -> 7269.5 | Q33: 0.004976843852 | R33: =RTD("cqg.rtd",,"StudyData", "Close("&$D$12&") when LocalYear("&$D$12&")="&$D$6&" and localMonth("&$D$12&") ="&$E$6&" and LocalDay("&$D$12&")="&$F$6&" and Barix("&$D$12&",reference:=StartOfSession)="&A33&"", "Bar", "", "Close","5","0","PrimaryOnly",,,"False","T","EveryTick") -> 7216 | S33: 0.01266533347 | T33: =RTD("cqg.rtd",,"StudyData", "Close("&$D$12&") when LocalYear("&$D$12&")="&$D$7&" and localMonth("&$D$12&") ="&$E$7&" and LocalDay("&$D$12&")="&$F$7&" and Barix("&$D$12&",reference:=StartOfSession)="&A33&"", "Bar", "", "Close","5","0","PrimaryOnly",,,"False","T","EveryTick") -> 7104.5 | U33: 0.0114967076 | V33: =RTD("cqg.rtd",,"StudyData", "Close("&$D$12&") when LocalYear("&$D$12&")="&$D$8&" and localMonth("&$D$12&") ="&$E$8&" and LocalDay("&$D$12&")="&$F$8&" and Barix("&$D$12&",reference:=StartOfSession)="&A33&"", "Bar", "", "Close","5","0","PrimaryOnly",,,"False","T","EveryTick") -> 7064.25 | W33: -0.007342092321 | X33: =RTD("cqg.rtd",,"StudyData", "Close("&$D$12&") when LocalYear("&$D$12&")="&$D$9&" and localMonth("&$D$12&") ="&$E$9&" and LocalDay("&$D$12&")="&$F$9&" and Barix("&$D$12&",reference:=StartOfSession)="&A33&"", "Bar", "", "Close","5","0","PrimaryOnly",,,"False","T","EveryTick") -> 7037.5 | Y33: -0.004139102133 | Z33: =RTD("cqg.rtd",,"StudyData", "Close("&$D$12&") when LocalYear("&$D$12&")="&$D$10&" and localMonth("&$D$12&") ="&$E$10&" and LocalDay("&$D$12&")="&$F$10&" and Barix("&$D$12&",reference:=StartOfSession)="&A33&"", "Bar", "", "Close","5","0","PrimaryOnly",,,"False","T","EveryTick") -> 7095.5 | AA33: 0.004957156009
A34: 33 | B34: 11:15:00 | H34: =RTD("cqg.rtd",,"StudyData", "Close("&$D$12&") when LocalYear("&$D$12&")="&$D$1&" and localMonth("&$D$12&") ="&$E$1&" and LocalDay("&$D$12&")="&$F$1&" and Barix("&$D$12&",reference:=StartOfSession)="&A34&"", "Bar", "", "Close","5","0","PrimaryOnly",,,"False","T","EveryTick") ->  | J34: =RTD("cqg.rtd",,"StudyData", "Close("&$D$12&") when LocalYear("&$D$12&")="&$D$2&" and localMonth("&$D$12&") ="&$E$2&" and LocalDay("&$D$12&")="&$F$2&" and Barix("&$D$12&",reference:=StartOfSession)="&A34&"", "Bar", "", "Close","5","0","PrimaryOnly",,,"False","T","EveryTick") -> 7366 | K34: 0.01547475444 | L34: =RTD("cqg.rtd",,"StudyData", "Close("&$D$12&") when LocalYear("&$D$12&")="&$D$3&" and localMonth("&$D$12&") ="&$E$3&" and LocalDay("&$D$12&")="&$F$3&" and Barix("&$D$12&",reference:=StartOfSession)="&A34&"", "Bar", "", "Close","5","0","PrimaryOnly",,,"False","T","EveryTick") -> 7252.25 | M34: -0.006745189345 | N34: =RTD("cqg.rtd",,"StudyData", "Close("&$D$12&") when LocalYear("&$D$12&")="&$D$4&" and localMonth("&$D$12&") ="&$E$4&" and LocalDay("&$D$12&")="&$F$4&" and Barix("&$D$12&",reference:=StartOfSession)="&A34&"", "Bar", "", "Close","5","0","PrimaryOnly",,,"False","T","EveryTick") -> 7308.5 | O34: 0.001130098284 | P34: =RTD("cqg.rtd",,"StudyData", "Close("&$D$12&") when LocalYear("&$D$12&")="&$D$5&" and localMonth("&$D$12&") ="&$E$5&" and LocalDay("&$D$12&")="&$F$5&" and Barix("&$D$12&",reference:=StartOfSession)="&A34&"", "Bar", "", "Close","5","0","PrimaryOnly",,,"False","T","EveryTick") -> 7264.75 | Q34: 0.004320176954 | R34: =RTD("cqg.rtd",,"StudyData", "Close("&$D$12&") when LocalYear("&$D$12&")="&$D$6&" and localMonth("&$D$12&") ="&$E$6&" and LocalDay("&$D$12&")="&$F$6&" and Barix("&$D$12&",reference:=StartOfSession)="&A34&"", "Bar", "", "Close","5","0","PrimaryOnly",,,"False","T","EveryTick") -> 7214.5 | S34: 0.01245482932 | T34: =RTD("cqg.rtd",,"StudyData", "Close("&$D$12&") when LocalYear("&$D$12&")="&$D$7&" and localMonth("&$D$12&") ="&$E$7&" and LocalDay("&$D$12&")="&$F$7&" and Barix("&$D$12&",reference:=StartOfSession)="&A34&"", "Bar", "", "Close","5","0","PrimaryOnly",,,"False","T","EveryTick") -> 7106 | U34: 0.01171026873 | V34: =RTD("cqg.rtd",,"StudyData", "Close("&$D$12&") when LocalYear("&$D$12&")="&$D$8&" and localMonth("&$D$12&") ="&$E$8&" and LocalDay("&$D$12&")="&$F$8&" and Barix("&$D$12&",reference:=StartOfSession)="&A34&"", "Bar", "", "Close","5","0","PrimaryOnly",,,"False","T","EveryTick") -> 7070.75 | W34: -0.006428721984 | X34: =RTD("cqg.rtd",,"StudyData", "Close("&$D$12&") when LocalYear("&$D$12&")="&$D$9&" and localMonth("&$D$12&") ="&$E$9&" and LocalDay("&$D$12&")="&$F$9&" and Barix("&$D$12&",reference:=StartOfSession)="&A34&"", "Bar", "", "Close","5","0","PrimaryOnly",,,"False","T","EveryTick") -> 7036.75 | Y34: -0.004245232957 | Z34: =RTD("cqg.rtd",,"StudyData", "Close("&$D$12&") when LocalYear("&$D$12&")="&$D$10&" and localMonth("&$D$12&") ="&$E$10&" and LocalDay("&$D$12&")="&$F$10&" and Barix("&$D$12&",reference:=StartOfSession)="&A34&"", "Bar", "", "Close","5","0","PrimaryOnly",,,"False","T","EveryTick") -> 7102 | AA34: 0.005877770696
A35: 34 | B35: 11:20:00 | H35: =RTD("cqg.rtd",,"StudyData", "Close("&$D$12&") when LocalYear("&$D$12&")="&$D$1&" and localMonth("&$D$12&") ="&$E$1&" and LocalDay("&$D$12&")="&$F$1&" and Barix("&$D$12&",reference:=StartOfSession)="&A35&"", "Bar", "", "Close","5","0","PrimaryOnly",,,"False","T","EveryTick") ->  | J35: =RTD("cqg.rtd",,"StudyData", "Close("&$D$12&") when LocalYear("&$D$12&")="&$D$2&" and localMonth("&$D$12&") ="&$E$2&" and LocalDay("&$D$12&")="&$F$2&" and Barix("&$D$12&",reference:=StartOfSession)="&A35&"", "Bar", "", "Close","5","0","PrimaryOnly",,,"False","T","EveryTick") -> 7363.5 | K35: 0.01513010512 | L35: =RTD("cqg.rtd",,"StudyData", "Close("&$D$12&") when LocalYear("&$D$12&")="&$D$3&" and localMonth("&$D$12&") ="&$E$3&" and LocalDay("&$D$12&")="&$F$3&" and Barix("&$D$12&",reference:=StartOfSession)="&A35&"", "Bar", "", "Close","5","0","PrimaryOnly",,,"False","T","EveryTick") -> 7253.75 | M35: -0.006539752106 | N35: =RTD("cqg.rtd",,"StudyData", "Close("&$D$12&") when LocalYear("&$D$12&")="&$D$4&" and localMonth("&$D$12&") ="&$E$4&" and LocalDay("&$D$12&")="&$F$4&" and Barix("&$D$12&",reference:=StartOfSession)="&A35&"", "Bar", "", "Close","5","0","PrimaryOnly",,,"False","T","EveryTick") -> 7305.75 | O35: 0.0007533988562 | P35: =RTD("cqg.rtd",,"StudyData", "Close("&$D$12&") when LocalYear("&$D$12&")="&$D$5&" and localMonth("&$D$12&") ="&$E$5&" and LocalDay("&$D$12&")="&$F$5&" and Barix("&$D$12&",reference:=StartOfSession)="&A35&"", "Bar", "", "Close","5","0","PrimaryOnly",,,"False","T","EveryTick") -> 7264.25 | Q35: 0.004251054123 | R35: =RTD("cqg.rtd",,"StudyData", "Close("&$D$12&") when LocalYear("&$D$12&")="&$D$6&" and localMonth("&$D$12&") ="&$E$6&" and LocalDay("&$D$12&")="&$F$6&" and Barix("&$D$12&",reference:=StartOfSession)="&A35&"", "Bar", "", "Close","5","0","PrimaryOnly",,,"False","T","EveryTick") -> 7218.5 | S35: 0.01301617374 | T35: =RTD("cqg.rtd",,"StudyData", "Close("&$D$12&") when LocalYear("&$D$12&")="&$D$7&" and localMonth("&$D$12&") ="&$E$7&" and LocalDay("&$D$12&")="&$F$7&" and Barix("&$D$12&",reference:=StartOfSession)="&A35&"", "Bar", "", "Close","5","0","PrimaryOnly",,,"False","T","EveryTick") -> 7106.25 | U35: 0.01174586225 | V35: =RTD("cqg.rtd",,"StudyData", "Close("&$D$12&") when LocalYear("&$D$12&")="&$D$8&" and localMonth("&$D$12&") ="&$E$8&" and LocalDay("&$D$12&")="&$F$8&" and Barix("&$D$12&",reference:=StartOfSession)="&A35&"", "Bar", "", "Close","5","0","PrimaryOnly",,,"False","T","EveryTick") -> 7076 | W35: -0.005690999789 | X35: =RTD("cqg.rtd",,"StudyData", "Close("&$D$12&") when LocalYear("&$D$12&")="&$D$9&" and localMonth("&$D$12&") ="&$E$9&" and LocalDay("&$D$12&")="&$F$9&" and Barix("&$D$12&",reference:=StartOfSession)="&A35&"", "Bar", "", "Close","5","0","PrimaryOnly",,,"False","T","EveryTick") -> 7041.75 | Y35: -0.003537694131 | Z35: =RTD("cqg.rtd",,"StudyData", "Close("&$D$12&") when LocalYear("&$D$12&")="&$D$10&" and localMonth("&$D$12&") ="&$E$10&" and LocalDay("&$D$12&")="&$F$10&" and Barix("&$D$12&",reference:=StartOfSession)="&A35&"", "Bar", "", "Close","5","0","PrimaryOnly",,,"False","T","EveryTick") -> 7101 | AA35: 0.005736137667
A36: 35 | B36: 11:25:00 | H36: =RTD("cqg.rtd",,"StudyData", "Close("&$D$12&") when LocalYear("&$D$12&")="&$D$1&" and localMonth("&$D$12&") ="&$E$1&" and LocalDay("&$D$12&")="&$F$1&" and Barix("&$D$12&",reference:=StartOfSession)="&A36&"", "Bar", "", "Close","5","0","PrimaryOnly",,,"False","T","EveryTick") ->  | J36: =RTD("cqg.rtd",,"StudyData", "Close("&$D$12&") when LocalYear("&$D$12&")="&$D$2&" and localMonth("&$D$12&") ="&$E$2&" and LocalDay("&$D$12&")="&$F$2&" and Barix("&$D$12&",reference:=StartOfSession)="&A36&"", "Bar", "", "Close","5","0","PrimaryOnly",,,"False","T","EveryTick") -> 7363.75 | K36: 0.01516457005 | L36: =RTD("cqg.rtd",,"StudyData", "Close("&$D$12&") when LocalYear("&$D$12&")="&$D$3&" and localMonth("&$D$12&") ="&$E$3&" and LocalDay("&$D$12&")="&$F$3&" and Barix("&$D$12&",reference:=StartOfSession)="&A36&"", "Bar", "", "Close","5","0","PrimaryOnly",,,"False","T","EveryTick") -> 7258 | M36: -0.005957679929 | N36: =RTD("cqg.rtd",,"StudyData", "Close("&$D$12&") when LocalYear("&$D$12&")="&$D$4&" and localMonth("&$D$12&") ="&$E$4&" and LocalDay("&$D$12&")="&$F$4&" and Barix("&$D$12&",reference:=StartOfSession)="&A36&"", "Bar", "", "Close","5","0","PrimaryOnly",,,"False","T","EveryTick") -> 7311.5 | O36: 0.001541043115 | P36: =RTD("cqg.rtd",,"StudyData", "Close("&$D$12&") when LocalYear("&$D$12&")="&$D$5&" and localMonth("&$D$12&") ="&$E$5&" and LocalDay("&$D$12&")="&$F$5&" and Barix("&$D$12&",reference:=StartOfSession)="&A36&"", "Bar", "", "Close","5","0","PrimaryOnly",,,"False","T","EveryTick") -> 7261.75 | Q36: 0.003905439967 | R36: =RTD("cqg.rtd",,"StudyData", "Close("&$D$12&") when LocalYear("&$D$12&")="&$D$6&" and localMonth("&$D$12&") ="&$E$6&" and LocalDay("&$D$12&")="&$F$6&" and Barix("&$D$12&",reference:=StartOfSession)="&A36&"", "Bar", "", "Close","5","0","PrimaryOnly",,,"False","T","EveryTick") -> 7219 | S36: 0.01308634179 | T36: =RTD("cqg.rtd",,"StudyData", "Close("&$D$12&") when LocalYear("&$D$12&")="&$D$7&" and localMonth("&$D$12&") ="&$E$7&" and LocalDay("&$D$12&")="&$F$7&" and Barix("&$D$12&",reference:=StartOfSession)="&A36&"", "Bar", "", "Close","5","0","PrimaryOnly",,,"False","T","EveryTick") -> 7108 | U36: 0.01199501691 | V36: =RTD("cqg.rtd",,"StudyData", "Close("&$D$12&") when LocalYear("&$D$12&")="&$D$8&" and localMonth("&$D$12&") ="&$E$8&" and LocalDay("&$D$12&")="&$F$8&" and Barix("&$D$12&",reference:=StartOfSession)="&A36&"", "Bar", "", "Close","5","0","PrimaryOnly",,,"False","T","EveryTick") -> 7070.5 | W36: -0.006463851612 | X36: =RTD("cqg.rtd",,"StudyData", "Close("&$D$12&") when LocalYear("&$D$12&")="&$D$9&" and localMonth("&$D$12&") ="&$E$9&" and LocalDay("&$D$12&")="&$F$9&" and Barix("&$D$12&",reference:=StartOfSession)="&A36&"", "Bar", "", "Close","5","0","PrimaryOnly",,,"False","T","EveryTick") -> 7044.25 | Y36: -0.003183924718 | Z36: =RTD("cqg.rtd",,"StudyData", "Close("&$D$12&") when LocalYear("&$D$12&")="&$D$10&" and localMonth("&$D$12&") ="&$E$10&" and LocalDay("&$D$12&")="&$F$10&" and Barix("&$D$12&",reference:=StartOfSession)="&A36&"", "Bar", "", "Close","5","0","PrimaryOnly",,,"False","T","EveryTick") -> 7096.5 | AA36: 0.005098789038
A37: 36 | B37: 11:30:00 | H37: =RTD("cqg.rtd",,"StudyData", "Close("&$D$12&") when LocalYear("&$D$12&")="&$D$1&" and localMonth("&$D$12&") ="&$E$1&" and LocalDay("&$D$12&")="&$F$1&" and Barix("&$D$12&",reference:=StartOfSession)="&A37&"", "Bar", "", "Close","5","0","PrimaryOnly",,,"False","T","EveryTick") ->  | J37: =RTD("cqg.rtd",,"StudyData", "Close("&$D$12&") when LocalYear("&$D$12&")="&$D$2&" and localMonth("&$D$12&") ="&$E$2&" and LocalDay("&$D$12&")="&$F$2&" and Barix("&$D$12&",reference:=StartOfSession)="&A37&"", "Bar", "", "Close","5","0","PrimaryOnly",,,"False","T","EveryTick") -> 7363.75 | K37: 0.01516457005 | L37: =RTD("cqg.rtd",,"StudyData", "Close("&$D$12&") when LocalYear("&$D$12&")="&$D$3&" and localMonth("&$D$12&") ="&$E$3&" and LocalDay("&$D$12&")="&$F$3&" and Barix("&$D$12&",reference:=StartOfSession)="&A37&"", "Bar", "", "Close","5","0","PrimaryOnly",,,"False","T","EveryTick") -> 7265.75 | M37: -0.004896254194 | N37: =RTD("cqg.rtd",,"StudyData", "Close("&$D$12&") when LocalYear("&$D$12&")="&$D$4&" and localMonth("&$D$12&") ="&$E$4&" and LocalDay("&$D$12&")="&$F$4&" and Barix("&$D$12&",reference:=StartOfSession)="&A37&"", "Bar", "", "Close","5","0","PrimaryOnly",,,"False","T","EveryTick") -> 7311.5 | O37: 0.001541043115 | P37: =RTD("cqg.rtd",,"StudyData", "Close("&$D$12&") when LocalYear("&$D$12&")="&$D$5&" and localMonth("&$D$12&") ="&$E$5&" and LocalDay("&$D$12&")="&$F$5&" and Barix("&$D$12&",reference:=StartOfSession)="&A37&"", "Bar", "", "Close","5","0","PrimaryOnly",,,"False","T","EveryTick") -> 7262.5 | Q37: 0.004009124214 | R37: =RTD("cqg.rtd",,"StudyData", "Close("&$D$12&") when LocalYear("&$D$12&")="&$D$6&" and localMonth("&$D$12&") ="&$E$6&" and LocalDay("&$D$12&")="&$F$6&" and Barix("&$D$12&",reference:=StartOfSession)="&A37&"", "Bar", "", "Close","5","0","PrimaryOnly",,,"False","T","EveryTick") -> 7220 | S37: 0.01322667789 | T37: =RTD("cqg.rtd",,"StudyData", "Close("&$D$12&") when LocalYear("&$D$12&")="&$D$7&" and localMonth("&$D$12&") ="&$E$7&" and LocalDay("&$D$12&")="&$F$7&" and Barix("&$D$12&",reference:=StartOfSession)="&A37&"", "Bar", "", "Close","5","0","PrimaryOnly",,,"False","T","EveryTick") -> 7109.25 | U37: 0.01217298452 | V37: =RTD("cqg.rtd",,"StudyData", "Close("&$D$12&") when LocalYear("&$D$12&")="&$D$8&" and localMonth("&$D$12&") ="&$E$8&" and LocalDay("&$D$12&")="&$F$8&" and Barix("&$D$12&",reference:=StartOfSession)="&A37&"", "Bar", "", "Close","5","0","PrimaryOnly",,,"False","T","EveryTick") -> 7063.75 | W37: -0.007412351577 | X37: =RTD("cqg.rtd",,"StudyData", "Close("&$D$12&") when LocalYear("&$D$12&")="&$D$9&" and localMonth("&$D$12&") ="&$E$9&" and LocalDay("&$D$12&")="&$F$9&" and Barix("&$D$12&",reference:=StartOfSession)="&A37&"", "Bar", "", "Close","5","0","PrimaryOnly",,,"False","T","EveryTick") -> 7046 | Y37: -0.002936286129 | Z37: =RTD("cqg.rtd",,"StudyData", "Close("&$D$12&") when LocalYear("&$D$12&")="&$D$10&" and localMonth("&$D$12&") ="&$E$10&" and LocalDay("&$D$12&")="&$F$10&" and Barix("&$D$12&",reference:=StartOfSession)="&A37&"", "Bar", "", "Close","5","0","PrimaryOnly",,,"False","T","EveryTick") -> 7089.75 | AA37: 0.004142766093
A38: 37 | B38: 11:35:00 | C38: -40 | D38: =RTD("cqg.rtd",,"StudyData", $D$12, "Tick", "FlatTicks=0", "Tick","D",C38,"PrimaryOnly") -> 7403.25 | F38: EP | H38: =RTD("cqg.rtd",,"StudyData", "Close("&$D$12&") when LocalYear("&$D$12&")="&$D$1&" and localMonth("&$D$12&") ="&$E$1&" and LocalDay("&$D$12&")="&$F$1&" and Barix("&$D$12&",reference:=StartOfSession)="&A38&"", "Bar", "", "Close","5","0","PrimaryOnly",,,"False","T","EveryTick") ->  | J38: =RTD("cqg.rtd",,"StudyData", "Close("&$D$12&") when LocalYear("&$D$12&")="&$D$2&" and localMonth("&$D$12&") ="&$E$2&" and LocalDay("&$D$12&")="&$F$2&" and Barix("&$D$12&",reference:=StartOfSession)="&A38&"", "Bar", "", "Close","5","0","PrimaryOnly",,,"False","T","EveryTick") -> 7360.75 | K38: 0.01475099087 | L38: =RTD("cqg.rtd",,"StudyData", "Close("&$D$12&") when LocalYear("&$D$12&")="&$D$3&" and localMonth("&$D$12&") ="&$E$3&" and LocalDay("&$D$12&")="&$F$3&" and Barix("&$D$12&",reference:=StartOfSession)="&A38&"", "Bar", "", "Close","5","0","PrimaryOnly",,,"False","T","EveryTick") -> 7265.75 | M38: -0.004896254194 | N38: =RTD("cqg.rtd",,"StudyData", "Close("&$D$12&") when LocalYear("&$D$12&")="&$D$4&" and localMonth("&$D$12&") ="&$E$4&" and LocalDay("&$D$12&")="&$F$4&" and Barix("&$D$12&",reference:=StartOfSession)="&A38&"", "Bar", "", "Close","5","0","PrimaryOnly",,,"False","T","EveryTick") -> 7310.75 | O38: 0.001438306907 | P38: =RTD("cqg.rtd",,"StudyData", "Close("&$D$12&") when LocalYear("&$D$12&")="&$D$5&" and localMonth("&$D$12&") ="&$E$5&" and LocalDay("&$D$12&")="&$F$5&" and Barix("&$D$12&",reference:=StartOfSession)="&A38&"", "Bar", "", "Close","5","0","PrimaryOnly",,,"False","T","EveryTick") -> 7262 | Q38: 0.003940001382 | R38: =RTD("cqg.rtd",,"StudyData", "Close("&$D$12&") when LocalYear("&$D$12&")="&$D$6&" and localMonth("&$D$12&") ="&$E$6&" and LocalDay("&$D$12&")="&$F$6&" and Barix("&$D$12&",reference:=StartOfSession)="&A38&"", "Bar", "", "Close","5","0","PrimaryOnly",,,"False","T","EveryTick") -> 7222.75 | S38: 0.01361260218 | T38: =RTD("cqg.rtd",,"StudyData", "Close("&$D$12&") when LocalYear("&$D$12&")="&$D$7&" and localMonth("&$D$12&") ="&$E$7&" and LocalDay("&$D$12&")="&$F$7&" and Barix("&$D$12&",reference:=StartOfSession)="&A38&"", "Bar", "", "Close","5","0","PrimaryOnly",,,"False","T","EveryTick") -> 7106.75 | U38: 0.0118170493 | V38: =RTD("cqg.rtd",,"StudyData", "Close("&$D$12&") when LocalYear("&$D$12&")="&$D$8&" and localMonth("&$D$12&") ="&$E$8&" and LocalDay("&$D$12&")="&$F$8&" and Barix("&$D$12&",reference:=StartOfSession)="&A38&"", "Bar", "", "Close","5","0","PrimaryOnly",,,"False","T","EveryTick") -> 7055.5 | W38: -0.008571629312 | X38: =RTD("cqg.rtd",,"StudyData", "Close("&$D$12&") when LocalYear("&$D$12&")="&$D$9&" and localMonth("&$D$12&") ="&$E$9&" and LocalDay("&$D$12&")="&$F$9&" and Barix("&$D$12&",reference:=StartOfSession)="&A38&"", "Bar", "", "Close","5","0","PrimaryOnly",,,"False","T","EveryTick") -> 7042.5 | Y38: -0.003431563307 | Z38: =RTD("cqg.rtd",,"StudyData", "Close("&$D$12&") when LocalYear("&$D$12&")="&$D$10&" and localMonth("&$D$12&") ="&$E$10&" and LocalDay("&$D$12&")="&$F$10&" and Barix("&$D$12&",reference:=StartOfSession)="&A38&"", "Bar", "", "Close","5","0","PrimaryOnly",,,"False","T","EveryTick") -> 7091.75 | AA38: 0.004426032151
A39: 38 | B39: 11:40:00 | C39: =C38+1 -> -39 | D39: =RTD("cqg.rtd",,"StudyData", $D$12, "Tick", "FlatTicks=0", "Tick","D",C39,"PrimaryOnly") -> 7403 | F39: ENQ | H39: =RTD("cqg.rtd",,"StudyData", "Close("&$D$12&") when LocalYear("&$D$12&")="&$D$1&" and localMonth("&$D$12&") ="&$E$1&" and LocalDay("&$D$12&")="&$F$1&" and Barix("&$D$12&",reference:=StartOfSession)="&A39&"", "Bar", "", "Close","5","0","PrimaryOnly",,,"False","T","EveryTick") ->  | J39: =RTD("cqg.rtd",,"StudyData", "Close("&$D$12&") when LocalYear("&$D$12&")="&$D$2&" and localMonth("&$D$12&") ="&$E$2&" and LocalDay("&$D$12&")="&$F$2&" and Barix("&$D$12&",reference:=StartOfSession)="&A39&"", "Bar", "", "Close","5","0","PrimaryOnly",,,"False","T","EveryTick") -> 7357.5 | K39: 0.01430294675 | L39: =RTD("cqg.rtd",,"StudyData", "Close("&$D$12&") when LocalYear("&$D$12&")="&$D$3&" and localMonth("&$D$12&") ="&$E$3&" and LocalDay("&$D$12&")="&$F$3&" and Barix("&$D$12&",reference:=StartOfSession)="&A39&"", "Bar", "", "Close","5","0","PrimaryOnly",,,"False","T","EveryTick") -> 7264.5 | M39: -0.005067451893 | N39: =RTD("cqg.rtd",,"StudyData", "Close("&$D$12&") when LocalYear("&$D$12&")="&$D$4&" and localMonth("&$D$12&") ="&$E$4&" and LocalDay("&$D$12&")="&$F$4&" and Barix("&$D$12&",reference:=StartOfSession)="&A39&"", "Bar", "", "Close","5","0","PrimaryOnly",,,"False","T","EveryTick") -> 7309 | O39: 0.001198589089 | P39: =RTD("cqg.rtd",,"StudyData", "Close("&$D$12&") when LocalYear("&$D$12&")="&$D$5&" and localMonth("&$D$12&") ="&$E$5&" and LocalDay("&$D$12&")="&$F$5&" and Barix("&$D$12&",reference:=StartOfSession)="&A39&"", "Bar", "", "Close","5","0","PrimaryOnly",,,"False","T","EveryTick") -> 7264 | Q39: 0.004216492708 | R39: =RTD("cqg.rtd",,"StudyData", "Close("&$D$12&") when LocalYear("&$D$12&")="&$D$6&" and localMonth("&$D$12&") ="&$E$6&" and LocalDay("&$D$12&")="&$F$6&" and Barix("&$D$12&",reference:=StartOfSession)="&A39&"", "Bar", "", "Close","5","0","PrimaryOnly",,,"False","T","EveryTick") -> 7218.75 | S39: 0.01305125776 | T39: =RTD("cqg.rtd",,"StudyData", "Close("&$D$12&") when LocalYear("&$D$12&")="&$D$7&" and localMonth("&$D$12&") ="&$E$7&" and LocalDay("&$D$12&")="&$F$7&" and Barix("&$D$12&",reference:=StartOfSession)="&A39&"", "Bar", "", "Close","5","0","PrimaryOnly",,,"False","T","EveryTick") -> 7108.5 | U39: 0.01206620395 | V39: =RTD("cqg.rtd",,"StudyData", "Close("&$D$12&") when LocalYear("&$D$12&")="&$D$8&" and localMonth("&$D$12&") ="&$E$8&" and LocalDay("&$D$12&")="&$F$8&" and Barix("&$D$12&",reference:=StartOfSession)="&A39&"", "Bar", "", "Close","5","0","PrimaryOnly",,,"False","T","EveryTick") -> 7059.5 | W39: -0.008009555259 | X39: =RTD("cqg.rtd",,"StudyData", "Close("&$D$12&") when LocalYear("&$D$12&")="&$D$9&" and localMonth("&$D$12&") ="&$E$9&" and LocalDay("&$D$12&")="&$F$9&" and Barix("&$D$12&",reference:=StartOfSession)="&A39&"", "Bar", "", "Close","5","0","PrimaryOnly",,,"False","T","EveryTick") -> 7041 | Y39: -0.003643824955 | Z39: =RTD("cqg.rtd",,"StudyData", "Close("&$D$12&") when LocalYear("&$D$12&")="&$D$10&" and localMonth("&$D$12&") ="&$E$10&" and LocalDay("&$D$12&")="&$F$10&" and Barix("&$D$12&",reference:=StartOfSession)="&A39&"", "Bar", "", "Close","5","0","PrimaryOnly",,,"False","T","EveryTick") -> 7094.25 | AA39: 0.004780114723
A40: 39 | B40: 11:45:00 | C40: =C39+1 -> -38 | D40: =RTD("cqg.rtd",,"StudyData", $D$12, "Tick", "FlatTicks=0", "Tick","D",C40,"PrimaryOnly") -> 7403.25 | F40: YM | H40: =RTD("cqg.rtd",,"StudyData", "Close("&$D$12&") when LocalYear("&$D$12&")="&$D$1&" and localMonth("&$D$12&") ="&$E$1&" and LocalDay("&$D$12&")="&$F$1&" and Barix("&$D$12&",reference:=StartOfSession)="&A40&"", "Bar", "", "Close","5","0","PrimaryOnly",,,"False","T","EveryTick") ->  | J40: =RTD("cqg.rtd",,"StudyData", "Close("&$D$12&") when LocalYear("&$D$12&")="&$D$2&" and localMonth("&$D$12&") ="&$E$2&" and LocalDay("&$D$12&")="&$F$2&" and Barix("&$D$12&",reference:=StartOfSession)="&A40&"", "Bar", "", "Close","5","0","PrimaryOnly",,,"False","T","EveryTick") -> 7361.25 | K40: 0.01481992073 | L40: =RTD("cqg.rtd",,"StudyData", "Close("&$D$12&") when LocalYear("&$D$12&")="&$D$3&" and localMonth("&$D$12&") ="&$E$3&" and LocalDay("&$D$12&")="&$F$3&" and Barix("&$D$12&",reference:=StartOfSession)="&A40&"", "Bar", "", "Close","5","0","PrimaryOnly",,,"False","T","EveryTick") -> 7267.25 | M40: -0.004690816955 | N40: =RTD("cqg.rtd",,"StudyData", "Close("&$D$12&") when LocalYear("&$D$12&")="&$D$4&" and localMonth("&$D$12&") ="&$E$4&" and LocalDay("&$D$12&")="&$F$4&" and Barix("&$D$12&",reference:=StartOfSession)="&A40&"", "Bar", "", "Close","5","0","PrimaryOnly",,,"False","T","EveryTick") -> 7307.5 | O40: 0.0009931166741 | P40: =RTD("cqg.rtd",,"StudyData", "Close("&$D$12&") when LocalYear("&$D$12&")="&$D$5&" and localMonth("&$D$12&") ="&$E$5&" and LocalDay("&$D$12&")="&$F$5&" and Barix("&$D$12&",reference:=StartOfSession)="&A40&"", "Bar", "", "Close","5","0","PrimaryOnly",,,"False","T","EveryTick") -> 7262 | Q40: 0.003940001382 | R40: =RTD("cqg.rtd",,"StudyData", "Close("&$D$12&") when LocalYear("&$D$12&")="&$D$6&" and localMonth("&$D$12&") ="&$E$6&" and LocalDay("&$D$12&")="&$F$6&" and Barix("&$D$12&",reference:=StartOfSession)="&A40&"", "Bar", "", "Close","5","0","PrimaryOnly",,,"False","T","EveryTick") -> 7213.75 | S40: 0.01234957724 | T40: =RTD("cqg.rtd",,"StudyData", "Close("&$D$12&") when LocalYear("&$D$12&")="&$D$7&" and localMonth("&$D$12&") ="&$E$7&" and LocalDay("&$D$12&")="&$F$7&" and Barix("&$D$12&",reference:=StartOfSession)="&A40&"", "Bar", "", "Close","5","0","PrimaryOnly",,,"False","T","EveryTick") -> 7101.25 | U40: 0.01103399181 | V40: =RTD("cqg.rtd",,"StudyData", "Close("&$D$12&") when LocalYear("&$D$12&")="&$D$8&" and localMonth("&$D$12&") ="&$E$8&" and LocalDay("&$D$12&")="&$F$8&" and Barix("&$D$12&",reference:=StartOfSession)="&A40&"", "Bar", "", "Close","5","0","PrimaryOnly",,,"False","T","EveryTick") -> 7048.25 | W40: -0.009590388534 | X40: =RTD("cqg.rtd",,"StudyData", "Close("&$D$12&") when LocalYear("&$D$12&")="&$D$9&" and localMonth("&$D$12&") ="&$E$9&" and LocalDay("&$D$12&")="&$F$9&" and Barix("&$D$12&",reference:=StartOfSession)="&A40&"", "Bar", "", "Close","5","0","PrimaryOnly",,,"False","T","EveryTick") -> 7047.75 | Y40: -0.00268864754 | Z40: =RTD("cqg.rtd",,"StudyData", "Close("&$D$12&") when LocalYear("&$D$12&")="&$D$10&" and localMonth("&$D$12&") ="&$E$10&" and LocalDay("&$D$12&")="&$F$10&" and Barix("&$D$12&",reference:=StartOfSession)="&A40&"", "Bar", "", "Close","5","0","PrimaryOnly",,,"False","T","EveryTick") -> 7089.75 | AA40: 0.004142766093
A41: 40 | B41: 11:50:00 | C41: -37 | D41: =RTD("cqg.rtd",,"StudyData", $D$12, "Tick", "FlatTicks=0", "Tick","D",C41,"PrimaryOnly") -> 7403 | F41: RTY | H41: =RTD("cqg.rtd",,"StudyData", "Close("&$D$12&") when LocalYear("&$D$12&")="&$D$1&" and localMonth("&$D$12&") ="&$E$1&" and LocalDay("&$D$12&")="&$F$1&" and Barix("&$D$12&",reference:=StartOfSession)="&A41&"", "Bar", "", "Close","5","0","PrimaryOnly",,,"False","T","EveryTick") ->  | J41: =RTD("cqg.rtd",,"StudyData", "Close("&$D$12&") when LocalYear("&$D$12&")="&$D$2&" and localMonth("&$D$12&") ="&$E$2&" and LocalDay("&$D$12&")="&$F$2&" and Barix("&$D$12&",reference:=StartOfSession)="&A41&"", "Bar", "", "Close","5","0","PrimaryOnly",,,"False","T","EveryTick") -> 7365.5 | K41: 0.01540582457 | L41: =RTD("cqg.rtd",,"StudyData", "Close("&$D$12&") when LocalYear("&$D$12&")="&$D$3&" and localMonth("&$D$12&") ="&$E$3&" and LocalDay("&$D$12&")="&$F$3&" and Barix("&$D$12&",reference:=StartOfSession)="&A41&"", "Bar", "", "Close","5","0","PrimaryOnly",,,"False","T","EveryTick") -> 7266.25 | M41: -0.004827775115 | N41: =RTD("cqg.rtd",,"StudyData", "Close("&$D$12&") when LocalYear("&$D$12&")="&$D$4&" and localMonth("&$D$12&") ="&$E$4&" and LocalDay("&$D$12&")="&$F$4&" and Barix("&$D$12&",reference:=StartOfSession)="&A41&"", "Bar", "", "Close","5","0","PrimaryOnly",,,"False","T","EveryTick") -> 7308 | O41: 0.001061607479 | P41: =RTD("cqg.rtd",,"StudyData", "Close("&$D$12&") when LocalYear("&$D$12&")="&$D$5&" and localMonth("&$D$12&") ="&$E$5&" and LocalDay("&$D$12&")="&$F$5&" and Barix("&$D$12&",reference:=StartOfSession)="&A41&"", "Bar", "", "Close","5","0","PrimaryOnly",,,"False","T","EveryTick") -> 7261.25 | Q41: 0.003836317136 | R41: =RTD("cqg.rtd",,"StudyData", "Close("&$D$12&") when LocalYear("&$D$12&")="&$D$6&" and localMonth("&$D$12&") ="&$E$6&" and LocalDay("&$D$12&")="&$F$6&" and Barix("&$D$12&",reference:=StartOfSession)="&A41&"", "Bar", "", "Close","5","0","PrimaryOnly",,,"False","T","EveryTick") -> 7213.75 | S41: 0.01234957724 | T41: =RTD("cqg.rtd",,"StudyData", "Close("&$D$12&") when LocalYear("&$D$12&")="&$D$7&" and localMonth("&$D$12&") ="&$E$7&" and LocalDay("&$D$12&")="&$F$7&" and Barix("&$D$12&",reference:=StartOfSession)="&A41&"", "Bar", "", "Close","5","0","PrimaryOnly",,,"False","T","EveryTick") -> 7105 | U41: 0.01156789464 | V41: =RTD("cqg.rtd",,"StudyData", "Close("&$D$12&") when LocalYear("&$D$12&")="&$D$8&" and localMonth("&$D$12&") ="&$E$8&" and LocalDay("&$D$12&")="&$F$8&" and Barix("&$D$12&",reference:=StartOfSession)="&A41&"", "Bar", "", "Close","5","0","PrimaryOnly",,,"False","T","EveryTick") -> 7041 | W41: -0.01060914776 | X41: =RTD("cqg.rtd",,"StudyData", "Close("&$D$12&") when LocalYear("&$D$12&")="&$D$9&" and localMonth("&$D$12&") ="&$E$9&" and LocalDay("&$D$12&")="&$F$9&" and Barix("&$D$12&",reference:=StartOfSession)="&A41&"", "Bar", "", "Close","5","0","PrimaryOnly",,,"False","T","EveryTick") -> 7047 | Y41: -0.002794778363 | Z41: =RTD("cqg.rtd",,"StudyData", "Close("&$D$12&") when LocalYear("&$D$12&")="&$D$10&" and localMonth("&$D$12&") ="&$E$10&" and LocalDay("&$D$12&")="&$F$10&" and Barix("&$D$12&",reference:=StartOfSession)="&A41&"", "Bar", "", "Close","5","0","PrimaryOnly",,,"False","T","EveryTick") -> 7087 | AA41: 0.003753275264
A42: 41 | B42: 11:55:00 | C42: -36 | D42: =RTD("cqg.rtd",,"StudyData", $D$12, "Tick", "FlatTicks=0", "Tick","D",C42,"PrimaryOnly") -> 7403.25 | F42: EMD | H42: =RTD("cqg.rtd",,"StudyData", "Close("&$D$12&") when LocalYear("&$D$12&")="&$D$1&" and localMonth("&$D$12&") ="&$E$1&" and LocalDay("&$D$12&")="&$F$1&" and Barix("&$D$12&",reference:=StartOfSession)="&A42&"", "Bar", "", "Close","5","0","PrimaryOnly",,,"False","T","EveryTick") ->  | J42: =RTD("cqg.rtd",,"StudyData", "Close("&$D$12&") when LocalYear("&$D$12&")="&$D$2&" and localMonth("&$D$12&") ="&$E$2&" and LocalDay("&$D$12&")="&$F$2&" and Barix("&$D$12&",reference:=StartOfSession)="&A42&"", "Bar", "", "Close","5","0","PrimaryOnly",,,"False","T","EveryTick") -> 7365.5 | K42: 0.01540582457 | L42: =RTD("cqg.rtd",,"StudyData", "Close("&$D$12&") when LocalYear("&$D$12&")="&$D$3&" and localMonth("&$D$12&") ="&$E$3&" and LocalDay("&$D$12&")="&$F$3&" and Barix("&$D$12&",reference:=StartOfSession)="&A42&"", "Bar", "", "Close","5","0","PrimaryOnly",,,"False","T","EveryTick") -> 7261.5 | M42: -0.005478326371 | N42: =RTD("cqg.rtd",,"StudyData", "Close("&$D$12&") when LocalYear("&$D$12&")="&$D$4&" and localMonth("&$D$12&") ="&$E$4&" and LocalDay("&$D$12&")="&$F$4&" and Barix("&$D$12&",reference:=StartOfSession)="&A42&"", "Bar", "", "Close","5","0","PrimaryOnly",,,"False","T","EveryTick") -> 7307.25 | O42: 0.0009588712715 | P42: =RTD("cqg.rtd",,"StudyData", "Close("&$D$12&") when LocalYear("&$D$12&")="&$D$5&" and localMonth("&$D$12&") ="&$E$5&" and LocalDay("&$D$12&")="&$F$5&" and Barix("&$D$12&",reference:=StartOfSession)="&A42&"", "Bar", "", "Close","5","0","PrimaryOnly",,,"False","T","EveryTick") -> 7261.25 | Q42: 0.003836317136 | R42: =RTD("cqg.rtd",,"StudyData", "Close("&$D$12&") when LocalYear("&$D$12&")="&$D$6&" and localMonth("&$D$12&") ="&$E$6&" and LocalDay("&$D$12&")="&$F$6&" and Barix("&$D$12&",reference:=StartOfSession)="&A42&"", "Bar", "", "Close","5","0","PrimaryOnly",,,"False","T","EveryTick") -> 7216.75 | S42: 0.01277058555 | T42: =RTD("cqg.rtd",,"StudyData", "Close("&$D$12&") when LocalYear("&$D$12&")="&$D$7&" and localMonth("&$D$12&") ="&$E$7&" and LocalDay("&$D$12&")="&$F$7&" and Barix("&$D$12&",reference:=StartOfSession)="&A42&"", "Bar", "", "Close","5","0","PrimaryOnly",,,"False","T","EveryTick") -> 7110.5 | U42: 0.01235095213 | V42: =RTD("cqg.rtd",,"StudyData", "Close("&$D$12&") when LocalYear("&$D$12&")="&$D$8&" and localMonth("&$D$12&") ="&$E$8&" and LocalDay("&$D$12&")="&$F$8&" and Barix("&$D$12&",reference:=StartOfSession)="&A42&"", "Bar", "", "Close","5","0","PrimaryOnly",,,"False","T","EveryTick") -> 7033.5 | W42: -0.01166303661 | X42: =RTD("cqg.rtd",,"StudyData", "Close("&$D$12&") when LocalYear("&$D$12&")="&$D$9&" and localMonth("&$D$12&") ="&$E$9&" and LocalDay("&$D$12&")="&$F$9&" and Barix("&$D$12&",reference:=StartOfSession)="&A42&"", "Bar", "", "Close","5","0","PrimaryOnly",,,"False","T","EveryTick") -> 7044.75 | Y42: -0.003113170835 | Z42: =RTD("cqg.rtd",,"StudyData", "Close("&$D$12&") when LocalYear("&$D$12&")="&$D$10&" and localMonth("&$D$12&") ="&$E$10&" and LocalDay("&$D$12&")="&$F$10&" and Barix("&$D$12&",reference:=StartOfSession)="&A42&"", "Bar", "", "Close","5","0","PrimaryOnly",,,"False","T","EveryTick") -> 7086.75 | AA42: 0.003717867007
A43: 42 | B43: 12:00:00 | C43: -35 | D43: =RTD("cqg.rtd",,"StudyData", $D$12, "Tick", "FlatTicks=0", "Tick","D",C43,"PrimaryOnly") -> 7403.5 | F43: FT5 | H43: =RTD("cqg.rtd",,"StudyData", "Close("&$D$12&") when LocalYear("&$D$12&")="&$D$1&" and localMonth("&$D$12&") ="&$E$1&" and LocalDay("&$D$12&")="&$F$1&" and Barix("&$D$12&",reference:=StartOfSession)="&A43&"", "Bar", "", "Close","5","0","PrimaryOnly",,,"False","T","EveryTick") ->  | J43: =RTD("cqg.rtd",,"StudyData", "Close("&$D$12&") when LocalYear("&$D$12&")="&$D$2&" and localMonth("&$D$12&") ="&$E$2&" and LocalDay("&$D$12&")="&$F$2&" and Barix("&$D$12&",reference:=StartOfSession)="&A43&"", "Bar", "", "Close","5","0","PrimaryOnly",,,"False","T","EveryTick") -> 7369 | K43: 0.01588833362 | L43: =RTD("cqg.rtd",,"StudyData", "Close("&$D$12&") when LocalYear("&$D$12&")="&$D$3&" and localMonth("&$D$12&") ="&$E$3&" and LocalDay("&$D$12&")="&$F$3&" and Barix("&$D$12&",reference:=StartOfSession)="&A43&"", "Bar", "", "Close","5","0","PrimaryOnly",,,"False","T","EveryTick") -> 7261.25 | M43: -0.005512565911 | N43: =RTD("cqg.rtd",,"StudyData", "Close("&$D$12&") when LocalYear("&$D$12&")="&$D$4&" and localMonth("&$D$12&") ="&$E$4&" and LocalDay("&$D$12&")="&$F$4&" and Barix("&$D$12&",reference:=StartOfSession)="&A43&"", "Bar", "", "Close","5","0","PrimaryOnly",,,"False","T","EveryTick") -> 7309.25 | O43: 0.001232834492 | P43: =RTD("cqg.rtd",,"StudyData", "Close("&$D$12&") when LocalYear("&$D$12&")="&$D$5&" and localMonth("&$D$12&") ="&$E$5&" and LocalDay("&$D$12&")="&$F$5&" and Barix("&$D$12&",reference:=StartOfSession)="&A43&"", "Bar", "", "Close","5","0","PrimaryOnly",,,"False","T","EveryTick") -> 7266.25 | Q43: 0.004527545448 | R43: =RTD("cqg.rtd",,"StudyData", "Close("&$D$12&") when LocalYear("&$D$12&")="&$D$6&" and localMonth("&$D$12&") ="&$E$6&" and LocalDay("&$D$12&")="&$F$6&" and Barix("&$D$12&",reference:=StartOfSession)="&A43&"", "Bar", "", "Close","5","0","PrimaryOnly",,,"False","T","EveryTick") -> 7219.5 | S43: 0.01315650984 | T43: =RTD("cqg.rtd",,"StudyData", "Close("&$D$12&") when LocalYear("&$D$12&")="&$D$7&" and localMonth("&$D$12&") ="&$E$7&" and LocalDay("&$D$12&")="&$F$7&" and Barix("&$D$12&",reference:=StartOfSession)="&A43&"", "Bar", "", "Close","5","0","PrimaryOnly",,,"False","T","EveryTick") -> 7116.25 | U43: 0.01316960313 | V43: =RTD("cqg.rtd",,"StudyData", "Close("&$D$12&") when LocalYear("&$D$12&")="&$D$8&" and localMonth("&$D$12&") ="&$E$8&" and LocalDay("&$D$12&")="&$F$8&" and Barix("&$D$12&",reference:=StartOfSession)="&A43&"", "Bar", "", "Close","5","0","PrimaryOnly",,,"False","T","EveryTick") -> 7034.5 | W43: -0.01152251809 | X43: =RTD("cqg.rtd",,"StudyData", "Close("&$D$12&") when LocalYear("&$D$12&")="&$D$9&" and localMonth("&$D$12&") ="&$E$9&" and LocalDay("&$D$12&")="&$F$9&" and Barix("&$D$12&",reference:=StartOfSession)="&A43&"", "Bar", "", "Close","5","0","PrimaryOnly",,,"False","T","EveryTick") -> 7042.75 | Y43: -0.003396186366 | Z43: =RTD("cqg.rtd",,"StudyData", "Close("&$D$12&") when LocalYear("&$D$12&")="&$D$10&" and localMonth("&$D$12&") ="&$E$10&" and LocalDay("&$D$12&")="&$F$10&" and Barix("&$D$12&",reference:=StartOfSession)="&A43&"", "Bar", "", "Close","5","0","PrimaryOnly",,,"False","T","EveryTick") -> 7088.75 | AA43: 0.004001133064
A44: 43 | B44: 12:05:00 | C44: -34 | D44: =RTD("cqg.rtd",,"StudyData", $D$12, "Tick", "FlatTicks=0", "Tick","D",C44,"PrimaryOnly") -> 7403.25 | F44: BTC | H44: =RTD("cqg.rtd",,"StudyData", "Close("&$D$12&") when LocalYear("&$D$12&")="&$D$1&" and localMonth("&$D$12&") ="&$E$1&" and LocalDay("&$D$12&")="&$F$1&" and Barix("&$D$12&",reference:=StartOfSession)="&A44&"", "Bar", "", "Close","5","0","PrimaryOnly",,,"False","T","EveryTick") ->  | J44: =RTD("cqg.rtd",,"StudyData", "Close("&$D$12&") when LocalYear("&$D$12&")="&$D$2&" and localMonth("&$D$12&") ="&$E$2&" and LocalDay("&$D$12&")="&$F$2&" and Barix("&$D$12&",reference:=StartOfSession)="&A44&"", "Bar", "", "Close","5","0","PrimaryOnly",,,"False","T","EveryTick") -> 7366.25 | K44: 0.01550921937 | L44: =RTD("cqg.rtd",,"StudyData", "Close("&$D$12&") when LocalYear("&$D$12&")="&$D$3&" and localMonth("&$D$12&") ="&$E$3&" and LocalDay("&$D$12&")="&$F$3&" and Barix("&$D$12&",reference:=StartOfSession)="&A44&"", "Bar", "", "Close","5","0","PrimaryOnly",,,"False","T","EveryTick") -> 7259.75 | M44: -0.00571800315 | N44: =RTD("cqg.rtd",,"StudyData", "Close("&$D$12&") when LocalYear("&$D$12&")="&$D$4&" and localMonth("&$D$12&") ="&$E$4&" and LocalDay("&$D$12&")="&$F$4&" and Barix("&$D$12&",reference:=StartOfSession)="&A44&"", "Bar", "", "Close","5","0","PrimaryOnly",,,"False","T","EveryTick") -> 7301.5 | O44: 0.0001712270128 | P44: =RTD("cqg.rtd",,"StudyData", "Close("&$D$12&") when LocalYear("&$D$12&")="&$D$5&" and localMonth("&$D$12&") ="&$E$5&" and LocalDay("&$D$12&")="&$F$5&" and Barix("&$D$12&",reference:=StartOfSession)="&A44&"", "Bar", "", "Close","5","0","PrimaryOnly",,,"False","T","EveryTick") -> 7258.25 | Q44: 0.003421580148 | R44: =RTD("cqg.rtd",,"StudyData", "Close("&$D$12&") when LocalYear("&$D$12&")="&$D$6&" and localMonth("&$D$12&") ="&$E$6&" and LocalDay("&$D$12&")="&$F$6&" and Barix("&$D$12&",reference:=StartOfSession)="&A44&"", "Bar", "", "Close","5","0","PrimaryOnly",,,"False","T","EveryTick") -> 7218 | S44: 0.01294600568 | T44: =RTD("cqg.rtd",,"StudyData", "Close("&$D$12&") when LocalYear("&$D$12&")="&$D$7&" and localMonth("&$D$12&") ="&$E$7&" and LocalDay("&$D$12&")="&$F$7&" and Barix("&$D$12&",reference:=StartOfSession)="&A44&"", "Bar", "", "Close","5","0","PrimaryOnly",,,"False","T","EveryTick") -> 7112.5 | U44: 0.0126357003 | V44: =RTD("cqg.rtd",,"StudyData", "Close("&$D$12&") when LocalYear("&$D$12&")="&$D$8&" and localMonth("&$D$12&") ="&$E$8&" and LocalDay("&$D$12&")="&$F$8&" and Barix("&$D$12&",reference:=StartOfSession)="&A44&"", "Bar", "", "Close","5","0","PrimaryOnly",,,"False","T","EveryTick") -> 7034.25 | W44: -0.01155764772 | X44: =RTD("cqg.rtd",,"StudyData", "Close("&$D$12&") when LocalYear("&$D$12&")="&$D$9&" and localMonth("&$D$12&") ="&$E$9&" and LocalDay("&$D$12&")="&$F$9&" and Barix("&$D$12&",reference:=StartOfSession)="&A44&"", "Bar", "", "Close","5","0","PrimaryOnly",,,"False","T","EveryTick") -> 7039.5 | Y44: -0.003856086603 | Z44: =RTD("cqg.rtd",,"StudyData", "Close("&$D$12&") when LocalYear("&$D$12&")="&$D$10&" and localMonth("&$D$12&") ="&$E$10&" and LocalDay("&$D$12&")="&$F$10&" and Barix("&$D$12&",reference:=StartOfSession)="&A44&"", "Bar", "", "Close","5","0","PrimaryOnly",,,"False","T","EveryTick") -> 7092.75 | AA44: 0.00456766518
A45: 44 | B45: 12:10:00 | C45: -33 | D45: =RTD("cqg.rtd",,"StudyData", $D$12, "Tick", "FlatTicks=0", "Tick","D",C45,"PrimaryOnly") -> 7403.5 | H45: =RTD("cqg.rtd",,"StudyData", "Close("&$D$12&") when LocalYear("&$D$12&")="&$D$1&" and localMonth("&$D$12&") ="&$E$1&" and LocalDay("&$D$12&")="&$F$1&" and Barix("&$D$12&",reference:=StartOfSession)="&A45&"", "Bar", "", "Close","5","0","PrimaryOnly",,,"False","T","EveryTick") ->  | J45: =RTD("cqg.rtd",,"StudyData", "Close("&$D$12&") when LocalYear("&$D$12&")="&$D$2&" and localMonth("&$D$12&") ="&$E$2&" and LocalDay("&$D$12&")="&$F$2&" and Barix("&$D$12&",reference:=StartOfSession)="&A45&"", "Bar", "", "Close","5","0","PrimaryOnly",,,"False","T","EveryTick") -> 7366.25 | K45: 0.01550921937 | L45: =RTD("cqg.rtd",,"StudyData", "Close("&$D$12&") when LocalYear("&$D$12&")="&$D$3&" and localMonth("&$D$12&") ="&$E$3&" and LocalDay("&$D$12&")="&$F$3&" and Barix("&$D$12&",reference:=StartOfSession)="&A45&"", "Bar", "", "Close","5","0","PrimaryOnly",,,"False","T","EveryTick") -> 7261.75 | M45: -0.005444086831 | N45: =RTD("cqg.rtd",,"StudyData", "Close("&$D$12&") when LocalYear("&$D$12&")="&$D$4&" and localMonth("&$D$12&") ="&$E$4&" and LocalDay("&$D$12&")="&$F$4&" and Barix("&$D$12&",reference:=StartOfSession)="&A45&"", "Bar", "", "Close","5","0","PrimaryOnly",,,"False","T","EveryTick") -> 7303.75 | O45: 0.0004794356358 | P45: =RTD("cqg.rtd",,"StudyData", "Close("&$D$12&") when LocalYear("&$D$12&")="&$D$5&" and localMonth("&$D$12&") ="&$E$5&" and LocalDay("&$D$12&")="&$F$5&" and Barix("&$D$12&",reference:=StartOfSession)="&A45&"", "Bar", "", "Close","5","0","PrimaryOnly",,,"False","T","EveryTick") -> 7255.75 | Q45: 0.003075965992 | R45: =RTD("cqg.rtd",,"StudyData", "Close("&$D$12&") when LocalYear("&$D$12&")="&$D$6&" and localMonth("&$D$12&") ="&$E$6&" and LocalDay("&$D$12&")="&$F$6&" and Barix("&$D$12&",reference:=StartOfSession)="&A45&"", "Bar", "", "Close","5","0","PrimaryOnly",,,"False","T","EveryTick") -> 7216.75 | S45: 0.01277058555 | T45: =RTD("cqg.rtd",,"StudyData", "Close("&$D$12&") when LocalYear("&$D$12&")="&$D$7&" and localMonth("&$D$12&") ="&$E$7&" and LocalDay("&$D$12&")="&$F$7&" and Barix("&$D$12&",reference:=StartOfSession)="&A45&"", "Bar", "", "Close","5","0","PrimaryOnly",,,"False","T","EveryTick") -> 7115.25 | U45: 0.01302722904 | V45: =RTD("cqg.rtd",,"StudyData", "Close("&$D$12&") when LocalYear("&$D$12&")="&$D$8&" and localMonth("&$D$12&") ="&$E$8&" and LocalDay("&$D$12&")="&$F$8&" and Barix("&$D$12&",reference:=StartOfSession)="&A45&"", "Bar", "", "Close","5","0","PrimaryOnly",,,"False","T","EveryTick") -> 7023.75 | W45: -0.01303309211 | X45: =RTD("cqg.rtd",,"StudyData", "Close("&$D$12&") when LocalYear("&$D$12&")="&$D$9&" and localMonth("&$D$12&") ="&$E$9&" and LocalDay("&$D$12&")="&$F$9&" and Barix("&$D$12&",reference:=StartOfSession)="&A45&"", "Bar", "", "Close","5","0","PrimaryOnly",,,"False","T","EveryTick") -> 7032.5 | Y45: -0.004846640959 | Z45: =RTD("cqg.rtd",,"StudyData", "Close("&$D$12&") when LocalYear("&$D$12&")="&$D$10&" and localMonth("&$D$12&") ="&$E$10&" and LocalDay("&$D$12&")="&$F$10&" and Barix("&$D$12&",reference:=StartOfSession)="&A45&"", "Bar", "", "Close","5","0","PrimaryOnly",,,"False","T","EveryTick") -> 7095 | AA45: 0.004886339494
A46: 45 | B46: 12:15:00 | C46: -32 | D46: =RTD("cqg.rtd",,"StudyData", $D$12, "Tick", "FlatTicks=0", "Tick","D",C46,"PrimaryOnly") -> 7403.25 | H46: =RTD("cqg.rtd",,"StudyData", "Close("&$D$12&") when LocalYear("&$D$12&")="&$D$1&" and localMonth("&$D$12&") ="&$E$1&" and LocalDay("&$D$12&")="&$F$1&" and Barix("&$D$12&",reference:=StartOfSession)="&A46&"", "Bar", "", "Close","5","0","PrimaryOnly",,,"False","T","EveryTick") ->  | J46: =RTD("cqg.rtd",,"StudyData", "Close("&$D$12&") when LocalYear("&$D$12&")="&$D$2&" and localMonth("&$D$12&") ="&$E$2&" and LocalDay("&$D$12&")="&$F$2&" and Barix("&$D$12&",reference:=StartOfSession)="&A46&"", "Bar", "", "Close","5","0","PrimaryOnly",,,"False","T","EveryTick") -> 7368 | K46: 0.01575047389 | L46: =RTD("cqg.rtd",,"StudyData", "Close("&$D$12&") when LocalYear("&$D$12&")="&$D$3&" and localMonth("&$D$12&") ="&$E$3&" and LocalDay("&$D$12&")="&$F$3&" and Barix("&$D$12&",reference:=StartOfSession)="&A46&"", "Bar", "", "Close","5","0","PrimaryOnly",,,"False","T","EveryTick") -> 7265 | M46: -0.004998972814 | N46: =RTD("cqg.rtd",,"StudyData", "Close("&$D$12&") when LocalYear("&$D$12&")="&$D$4&" and localMonth("&$D$12&") ="&$E$4&" and LocalDay("&$D$12&")="&$F$4&" and Barix("&$D$12&",reference:=StartOfSession)="&A46&"", "Bar", "", "Close","5","0","PrimaryOnly",,,"False","T","EveryTick") -> 7300.75 | O46: 6.849080511e-05 | P46: =RTD("cqg.rtd",,"StudyData", "Close("&$D$12&") when LocalYear("&$D$12&")="&$D$5&" and localMonth("&$D$12&") ="&$E$5&" and LocalDay("&$D$12&")="&$F$5&" and Barix("&$D$12&",reference:=StartOfSession)="&A46&"", "Bar", "", "Close","5","0","PrimaryOnly",,,"False","T","EveryTick") -> 7260.25 | Q46: 0.003698071473 | R46: =RTD("cqg.rtd",,"StudyData", "Close("&$D$12&") when LocalYear("&$D$12&")="&$D$6&" and localMonth("&$D$12&") ="&$E$6&" and LocalDay("&$D$12&")="&$F$6&" and Barix("&$D$12&",reference:=StartOfSession)="&A46&"", "Bar", "", "Close","5","0","PrimaryOnly",,,"False","T","EveryTick") -> 7220 | S46: 0.01322667789 | T46: =RTD("cqg.rtd",,"StudyData", "Close("&$D$12&") when LocalYear("&$D$12&")="&$D$7&" and localMonth("&$D$12&") ="&$E$7&" and LocalDay("&$D$12&")="&$F$7&" and Barix("&$D$12&",reference:=StartOfSession)="&A46&"", "Bar", "", "Close","5","0","PrimaryOnly",,,"False","T","EveryTick") -> 7116.5 | U46: 0.01320519665 | V46: =RTD("cqg.rtd",,"StudyData", "Close("&$D$12&") when LocalYear("&$D$12&")="&$D$8&" and localMonth("&$D$12&") ="&$E$8&" and LocalDay("&$D$12&")="&$F$8&" and Barix("&$D$12&",reference:=StartOfSession)="&A46&"", "Bar", "", "Close","5","0","PrimaryOnly",,,"False","T","EveryTick") ->  | X46: =RTD("cqg.rtd",,"StudyData", "Close("&$D$12&") when LocalYear("&$D$12&")="&$D$9&" and localMonth("&$D$12&") ="&$E$9&" and LocalDay("&$D$12&")="&$F$9&" and Barix("&$D$12&",reference:=StartOfSession)="&A46&"", "Bar", "", "Close","5","0","PrimaryOnly",,,"False","T","EveryTick") -> 7034.25 | Y46: -0.00459900237 | Z46: =RTD("cqg.rtd",,"StudyData", "Close("&$D$12&") when LocalYear("&$D$12&")="&$D$10&" and localMonth("&$D$12&") ="&$E$10&" and LocalDay("&$D$12&")="&$F$10&" and Barix("&$D$12&",reference:=StartOfSession)="&A46&"", "Bar", "", "Close","5","0","PrimaryOnly",,,"False","T","EveryTick") -> 7095.25 | AA46: 0.004921747752
A47: 46 | B47: 12:20:00 | C47: -31 | D47: =RTD("cqg.rtd",,"StudyData", $D$12, "Tick", "FlatTicks=0", "Tick","D",C47,"PrimaryOnly") -> 7403 | H47: =RTD("cqg.rtd",,"StudyData", "Close("&$D$12&") when LocalYear("&$D$12&")="&$D$1&" and localMonth("&$D$12&") ="&$E$1&" and LocalDay("&$D$12&")="&$F$1&" and Barix("&$D$12&",reference:=StartOfSession)="&A47&"", "Bar", "", "Close","5","0","PrimaryOnly",,,"False","T","EveryTick") ->  | J47: =RTD("cqg.rtd",,"StudyData", "Close("&$D$12&") when LocalYear("&$D$12&")="&$D$2&" and localMonth("&$D$12&") ="&$E$2&" and LocalDay("&$D$12&")="&$F$2&" and Barix("&$D$12&",reference:=StartOfSession)="&A47&"", "Bar", "", "Close","5","0","PrimaryOnly",,,"False","T","EveryTick") -> 7365.75 | K47: 0.01544028951 | L47: =RTD("cqg.rtd",,"StudyData", "Close("&$D$12&") when LocalYear("&$D$12&")="&$D$3&" and localMonth("&$D$12&") ="&$E$3&" and LocalDay("&$D$12&")="&$F$3&" and Barix("&$D$12&",reference:=StartOfSession)="&A47&"", "Bar", "", "Close","5","0","PrimaryOnly",,,"False","T","EveryTick") -> 7276.75 | M47: -0.003389714442 | N47: =RTD("cqg.rtd",,"StudyData", "Close("&$D$12&") when LocalYear("&$D$12&")="&$D$4&" and localMonth("&$D$12&") ="&$E$4&" and LocalDay("&$D$12&")="&$F$4&" and Barix("&$D$12&",reference:=StartOfSession)="&A47&"", "Bar", "", "Close","5","0","PrimaryOnly",,,"False","T","EveryTick") -> 7299.25 | O47: -0.0001369816102 | P47: =RTD("cqg.rtd",,"StudyData", "Close("&$D$12&") when LocalYear("&$D$12&")="&$D$5&" and localMonth("&$D$12&") ="&$E$5&" and LocalDay("&$D$12&")="&$F$5&" and Barix("&$D$12&",reference:=StartOfSession)="&A47&"", "Bar", "", "Close","5","0","PrimaryOnly",,,"False","T","EveryTick") -> 7266 | Q47: 0.004492984033 | R47: =RTD("cqg.rtd",,"StudyData", "Close("&$D$12&") when LocalYear("&$D$12&")="&$D$6&" and localMonth("&$D$12&") ="&$E$6&" and LocalDay("&$D$12&")="&$F$6&" and Barix("&$D$12&",reference:=StartOfSession)="&A47&"", "Bar", "", "Close","5","0","PrimaryOnly",,,"False","T","EveryTick") -> 7217.25 | S47: 0.0128407536 | T47: =RTD("cqg.rtd",,"StudyData", "Close("&$D$12&") when LocalYear("&$D$12&")="&$D$7&" and localMonth("&$D$12&") ="&$E$7&" and LocalDay("&$D$12&")="&$F$7&" and Barix("&$D$12&",reference:=StartOfSession)="&A47&"", "Bar", "", "Close","5","0","PrimaryOnly",,,"False","T","EveryTick") -> 7113.25 | U47: 0.01274248087 | V47: =RTD("cqg.rtd",,"StudyData", "Close("&$D$12&") when LocalYear("&$D$12&")="&$D$8&" and localMonth("&$D$12&") ="&$E$8&" and LocalDay("&$D$12&")="&$F$8&" and Barix("&$D$12&",reference:=StartOfSession)="&A47&"", "Bar", "", "Close","5","0","PrimaryOnly",,,"False","T","EveryTick") ->  | X47: =RTD("cqg.rtd",,"StudyData", "Close("&$D$12&") when LocalYear("&$D$12&")="&$D$9&" and localMonth("&$D$12&") ="&$E$9&" and LocalDay("&$D$12&")="&$F$9&" and Barix("&$D$12&",reference:=StartOfSession)="&A47&"", "Bar", "", "Close","5","0","PrimaryOnly",,,"False","T","EveryTick") -> 7036.5 | Y47: -0.004280609898 | Z47: =RTD("cqg.rtd",,"StudyData", "Close("&$D$12&") when LocalYear("&$D$12&")="&$D$10&" and localMonth("&$D$12&") ="&$E$10&" and LocalDay("&$D$12&")="&$F$10&" and Barix("&$D$12&",reference:=StartOfSession)="&A47&"", "Bar", "", "Close","5","0","PrimaryOnly",,,"False","T","EveryTick") -> 7094.75 | AA47: 0.004850931237
A48: 47 | B48: 12:25:00 | C48: -30 | D48: =RTD("cqg.rtd",,"StudyData", $D$12, "Tick", "FlatTicks=0", "Tick","D",C48,"PrimaryOnly") -> 7402.75 | H48: =RTD("cqg.rtd",,"StudyData", "Close("&$D$12&") when LocalYear("&$D$12&")="&$D$1&" and localMonth("&$D$12&") ="&$E$1&" and LocalDay("&$D$12&")="&$F$1&" and Barix("&$D$12&",reference:=StartOfSession)="&A48&"", "Bar", "", "Close","5","0","PrimaryOnly",,,"False","T","EveryTick") ->  | J48: =RTD("cqg.rtd",,"StudyData", "Close("&$D$12&") when LocalYear("&$D$12&")="&$D$2&" and localMonth("&$D$12&") ="&$E$2&" and LocalDay("&$D$12&")="&$F$2&" and Barix("&$D$12&",reference:=StartOfSession)="&A48&"", "Bar", "", "Close","5","0","PrimaryOnly",,,"False","T","EveryTick") -> 7372.75 | K48: 0.0164053076 | L48: =RTD("cqg.rtd",,"StudyData", "Close("&$D$12&") when LocalYear("&$D$12&")="&$D$3&" and localMonth("&$D$12&") ="&$E$3&" and LocalDay("&$D$12&")="&$F$3&" and Barix("&$D$12&",reference:=StartOfSession)="&A48&"", "Bar", "", "Close","5","0","PrimaryOnly",,,"False","T","EveryTick") -> 7276.25 | M48: -0.003458193522 | N48: =RTD("cqg.rtd",,"StudyData", "Close("&$D$12&") when LocalYear("&$D$12&")="&$D$4&" and localMonth("&$D$12&") ="&$E$4&" and LocalDay("&$D$12&")="&$F$4&" and Barix("&$D$12&",reference:=StartOfSession)="&A48&"", "Bar", "", "Close","5","0","PrimaryOnly",,,"False","T","EveryTick") -> 7295.75 | O48: -0.000616417246 | P48: =RTD("cqg.rtd",,"StudyData", "Close("&$D$12&") when LocalYear("&$D$12&")="&$D$5&" and localMonth("&$D$12&") ="&$E$5&" and LocalDay("&$D$12&")="&$F$5&" and Barix("&$D$12&",reference:=StartOfSession)="&A48&"", "Bar", "", "Close","5","0","PrimaryOnly",,,"False","T","EveryTick") -> 7267 | Q48: 0.004631229695 | R48: =RTD("cqg.rtd",,"StudyData", "Close("&$D$12&") when LocalYear("&$D$12&")="&$D$6&" and localMonth("&$D$12&") ="&$E$6&" and LocalDay("&$D$12&")="&$F$6&" and Barix("&$D$12&",reference:=StartOfSession)="&A48&"", "Bar", "", "Close","5","0","PrimaryOnly",,,"False","T","EveryTick") -> 7218.5 | S48: 0.01301617374 | T48: =RTD("cqg.rtd",,"StudyData", "Close("&$D$12&") when LocalYear("&$D$12&")="&$D$7&" and localMonth("&$D$12&") ="&$E$7&" and LocalDay("&$D$12&")="&$F$7&" and Barix("&$D$12&",reference:=StartOfSession)="&A48&"", "Bar", "", "Close","5","0","PrimaryOnly",,,"False","T","EveryTick") -> 7112.75 | U48: 0.01267129382 | V48: =RTD("cqg.rtd",,"StudyData", "Close("&$D$12&") when LocalYear("&$D$12&")="&$D$8&" and localMonth("&$D$12&") ="&$E$8&" and LocalDay("&$D$12&")="&$F$8&" and Barix("&$D$12&",reference:=StartOfSession)="&A48&"", "Bar", "", "Close","5","0","PrimaryOnly",,,"False","T","EveryTick") ->  | X48: =RTD("cqg.rtd",,"StudyData", "Close("&$D$12&") when LocalYear("&$D$12&")="&$D$9&" and localMonth("&$D$12&") ="&$E$9&" and LocalDay("&$D$12&")="&$F$9&" and Barix("&$D$12&",reference:=StartOfSession)="&A48&"", "Bar", "", "Close","5","0","PrimaryOnly",,,"False","T","EveryTick") -> 7033.25 | Y48: -0.004740510135 | Z48: =RTD("cqg.rtd",,"StudyData", "Close("&$D$12&") when LocalYear("&$D$12&")="&$D$10&" and localMonth("&$D$12&") ="&$E$10&" and LocalDay("&$D$12&")="&$F$10&" and Barix("&$D$12&",reference:=StartOfSession)="&A48&"", "Bar", "", "Close","5","0","PrimaryOnly",,,"False","T","EveryTick") -> 7096 | AA48: 0.005027972523
A49: 48 | B49: 12:30:00 | C49: -29 | D49: =RTD("cqg.rtd",,"StudyData", $D$12, "Tick", "FlatTicks=0", "Tick","D",C49,"PrimaryOnly") -> 7403 | H49: =RTD("cqg.rtd",,"StudyData", "Close("&$D$12&") when LocalYear("&$D$12&")="&$D$1&" and localMonth("&$D$12&") ="&$E$1&" and LocalDay("&$D$12&")="&$F$1&" and Barix("&$D$12&",reference:=StartOfSession)="&A49&"", "Bar", "", "Close","5","0","PrimaryOnly",,,"False","T","EveryTick") ->  | J49: =RTD("cqg.rtd",,"StudyData", "Close("&$D$12&") when LocalYear("&$D$12&")="&$D$2&" and localMonth("&$D$12&") ="&$E$2&" and LocalDay("&$D$12&")="&$F$2&" and Barix("&$D$12&",reference:=StartOfSession)="&A49&"", "Bar", "", "Close","5","0","PrimaryOnly",,,"False","T","EveryTick") -> 7368 | K49: 0.01575047389 | L49: =RTD("cqg.rtd",,"StudyData", "Close("&$D$12&") when LocalYear("&$D$12&")="&$D$3&" and localMonth("&$D$12&") ="&$E$3&" and LocalDay("&$D$12&")="&$F$3&" and Barix("&$D$12&",reference:=StartOfSession)="&A49&"", "Bar", "", "Close","5","0","PrimaryOnly",,,"False","T","EveryTick") -> 7274.75 | M49: -0.003663630761 | N49: =RTD("cqg.rtd",,"StudyData", "Close("&$D$12&") when LocalYear("&$D$12&")="&$D$4&" and localMonth("&$D$12&") ="&$E$4&" and LocalDay("&$D$12&")="&$F$4&" and Barix("&$D$12&",reference:=StartOfSession)="&A49&"", "Bar", "", "Close","5","0","PrimaryOnly",,,"False","T","EveryTick") -> 7289.75 | O49: -0.001438306907 | P49: =RTD("cqg.rtd",,"StudyData", "Close("&$D$12&") when LocalYear("&$D$12&")="&$D$5&" and localMonth("&$D$12&") ="&$E$5&" and LocalDay("&$D$12&")="&$F$5&" and Barix("&$D$12&",reference:=StartOfSession)="&A49&"", "Bar", "", "Close","5","0","PrimaryOnly",,,"False","T","EveryTick") -> 7268.5 | Q49: 0.004838598189 | R49: =RTD("cqg.rtd",,"StudyData", "Close("&$D$12&") when LocalYear("&$D$12&")="&$D$6&" and localMonth("&$D$12&") ="&$E$6&" and LocalDay("&$D$12&")="&$F$6&" and Barix("&$D$12&",reference:=StartOfSession)="&A49&"", "Bar", "", "Close","5","0","PrimaryOnly",,,"False","T","EveryTick") -> 7217.25 | S49: 0.0128407536 | T49: =RTD("cqg.rtd",,"StudyData", "Close("&$D$12&") when LocalYear("&$D$12&")="&$D$7&" and localMonth("&$D$12&") ="&$E$7&" and LocalDay("&$D$12&")="&$F$7&" and Barix("&$D$12&",reference:=StartOfSession)="&A49&"", "Bar", "", "Close","5","0","PrimaryOnly",,,"False","T","EveryTick") -> 7108.5 | U49: 0.01206620395 | V49: =RTD("cqg.rtd",,"StudyData", "Close("&$D$12&") when LocalYear("&$D$12&")="&$D$8&" and localMonth("&$D$12&") ="&$E$8&" and LocalDay("&$D$12&")="&$F$8&" and Barix("&$D$12&",reference:=StartOfSession)="&A49&"", "Bar", "", "Close","5","0","PrimaryOnly",,,"False","T","EveryTick") ->  | X49: =RTD("cqg.rtd",,"StudyData", "Close("&$D$12&") when LocalYear("&$D$12&")="&$D$9&" and localMonth("&$D$12&") ="&$E$9&" and LocalDay("&$D$12&")="&$F$9&" and Barix("&$D$12&",reference:=StartOfSession)="&A49&"", "Bar", "", "Close","5","0","PrimaryOnly",,,"False","T","EveryTick") -> 7040.5 | Y49: -0.003714578838 | Z49: =RTD("cqg.rtd",,"StudyData", "Close("&$D$12&") when LocalYear("&$D$12&")="&$D$10&" and localMonth("&$D$12&") ="&$E$10&" and LocalDay("&$D$12&")="&$F$10&" and Barix("&$D$12&",reference:=StartOfSession)="&A49&"", "Bar", "", "Close","5","0","PrimaryOnly",,,"False","T","EveryTick") -> 7092.5 | AA49: 0.004532256922
A50: 49 | B50: 12:35:00 | C50: -28 | D50: =RTD("cqg.rtd",,"StudyData", $D$12, "Tick", "FlatTicks=0", "Tick","D",C50,"PrimaryOnly") -> 7402.75 | H50: =RTD("cqg.rtd",,"StudyData", "Close("&$D$12&") when LocalYear("&$D$12&")="&$D$1&" and localMonth("&$D$12&") ="&$E$1&" and LocalDay("&$D$12&")="&$F$1&" and Barix("&$D$12&",reference:=StartOfSession)="&A50&"", "Bar", "", "Close","5","0","PrimaryOnly",,,"False","T","EveryTick") ->  | J50: =RTD("cqg.rtd",,"StudyData", "Close("&$D$12&") when LocalYear("&$D$12&")="&$D$2&" and localMonth("&$D$12&") ="&$E$2&" and LocalDay("&$D$12&")="&$F$2&" and Barix("&$D$12&",reference:=StartOfSession)="&A50&"", "Bar", "", "Close","5","0","PrimaryOnly",,,"False","T","EveryTick") -> 7373.5 | K50: 0.0165087024 | L50: =RTD("cqg.rtd",,"StudyData", "Close("&$D$12&") when LocalYear("&$D$12&")="&$D$3&" and localMonth("&$D$12&") ="&$E$3&" and LocalDay("&$D$12&")="&$F$3&" and Barix("&$D$12&",reference:=StartOfSession)="&A50&"", "Bar", "", "Close","5","0","PrimaryOnly",,,"False","T","EveryTick") -> 7271.75 | M50: -0.004074505239 | N50: =RTD("cqg.rtd",,"StudyData", "Close("&$D$12&") when LocalYear("&$D$12&")="&$D$4&" and localMonth("&$D$12&") ="&$E$4&" and LocalDay("&$D$12&")="&$F$4&" and Barix("&$D$12&",reference:=StartOfSession)="&A50&"", "Bar", "", "Close","5","0","PrimaryOnly",,,"False","T","EveryTick") -> 7284 | O50: -0.002225951166 | P50: =RTD("cqg.rtd",,"StudyData", "Close("&$D$12&") when LocalYear("&$D$12&")="&$D$5&" and localMonth("&$D$12&") ="&$E$5&" and LocalDay("&$D$12&")="&$F$5&" and Barix("&$D$12&",reference:=StartOfSession)="&A50&"", "Bar", "", "Close","5","0","PrimaryOnly",,,"False","T","EveryTick") -> 7268.75 | Q50: 0.004873159605 | R50: =RTD("cqg.rtd",,"StudyData", "Close("&$D$12&") when LocalYear("&$D$12&")="&$D$6&" and localMonth("&$D$12&") ="&$E$6&" and LocalDay("&$D$12&")="&$F$6&" and Barix("&$D$12&",reference:=StartOfSession)="&A50&"", "Bar", "", "Close","5","0","PrimaryOnly",,,"False","T","EveryTick") -> 7218.75 | S50: 0.01305125776 | T50: =RTD("cqg.rtd",,"StudyData", "Close("&$D$12&") when LocalYear("&$D$12&")="&$D$7&" and localMonth("&$D$12&") ="&$E$7&" and LocalDay("&$D$12&")="&$F$7&" and Barix("&$D$12&",reference:=StartOfSession)="&A50&"", "Bar", "", "Close","5","0","PrimaryOnly",,,"False","T","EveryTick") -> 7105.5 | U50: 0.01163908169 | V50: =RTD("cqg.rtd",,"StudyData", "Close("&$D$12&") when LocalYear("&$D$12&")="&$D$8&" and localMonth("&$D$12&") ="&$E$8&" and LocalDay("&$D$12&")="&$F$8&" and Barix("&$D$12&",reference:=StartOfSession)="&A50&"", "Bar", "", "Close","5","0","PrimaryOnly",,,"False","T","EveryTick") ->  | X50: =RTD("cqg.rtd",,"StudyData", "Close("&$D$12&") when LocalYear("&$D$12&")="&$D$9&" and localMonth("&$D$12&") ="&$E$9&" and LocalDay("&$D$12&")="&$F$9&" and Barix("&$D$12&",reference:=StartOfSession)="&A50&"", "Bar", "", "Close","5","0","PrimaryOnly",,,"False","T","EveryTick") -> 7046.5 | Y50: -0.002865532246 | Z50: =RTD("cqg.rtd",,"StudyData", "Close("&$D$12&") when LocalYear("&$D$12&")="&$D$10&" and localMonth("&$D$12&") ="&$E$10&" and LocalDay("&$D$12&")="&$F$10&" and Barix("&$D$12&",reference:=StartOfSession)="&A50&"", "Bar", "", "Close","5","0","PrimaryOnly",,,"False","T","EveryTick") -> 7093.5 | AA50: 0.004673889951
A51: 50 | B51: 12:40:00 | C51: -27 | D51: =RTD("cqg.rtd",,"StudyData", $D$12, "Tick", "FlatTicks=0", "Tick","D",C51,"PrimaryOnly") -> 7403 | H51: =RTD("cqg.rtd",,"StudyData", "Close("&$D$12&") when LocalYear("&$D$12&")="&$D$1&" and localMonth("&$D$12&") ="&$E$1&" and LocalDay("&$D$12&")="&$F$1&" and Barix("&$D$12&",reference:=StartOfSession)="&A51&"", "Bar", "", "Close","5","0","PrimaryOnly",,,"False","T","EveryTick") ->  | J51: =RTD("cqg.rtd",,"StudyData", "Close("&$D$12&") when LocalYear("&$D$12&")="&$D$2&" and localMonth("&$D$12&") ="&$E$2&" and LocalDay("&$D$12&")="&$F$2&" and Barix("&$D$12&",reference:=StartOfSession)="&A51&"", "Bar", "", "Close","5","0","PrimaryOnly",,,"False","T","EveryTick") -> 7371.75 | K51: 0.01626744787 | L51: =RTD("cqg.rtd",,"StudyData", "Close("&$D$12&") when LocalYear("&$D$12&")="&$D$3&" and localMonth("&$D$12&") ="&$E$3&" and LocalDay("&$D$12&")="&$F$3&" and Barix("&$D$12&",reference:=StartOfSession)="&A51&"", "Bar", "", "Close","5","0","PrimaryOnly",,,"False","T","EveryTick") -> 7272.25 | M51: -0.004006026159 | N51: =RTD("cqg.rtd",,"StudyData", "Close("&$D$12&") when LocalYear("&$D$12&")="&$D$4&" and localMonth("&$D$12&") ="&$E$4&" and LocalDay("&$D$12&")="&$F$4&" and Barix("&$D$12&",reference:=StartOfSession)="&A51&"", "Bar", "", "Close","5","0","PrimaryOnly",,,"False","T","EveryTick") -> 7285.75 | O51: -0.001986233348 | P51: =RTD("cqg.rtd",,"StudyData", "Close("&$D$12&") when LocalYear("&$D$12&")="&$D$5&" and localMonth("&$D$12&") ="&$E$5&" and LocalDay("&$D$12&")="&$F$5&" and Barix("&$D$12&",reference:=StartOfSession)="&A51&"", "Bar", "", "Close","5","0","PrimaryOnly",,,"False","T","EveryTick") -> 7266.5 | Q51: 0.004562106864 | R51: =RTD("cqg.rtd",,"StudyData", "Close("&$D$12&") when LocalYear("&$D$12&")="&$D$6&" and localMonth("&$D$12&") ="&$E$6&" and LocalDay("&$D$12&")="&$F$6&" and Barix("&$D$12&",reference:=StartOfSession)="&A51&"", "Bar", "", "Close","5","0","PrimaryOnly",,,"False","T","EveryTick") -> 7216.75 | S51: 0.01277058555 | T51: =RTD("cqg.rtd",,"StudyData", "Close("&$D$12&") when LocalYear("&$D$12&")="&$D$7&" and localMonth("&$D$12&") ="&$E$7&" and LocalDay("&$D$12&")="&$F$7&" and Barix("&$D$12&",reference:=StartOfSession)="&A51&"", "Bar", "", "Close","5","0","PrimaryOnly",,,"False","T","EveryTick") -> 7108.25 | U51: 0.01203061043 | V51: =RTD("cqg.rtd",,"StudyData", "Close("&$D$12&") when LocalYear("&$D$12&")="&$D$8&" and localMonth("&$D$12&") ="&$E$8&" and LocalDay("&$D$12&")="&$F$8&" and Barix("&$D$12&",reference:=StartOfSession)="&A51&"", "Bar", "", "Close","5","0","PrimaryOnly",,,"False","T","EveryTick") ->  | X51: =RTD("cqg.rtd",,"StudyData", "Close("&$D$12&") when LocalYear("&$D$12&")="&$D$9&" and localMonth("&$D$12&") ="&$E$9&" and LocalDay("&$D$12&")="&$F$9&" and Barix("&$D$12&",reference:=StartOfSession)="&A51&"", "Bar", "", "Close","5","0","PrimaryOnly",,,"False","T","EveryTick") -> 7053.25 | Y51: -0.001910354831 | Z51: =RTD("cqg.rtd",,"StudyData", "Close("&$D$12&") when LocalYear("&$D$12&")="&$D$10&" and localMonth("&$D$12&") ="&$E$10&" and LocalDay("&$D$12&")="&$F$10&" and Barix("&$D$12&",reference:=StartOfSession)="&A51&"", "Bar", "", "Close","5","0","PrimaryOnly",,,"False","T","EveryTick") -> 7102.25 | AA51: 0.005913178953
A52: 51 | B52: 12:45:00 | C52: -26 | D52: =RTD("cqg.rtd",,"StudyData", $D$12, "Tick", "FlatTicks=0", "Tick","D",C52,"PrimaryOnly") -> 7402.75 | H52: =RTD("cqg.rtd",,"StudyData", "Close("&$D$12&") when LocalYear("&$D$12&")="&$D$1&" and localMonth("&$D$12&") ="&$E$1&" and LocalDay("&$D$12&")="&$F$1&" and Barix("&$D$12&",reference:=StartOfSession)="&A52&"", "Bar", "", "Close","5","0","PrimaryOnly",,,"False","T","EveryTick") ->  | J52: =RTD("cqg.rtd",,"StudyData", "Close("&$D$12&") when LocalYear("&$D$12&")="&$D$2&" and localMonth("&$D$12&") ="&$E$2&" and LocalDay("&$D$12&")="&$F$2&" and Barix("&$D$12&",reference:=StartOfSession)="&A52&"", "Bar", "", "Close","5","0","PrimaryOnly",,,"False","T","EveryTick") -> 7369.5 | K52: 0.01595726348 | L52: =RTD("cqg.rtd",,"StudyData", "Close("&$D$12&") when LocalYear("&$D$12&")="&$D$3&" and localMonth("&$D$12&") ="&$E$3&" and LocalDay("&$D$12&")="&$F$3&" and Barix("&$D$12&",reference:=StartOfSession)="&A52&"", "Bar", "", "Close","5","0","PrimaryOnly",,,"False","T","EveryTick") -> 7266.25 | M52: -0.004827775115 | N52: =RTD("cqg.rtd",,"StudyData", "Close("&$D$12&") when LocalYear("&$D$12&")="&$D$4&" and localMonth("&$D$12&") ="&$E$4&" and LocalDay("&$D$12&")="&$F$4&" and Barix("&$D$12&",reference:=StartOfSession)="&A52&"", "Bar", "", "Close","5","0","PrimaryOnly",,,"False","T","EveryTick") -> 7277.75 | O52: -0.00308208623 | P52: =RTD("cqg.rtd",,"StudyData", "Close("&$D$12&") when LocalYear("&$D$12&")="&$D$5&" and localMonth("&$D$12&") ="&$E$5&" and LocalDay("&$D$12&")="&$F$5&" and Barix("&$D$12&",reference:=StartOfSession)="&A52&"", "Bar", "", "Close","5","0","PrimaryOnly",,,"False","T","EveryTick") -> 7268.25 | Q52: 0.004804036773 | R52: =RTD("cqg.rtd",,"StudyData", "Close("&$D$12&") when LocalYear("&$D$12&")="&$D$6&" and localMonth("&$D$12&") ="&$E$6&" and LocalDay("&$D$12&")="&$F$6&" and Barix("&$D$12&",reference:=StartOfSession)="&A52&"", "Bar", "", "Close","5","0","PrimaryOnly",,,"False","T","EveryTick") -> 7217.25 | S52: 0.0128407536 | T52: =RTD("cqg.rtd",,"StudyData", "Close("&$D$12&") when LocalYear("&$D$12&")="&$D$7&" and localMonth("&$D$12&") ="&$E$7&" and LocalDay("&$D$12&")="&$F$7&" and Barix("&$D$12&",reference:=StartOfSession)="&A52&"", "Bar", "", "Close","5","0","PrimaryOnly",,,"False","T","EveryTick") -> 7108 | U52: 0.01199501691 | V52: =RTD("cqg.rtd",,"StudyData", "Close("&$D$12&") when LocalYear("&$D$12&")="&$D$8&" and localMonth("&$D$12&") ="&$E$8&" and LocalDay("&$D$12&")="&$F$8&" and Barix("&$D$12&",reference:=StartOfSession)="&A52&"", "Bar", "", "Close","5","0","PrimaryOnly",,,"False","T","EveryTick") ->  | X52: =RTD("cqg.rtd",,"StudyData", "Close("&$D$12&") when LocalYear("&$D$12&")="&$D$9&" and localMonth("&$D$12&") ="&$E$9&" and LocalDay("&$D$12&")="&$F$9&" and Barix("&$D$12&",reference:=StartOfSession)="&A52&"", "Bar", "", "Close","5","0","PrimaryOnly",,,"False","T","EveryTick") -> 7066.5 | Y52: -3.537694131e-05 | Z52: =RTD("cqg.rtd",,"StudyData", "Close("&$D$12&") when LocalYear("&$D$12&")="&$D$10&" and localMonth("&$D$12&") ="&$E$10&" and LocalDay("&$D$12&")="&$F$10&" and Barix("&$D$12&",reference:=StartOfSession)="&A52&"", "Bar", "", "Close","5","0","PrimaryOnly",,,"False","T","EveryTick") -> 7099.25 | AA52: 0.005488279867
A53: 52 | B53: 12:50:00 | C53: -25 | D53: =RTD("cqg.rtd",,"StudyData", $D$12, "Tick", "FlatTicks=0", "Tick","D",C53,"PrimaryOnly") -> 7403 | H53: =RTD("cqg.rtd",,"StudyData", "Close("&$D$12&") when LocalYear("&$D$12&")="&$D$1&" and localMonth("&$D$12&") ="&$E$1&" and LocalDay("&$D$12&")="&$F$1&" and Barix("&$D$12&",reference:=StartOfSession)="&A53&"", "Bar", "", "Close","5","0","PrimaryOnly",,,"False","T","EveryTick") ->  | J53: =RTD("cqg.rtd",,"StudyData", "Close("&$D$12&") when LocalYear("&$D$12&")="&$D$2&" and localMonth("&$D$12&") ="&$E$2&" and LocalDay("&$D$12&")="&$F$2&" and Barix("&$D$12&",reference:=StartOfSession)="&A53&"", "Bar", "", "Close","5","0","PrimaryOnly",,,"False","T","EveryTick") -> 7366.75 | K53: 0.01557814923 | L53: =RTD("cqg.rtd",,"StudyData", "Close("&$D$12&") when LocalYear("&$D$12&")="&$D$3&" and localMonth("&$D$12&") ="&$E$3&" and LocalDay("&$D$12&")="&$F$3&" and Barix("&$D$12&",reference:=StartOfSession)="&A53&"", "Bar", "", "Close","5","0","PrimaryOnly",,,"False","T","EveryTick") -> 7261.75 | M53: -0.005444086831 | N53: =RTD("cqg.rtd",,"StudyData", "Close("&$D$12&") when LocalYear("&$D$12&")="&$D$4&" and localMonth("&$D$12&") ="&$E$4&" and LocalDay("&$D$12&")="&$F$4&" and Barix("&$D$12&",reference:=StartOfSession)="&A53&"", "Bar", "", "Close","5","0","PrimaryOnly",,,"False","T","EveryTick") -> 7282 | O53: -0.002499914386 | P53: =RTD("cqg.rtd",,"StudyData", "Close("&$D$12&") when LocalYear("&$D$12&")="&$D$5&" and localMonth("&$D$12&") ="&$E$5&" and LocalDay("&$D$12&")="&$F$5&" and Barix("&$D$12&",reference:=StartOfSession)="&A53&"", "Bar", "", "Close","5","0","PrimaryOnly",,,"False","T","EveryTick") -> 7271.25 | Q53: 0.005218773761 | R53: =RTD("cqg.rtd",,"StudyData", "Close("&$D$12&") when LocalYear("&$D$12&")="&$D$6&" and localMonth("&$D$12&") ="&$E$6&" and LocalDay("&$D$12&")="&$F$6&" and Barix("&$D$12&",reference:=StartOfSession)="&A53&"", "Bar", "", "Close","5","0","PrimaryOnly",,,"False","T","EveryTick") -> 7219.75 | S53: 0.01319159387 | T53: =RTD("cqg.rtd",,"StudyData", "Close("&$D$12&") when LocalYear("&$D$12&")="&$D$7&" and localMonth("&$D$12&") ="&$E$7&" and LocalDay("&$D$12&")="&$F$7&" and Barix("&$D$12&",reference:=StartOfSession)="&A53&"", "Bar", "", "Close","5","0","PrimaryOnly",,,"False","T","EveryTick") -> 7102.75 | U53: 0.01124755295 | V53: =RTD("cqg.rtd",,"StudyData", "Close("&$D$12&") when LocalYear("&$D$12&")="&$D$8&" and localMonth("&$D$12&") ="&$E$8&" and LocalDay("&$D$12&")="&$F$8&" and Barix("&$D$12&",reference:=StartOfSession)="&A53&"", "Bar", "", "Close","5","0","PrimaryOnly",,,"False","T","EveryTick") ->  | X53: =RTD("cqg.rtd",,"StudyData", "Close("&$D$12&") when LocalYear("&$D$12&")="&$D$9&" and localMonth("&$D$12&") ="&$E$9&" and LocalDay("&$D$12&")="&$F$9&" and Barix("&$D$12&",reference:=StartOfSession)="&A53&"", "Bar", "", "Close","5","0","PrimaryOnly",,,"False","T","EveryTick") -> 7068.75 | Y53: 0.0002830155305 | Z53: =RTD("cqg.rtd",,"StudyData", "Close("&$D$12&") when LocalYear("&$D$12&")="&$D$10&" and localMonth("&$D$12&") ="&$E$10&" and LocalDay("&$D$12&")="&$F$10&" and Barix("&$D$12&",reference:=StartOfSession)="&A53&"", "Bar", "", "Close","5","0","PrimaryOnly",,,"False","T","EveryTick") -> 7099.75 | AA53: 0.005559096381
A54: 53 | B54: 12:55:00 | C54: -24 | D54: =RTD("cqg.rtd",,"StudyData", $D$12, "Tick", "FlatTicks=0", "Tick","D",C54,"PrimaryOnly") -> 7403.25 | H54: =RTD("cqg.rtd",,"StudyData", "Close("&$D$12&") when LocalYear("&$D$12&")="&$D$1&" and localMonth("&$D$12&") ="&$E$1&" and LocalDay("&$D$12&")="&$F$1&" and Barix("&$D$12&",reference:=StartOfSession)="&A54&"", "Bar", "", "Close","5","0","PrimaryOnly",,,"False","T","EveryTick") ->  | J54: =RTD("cqg.rtd",,"StudyData", "Close("&$D$12&") when LocalYear("&$D$12&")="&$D$2&" and localMonth("&$D$12&") ="&$E$2&" and LocalDay("&$D$12&")="&$F$2&" and Barix("&$D$12&",reference:=StartOfSession)="&A54&"", "Bar", "", "Close","5","0","PrimaryOnly",,,"False","T","EveryTick") -> 7362.75 | K54: 0.01502671032 | L54: =RTD("cqg.rtd",,"StudyData", "Close("&$D$12&") when LocalYear("&$D$12&")="&$D$3&" and localMonth("&$D$12&") ="&$E$3&" and LocalDay("&$D$12&")="&$F$3&" and Barix("&$D$12&",reference:=StartOfSession)="&A54&"", "Bar", "", "Close","5","0","PrimaryOnly",,,"False","T","EveryTick") -> 7260.5 | M54: -0.005615284531 | N54: =RTD("cqg.rtd",,"StudyData", "Close("&$D$12&") when LocalYear("&$D$12&")="&$D$4&" and localMonth("&$D$12&") ="&$E$4&" and LocalDay("&$D$12&")="&$F$4&" and Barix("&$D$12&",reference:=StartOfSession)="&A54&"", "Bar", "", "Close","5","0","PrimaryOnly",,,"False","T","EveryTick") -> 7286.5 | O54: -0.001883497141 | P54: =RTD("cqg.rtd",,"StudyData", "Close("&$D$12&") when LocalYear("&$D$12&")="&$D$5&" and localMonth("&$D$12&") ="&$E$5&" and LocalDay("&$D$12&")="&$F$5&" and Barix("&$D$12&",reference:=StartOfSession)="&A54&"", "Bar", "", "Close","5","0","PrimaryOnly",,,"False","T","EveryTick") -> 7271.25 | Q54: 0.005218773761 | R54: =RTD("cqg.rtd",,"StudyData", "Close("&$D$12&") when LocalYear("&$D$12&")="&$D$6&" and localMonth("&$D$12&") ="&$E$6&" and LocalDay("&$D$12&")="&$F$6&" and Barix("&$D$12&",reference:=StartOfSession)="&A54&"", "Bar", "", "Close","5","0","PrimaryOnly",,,"False","T","EveryTick") -> 7218.25 | S54: 0.01298108971 | T54: =RTD("cqg.rtd",,"StudyData", "Close("&$D$12&") when LocalYear("&$D$12&")="&$D$7&" and localMonth("&$D$12&") ="&$E$7&" and LocalDay("&$D$12&")="&$F$7&" and Barix("&$D$12&",reference:=StartOfSession)="&A54&"", "Bar", "", "Close","5","0","PrimaryOnly",,,"False","T","EveryTick") -> 7105.75 | U54: 0.01167467521 | V54: =RTD("cqg.rtd",,"StudyData", "Close("&$D$12&") when LocalYear("&$D$12&")="&$D$8&" and localMonth("&$D$12&") ="&$E$8&" and LocalDay("&$D$12&")="&$F$8&" and Barix("&$D$12&",reference:=StartOfSession)="&A54&"", "Bar", "", "Close","5","0","PrimaryOnly",,,"False","T","EveryTick") ->  | X54: =RTD("cqg.rtd",,"StudyData", "Close("&$D$12&") when LocalYear("&$D$12&")="&$D$9&" and localMonth("&$D$12&") ="&$E$9&" and LocalDay("&$D$12&")="&$F$9&" and Barix("&$D$12&",reference:=StartOfSession)="&A54&"", "Bar", "", "Close","5","0","PrimaryOnly",,,"False","T","EveryTick") -> 7070.25 | Y54: 0.0004952771783 | Z54: =RTD("cqg.rtd",,"StudyData", "Close("&$D$12&") when LocalYear("&$D$12&")="&$D$10&" and localMonth("&$D$12&") ="&$E$10&" and LocalDay("&$D$12&")="&$F$10&" and Barix("&$D$12&",reference:=StartOfSession)="&A54&"", "Bar", "", "Close","5","0","PrimaryOnly",,,"False","T","EveryTick") -> 7100.25 | AA54: 0.005629912896
A55: 54 | B55: 13:00:00 | C55: -23 | D55: =RTD("cqg.rtd",,"StudyData", $D$12, "Tick", "FlatTicks=0", "Tick","D",C55,"PrimaryOnly") -> 7403 | H55: =RTD("cqg.rtd",,"StudyData", "Close("&$D$12&") when LocalYear("&$D$12&")="&$D$1&" and localMonth("&$D$12&") ="&$E$1&" and LocalDay("&$D$12&")="&$F$1&" and Barix("&$D$12&",reference:=StartOfSession)="&A55&"", "Bar", "", "Close","5","0","PrimaryOnly",,,"False","T","EveryTick") ->  | J55: =RTD("cqg.rtd",,"StudyData", "Close("&$D$12&") when LocalYear("&$D$12&")="&$D$2&" and localMonth("&$D$12&") ="&$E$2&" and LocalDay("&$D$12&")="&$F$2&" and Barix("&$D$12&",reference:=StartOfSession)="&A55&"", "Bar", "", "Close","5","0","PrimaryOnly",,,"False","T","EveryTick") -> 7362.5 | K55: 0.01499224539 | L55: =RTD("cqg.rtd",,"StudyData", "Close("&$D$12&") when LocalYear("&$D$12&")="&$D$3&" and localMonth("&$D$12&") ="&$E$3&" and LocalDay("&$D$12&")="&$F$3&" and Barix("&$D$12&",reference:=StartOfSession)="&A55&"", "Bar", "", "Close","5","0","PrimaryOnly",,,"False","T","EveryTick") -> 7263 | M55: -0.005272889132 | N55: =RTD("cqg.rtd",,"StudyData", "Close("&$D$12&") when LocalYear("&$D$12&")="&$D$4&" and localMonth("&$D$12&") ="&$E$4&" and LocalDay("&$D$12&")="&$F$4&" and Barix("&$D$12&",reference:=StartOfSession)="&A55&"", "Bar", "", "Close","5","0","PrimaryOnly",,,"False","T","EveryTick") -> 7290.5 | O55: -0.0013355707 | P55: =RTD("cqg.rtd",,"StudyData", "Close("&$D$12&") when LocalYear("&$D$12&")="&$D$5&" and localMonth("&$D$12&") ="&$E$5&" and LocalDay("&$D$12&")="&$F$5&" and Barix("&$D$12&",reference:=StartOfSession)="&A55&"", "Bar", "", "Close","5","0","PrimaryOnly",,,"False","T","EveryTick") -> 7269.75 | Q55: 0.005011405267 | R55: =RTD("cqg.rtd",,"StudyData", "Close("&$D$12&") when LocalYear("&$D$12&")="&$D$6&" and localMonth("&$D$12&") ="&$E$6&" and LocalDay("&$D$12&")="&$F$6&" and Barix("&$D$12&",reference:=StartOfSession)="&A55&"", "Bar", "", "Close","5","0","PrimaryOnly",,,"False","T","EveryTick") -> 7217.75 | S55: 0.01291092166 | T55: =RTD("cqg.rtd",,"StudyData", "Close("&$D$12&") when LocalYear("&$D$12&")="&$D$7&" and localMonth("&$D$12&") ="&$E$7&" and LocalDay("&$D$12&")="&$F$7&" and Barix("&$D$12&",reference:=StartOfSession)="&A55&"", "Bar", "", "Close","5","0","PrimaryOnly",,,"False","T","EveryTick") -> 7098.75 | U55: 0.01067805659 | V55: =RTD("cqg.rtd",,"StudyData", "Close("&$D$12&") when LocalYear("&$D$12&")="&$D$8&" and localMonth("&$D$12&") ="&$E$8&" and LocalDay("&$D$12&")="&$F$8&" and Barix("&$D$12&",reference:=StartOfSession)="&A55&"", "Bar", "", "Close","5","0","PrimaryOnly",,,"False","T","EveryTick") ->  | X55: =RTD("cqg.rtd",,"StudyData", "Close("&$D$12&") when LocalYear("&$D$12&")="&$D$9&" and localMonth("&$D$12&") ="&$E$9&" and LocalDay("&$D$12&")="&$F$9&" and Barix("&$D$12&",reference:=StartOfSession)="&A55&"", "Bar", "", "Close","5","0","PrimaryOnly",,,"False","T","EveryTick") -> 7077.25 | Y55: 0.001485831535 | Z55: =RTD("cqg.rtd",,"StudyData", "Close("&$D$12&") when LocalYear("&$D$12&")="&$D$10&" and localMonth("&$D$12&") ="&$E$10&" and LocalDay("&$D$12&")="&$F$10&" and Barix("&$D$12&",reference:=StartOfSession)="&A55&"", "Bar", "", "Close","5","0","PrimaryOnly",,,"False","T","EveryTick") -> 7098.25 | AA55: 0.005346646838
A56: 55 | B56: 13:05:00 | C56: -22 | D56: =RTD("cqg.rtd",,"StudyData", $D$12, "Tick", "FlatTicks=0", "Tick","D",C56,"PrimaryOnly") -> 7402.75 | H56: =RTD("cqg.rtd",,"StudyData", "Close("&$D$12&") when LocalYear("&$D$12&")="&$D$1&" and localMonth("&$D$12&") ="&$E$1&" and LocalDay("&$D$12&")="&$F$1&" and Barix("&$D$12&",reference:=StartOfSession)="&A56&"", "Bar", "", "Close","5","0","PrimaryOnly",,,"False","T","EveryTick") ->  | J56: =RTD("cqg.rtd",,"StudyData", "Close("&$D$12&") when LocalYear("&$D$12&")="&$D$2&" and localMonth("&$D$12&") ="&$E$2&" and LocalDay("&$D$12&")="&$F$2&" and Barix("&$D$12&",reference:=StartOfSession)="&A56&"", "Bar", "", "Close","5","0","PrimaryOnly",,,"False","T","EveryTick") -> 7357.75 | K56: 0.01433741168 | L56: =RTD("cqg.rtd",,"StudyData", "Close("&$D$12&") when LocalYear("&$D$12&")="&$D$3&" and localMonth("&$D$12&") ="&$E$3&" and LocalDay("&$D$12&")="&$F$3&" and Barix("&$D$12&",reference:=StartOfSession)="&A56&"", "Bar", "", "Close","5","0","PrimaryOnly",,,"False","T","EveryTick") -> 7260.5 | M56: -0.005615284531 | N56: =RTD("cqg.rtd",,"StudyData", "Close("&$D$12&") when LocalYear("&$D$12&")="&$D$4&" and localMonth("&$D$12&") ="&$E$4&" and LocalDay("&$D$12&")="&$F$4&" and Barix("&$D$12&",reference:=StartOfSession)="&A56&"", "Bar", "", "Close","5","0","PrimaryOnly",,,"False","T","EveryTick") -> 7291.5 | O56: -0.001198589089 | P56: =RTD("cqg.rtd",,"StudyData", "Close("&$D$12&") when LocalYear("&$D$12&")="&$D$5&" and localMonth("&$D$12&") ="&$E$5&" and LocalDay("&$D$12&")="&$F$5&" and Barix("&$D$12&",reference:=StartOfSession)="&A56&"", "Bar", "", "Close","5","0","PrimaryOnly",,,"False","T","EveryTick") -> 7266.25 | Q56: 0.004527545448 | R56: =RTD("cqg.rtd",,"StudyData", "Close("&$D$12&") when LocalYear("&$D$12&")="&$D$6&" and localMonth("&$D$12&") ="&$E$6&" and LocalDay("&$D$12&")="&$F$6&" and Barix("&$D$12&",reference:=StartOfSession)="&A56&"", "Bar", "", "Close","5","0","PrimaryOnly",,,"False","T","EveryTick") -> 7218 | S56: 0.01294600568 | T56: =RTD("cqg.rtd",,"StudyData", "Close("&$D$12&") when LocalYear("&$D$12&")="&$D$7&" and localMonth("&$D$12&") ="&$E$7&" and LocalDay("&$D$12&")="&$F$7&" and Barix("&$D$12&",reference:=StartOfSession)="&A56&"", "Bar", "", "Close","5","0","PrimaryOnly",,,"False","T","EveryTick") -> 7091.75 | U56: 0.009681437978 | V56: =RTD("cqg.rtd",,"StudyData", "Close("&$D$12&") when LocalYear("&$D$12&")="&$D$8&" and localMonth("&$D$12&") ="&$E$8&" and LocalDay("&$D$12&")="&$F$8&" and Barix("&$D$12&",reference:=StartOfSession)="&A56&"", "Bar", "", "Close","5","0","PrimaryOnly",,,"False","T","EveryTick") ->  | X56: =RTD("cqg.rtd",,"StudyData", "Close("&$D$12&") when LocalYear("&$D$12&")="&$D$9&" and localMonth("&$D$12&") ="&$E$9&" and LocalDay("&$D$12&")="&$F$9&" and Barix("&$D$12&",reference:=StartOfSession)="&A56&"", "Bar", "", "Close","5","0","PrimaryOnly",,,"False","T","EveryTick") -> 7080 | Y56: 0.001874977889 | Z56: =RTD("cqg.rtd",,"StudyData", "Close("&$D$12&") when LocalYear("&$D$12&")="&$D$10&" and localMonth("&$D$12&") ="&$E$10&" and LocalDay("&$D$12&")="&$F$10&" and Barix("&$D$12&",reference:=StartOfSession)="&A56&"", "Bar", "", "Close","5","0","PrimaryOnly",,,"False","T","EveryTick") -> 7098.75 | AA56: 0.005417463352
A57: 56 | B57: 13:10:00 | C57: -21 | D57: =RTD("cqg.rtd",,"StudyData", $D$12, "Tick", "FlatTicks=0", "Tick","D",C57,"PrimaryOnly") -> 7403 | H57: =RTD("cqg.rtd",,"StudyData", "Close("&$D$12&") when LocalYear("&$D$12&")="&$D$1&" and localMonth("&$D$12&") ="&$E$1&" and LocalDay("&$D$12&")="&$F$1&" and Barix("&$D$12&",reference:=StartOfSession)="&A57&"", "Bar", "", "Close","5","0","PrimaryOnly",,,"False","T","EveryTick") ->  | J57: =RTD("cqg.rtd",,"StudyData", "Close("&$D$12&") when LocalYear("&$D$12&")="&$D$2&" and localMonth("&$D$12&") ="&$E$2&" and LocalDay("&$D$12&")="&$F$2&" and Barix("&$D$12&",reference:=StartOfSession)="&A57&"", "Bar", "", "Close","5","0","PrimaryOnly",,,"False","T","EveryTick") -> 7363.5 | K57: 0.01513010512 | L57: =RTD("cqg.rtd",,"StudyData", "Close("&$D$12&") when LocalYear("&$D$12&")="&$D$3&" and localMonth("&$D$12&") ="&$E$3&" and LocalDay("&$D$12&")="&$F$3&" and Barix("&$D$12&",reference:=StartOfSession)="&A57&"", "Bar", "", "Close","5","0","PrimaryOnly",,,"False","T","EveryTick") -> 7250.75 | M57: -0.006950626584 | N57: =RTD("cqg.rtd",,"StudyData", "Close("&$D$12&") when LocalYear("&$D$12&")="&$D$4&" and localMonth("&$D$12&") ="&$E$4&" and LocalDay("&$D$12&")="&$F$4&" and Barix("&$D$12&",reference:=StartOfSession)="&A57&"", "Bar", "", "Close","5","0","PrimaryOnly",,,"False","T","EveryTick") -> 7293.25 | O57: -0.0009588712715 | P57: =RTD("cqg.rtd",,"StudyData", "Close("&$D$12&") when LocalYear("&$D$12&")="&$D$5&" and localMonth("&$D$12&") ="&$E$5&" and LocalDay("&$D$12&")="&$F$5&" and Barix("&$D$12&",reference:=StartOfSession)="&A57&"", "Bar", "", "Close","5","0","PrimaryOnly",,,"False","T","EveryTick") -> 7269.5 | Q57: 0.004976843852 | R57: =RTD("cqg.rtd",,"StudyData", "Close("&$D$12&") when LocalYear("&$D$12&")="&$D$6&" and localMonth("&$D$12&") ="&$E$6&" and LocalDay("&$D$12&")="&$F$6&" and Barix("&$D$12&",reference:=StartOfSession)="&A57&"", "Bar", "", "Close","5","0","PrimaryOnly",,,"False","T","EveryTick") -> 7219.25 | S57: 0.01312142581 | T57: =RTD("cqg.rtd",,"StudyData", "Close("&$D$12&") when LocalYear("&$D$12&")="&$D$7&" and localMonth("&$D$12&") ="&$E$7&" and LocalDay("&$D$12&")="&$F$7&" and Barix("&$D$12&",reference:=StartOfSession)="&A57&"", "Bar", "", "Close","5","0","PrimaryOnly",,,"False","T","EveryTick") -> 7085.25 | U57: 0.008756006407 | V57: =RTD("cqg.rtd",,"StudyData", "Close("&$D$12&") when LocalYear("&$D$12&")="&$D$8&" and localMonth("&$D$12&") ="&$E$8&" and LocalDay("&$D$12&")="&$F$8&" and Barix("&$D$12&",reference:=StartOfSession)="&A57&"", "Bar", "", "Close","5","0","PrimaryOnly",,,"False","T","EveryTick") ->  | X57: =RTD("cqg.rtd",,"StudyData", "Close("&$D$12&") when LocalYear("&$D$12&")="&$D$9&" and localMonth("&$D$12&") ="&$E$9&" and LocalDay("&$D$12&")="&$F$9&" and Barix("&$D$12&",reference:=StartOfSession)="&A57&"", "Bar", "", "Close","5","0","PrimaryOnly",,,"False","T","EveryTick") -> 7084.75 | Y57: 0.002547139774 | Z57: =RTD("cqg.rtd",,"StudyData", "Close("&$D$12&") when LocalYear("&$D$12&")="&$D$10&" and localMonth("&$D$12&") ="&$E$10&" and LocalDay("&$D$12&")="&$F$10&" and Barix("&$D$12&",reference:=StartOfSession)="&A57&"", "Bar", "", "Close","5","0","PrimaryOnly",,,"False","T","EveryTick") -> 7097.5 | AA57: 0.005240422066
A58: 57 | B58: 13:15:00 | C58: -20 | D58: =RTD("cqg.rtd",,"StudyData", $D$12, "Tick", "FlatTicks=0", "Tick","D",C58,"PrimaryOnly") -> 7402.75 | H58: =RTD("cqg.rtd",,"StudyData", "Close("&$D$12&") when LocalYear("&$D$12&")="&$D$1&" and localMonth("&$D$12&") ="&$E$1&" and LocalDay("&$D$12&")="&$F$1&" and Barix("&$D$12&",reference:=StartOfSession)="&A58&"", "Bar", "", "Close","5","0","PrimaryOnly",,,"False","T","EveryTick") ->  | J58: =RTD("cqg.rtd",,"StudyData", "Close("&$D$12&") when LocalYear("&$D$12&")="&$D$2&" and localMonth("&$D$12&") ="&$E$2&" and LocalDay("&$D$12&")="&$F$2&" and Barix("&$D$12&",reference:=StartOfSession)="&A58&"", "Bar", "", "Close","5","0","PrimaryOnly",,,"False","T","EveryTick") -> 7367.75 | K58: 0.01571600896 | L58: =RTD("cqg.rtd",,"StudyData", "Close("&$D$12&") when LocalYear("&$D$12&")="&$D$3&" and localMonth("&$D$12&") ="&$E$3&" and LocalDay("&$D$12&")="&$F$3&" and Barix("&$D$12&",reference:=StartOfSession)="&A58&"", "Bar", "", "Close","5","0","PrimaryOnly",,,"False","T","EveryTick") -> 7256 | M58: -0.006231596247 | N58: =RTD("cqg.rtd",,"StudyData", "Close("&$D$12&") when LocalYear("&$D$12&")="&$D$4&" and localMonth("&$D$12&") ="&$E$4&" and LocalDay("&$D$12&")="&$F$4&" and Barix("&$D$12&",reference:=StartOfSession)="&A58&"", "Bar", "", "Close","5","0","PrimaryOnly",,,"False","T","EveryTick") -> 7291 | O58: -0.001267079895 | P58: =RTD("cqg.rtd",,"StudyData", "Close("&$D$12&") when LocalYear("&$D$12&")="&$D$5&" and localMonth("&$D$12&") ="&$E$5&" and LocalDay("&$D$12&")="&$F$5&" and Barix("&$D$12&",reference:=StartOfSession)="&A58&"", "Bar", "", "Close","5","0","PrimaryOnly",,,"False","T","EveryTick") -> 7272.25 | Q58: 0.005357019424 | R58: =RTD("cqg.rtd",,"StudyData", "Close("&$D$12&") when LocalYear("&$D$12&")="&$D$6&" and localMonth("&$D$12&") ="&$E$6&" and LocalDay("&$D$12&")="&$F$6&" and Barix("&$D$12&",reference:=StartOfSession)="&A58&"", "Bar", "", "Close","5","0","PrimaryOnly",,,"False","T","EveryTick") -> 7218.25 | S58: 0.01298108971 | T58: =RTD("cqg.rtd",,"StudyData", "Close("&$D$12&") when LocalYear("&$D$12&")="&$D$7&" and localMonth("&$D$12&") ="&$E$7&" and LocalDay("&$D$12&")="&$F$7&" and Barix("&$D$12&",reference:=StartOfSession)="&A58&"", "Bar", "", "Close","5","0","PrimaryOnly",,,"False","T","EveryTick") -> 7098 | U58: 0.01057127603 | V58: =RTD("cqg.rtd",,"StudyData", "Close("&$D$12&") when LocalYear("&$D$12&")="&$D$8&" and localMonth("&$D$12&") ="&$E$8&" and LocalDay("&$D$12&")="&$F$8&" and Barix("&$D$12&",reference:=StartOfSession)="&A58&"", "Bar", "", "Close","5","0","PrimaryOnly",,,"False","T","EveryTick") ->  | X58: =RTD("cqg.rtd",,"StudyData", "Close("&$D$12&") when LocalYear("&$D$12&")="&$D$9&" and localMonth("&$D$12&") ="&$E$9&" and LocalDay("&$D$12&")="&$F$9&" and Barix("&$D$12&",reference:=StartOfSession)="&A58&"", "Bar", "", "Close","5","0","PrimaryOnly",,,"False","T","EveryTick") -> 7091.75 | Y58: 0.003537694131 | Z58: =RTD("cqg.rtd",,"StudyData", "Close("&$D$12&") when LocalYear("&$D$12&")="&$D$10&" and localMonth("&$D$12&") ="&$E$10&" and LocalDay("&$D$12&")="&$F$10&" and Barix("&$D$12&",reference:=StartOfSession)="&A58&"", "Bar", "", "Close","5","0","PrimaryOnly",,,"False","T","EveryTick") -> 7096.25 | AA58: 0.00506338078
A59: 58 | B59: 13:20:00 | C59: =C58+1 -> -19 | D59: =RTD("cqg.rtd",,"StudyData", $D$12, "Tick", "FlatTicks=0", "Tick","D",C59,"PrimaryOnly") -> 7403 | H59: =RTD("cqg.rtd",,"StudyData", "Close("&$D$12&") when LocalYear("&$D$12&")="&$D$1&" and localMonth("&$D$12&") ="&$E$1&" and LocalDay("&$D$12&")="&$F$1&" and Barix("&$D$12&",reference:=StartOfSession)="&A59&"", "Bar", "", "Close","5","0","PrimaryOnly",,,"False","T","EveryTick") ->  | J59: =RTD("cqg.rtd",,"StudyData", "Close("&$D$12&") when LocalYear("&$D$12&")="&$D$2&" and localMonth("&$D$12&") ="&$E$2&" and LocalDay("&$D$12&")="&$F$2&" and Barix("&$D$12&",reference:=StartOfSession)="&A59&"", "Bar", "", "Close","5","0","PrimaryOnly",,,"False","T","EveryTick") -> 7370 | K59: 0.01602619335 | L59: =RTD("cqg.rtd",,"StudyData", "Close("&$D$12&") when LocalYear("&$D$12&")="&$D$3&" and localMonth("&$D$12&") ="&$E$3&" and LocalDay("&$D$12&")="&$F$3&" and Barix("&$D$12&",reference:=StartOfSession)="&A59&"", "Bar", "", "Close","5","0","PrimaryOnly",,,"False","T","EveryTick") -> 7263.75 | M59: -0.005170170513 | N59: =RTD("cqg.rtd",,"StudyData", "Close("&$D$12&") when LocalYear("&$D$12&")="&$D$4&" and localMonth("&$D$12&") ="&$E$4&" and LocalDay("&$D$12&")="&$F$4&" and Barix("&$D$12&",reference:=StartOfSession)="&A59&"", "Bar", "", "Close","5","0","PrimaryOnly",,,"False","T","EveryTick") -> 7291.5 | O59: -0.001198589089 | P59: =RTD("cqg.rtd",,"StudyData", "Close("&$D$12&") when LocalYear("&$D$12&")="&$D$5&" and localMonth("&$D$12&") ="&$E$5&" and LocalDay("&$D$12&")="&$F$5&" and Barix("&$D$12&",reference:=StartOfSession)="&A59&"", "Bar", "", "Close","5","0","PrimaryOnly",,,"False","T","EveryTick") -> 7270.75 | Q59: 0.00514965093 | R59: =RTD("cqg.rtd",,"StudyData", "Close("&$D$12&") when LocalYear("&$D$12&")="&$D$6&" and localMonth("&$D$12&") ="&$E$6&" and LocalDay("&$D$12&")="&$F$6&" and Barix("&$D$12&",reference:=StartOfSession)="&A59&"", "Bar", "", "Close","5","0","PrimaryOnly",,,"False","T","EveryTick") -> 7219.75 | S59: 0.01319159387 | T59: =RTD("cqg.rtd",,"StudyData", "Close("&$D$12&") when LocalYear("&$D$12&")="&$D$7&" and localMonth("&$D$12&") ="&$E$7&" and LocalDay("&$D$12&")="&$F$7&" and Barix("&$D$12&",reference:=StartOfSession)="&A59&"", "Bar", "", "Close","5","0","PrimaryOnly",,,"False","T","EveryTick") -> 7094 | U59: 0.01000177968 | V59: =RTD("cqg.rtd",,"StudyData", "Close("&$D$12&") when LocalYear("&$D$12&")="&$D$8&" and localMonth("&$D$12&") ="&$E$8&" and LocalDay("&$D$12&")="&$F$8&" and Barix("&$D$12&",reference:=StartOfSession)="&A59&"", "Bar", "", "Close","5","0","PrimaryOnly",,,"False","T","EveryTick") ->  | X59: =RTD("cqg.rtd",,"StudyData", "Close("&$D$12&") when LocalYear("&$D$12&")="&$D$9&" and localMonth("&$D$12&") ="&$E$9&" and LocalDay("&$D$12&")="&$F$9&" and Barix("&$D$12&",reference:=StartOfSession)="&A59&"", "Bar", "", "Close","5","0","PrimaryOnly",,,"False","T","EveryTick") -> 7092.5 | Y59: 0.003643824955 | Z59: =RTD("cqg.rtd",,"StudyData", "Close("&$D$12&") when LocalYear("&$D$12&")="&$D$10&" and localMonth("&$D$12&") ="&$E$10&" and LocalDay("&$D$12&")="&$F$10&" and Barix("&$D$12&",reference:=StartOfSession)="&A59&"", "Bar", "", "Close","5","0","PrimaryOnly",,,"False","T","EveryTick") -> 7098 | AA59: 0.005311238581
A60: 59 | B60: 13:25:00 | C60: =C59+1 -> -18 | D60: =RTD("cqg.rtd",,"StudyData", $D$12, "Tick", "FlatTicks=0", "Tick","D",C60,"PrimaryOnly") -> 7402.75 | H60: =RTD("cqg.rtd",,"StudyData", "Close("&$D$12&") when LocalYear("&$D$12&")="&$D$1&" and localMonth("&$D$12&") ="&$E$1&" and LocalDay("&$D$12&")="&$F$1&" and Barix("&$D$12&",reference:=StartOfSession)="&A60&"", "Bar", "", "Close","5","0","PrimaryOnly",,,"False","T","EveryTick") ->  | J60: =RTD("cqg.rtd",,"StudyData", "Close("&$D$12&") when LocalYear("&$D$12&")="&$D$2&" and localMonth("&$D$12&") ="&$E$2&" and LocalDay("&$D$12&")="&$F$2&" and Barix("&$D$12&",reference:=StartOfSession)="&A60&"", "Bar", "", "Close","5","0","PrimaryOnly",,,"False","T","EveryTick") -> 7371.25 | K60: 0.01619851801 | L60: =RTD("cqg.rtd",,"StudyData", "Close("&$D$12&") when LocalYear("&$D$12&")="&$D$3&" and localMonth("&$D$12&") ="&$E$3&" and LocalDay("&$D$12&")="&$F$3&" and Barix("&$D$12&",reference:=StartOfSession)="&A60&"", "Bar", "", "Close","5","0","PrimaryOnly",,,"False","T","EveryTick") -> 7267.5 | M60: -0.004656577416 | N60: =RTD("cqg.rtd",,"StudyData", "Close("&$D$12&") when LocalYear("&$D$12&")="&$D$4&" and localMonth("&$D$12&") ="&$E$4&" and LocalDay("&$D$12&")="&$F$4&" and Barix("&$D$12&",reference:=StartOfSession)="&A60&"", "Bar", "", "Close","5","0","PrimaryOnly",,,"False","T","EveryTick") -> 7294.5 | O60: -0.0007876442588 | P60: =RTD("cqg.rtd",,"StudyData", "Close("&$D$12&") when LocalYear("&$D$12&")="&$D$5&" and localMonth("&$D$12&") ="&$E$5&" and LocalDay("&$D$12&")="&$F$5&" and Barix("&$D$12&",reference:=StartOfSession)="&A60&"", "Bar", "", "Close","5","0","PrimaryOnly",,,"False","T","EveryTick") -> 7272.25 | Q60: 0.005357019424 | R60: =RTD("cqg.rtd",,"StudyData", "Close("&$D$12&") when LocalYear("&$D$12&")="&$D$6&" and localMonth("&$D$12&") ="&$E$6&" and LocalDay("&$D$12&")="&$F$6&" and Barix("&$D$12&",reference:=StartOfSession)="&A60&"", "Bar", "", "Close","5","0","PrimaryOnly",,,"False","T","EveryTick") -> 7220.25 | S60: 0.01326176192 | T60: =RTD("cqg.rtd",,"StudyData", "Close("&$D$12&") when LocalYear("&$D$12&")="&$D$7&" and localMonth("&$D$12&") ="&$E$7&" and LocalDay("&$D$12&")="&$F$7&" and Barix("&$D$12&",reference:=StartOfSession)="&A60&"", "Bar", "", "Close","5","0","PrimaryOnly",,,"False","T","EveryTick") -> 7102 | U60: 0.01114077238 | V60: =RTD("cqg.rtd",,"StudyData", "Close("&$D$12&") when LocalYear("&$D$12&")="&$D$8&" and localMonth("&$D$12&") ="&$E$8&" and LocalDay("&$D$12&")="&$F$8&" and Barix("&$D$12&",reference:=StartOfSession)="&A60&"", "Bar", "", "Close","5","0","PrimaryOnly",,,"False","T","EveryTick") ->  | X60: =RTD("cqg.rtd",,"StudyData", "Close("&$D$12&") when LocalYear("&$D$12&")="&$D$9&" and localMonth("&$D$12&") ="&$E$9&" and LocalDay("&$D$12&")="&$F$9&" and Barix("&$D$12&",reference:=StartOfSession)="&A60&"", "Bar", "", "Close","5","0","PrimaryOnly",,,"False","T","EveryTick") -> 7095.5 | Y60: 0.004068348251 | Z60: =RTD("cqg.rtd",,"StudyData", "Close("&$D$12&") when LocalYear("&$D$12&")="&$D$10&" and localMonth("&$D$12&") ="&$E$10&" and LocalDay("&$D$12&")="&$F$10&" and Barix("&$D$12&",reference:=StartOfSession)="&A60&"", "Bar", "", "Close","5","0","PrimaryOnly",,,"False","T","EveryTick") -> 7100.75 | AA60: 0.00570072941
A61: 60 | B61: 13:30:00 | C61: -17 | D61: =RTD("cqg.rtd",,"StudyData", $D$12, "Tick", "FlatTicks=0", "Tick","D",C61,"PrimaryOnly") -> 7402.5 | H61: =RTD("cqg.rtd",,"StudyData", "Close("&$D$12&") when LocalYear("&$D$12&")="&$D$1&" and localMonth("&$D$12&") ="&$E$1&" and LocalDay("&$D$12&")="&$F$1&" and Barix("&$D$12&",reference:=StartOfSession)="&A61&"", "Bar", "", "Close","5","0","PrimaryOnly",,,"False","T","EveryTick") ->  | J61: =RTD("cqg.rtd",,"StudyData", "Close("&$D$12&") when LocalYear("&$D$12&")="&$D$2&" and localMonth("&$D$12&") ="&$E$2&" and LocalDay("&$D$12&")="&$F$2&" and Barix("&$D$12&",reference:=StartOfSession)="&A61&"", "Bar", "", "Close","5","0","PrimaryOnly",,,"False","T","EveryTick") -> 7371.75 | K61: 0.01626744787 | L61: =RTD("cqg.rtd",,"StudyData", "Close("&$D$12&") when LocalYear("&$D$12&")="&$D$3&" and localMonth("&$D$12&") ="&$E$3&" and LocalDay("&$D$12&")="&$F$3&" and Barix("&$D$12&",reference:=StartOfSession)="&A61&"", "Bar", "", "Close","5","0","PrimaryOnly",,,"False","T","EveryTick") -> 7267.75 | M61: -0.004622337876 | N61: =RTD("cqg.rtd",,"StudyData", "Close("&$D$12&") when LocalYear("&$D$12&")="&$D$4&" and localMonth("&$D$12&") ="&$E$4&" and LocalDay("&$D$12&")="&$F$4&" and Barix("&$D$12&",reference:=StartOfSession)="&A61&"", "Bar", "", "Close","5","0","PrimaryOnly",,,"False","T","EveryTick") -> 7295.25 | O61: -0.0006849080511 | P61: =RTD("cqg.rtd",,"StudyData", "Close("&$D$12&") when LocalYear("&$D$12&")="&$D$5&" and localMonth("&$D$12&") ="&$E$5&" and LocalDay("&$D$12&")="&$F$5&" and Barix("&$D$12&",reference:=StartOfSession)="&A61&"", "Bar", "", "Close","5","0","PrimaryOnly",,,"False","T","EveryTick") -> 7272 | Q61: 0.005322458008 | R61: =RTD("cqg.rtd",,"StudyData", "Close("&$D$12&") when LocalYear("&$D$12&")="&$D$6&" and localMonth("&$D$12&") ="&$E$6&" and LocalDay("&$D$12&")="&$F$6&" and Barix("&$D$12&",reference:=StartOfSession)="&A61&"", "Bar", "", "Close","5","0","PrimaryOnly",,,"False","T","EveryTick") -> 7219 | S61: 0.01308634179 | T61: =RTD("cqg.rtd",,"StudyData", "Close("&$D$12&") when LocalYear("&$D$12&")="&$D$7&" and localMonth("&$D$12&") ="&$E$7&" and LocalDay("&$D$12&")="&$F$7&" and Barix("&$D$12&",reference:=StartOfSession)="&A61&"", "Bar", "", "Close","5","0","PrimaryOnly",,,"False","T","EveryTick") -> 7106.75 | U61: 0.0118170493 | V61: =RTD("cqg.rtd",,"StudyData", "Close("&$D$12&") when LocalYear("&$D$12&")="&$D$8&" and localMonth("&$D$12&") ="&$E$8&" and LocalDay("&$D$12&")="&$F$8&" and Barix("&$D$12&",reference:=StartOfSession)="&A61&"", "Bar", "", "Close","5","0","PrimaryOnly",,,"False","T","EveryTick") ->  | X61: =RTD("cqg.rtd",,"StudyData", "Close("&$D$12&") when LocalYear("&$D$12&")="&$D$9&" and localMonth("&$D$12&") ="&$E$9&" and LocalDay("&$D$12&")="&$F$9&" and Barix("&$D$12&",reference:=StartOfSession)="&A61&"", "Bar", "", "Close","5","0","PrimaryOnly",,,"False","T","EveryTick") -> 7097.5 | Y61: 0.004351363781 | Z61: =RTD("cqg.rtd",,"StudyData", "Close("&$D$12&") when LocalYear("&$D$12&")="&$D$10&" and localMonth("&$D$12&") ="&$E$10&" and LocalDay("&$D$12&")="&$F$10&" and Barix("&$D$12&",reference:=StartOfSession)="&A61&"", "Bar", "", "Close","5","0","PrimaryOnly",,,"False","T","EveryTick") -> 7096.5 | AA61: 0.005098789038
A62: 61 | B62: 13:35:00 | C62: -16 | D62: =RTD("cqg.rtd",,"StudyData", $D$12, "Tick", "FlatTicks=0", "Tick","D",C62,"PrimaryOnly") -> 7402.25 | H62: =RTD("cqg.rtd",,"StudyData", "Close("&$D$12&") when LocalYear("&$D$12&")="&$D$1&" and localMonth("&$D$12&") ="&$E$1&" and LocalDay("&$D$12&")="&$F$1&" and Barix("&$D$12&",reference:=StartOfSession)="&A62&"", "Bar", "", "Close","5","0","PrimaryOnly",,,"False","T","EveryTick") ->  | J62: =RTD("cqg.rtd",,"StudyData", "Close("&$D$12&") when LocalYear("&$D$12&")="&$D$2&" and localMonth("&$D$12&") ="&$E$2&" and LocalDay("&$D$12&")="&$F$2&" and Barix("&$D$12&",reference:=StartOfSession)="&A62&"", "Bar", "", "Close","5","0","PrimaryOnly",,,"False","T","EveryTick") -> 7369.75 | K62: 0.01599172842 | L62: =RTD("cqg.rtd",,"StudyData", "Close("&$D$12&") when LocalYear("&$D$12&")="&$D$3&" and localMonth("&$D$12&") ="&$E$3&" and LocalDay("&$D$12&")="&$F$3&" and Barix("&$D$12&",reference:=StartOfSession)="&A62&"", "Bar", "", "Close","5","0","PrimaryOnly",,,"False","T","EveryTick") -> 7269.25 | M62: -0.004416900637 | N62: =RTD("cqg.rtd",,"StudyData", "Close("&$D$12&") when LocalYear("&$D$12&")="&$D$4&" and localMonth("&$D$12&") ="&$E$4&" and LocalDay("&$D$12&")="&$F$4&" and Barix("&$D$12&",reference:=StartOfSession)="&A62&"", "Bar", "", "Close","5","0","PrimaryOnly",,,"False","T","EveryTick") -> 7296.25 | O62: -0.0005479264409 | P62: =RTD("cqg.rtd",,"StudyData", "Close("&$D$12&") when LocalYear("&$D$12&")="&$D$5&" and localMonth("&$D$12&") ="&$E$5&" and LocalDay("&$D$12&")="&$F$5&" and Barix("&$D$12&",reference:=StartOfSession)="&A62&"", "Bar", "", "Close","5","0","PrimaryOnly",,,"False","T","EveryTick") -> 7273.5 | Q62: 0.005529826502 | R62: =RTD("cqg.rtd",,"StudyData", "Close("&$D$12&") when LocalYear("&$D$12&")="&$D$6&" and localMonth("&$D$12&") ="&$E$6&" and LocalDay("&$D$12&")="&$F$6&" and Barix("&$D$12&",reference:=StartOfSession)="&A62&"", "Bar", "", "Close","5","0","PrimaryOnly",,,"False","T","EveryTick") -> 7212.75 | S62: 0.01220924113 | T62: =RTD("cqg.rtd",,"StudyData", "Close("&$D$12&") when LocalYear("&$D$12&")="&$D$7&" and localMonth("&$D$12&") ="&$E$7&" and LocalDay("&$D$12&")="&$F$7&" and Barix("&$D$12&",reference:=StartOfSession)="&A62&"", "Bar", "", "Close","5","0","PrimaryOnly",,,"False","T","EveryTick") -> 7103.75 | U62: 0.01138992703 | V62: =RTD("cqg.rtd",,"StudyData", "Close("&$D$12&") when LocalYear("&$D$12&")="&$D$8&" and localMonth("&$D$12&") ="&$E$8&" and LocalDay("&$D$12&")="&$F$8&" and Barix("&$D$12&",reference:=StartOfSession)="&A62&"", "Bar", "", "Close","5","0","PrimaryOnly",,,"False","T","EveryTick") ->  | X62: =RTD("cqg.rtd",,"StudyData", "Close("&$D$12&") when LocalYear("&$D$12&")="&$D$9&" and localMonth("&$D$12&") ="&$E$9&" and LocalDay("&$D$12&")="&$F$9&" and Barix("&$D$12&",reference:=StartOfSession)="&A62&"", "Bar", "", "Close","5","0","PrimaryOnly",,,"False","T","EveryTick") -> 7094.25 | Y62: 0.003891463544 | Z62: =RTD("cqg.rtd",,"StudyData", "Close("&$D$12&") when LocalYear("&$D$12&")="&$D$10&" and localMonth("&$D$12&") ="&$E$10&" and LocalDay("&$D$12&")="&$F$10&" and Barix("&$D$12&",reference:=StartOfSession)="&A62&"", "Bar", "", "Close","5","0","PrimaryOnly",,,"False","T","EveryTick") -> 7094.5 | AA62: 0.00481552298
A63: 62 | B63: 13:40:00 | C63: -15 | D63: =RTD("cqg.rtd",,"StudyData", $D$12, "Tick", "FlatTicks=0", "Tick","D",C63,"PrimaryOnly") -> 7402 | H63: =RTD("cqg.rtd",,"StudyData", "Close("&$D$12&") when LocalYear("&$D$12&")="&$D$1&" and localMonth("&$D$12&") ="&$E$1&" and LocalDay("&$D$12&")="&$F$1&" and Barix("&$D$12&",reference:=StartOfSession)="&A63&"", "Bar", "", "Close","5","0","PrimaryOnly",,,"False","T","EveryTick") ->  | J63: =RTD("cqg.rtd",,"StudyData", "Close("&$D$12&") when LocalYear("&$D$12&")="&$D$2&" and localMonth("&$D$12&") ="&$E$2&" and LocalDay("&$D$12&")="&$F$2&" and Barix("&$D$12&",reference:=StartOfSession)="&A63&"", "Bar", "", "Close","5","0","PrimaryOnly",,,"False","T","EveryTick") -> 7367.75 | K63: 0.01571600896 | L63: =RTD("cqg.rtd",,"StudyData", "Close("&$D$12&") when LocalYear("&$D$12&")="&$D$3&" and localMonth("&$D$12&") ="&$E$3&" and LocalDay("&$D$12&")="&$F$3&" and Barix("&$D$12&",reference:=StartOfSession)="&A63&"", "Bar", "", "Close","5","0","PrimaryOnly",,,"False","T","EveryTick") -> 7273 | M63: -0.00390330754 | N63: =RTD("cqg.rtd",,"StudyData", "Close("&$D$12&") when LocalYear("&$D$12&")="&$D$4&" and localMonth("&$D$12&") ="&$E$4&" and LocalDay("&$D$12&")="&$F$4&" and Barix("&$D$12&",reference:=StartOfSession)="&A63&"", "Bar", "", "Close","5","0","PrimaryOnly",,,"False","T","EveryTick") -> 7293.25 | O63: -0.0009588712715 | P63: =RTD("cqg.rtd",,"StudyData", "Close("&$D$12&") when LocalYear("&$D$12&")="&$D$5&" and localMonth("&$D$12&") ="&$E$5&" and LocalDay("&$D$12&")="&$F$5&" and Barix("&$D$12&",reference:=StartOfSession)="&A63&"", "Bar", "", "Close","5","0","PrimaryOnly",,,"False","T","EveryTick") -> 7276.5 | Q63: 0.005944563489 | R63: =RTD("cqg.rtd",,"StudyData", "Close("&$D$12&") when LocalYear("&$D$12&")="&$D$6&" and localMonth("&$D$12&") ="&$E$6&" and LocalDay("&$D$12&")="&$F$6&" and Barix("&$D$12&",reference:=StartOfSession)="&A63&"", "Bar", "", "Close","5","0","PrimaryOnly",,,"False","T","EveryTick") -> 7217 | S63: 0.01280566958 | T63: =RTD("cqg.rtd",,"StudyData", "Close("&$D$12&") when LocalYear("&$D$12&")="&$D$7&" and localMonth("&$D$12&") ="&$E$7&" and LocalDay("&$D$12&")="&$F$7&" and Barix("&$D$12&",reference:=StartOfSession)="&A63&"", "Bar", "", "Close","5","0","PrimaryOnly",,,"False","T","EveryTick") -> 7101.5 | U63: 0.01106958534 | V63: =RTD("cqg.rtd",,"StudyData", "Close("&$D$12&") when LocalYear("&$D$12&")="&$D$8&" and localMonth("&$D$12&") ="&$E$8&" and LocalDay("&$D$12&")="&$F$8&" and Barix("&$D$12&",reference:=StartOfSession)="&A63&"", "Bar", "", "Close","5","0","PrimaryOnly",,,"False","T","EveryTick") ->  | X63: =RTD("cqg.rtd",,"StudyData", "Close("&$D$12&") when LocalYear("&$D$12&")="&$D$9&" and localMonth("&$D$12&") ="&$E$9&" and LocalDay("&$D$12&")="&$F$9&" and Barix("&$D$12&",reference:=StartOfSession)="&A63&"", "Bar", "", "Close","5","0","PrimaryOnly",,,"False","T","EveryTick") -> 7092.25 | Y63: 0.003608448014 | Z63: =RTD("cqg.rtd",,"StudyData", "Close("&$D$12&") when LocalYear("&$D$12&")="&$D$10&" and localMonth("&$D$12&") ="&$E$10&" and LocalDay("&$D$12&")="&$F$10&" and Barix("&$D$12&",reference:=StartOfSession)="&A63&"", "Bar", "", "Close","5","0","PrimaryOnly",,,"False","T","EveryTick") -> 7094.25 | AA63: 0.004780114723
A64: 63 | B64: 13:45:00 | C64: -14 | D64: =RTD("cqg.rtd",,"StudyData", $D$12, "Tick", "FlatTicks=0", "Tick","D",C64,"PrimaryOnly") -> 7402.25 | H64: =RTD("cqg.rtd",,"StudyData", "Close("&$D$12&") when LocalYear("&$D$12&")="&$D$1&" and localMonth("&$D$12&") ="&$E$1&" and LocalDay("&$D$12&")="&$F$1&" and Barix("&$D$12&",reference:=StartOfSession)="&A64&"", "Bar", "", "Close","5","0","PrimaryOnly",,,"False","T","EveryTick") ->  | J64: =RTD("cqg.rtd",,"StudyData", "Close("&$D$12&") when LocalYear("&$D$12&")="&$D$2&" and localMonth("&$D$12&") ="&$E$2&" and LocalDay("&$D$12&")="&$F$2&" and Barix("&$D$12&",reference:=StartOfSession)="&A64&"", "Bar", "", "Close","5","0","PrimaryOnly",,,"False","T","EveryTick") -> 7369 | K64: 0.01588833362 | L64: =RTD("cqg.rtd",,"StudyData", "Close("&$D$12&") when LocalYear("&$D$12&")="&$D$3&" and localMonth("&$D$12&") ="&$E$3&" and LocalDay("&$D$12&")="&$F$3&" and Barix("&$D$12&",reference:=StartOfSession)="&A64&"", "Bar", "", "Close","5","0","PrimaryOnly",,,"False","T","EveryTick") -> 7269.75 | M64: -0.004348421557 | N64: =RTD("cqg.rtd",,"StudyData", "Close("&$D$12&") when LocalYear("&$D$12&")="&$D$4&" and localMonth("&$D$12&") ="&$E$4&" and LocalDay("&$D$12&")="&$F$4&" and Barix("&$D$12&",reference:=StartOfSession)="&A64&"", "Bar", "", "Close","5","0","PrimaryOnly",,,"False","T","EveryTick") -> 7298 | O64: -0.000308208623 | P64: =RTD("cqg.rtd",,"StudyData", "Close("&$D$12&") when LocalYear("&$D$12&")="&$D$5&" and localMonth("&$D$12&") ="&$E$5&" and LocalDay("&$D$12&")="&$F$5&" and Barix("&$D$12&",reference:=StartOfSession)="&A64&"", "Bar", "", "Close","5","0","PrimaryOnly",,,"False","T","EveryTick") -> 7275.25 | Q64: 0.005771756411 | R64: =RTD("cqg.rtd",,"StudyData", "Close("&$D$12&") when LocalYear("&$D$12&")="&$D$6&" and localMonth("&$D$12&") ="&$E$6&" and LocalDay("&$D$12&")="&$F$6&" and Barix("&$D$12&",reference:=StartOfSession)="&A64&"", "Bar", "", "Close","5","0","PrimaryOnly",,,"False","T","EveryTick") -> 7220 | S64: 0.01322667789 | T64: =RTD("cqg.rtd",,"StudyData", "Close("&$D$12&") when LocalYear("&$D$12&")="&$D$7&" and localMonth("&$D$12&") ="&$E$7&" and LocalDay("&$D$12&")="&$F$7&" and Barix("&$D$12&",reference:=StartOfSession)="&A64&"", "Bar", "", "Close","5","0","PrimaryOnly",,,"False","T","EveryTick") -> 7105.25 | U64: 0.01160348817 | V64: =RTD("cqg.rtd",,"StudyData", "Close("&$D$12&") when LocalYear("&$D$12&")="&$D$8&" and localMonth("&$D$12&") ="&$E$8&" and LocalDay("&$D$12&")="&$F$8&" and Barix("&$D$12&",reference:=StartOfSession)="&A64&"", "Bar", "", "Close","5","0","PrimaryOnly",,,"False","T","EveryTick") ->  | X64: =RTD("cqg.rtd",,"StudyData", "Close("&$D$12&") when LocalYear("&$D$12&")="&$D$9&" and localMonth("&$D$12&") ="&$E$9&" and LocalDay("&$D$12&")="&$F$9&" and Barix("&$D$12&",reference:=StartOfSession)="&A64&"", "Bar", "", "Close","5","0","PrimaryOnly",,,"False","T","EveryTick") -> 7086.5 | Y64: 0.002794778363 | Z64: =RTD("cqg.rtd",,"StudyData", "Close("&$D$12&") when LocalYear("&$D$12&")="&$D$10&" and localMonth("&$D$12&") ="&$E$10&" and LocalDay("&$D$12&")="&$F$10&" and Barix("&$D$12&",reference:=StartOfSession)="&A64&"", "Bar", "", "Close","5","0","PrimaryOnly",,,"False","T","EveryTick") -> 7097.75 | AA64: 0.005275830324
A65: 64 | B65: 13:50:00 | C65: -13 | D65: =RTD("cqg.rtd",,"StudyData", $D$12, "Tick", "FlatTicks=0", "Tick","D",C65,"PrimaryOnly") -> 7402.5 | H65: =RTD("cqg.rtd",,"StudyData", "Close("&$D$12&") when LocalYear("&$D$12&")="&$D$1&" and localMonth("&$D$12&") ="&$E$1&" and LocalDay("&$D$12&")="&$F$1&" and Barix("&$D$12&",reference:=StartOfSession)="&A65&"", "Bar", "", "Close","5","0","PrimaryOnly",,,"False","T","EveryTick") ->  | J65: =RTD("cqg.rtd",,"StudyData", "Close("&$D$12&") when LocalYear("&$D$12&")="&$D$2&" and localMonth("&$D$12&") ="&$E$2&" and LocalDay("&$D$12&")="&$F$2&" and Barix("&$D$12&",reference:=StartOfSession)="&A65&"", "Bar", "", "Close","5","0","PrimaryOnly",,,"False","T","EveryTick") -> 7373.75 | K65: 0.01654316733 | L65: =RTD("cqg.rtd",,"StudyData", "Close("&$D$12&") when LocalYear("&$D$12&")="&$D$3&" and localMonth("&$D$12&") ="&$E$3&" and LocalDay("&$D$12&")="&$F$3&" and Barix("&$D$12&",reference:=StartOfSession)="&A65&"", "Bar", "", "Close","5","0","PrimaryOnly",,,"False","T","EveryTick") -> 7271.5 | M65: -0.004108744778 | N65: =RTD("cqg.rtd",,"StudyData", "Close("&$D$12&") when LocalYear("&$D$12&")="&$D$4&" and localMonth("&$D$12&") ="&$E$4&" and LocalDay("&$D$12&")="&$F$4&" and Barix("&$D$12&",reference:=StartOfSession)="&A65&"", "Bar", "", "Close","5","0","PrimaryOnly",,,"False","T","EveryTick") -> 7297 | O65: -0.0004451902332 | P65: =RTD("cqg.rtd",,"StudyData", "Close("&$D$12&") when LocalYear("&$D$12&")="&$D$5&" and localMonth("&$D$12&") ="&$E$5&" and LocalDay("&$D$12&")="&$F$5&" and Barix("&$D$12&",reference:=StartOfSession)="&A65&"", "Bar", "", "Close","5","0","PrimaryOnly",,,"False","T","EveryTick") -> 7278 | Q65: 0.006151931983 | R65: =RTD("cqg.rtd",,"StudyData", "Close("&$D$12&") when LocalYear("&$D$12&")="&$D$6&" and localMonth("&$D$12&") ="&$E$6&" and LocalDay("&$D$12&")="&$F$6&" and Barix("&$D$12&",reference:=StartOfSession)="&A65&"", "Bar", "", "Close","5","0","PrimaryOnly",,,"False","T","EveryTick") -> 7221.25 | S65: 0.01340209802 | T65: =RTD("cqg.rtd",,"StudyData", "Close("&$D$12&") when LocalYear("&$D$12&")="&$D$7&" and localMonth("&$D$12&") ="&$E$7&" and LocalDay("&$D$12&")="&$F$7&" and Barix("&$D$12&",reference:=StartOfSession)="&A65&"", "Bar", "", "Close","5","0","PrimaryOnly",,,"False","T","EveryTick") -> 7106.75 | U65: 0.0118170493 | V65: =RTD("cqg.rtd",,"StudyData", "Close("&$D$12&") when LocalYear("&$D$12&")="&$D$8&" and localMonth("&$D$12&") ="&$E$8&" and LocalDay("&$D$12&")="&$F$8&" and Barix("&$D$12&",reference:=StartOfSession)="&A65&"", "Bar", "", "Close","5","0","PrimaryOnly",,,"False","T","EveryTick") ->  | X65: =RTD("cqg.rtd",,"StudyData", "Close("&$D$12&") when LocalYear("&$D$12&")="&$D$9&" and localMonth("&$D$12&") ="&$E$9&" and LocalDay("&$D$12&")="&$F$9&" and Barix("&$D$12&",reference:=StartOfSession)="&A65&"", "Bar", "", "Close","5","0","PrimaryOnly",,,"False","T","EveryTick") -> 7083.25 | Y65: 0.002334878126 | Z65: =RTD("cqg.rtd",,"StudyData", "Close("&$D$12&") when LocalYear("&$D$12&")="&$D$10&" and localMonth("&$D$12&") ="&$E$10&" and LocalDay("&$D$12&")="&$F$10&" and Barix("&$D$12&",reference:=StartOfSession)="&A65&"", "Bar", "", "Close","5","0","PrimaryOnly",,,"False","T","EveryTick") -> 7097.25 | AA65: 0.005205013809
A66: 65 | B66: 13:55:00 | C66: -12 | D66: =RTD("cqg.rtd",,"StudyData", $D$12, "Tick", "FlatTicks=0", "Tick","D",C66,"PrimaryOnly") -> 7402.75 | H66: =RTD("cqg.rtd",,"StudyData", "Close("&$D$12&") when LocalYear("&$D$12&")="&$D$1&" and localMonth("&$D$12&") ="&$E$1&" and LocalDay("&$D$12&")="&$F$1&" and Barix("&$D$12&",reference:=StartOfSession)="&A66&"", "Bar", "", "Close","5","0","PrimaryOnly",,,"False","T","EveryTick") ->  | J66: =RTD("cqg.rtd",,"StudyData", "Close("&$D$12&") when LocalYear("&$D$12&")="&$D$2&" and localMonth("&$D$12&") ="&$E$2&" and LocalDay("&$D$12&")="&$F$2&" and Barix("&$D$12&",reference:=StartOfSession)="&A66&"", "Bar", "", "Close","5","0","PrimaryOnly",,,"False","T","EveryTick") -> 7374 | K66: =IFERROR((J66-$G$3)/$G$3,NA()) -> 0.01657763226 | L66: =RTD("cqg.rtd",,"StudyData", "Close("&$D$12&") when LocalYear("&$D$12&")="&$D$3&" and localMonth("&$D$12&") ="&$E$3&" and LocalDay("&$D$12&")="&$F$3&" and Barix("&$D$12&",reference:=StartOfSession)="&A66&"", "Bar", "", "Close","5","0","PrimaryOnly",,,"False","T","EveryTick") -> 7269 | M66: =IFERROR((L66-$G$4)/$G$4,NA()) -> -0.004451140177 | N66: =RTD("cqg.rtd",,"StudyData", "Close("&$D$12&") when LocalYear("&$D$12&")="&$D$4&" and localMonth("&$D$12&") ="&$E$4&" and LocalDay("&$D$12&")="&$F$4&" and Barix("&$D$12&",reference:=StartOfSession)="&A66&"", "Bar", "", "Close","5","0","PrimaryOnly",,,"False","T","EveryTick") -> 7303.5 | O66: =IFERROR((N66-$G$5)/$G$5,NA()) -> 0.0004451902332 | P66: =RTD("cqg.rtd",,"StudyData", "Close("&$D$12&") when LocalYear("&$D$12&")="&$D$5&" and localMonth("&$D$12&") ="&$E$5&" and LocalDay("&$D$12&")="&$F$5&" and Barix("&$D$12&",reference:=StartOfSession)="&A66&"", "Bar", "", "Close","5","0","PrimaryOnly",,,"False","T","EveryTick") -> 7281 | Q66: =IFERROR((P66-$G$6)/$G$6,NA()) -> 0.006566668971 | R66: =RTD("cqg.rtd",,"StudyData", "Close("&$D$12&") when LocalYear("&$D$12&")="&$D$6&" and localMonth("&$D$12&") ="&$E$6&" and LocalDay("&$D$12&")="&$F$6&" and Barix("&$D$12&",reference:=StartOfSession)="&A66&"", "Bar", "", "Close","5","0","PrimaryOnly",,,"False","T","EveryTick") -> 7223.25 | S66: =IFERROR((R66-$G$7)/$G$7,NA()) -> 0.01368277023 | T66: =RTD("cqg.rtd",,"StudyData", "Close("&$D$12&") when LocalYear("&$D$12&")="&$D$7&" and localMonth("&$D$12&") ="&$E$7&" and LocalDay("&$D$12&")="&$F$7&" and Barix("&$D$12&",reference:=StartOfSession)="&A66&"", "Bar", "", "Close","5","0","PrimaryOnly",,,"False","T","EveryTick") -> 7114.25 | U66: =IFERROR((T66-$G$8)/$G$8,NA()) -> 0.01288485496 | V66: =RTD("cqg.rtd",,"StudyData", "Close("&$D$12&") when LocalYear("&$D$12&")="&$D$8&" and localMonth("&$D$12&") ="&$E$8&" and LocalDay("&$D$12&")="&$F$8&" and Barix("&$D$12&",reference:=StartOfSession)="&A66&"", "Bar", "", "Close","5","0","PrimaryOnly",,,"False","T","EveryTick") ->  | W66: =IFERROR((V66-$G$9)/$G$9,NA()) ->  | X66: =RTD("cqg.rtd",,"StudyData", "Close("&$D$12&") when LocalYear("&$D$12&")="&$D$9&" and localMonth("&$D$12&") ="&$E$9&" and LocalDay("&$D$12&")="&$F$9&" and Barix("&$D$12&",reference:=StartOfSession)="&A66&"", "Bar", "", "Close","5","0","PrimaryOnly",,,"False","T","EveryTick") -> 7079 | Y66: =IFERROR((X66-$G$10)/$G$10,NA()) -> 0.001733470124 | Z66: =RTD("cqg.rtd",,"StudyData", "Close("&$D$12&") when LocalYear("&$D$12&")="&$D$10&" and localMonth("&$D$12&") ="&$E$10&" and LocalDay("&$D$12&")="&$F$10&" and Barix("&$D$12&",reference:=StartOfSession)="&A66&"", "Bar", "", "Close","5","0","PrimaryOnly",,,"False","T","EveryTick") -> 7102.75 | AA66: =IFERROR((Z66-$G$11)/$G$11,NA()) -> 0.005983995468
A67: =A66+1 -> 66 | B67: 14:00:00 | C67: -11 | D67: =RTD("cqg.rtd",,"StudyData", $D$12, "Tick", "FlatTicks=0", "Tick","D",C67,"PrimaryOnly") -> 7402.5 | H67: =RTD("cqg.rtd",,"StudyData", "Close("&$D$12&") when LocalYear("&$D$12&")="&$D$1&" and localMonth("&$D$12&") ="&$E$1&" and LocalDay("&$D$12&")="&$F$1&" and Barix("&$D$12&",reference:=StartOfSession)="&A67&"", "Bar", "", "Close","5","0","PrimaryOnly",,,"False","T","EveryTick") ->  | I67: =IFERROR((H67-$G$2)/$G$2,NA()) ->  | J67: =RTD("cqg.rtd",,"StudyData", "Close("&$D$12&") when LocalYear("&$D$12&")="&$D$2&" and localMonth("&$D$12&") ="&$E$2&" and LocalDay("&$D$12&")="&$F$2&" and Barix("&$D$12&",reference:=StartOfSession)="&A67&"", "Bar", "", "Close","5","0","PrimaryOnly",,,"False","T","EveryTick") -> 7377 | K67: 0.01699121144 | L67: =RTD("cqg.rtd",,"StudyData", "Close("&$D$12&") when LocalYear("&$D$12&")="&$D$3&" and localMonth("&$D$12&") ="&$E$3&" and LocalDay("&$D$12&")="&$F$3&" and Barix("&$D$12&",reference:=StartOfSession)="&A67&"", "Bar", "", "Close","5","0","PrimaryOnly",,,"False","T","EveryTick") -> 7268.5 | M67: -0.004519619256 | N67: =RTD("cqg.rtd",,"StudyData", "Close("&$D$12&") when LocalYear("&$D$12&")="&$D$4&" and localMonth("&$D$12&") ="&$E$4&" and LocalDay("&$D$12&")="&$F$4&" and Barix("&$D$12&",reference:=StartOfSession)="&A67&"", "Bar", "", "Close","5","0","PrimaryOnly",,,"False","T","EveryTick") -> 7303.5 | O67: 0.0004451902332 | P67: =RTD("cqg.rtd",,"StudyData", "Close("&$D$12&") when LocalYear("&$D$12&")="&$D$5&" and localMonth("&$D$12&") ="&$E$5&" and LocalDay("&$D$12&")="&$F$5&" and Barix("&$D$12&",reference:=StartOfSession)="&A67&"", "Bar", "", "Close","5","0","PrimaryOnly",,,"False","T","EveryTick") -> 7279.25 | Q67: 0.006324739061 | R67: =RTD("cqg.rtd",,"StudyData", "Close("&$D$12&") when LocalYear("&$D$12&")="&$D$6&" and localMonth("&$D$12&") ="&$E$6&" and LocalDay("&$D$12&")="&$F$6&" and Barix("&$D$12&",reference:=StartOfSession)="&A67&"", "Bar", "", "Close","5","0","PrimaryOnly",,,"False","T","EveryTick") -> 7228.25 | S67: 0.01438445076 | T67: =RTD("cqg.rtd",,"StudyData", "Close("&$D$12&") when LocalYear("&$D$12&")="&$D$7&" and localMonth("&$D$12&") ="&$E$7&" and LocalDay("&$D$12&")="&$F$7&" and Barix("&$D$12&",reference:=StartOfSession)="&A67&"", "Bar", "", "Close","5","0","PrimaryOnly",,,"False","T","EveryTick") -> 7124.25 | U67: 0.01430859584 | V67: =RTD("cqg.rtd",,"StudyData", "Close("&$D$12&") when LocalYear("&$D$12&")="&$D$8&" and localMonth("&$D$12&") ="&$E$8&" and LocalDay("&$D$12&")="&$F$8&" and Barix("&$D$12&",reference:=StartOfSession)="&A67&"", "Bar", "", "Close","5","0","PrimaryOnly",,,"False","T","EveryTick") ->  | X67: =RTD("cqg.rtd",,"StudyData", "Close("&$D$12&") when LocalYear("&$D$12&")="&$D$9&" and localMonth("&$D$12&") ="&$E$9&" and LocalDay("&$D$12&")="&$F$9&" and Barix("&$D$12&",reference:=StartOfSession)="&A67&"", "Bar", "", "Close","5","0","PrimaryOnly",,,"False","T","EveryTick") -> 7077.25 | Y67: 0.001485831535 | Z67: =RTD("cqg.rtd",,"StudyData", "Close("&$D$12&") when LocalYear("&$D$12&")="&$D$10&" and localMonth("&$D$12&") ="&$E$10&" and LocalDay("&$D$12&")="&$F$10&" and Barix("&$D$12&",reference:=StartOfSession)="&A67&"", "Bar", "", "Close","5","0","PrimaryOnly",,,"False","T","EveryTick") -> 7104 | AA67: 0.006161036754 | AE67: =IF(AND(H66<>"",H67<>"",H68=""),A67,"") -> 
A68: 67 | B68: 14:05:00 | C68: -10 | D68: =RTD("cqg.rtd",,"StudyData", $D$12, "Tick", "FlatTicks=0", "Tick","D",C68,"PrimaryOnly") -> 7402.75 | H68: =RTD("cqg.rtd",,"StudyData", "Close("&$D$12&") when LocalYear("&$D$12&")="&$D$1&" and localMonth("&$D$12&") ="&$E$1&" and LocalDay("&$D$12&")="&$F$1&" and Barix("&$D$12&",reference:=StartOfSession)="&A68&"", "Bar", "", "Close","5","0","PrimaryOnly",,,"False","T","EveryTick") ->  | J68: =RTD("cqg.rtd",,"StudyData", "Close("&$D$12&") when LocalYear("&$D$12&")="&$D$2&" and localMonth("&$D$12&") ="&$E$2&" and LocalDay("&$D$12&")="&$F$2&" and Barix("&$D$12&",reference:=StartOfSession)="&A68&"", "Bar", "", "Close","5","0","PrimaryOnly",,,"False","T","EveryTick") -> 7375.5 | K68: 0.01678442185 | L68: =RTD("cqg.rtd",,"StudyData", "Close("&$D$12&") when LocalYear("&$D$12&")="&$D$3&" and localMonth("&$D$12&") ="&$E$3&" and LocalDay("&$D$12&")="&$F$3&" and Barix("&$D$12&",reference:=StartOfSession)="&A68&"", "Bar", "", "Close","5","0","PrimaryOnly",,,"False","T","EveryTick") -> 7273.75 | M68: -0.00380058892 | N68: =RTD("cqg.rtd",,"StudyData", "Close("&$D$12&") when LocalYear("&$D$12&")="&$D$4&" and localMonth("&$D$12&") ="&$E$4&" and LocalDay("&$D$12&")="&$F$4&" and Barix("&$D$12&",reference:=StartOfSession)="&A68&"", "Bar", "", "Close","5","0","PrimaryOnly",,,"False","T","EveryTick") -> 7303 | O68: 0.0003766994281 | P68: =RTD("cqg.rtd",,"StudyData", "Close("&$D$12&") when LocalYear("&$D$12&")="&$D$5&" and localMonth("&$D$12&") ="&$E$5&" and LocalDay("&$D$12&")="&$F$5&" and Barix("&$D$12&",reference:=StartOfSession)="&A68&"", "Bar", "", "Close","5","0","PrimaryOnly",,,"False","T","EveryTick") -> 7281.25 | Q68: 0.006601230386 | R68: =RTD("cqg.rtd",,"StudyData", "Close("&$D$12&") when LocalYear("&$D$12&")="&$D$6&" and localMonth("&$D$12&") ="&$E$6&" and LocalDay("&$D$12&")="&$F$6&" and Barix("&$D$12&",reference:=StartOfSession)="&A68&"", "Bar", "", "Close","5","0","PrimaryOnly",,,"False","T","EveryTick") -> 7229 | S68: 0.01448970284 | T68: =RTD("cqg.rtd",,"StudyData", "Close("&$D$12&") when LocalYear("&$D$12&")="&$D$7&" and localMonth("&$D$12&") ="&$E$7&" and LocalDay("&$D$12&")="&$F$7&" and Barix("&$D$12&",reference:=StartOfSession)="&A68&"", "Bar", "", "Close","5","0","PrimaryOnly",,,"False","T","EveryTick") -> 7118.25 | U68: 0.01345435131 | V68: =RTD("cqg.rtd",,"StudyData", "Close("&$D$12&") when LocalYear("&$D$12&")="&$D$8&" and localMonth("&$D$12&") ="&$E$8&" and LocalDay("&$D$12&")="&$F$8&" and Barix("&$D$12&",reference:=StartOfSession)="&A68&"", "Bar", "", "Close","5","0","PrimaryOnly",,,"False","T","EveryTick") ->  | X68: =RTD("cqg.rtd",,"StudyData", "Close("&$D$12&") when LocalYear("&$D$12&")="&$D$9&" and localMonth("&$D$12&") ="&$E$9&" and LocalDay("&$D$12&")="&$F$9&" and Barix("&$D$12&",reference:=StartOfSession)="&A68&"", "Bar", "", "Close","5","0","PrimaryOnly",,,"False","T","EveryTick") -> 7081 | Y68: 0.002016485655 | Z68: =RTD("cqg.rtd",,"StudyData", "Close("&$D$12&") when LocalYear("&$D$12&")="&$D$10&" and localMonth("&$D$12&") ="&$E$10&" and LocalDay("&$D$12&")="&$F$10&" and Barix("&$D$12&",reference:=StartOfSession)="&A68&"", "Bar", "", "Close","5","0","PrimaryOnly",,,"False","T","EveryTick") -> 7100 | AA68: 0.005594504638
A69: 68 | B69: 14:10:00 | C69: =C68+1 -> -9 | D69: =RTD("cqg.rtd",,"StudyData", $D$12, "Tick", "FlatTicks=0", "Tick","D",C69,"PrimaryOnly") -> 7402.5 | H69: =RTD("cqg.rtd",,"StudyData", "Close("&$D$12&") when LocalYear("&$D$12&")="&$D$1&" and localMonth("&$D$12&") ="&$E$1&" and LocalDay("&$D$12&")="&$F$1&" and Barix("&$D$12&",reference:=StartOfSession)="&A69&"", "Bar", "", "Close","5","0","PrimaryOnly",,,"False","T","EveryTick") ->  | J69: =RTD("cqg.rtd",,"StudyData", "Close("&$D$12&") when LocalYear("&$D$12&")="&$D$2&" and localMonth("&$D$12&") ="&$E$2&" and LocalDay("&$D$12&")="&$F$2&" and Barix("&$D$12&",reference:=StartOfSession)="&A69&"", "Bar", "", "Close","5","0","PrimaryOnly",,,"False","T","EveryTick") -> 7371.75 | K69: 0.01626744787 | L69: =RTD("cqg.rtd",,"StudyData", "Close("&$D$12&") when LocalYear("&$D$12&")="&$D$3&" and localMonth("&$D$12&") ="&$E$3&" and LocalDay("&$D$12&")="&$F$3&" and Barix("&$D$12&",reference:=StartOfSession)="&A69&"", "Bar", "", "Close","5","0","PrimaryOnly",,,"False","T","EveryTick") -> 7270.75 | M69: -0.004211463398 | N69: =RTD("cqg.rtd",,"StudyData", "Close("&$D$12&") when LocalYear("&$D$12&")="&$D$4&" and localMonth("&$D$12&") ="&$E$4&" and LocalDay("&$D$12&")="&$F$4&" and Barix("&$D$12&",reference:=StartOfSession)="&A69&"", "Bar", "", "Close","5","0","PrimaryOnly",,,"False","T","EveryTick") -> 7303.5 | O69: 0.0004451902332 | P69: =RTD("cqg.rtd",,"StudyData", "Close("&$D$12&") when LocalYear("&$D$12&")="&$D$5&" and localMonth("&$D$12&") ="&$E$5&" and LocalDay("&$D$12&")="&$F$5&" and Barix("&$D$12&",reference:=StartOfSession)="&A69&"", "Bar", "", "Close","5","0","PrimaryOnly",,,"False","T","EveryTick") -> 7280.75 | Q69: 0.006532107555 | R69: =RTD("cqg.rtd",,"StudyData", "Close("&$D$12&") when LocalYear("&$D$12&")="&$D$6&" and localMonth("&$D$12&") ="&$E$6&" and LocalDay("&$D$12&")="&$F$6&" and Barix("&$D$12&",reference:=StartOfSession)="&A69&"", "Bar", "", "Close","5","0","PrimaryOnly",,,"False","T","EveryTick") -> 7228.25 | S69: 0.01438445076 | T69: =RTD("cqg.rtd",,"StudyData", "Close("&$D$12&") when LocalYear("&$D$12&")="&$D$7&" and localMonth("&$D$12&") ="&$E$7&" and LocalDay("&$D$12&")="&$F$7&" and Barix("&$D$12&",reference:=StartOfSession)="&A69&"", "Bar", "", "Close","5","0","PrimaryOnly",,,"False","T","EveryTick") -> 7118 | U69: 0.01341875779 | V69: =RTD("cqg.rtd",,"StudyData", "Close("&$D$12&") when LocalYear("&$D$12&")="&$D$8&" and localMonth("&$D$12&") ="&$E$8&" and LocalDay("&$D$12&")="&$F$8&" and Barix("&$D$12&",reference:=StartOfSession)="&A69&"", "Bar", "", "Close","5","0","PrimaryOnly",,,"False","T","EveryTick") ->  | X69: =RTD("cqg.rtd",,"StudyData", "Close("&$D$12&") when LocalYear("&$D$12&")="&$D$9&" and localMonth("&$D$12&") ="&$E$9&" and LocalDay("&$D$12&")="&$F$9&" and Barix("&$D$12&",reference:=StartOfSession)="&A69&"", "Bar", "", "Close","5","0","PrimaryOnly",,,"False","T","EveryTick") -> 7084.25 | Y69: 0.002476385892 | Z69: =RTD("cqg.rtd",,"StudyData", "Close("&$D$12&") when LocalYear("&$D$12&")="&$D$10&" and localMonth("&$D$12&") ="&$E$10&" and LocalDay("&$D$12&")="&$F$10&" and Barix("&$D$12&",reference:=StartOfSession)="&A69&"", "Bar", "", "Close","5","0","PrimaryOnly",,,"False","T","EveryTick") -> 7096.5 | AA69: 0.005098789038
A70: 69 | B70: 14:15:00 | C70: -8 | D70: =RTD("cqg.rtd",,"StudyData", $D$12, "Tick", "FlatTicks=0", "Tick","D",C70,"PrimaryOnly") -> 7402.75 | H70: =RTD("cqg.rtd",,"StudyData", "Close("&$D$12&") when LocalYear("&$D$12&")="&$D$1&" and localMonth("&$D$12&") ="&$E$1&" and LocalDay("&$D$12&")="&$F$1&" and Barix("&$D$12&",reference:=StartOfSession)="&A70&"", "Bar", "", "Close","5","0","PrimaryOnly",,,"False","T","EveryTick") ->  | J70: =RTD("cqg.rtd",,"StudyData", "Close("&$D$12&") when LocalYear("&$D$12&")="&$D$2&" and localMonth("&$D$12&") ="&$E$2&" and LocalDay("&$D$12&")="&$F$2&" and Barix("&$D$12&",reference:=StartOfSession)="&A70&"", "Bar", "", "Close","5","0","PrimaryOnly",,,"False","T","EveryTick") -> 7373.25 | K70: 0.01647423746 | L70: =RTD("cqg.rtd",,"StudyData", "Close("&$D$12&") when LocalYear("&$D$12&")="&$D$3&" and localMonth("&$D$12&") ="&$E$3&" and LocalDay("&$D$12&")="&$F$3&" and Barix("&$D$12&",reference:=StartOfSession)="&A70&"", "Bar", "", "Close","5","0","PrimaryOnly",,,"False","T","EveryTick") -> 7268 | M70: -0.004588098336 | N70: =RTD("cqg.rtd",,"StudyData", "Close("&$D$12&") when LocalYear("&$D$12&")="&$D$4&" and localMonth("&$D$12&") ="&$E$4&" and LocalDay("&$D$12&")="&$F$4&" and Barix("&$D$12&",reference:=StartOfSession)="&A70&"", "Bar", "", "Close","5","0","PrimaryOnly",,,"False","T","EveryTick") -> 7303.75 | O70: 0.0004794356358 | P70: =RTD("cqg.rtd",,"StudyData", "Close("&$D$12&") when LocalYear("&$D$12&")="&$D$5&" and localMonth("&$D$12&") ="&$E$5&" and LocalDay("&$D$12&")="&$F$5&" and Barix("&$D$12&",reference:=StartOfSession)="&A70&"", "Bar", "", "Close","5","0","PrimaryOnly",,,"False","T","EveryTick") -> 7277.75 | Q70: 0.006117370567 | R70: =RTD("cqg.rtd",,"StudyData", "Close("&$D$12&") when LocalYear("&$D$12&")="&$D$6&" and localMonth("&$D$12&") ="&$E$6&" and LocalDay("&$D$12&")="&$F$6&" and Barix("&$D$12&",reference:=StartOfSession)="&A70&"", "Bar", "", "Close","5","0","PrimaryOnly",,,"False","T","EveryTick") -> 7229.75 | S70: 0.01459495492 | T70: =RTD("cqg.rtd",,"StudyData", "Close("&$D$12&") when LocalYear("&$D$12&")="&$D$7&" and localMonth("&$D$12&") ="&$E$7&" and LocalDay("&$D$12&")="&$F$7&" and Barix("&$D$12&",reference:=StartOfSession)="&A70&"", "Bar", "", "Close","5","0","PrimaryOnly",,,"False","T","EveryTick") -> 7119.75 | U70: 0.01366791244 | V70: =RTD("cqg.rtd",,"StudyData", "Close("&$D$12&") when LocalYear("&$D$12&")="&$D$8&" and localMonth("&$D$12&") ="&$E$8&" and LocalDay("&$D$12&")="&$F$8&" and Barix("&$D$12&",reference:=StartOfSession)="&A70&"", "Bar", "", "Close","5","0","PrimaryOnly",,,"False","T","EveryTick") ->  | X70: =RTD("cqg.rtd",,"StudyData", "Close("&$D$12&") when LocalYear("&$D$12&")="&$D$9&" and localMonth("&$D$12&") ="&$E$9&" and LocalDay("&$D$12&")="&$F$9&" and Barix("&$D$12&",reference:=StartOfSession)="&A70&"", "Bar", "", "Close","5","0","PrimaryOnly",,,"False","T","EveryTick") -> 7085 | Y70: 0.002582516716 | Z70: =RTD("cqg.rtd",,"StudyData", "Close("&$D$12&") when LocalYear("&$D$12&")="&$D$10&" and localMonth("&$D$12&") ="&$E$10&" and LocalDay("&$D$12&")="&$F$10&" and Barix("&$D$12&",reference:=StartOfSession)="&A70&"", "Bar", "", "Close","5","0","PrimaryOnly",,,"False","T","EveryTick") -> 7091.75 | AA70: 0.004426032151
A71: 70 | B71: 14:20:00 | C71: -7 | D71: =RTD("cqg.rtd",,"StudyData", $D$12, "Tick", "FlatTicks=0", "Tick","D",C71,"PrimaryOnly") -> 7402.5 | H71: =RTD("cqg.rtd",,"StudyData", "Close("&$D$12&") when LocalYear("&$D$12&")="&$D$1&" and localMonth("&$D$12&") ="&$E$1&" and LocalDay("&$D$12&")="&$F$1&" and Barix("&$D$12&",reference:=StartOfSession)="&A71&"", "Bar", "", "Close","5","0","PrimaryOnly",,,"False","T","EveryTick") ->  | J71: =RTD("cqg.rtd",,"StudyData", "Close("&$D$12&") when LocalYear("&$D$12&")="&$D$2&" and localMonth("&$D$12&") ="&$E$2&" and LocalDay("&$D$12&")="&$F$2&" and Barix("&$D$12&",reference:=StartOfSession)="&A71&"", "Bar", "", "Close","5","0","PrimaryOnly",,,"False","T","EveryTick") -> 7365.25 | K71: 0.01537135964 | L71: =RTD("cqg.rtd",,"StudyData", "Close("&$D$12&") when LocalYear("&$D$12&")="&$D$3&" and localMonth("&$D$12&") ="&$E$3&" and LocalDay("&$D$12&")="&$F$3&" and Barix("&$D$12&",reference:=StartOfSession)="&A71&"", "Bar", "", "Close","5","0","PrimaryOnly",,,"False","T","EveryTick") -> 7268 | M71: -0.004588098336 | N71: =RTD("cqg.rtd",,"StudyData", "Close("&$D$12&") when LocalYear("&$D$12&")="&$D$4&" and localMonth("&$D$12&") ="&$E$4&" and LocalDay("&$D$12&")="&$F$4&" and Barix("&$D$12&",reference:=StartOfSession)="&A71&"", "Bar", "", "Close","5","0","PrimaryOnly",,,"False","T","EveryTick") -> 7302.25 | O71: 0.0002739632204 | P71: =RTD("cqg.rtd",,"StudyData", "Close("&$D$12&") when LocalYear("&$D$12&")="&$D$5&" and localMonth("&$D$12&") ="&$E$5&" and LocalDay("&$D$12&")="&$F$5&" and Barix("&$D$12&",reference:=StartOfSession)="&A71&"", "Bar", "", "Close","5","0","PrimaryOnly",,,"False","T","EveryTick") -> 7279.25 | Q71: 0.006324739061 | R71: =RTD("cqg.rtd",,"StudyData", "Close("&$D$12&") when LocalYear("&$D$12&")="&$D$6&" and localMonth("&$D$12&") ="&$E$6&" and LocalDay("&$D$12&")="&$F$6&" and Barix("&$D$12&",reference:=StartOfSession)="&A71&"", "Bar", "", "Close","5","0","PrimaryOnly",,,"False","T","EveryTick") -> 7232 | S71: 0.01491071115 | T71: =RTD("cqg.rtd",,"StudyData", "Close("&$D$12&") when LocalYear("&$D$12&")="&$D$7&" and localMonth("&$D$12&") ="&$E$7&" and LocalDay("&$D$12&")="&$F$7&" and Barix("&$D$12&",reference:=StartOfSession)="&A71&"", "Bar", "", "Close","5","0","PrimaryOnly",,,"False","T","EveryTick") -> 7114.5 | U71: 0.01292044848 | V71: =RTD("cqg.rtd",,"StudyData", "Close("&$D$12&") when LocalYear("&$D$12&")="&$D$8&" and localMonth("&$D$12&") ="&$E$8&" and LocalDay("&$D$12&")="&$F$8&" and Barix("&$D$12&",reference:=StartOfSession)="&A71&"", "Bar", "", "Close","5","0","PrimaryOnly",,,"False","T","EveryTick") ->  | X71: =RTD("cqg.rtd",,"StudyData", "Close("&$D$12&") when LocalYear("&$D$12&")="&$D$9&" and localMonth("&$D$12&") ="&$E$9&" and LocalDay("&$D$12&")="&$F$9&" and Barix("&$D$12&",reference:=StartOfSession)="&A71&"", "Bar", "", "Close","5","0","PrimaryOnly",,,"False","T","EveryTick") -> 7090 | Y71: 0.003290055542 | Z71: =RTD("cqg.rtd",,"StudyData", "Close("&$D$12&") when LocalYear("&$D$12&")="&$D$10&" and localMonth("&$D$12&") ="&$E$10&" and LocalDay("&$D$12&")="&$F$10&" and Barix("&$D$12&",reference:=StartOfSession)="&A71&"", "Bar", "", "Close","5","0","PrimaryOnly",,,"False","T","EveryTick") -> 7088.25 | AA71: 0.00393031655
A72: 71 | B72: 14:25:00 | C72: -6 | D72: =RTD("cqg.rtd",,"StudyData", $D$12, "Tick", "FlatTicks=0", "Tick","D",C72,"PrimaryOnly") -> 7402.25 | H72: =RTD("cqg.rtd",,"StudyData", "Close("&$D$12&") when LocalYear("&$D$12&")="&$D$1&" and localMonth("&$D$12&") ="&$E$1&" and LocalDay("&$D$12&")="&$F$1&" and Barix("&$D$12&",reference:=StartOfSession)="&A72&"", "Bar", "", "Close","5","0","PrimaryOnly",,,"False","T","EveryTick") ->  | J72: =RTD("cqg.rtd",,"StudyData", "Close("&$D$12&") when LocalYear("&$D$12&")="&$D$2&" and localMonth("&$D$12&") ="&$E$2&" and LocalDay("&$D$12&")="&$F$2&" and Barix("&$D$12&",reference:=StartOfSession)="&A72&"", "Bar", "", "Close","5","0","PrimaryOnly",,,"False","T","EveryTick") -> 7372.25 | K72: 0.01633637774 | L72: =RTD("cqg.rtd",,"StudyData", "Close("&$D$12&") when LocalYear("&$D$12&")="&$D$3&" and localMonth("&$D$12&") ="&$E$3&" and LocalDay("&$D$12&")="&$F$3&" and Barix("&$D$12&",reference:=StartOfSession)="&A72&"", "Bar", "", "Close","5","0","PrimaryOnly",,,"False","T","EveryTick") -> 7264.25 | M72: -0.005101691433 | N72: =RTD("cqg.rtd",,"StudyData", "Close("&$D$12&") when LocalYear("&$D$12&")="&$D$4&" and localMonth("&$D$12&") ="&$E$4&" and LocalDay("&$D$12&")="&$F$4&" and Barix("&$D$12&",reference:=StartOfSession)="&A72&"", "Bar", "", "Close","5","0","PrimaryOnly",,,"False","T","EveryTick") -> 7298.25 | O72: -0.0002739632204 | P72: =RTD("cqg.rtd",,"StudyData", "Close("&$D$12&") when LocalYear("&$D$12&")="&$D$5&" and localMonth("&$D$12&") ="&$E$5&" and LocalDay("&$D$12&")="&$F$5&" and Barix("&$D$12&",reference:=StartOfSession)="&A72&"", "Bar", "", "Close","5","0","PrimaryOnly",,,"False","T","EveryTick") -> 7280.25 | Q72: 0.006462984724 | R72: =RTD("cqg.rtd",,"StudyData", "Close("&$D$12&") when LocalYear("&$D$12&")="&$D$6&" and localMonth("&$D$12&") ="&$E$6&" and LocalDay("&$D$12&")="&$F$6&" and Barix("&$D$12&",reference:=StartOfSession)="&A72&"", "Bar", "", "Close","5","0","PrimaryOnly",,,"False","T","EveryTick") -> 7235.75 | S72: 0.01543697155 | T72: =RTD("cqg.rtd",,"StudyData", "Close("&$D$12&") when LocalYear("&$D$12&")="&$D$7&" and localMonth("&$D$12&") ="&$E$7&" and LocalDay("&$D$12&")="&$F$7&" and Barix("&$D$12&",reference:=StartOfSession)="&A72&"", "Bar", "", "Close","5","0","PrimaryOnly",,,"False","T","EveryTick") -> 7114.75 | U72: 0.012956042 | V72: =RTD("cqg.rtd",,"StudyData", "Close("&$D$12&") when LocalYear("&$D$12&")="&$D$8&" and localMonth("&$D$12&") ="&$E$8&" and LocalDay("&$D$12&")="&$F$8&" and Barix("&$D$12&",reference:=StartOfSession)="&A72&"", "Bar", "", "Close","5","0","PrimaryOnly",,,"False","T","EveryTick") ->  | X72: =RTD("cqg.rtd",,"StudyData", "Close("&$D$12&") when LocalYear("&$D$12&")="&$D$9&" and localMonth("&$D$12&") ="&$E$9&" and LocalDay("&$D$12&")="&$F$9&" and Barix("&$D$12&",reference:=StartOfSession)="&A72&"", "Bar", "", "Close","5","0","PrimaryOnly",,,"False","T","EveryTick") -> 7093.5 | Y72: 0.00378533272 | Z72: =RTD("cqg.rtd",,"StudyData", "Close("&$D$12&") when LocalYear("&$D$12&")="&$D$10&" and localMonth("&$D$12&") ="&$E$10&" and LocalDay("&$D$12&")="&$F$10&" and Barix("&$D$12&",reference:=StartOfSession)="&A72&"", "Bar", "", "Close","5","0","PrimaryOnly",,,"False","T","EveryTick") -> 7093 | AA72: 0.004603073437
A73: 72 | B73: 14:30:00 | C73: -5 | D73: =RTD("cqg.rtd",,"StudyData", $D$12, "Tick", "FlatTicks=0", "Tick","D",C73,"PrimaryOnly") -> 7402.5 | H73: =RTD("cqg.rtd",,"StudyData", "Close("&$D$12&") when LocalYear("&$D$12&")="&$D$1&" and localMonth("&$D$12&") ="&$E$1&" and LocalDay("&$D$12&")="&$F$1&" and Barix("&$D$12&",reference:=StartOfSession)="&A73&"", "Bar", "", "Close","5","0","PrimaryOnly",,,"False","T","EveryTick") ->  | J73: =RTD("cqg.rtd",,"StudyData", "Close("&$D$12&") when LocalYear("&$D$12&")="&$D$2&" and localMonth("&$D$12&") ="&$E$2&" and LocalDay("&$D$12&")="&$F$2&" and Barix("&$D$12&",reference:=StartOfSession)="&A73&"", "Bar", "", "Close","5","0","PrimaryOnly",,,"False","T","EveryTick") -> 7374.25 | K73: 0.01661209719 | L73: =RTD("cqg.rtd",,"StudyData", "Close("&$D$12&") when LocalYear("&$D$12&")="&$D$3&" and localMonth("&$D$12&") ="&$E$3&" and LocalDay("&$D$12&")="&$F$3&" and Barix("&$D$12&",reference:=StartOfSession)="&A73&"", "Bar", "", "Close","5","0","PrimaryOnly",,,"False","T","EveryTick") -> 7270.25 | M73: -0.004279942478 | N73: =RTD("cqg.rtd",,"StudyData", "Close("&$D$12&") when LocalYear("&$D$12&")="&$D$4&" and localMonth("&$D$12&") ="&$E$4&" and LocalDay("&$D$12&")="&$F$4&" and Barix("&$D$12&",reference:=StartOfSession)="&A73&"", "Bar", "", "Close","5","0","PrimaryOnly",,,"False","T","EveryTick") -> 7303.75 | O73: 0.0004794356358 | P73: =RTD("cqg.rtd",,"StudyData", "Close("&$D$12&") when LocalYear("&$D$12&")="&$D$5&" and localMonth("&$D$12&") ="&$E$5&" and LocalDay("&$D$12&")="&$F$5&" and Barix("&$D$12&",reference:=StartOfSession)="&A73&"", "Bar", "", "Close","5","0","PrimaryOnly",,,"False","T","EveryTick") -> 7280.75 | Q73: 0.006532107555 | R73: =RTD("cqg.rtd",,"StudyData", "Close("&$D$12&") when LocalYear("&$D$12&")="&$D$6&" and localMonth("&$D$12&") ="&$E$6&" and LocalDay("&$D$12&")="&$F$6&" and Barix("&$D$12&",reference:=StartOfSession)="&A73&"", "Bar", "", "Close","5","0","PrimaryOnly",,,"False","T","EveryTick") -> 7233.5 | S73: 0.01512121531 | T73: =RTD("cqg.rtd",,"StudyData", "Close("&$D$12&") when LocalYear("&$D$12&")="&$D$7&" and localMonth("&$D$12&") ="&$E$7&" and LocalDay("&$D$12&")="&$F$7&" and Barix("&$D$12&",reference:=StartOfSession)="&A73&"", "Bar", "", "Close","5","0","PrimaryOnly",,,"False","T","EveryTick") -> 7119.75 | U73: 0.01366791244 | V73: =RTD("cqg.rtd",,"StudyData", "Close("&$D$12&") when LocalYear("&$D$12&")="&$D$8&" and localMonth("&$D$12&") ="&$E$8&" and LocalDay("&$D$12&")="&$F$8&" and Barix("&$D$12&",reference:=StartOfSession)="&A73&"", "Bar", "", "Close","5","0","PrimaryOnly",,,"False","T","EveryTick") ->  | X73: =RTD("cqg.rtd",,"StudyData", "Close("&$D$12&") when LocalYear("&$D$12&")="&$D$9&" and localMonth("&$D$12&") ="&$E$9&" and LocalDay("&$D$12&")="&$F$9&" and Barix("&$D$12&",reference:=StartOfSession)="&A73&"", "Bar", "", "Close","5","0","PrimaryOnly",,,"False","T","EveryTick") -> 7089 | Y73: 0.003148547777 | Z73: =RTD("cqg.rtd",,"StudyData", "Close("&$D$12&") when LocalYear("&$D$12&")="&$D$10&" and localMonth("&$D$12&") ="&$E$10&" and LocalDay("&$D$12&")="&$F$10&" and Barix("&$D$12&",reference:=StartOfSession)="&A73&"", "Bar", "", "Close","5","0","PrimaryOnly",,,"False","T","EveryTick") -> 7089.75 | AA73: 0.004142766093
A74: 73 | B74: 14:35:00 | C74: -4 | D74: =RTD("cqg.rtd",,"StudyData", $D$12, "Tick", "FlatTicks=0", "Tick","D",C74,"PrimaryOnly") -> 7402.25 | H74: =RTD("cqg.rtd",,"StudyData", "Close("&$D$12&") when LocalYear("&$D$12&")="&$D$1&" and localMonth("&$D$12&") ="&$E$1&" and LocalDay("&$D$12&")="&$F$1&" and Barix("&$D$12&",reference:=StartOfSession)="&A74&"", "Bar", "", "Close","5","0","PrimaryOnly",,,"False","T","EveryTick") ->  | J74: =RTD("cqg.rtd",,"StudyData", "Close("&$D$12&") when LocalYear("&$D$12&")="&$D$2&" and localMonth("&$D$12&") ="&$E$2&" and LocalDay("&$D$12&")="&$F$2&" and Barix("&$D$12&",reference:=StartOfSession)="&A74&"", "Bar", "", "Close","5","0","PrimaryOnly",,,"False","T","EveryTick") -> 7375.5 | K74: 0.01678442185 | L74: =RTD("cqg.rtd",,"StudyData", "Close("&$D$12&") when LocalYear("&$D$12&")="&$D$3&" and localMonth("&$D$12&") ="&$E$3&" and LocalDay("&$D$12&")="&$F$3&" and Barix("&$D$12&",reference:=StartOfSession)="&A74&"", "Bar", "", "Close","5","0","PrimaryOnly",,,"False","T","EveryTick") -> 7270.75 | M74: -0.004211463398 | N74: =RTD("cqg.rtd",,"StudyData", "Close("&$D$12&") when LocalYear("&$D$12&")="&$D$4&" and localMonth("&$D$12&") ="&$E$4&" and LocalDay("&$D$12&")="&$F$4&" and Barix("&$D$12&",reference:=StartOfSession)="&A74&"", "Bar", "", "Close","5","0","PrimaryOnly",,,"False","T","EveryTick") -> 7302.5 | O74: 0.000308208623 | P74: =RTD("cqg.rtd",,"StudyData", "Close("&$D$12&") when LocalYear("&$D$12&")="&$D$5&" and localMonth("&$D$12&") ="&$E$5&" and LocalDay("&$D$12&")="&$F$5&" and Barix("&$D$12&",reference:=StartOfSession)="&A74&"", "Bar", "", "Close","5","0","PrimaryOnly",,,"False","T","EveryTick") -> 7284 | Q74: 0.006981405958 | R74: =RTD("cqg.rtd",,"StudyData", "Close("&$D$12&") when LocalYear("&$D$12&")="&$D$6&" and localMonth("&$D$12&") ="&$E$6&" and LocalDay("&$D$12&")="&$F$6&" and Barix("&$D$12&",reference:=StartOfSession)="&A74&"", "Bar", "", "Close","5","0","PrimaryOnly",,,"False","T","EveryTick") -> 7231 | S74: 0.01477037505 | T74: =RTD("cqg.rtd",,"StudyData", "Close("&$D$12&") when LocalYear("&$D$12&")="&$D$7&" and localMonth("&$D$12&") ="&$E$7&" and LocalDay("&$D$12&")="&$F$7&" and Barix("&$D$12&",reference:=StartOfSession)="&A74&"", "Bar", "", "Close","5","0","PrimaryOnly",,,"False","T","EveryTick") -> 7115.5 | U74: 0.01306282257 | V74: =RTD("cqg.rtd",,"StudyData", "Close("&$D$12&") when LocalYear("&$D$12&")="&$D$8&" and localMonth("&$D$12&") ="&$E$8&" and LocalDay("&$D$12&")="&$F$8&" and Barix("&$D$12&",reference:=StartOfSession)="&A74&"", "Bar", "", "Close","5","0","PrimaryOnly",,,"False","T","EveryTick") ->  | X74: =RTD("cqg.rtd",,"StudyData", "Close("&$D$12&") when LocalYear("&$D$12&")="&$D$9&" and localMonth("&$D$12&") ="&$E$9&" and LocalDay("&$D$12&")="&$F$9&" and Barix("&$D$12&",reference:=StartOfSession)="&A74&"", "Bar", "", "Close","5","0","PrimaryOnly",,,"False","T","EveryTick") -> 7099 | Y74: 0.004563625429 | Z74: =RTD("cqg.rtd",,"StudyData", "Close("&$D$12&") when LocalYear("&$D$12&")="&$D$10&" and localMonth("&$D$12&") ="&$E$10&" and LocalDay("&$D$12&")="&$F$10&" and Barix("&$D$12&",reference:=StartOfSession)="&A74&"", "Bar", "", "Close","5","0","PrimaryOnly",,,"False","T","EveryTick") -> 7085.25 | AA74: 0.003505417463
A75: 74 | B75: 14:40:00 | C75: -3 | D75: =RTD("cqg.rtd",,"StudyData", $D$12, "Tick", "FlatTicks=0", "Tick","D",C75,"PrimaryOnly") -> 7402.5 | H75: =RTD("cqg.rtd",,"StudyData", "Close("&$D$12&") when LocalYear("&$D$12&")="&$D$1&" and localMonth("&$D$12&") ="&$E$1&" and LocalDay("&$D$12&")="&$F$1&" and Barix("&$D$12&",reference:=StartOfSession)="&A75&"", "Bar", "", "Close","5","0","PrimaryOnly",,,"False","T","EveryTick") ->  | J75: =RTD("cqg.rtd",,"StudyData", "Close("&$D$12&") when LocalYear("&$D$12&")="&$D$2&" and localMonth("&$D$12&") ="&$E$2&" and LocalDay("&$D$12&")="&$F$2&" and Barix("&$D$12&",reference:=StartOfSession)="&A75&"", "Bar", "", "Close","5","0","PrimaryOnly",,,"False","T","EveryTick") -> 7374.5 | K75: 0.01664656212 | L75: =RTD("cqg.rtd",,"StudyData", "Close("&$D$12&") when LocalYear("&$D$12&")="&$D$3&" and localMonth("&$D$12&") ="&$E$3&" and LocalDay("&$D$12&")="&$F$3&" and Barix("&$D$12&",reference:=StartOfSession)="&A75&"", "Bar", "", "Close","5","0","PrimaryOnly",,,"False","T","EveryTick") -> 7268 | M75: -0.004588098336 | N75: =RTD("cqg.rtd",,"StudyData", "Close("&$D$12&") when LocalYear("&$D$12&")="&$D$4&" and localMonth("&$D$12&") ="&$E$4&" and LocalDay("&$D$12&")="&$F$4&" and Barix("&$D$12&",reference:=StartOfSession)="&A75&"", "Bar", "", "Close","5","0","PrimaryOnly",,,"False","T","EveryTick") -> 7297 | O75: -0.0004451902332 | P75: =RTD("cqg.rtd",,"StudyData", "Close("&$D$12&") when LocalYear("&$D$12&")="&$D$5&" and localMonth("&$D$12&") ="&$E$5&" and LocalDay("&$D$12&")="&$F$5&" and Barix("&$D$12&",reference:=StartOfSession)="&A75&"", "Bar", "", "Close","5","0","PrimaryOnly",,,"False","T","EveryTick") -> 7289.25 | Q75: 0.007707195687 | R75: =RTD("cqg.rtd",,"StudyData", "Close("&$D$12&") when LocalYear("&$D$12&")="&$D$6&" and localMonth("&$D$12&") ="&$E$6&" and LocalDay("&$D$12&")="&$F$6&" and Barix("&$D$12&",reference:=StartOfSession)="&A75&"", "Bar", "", "Close","5","0","PrimaryOnly",,,"False","T","EveryTick") -> 7224.75 | S75: 0.01389327439 | T75: =RTD("cqg.rtd",,"StudyData", "Close("&$D$12&") when LocalYear("&$D$12&")="&$D$7&" and localMonth("&$D$12&") ="&$E$7&" and LocalDay("&$D$12&")="&$F$7&" and Barix("&$D$12&",reference:=StartOfSession)="&A75&"", "Bar", "", "Close","5","0","PrimaryOnly",,,"False","T","EveryTick") -> 7116.5 | U75: 0.01320519665 | V75: =RTD("cqg.rtd",,"StudyData", "Close("&$D$12&") when LocalYear("&$D$12&")="&$D$8&" and localMonth("&$D$12&") ="&$E$8&" and LocalDay("&$D$12&")="&$F$8&" and Barix("&$D$12&",reference:=StartOfSession)="&A75&"", "Bar", "", "Close","5","0","PrimaryOnly",,,"False","T","EveryTick") ->  | X75: =RTD("cqg.rtd",,"StudyData", "Close("&$D$12&") when LocalYear("&$D$12&")="&$D$9&" and localMonth("&$D$12&") ="&$E$9&" and LocalDay("&$D$12&")="&$F$9&" and Barix("&$D$12&",reference:=StartOfSession)="&A75&"", "Bar", "", "Close","5","0","PrimaryOnly",,,"False","T","EveryTick") -> 7098.25 | Y75: 0.004457494605 | Z75: =RTD("cqg.rtd",,"StudyData", "Close("&$D$12&") when LocalYear("&$D$12&")="&$D$10&" and localMonth("&$D$12&") ="&$E$10&" and LocalDay("&$D$12&")="&$F$10&" and Barix("&$D$12&",reference:=StartOfSession)="&A75&"", "Bar", "", "Close","5","0","PrimaryOnly",,,"False","T","EveryTick") -> 7088.75 | AA75: 0.004001133064
A76: 75 | B76: 14:45:00 | C76: -2 | D76: =RTD("cqg.rtd",,"StudyData", $D$12, "Tick", "FlatTicks=0", "Tick","D",C76,"PrimaryOnly") -> 7402.75 | H76: =RTD("cqg.rtd",,"StudyData", "Close("&$D$12&") when LocalYear("&$D$12&")="&$D$1&" and localMonth("&$D$12&") ="&$E$1&" and LocalDay("&$D$12&")="&$F$1&" and Barix("&$D$12&",reference:=StartOfSession)="&A76&"", "Bar", "", "Close","5","0","PrimaryOnly",,,"False","T","EveryTick") ->  | J76: =RTD("cqg.rtd",,"StudyData", "Close("&$D$12&") when LocalYear("&$D$12&")="&$D$2&" and localMonth("&$D$12&") ="&$E$2&" and LocalDay("&$D$12&")="&$F$2&" and Barix("&$D$12&",reference:=StartOfSession)="&A76&"", "Bar", "", "Close","5","0","PrimaryOnly",,,"False","T","EveryTick") -> 7381.25 | K76: 0.01757711529 | L76: =RTD("cqg.rtd",,"StudyData", "Close("&$D$12&") when LocalYear("&$D$12&")="&$D$3&" and localMonth("&$D$12&") ="&$E$3&" and LocalDay("&$D$12&")="&$F$3&" and Barix("&$D$12&",reference:=StartOfSession)="&A76&"", "Bar", "", "Close","5","0","PrimaryOnly",,,"False","T","EveryTick") -> 7273.75 | M76: -0.00380058892 | N76: =RTD("cqg.rtd",,"StudyData", "Close("&$D$12&") when LocalYear("&$D$12&")="&$D$4&" and localMonth("&$D$12&") ="&$E$4&" and LocalDay("&$D$12&")="&$F$4&" and Barix("&$D$12&",reference:=StartOfSession)="&A76&"", "Bar", "", "Close","5","0","PrimaryOnly",,,"False","T","EveryTick") -> 7294.5 | O76: -0.0007876442588 | P76: =RTD("cqg.rtd",,"StudyData", "Close("&$D$12&") when LocalYear("&$D$12&")="&$D$5&" and localMonth("&$D$12&") ="&$E$5&" and LocalDay("&$D$12&")="&$F$5&" and Barix("&$D$12&",reference:=StartOfSession)="&A76&"", "Bar", "", "Close","5","0","PrimaryOnly",,,"False","T","EveryTick") -> 7293 | Q76: 0.008225616921 | R76: =RTD("cqg.rtd",,"StudyData", "Close("&$D$12&") when LocalYear("&$D$12&")="&$D$6&" and localMonth("&$D$12&") ="&$E$6&" and LocalDay("&$D$12&")="&$F$6&" and Barix("&$D$12&",reference:=StartOfSession)="&A76&"", "Bar", "", "Close","5","0","PrimaryOnly",,,"False","T","EveryTick") -> 7217.25 | S76: 0.0128407536 | T76: =RTD("cqg.rtd",,"StudyData", "Close("&$D$12&") when LocalYear("&$D$12&")="&$D$7&" and localMonth("&$D$12&") ="&$E$7&" and LocalDay("&$D$12&")="&$F$7&" and Barix("&$D$12&",reference:=StartOfSession)="&A76&"", "Bar", "", "Close","5","0","PrimaryOnly",,,"False","T","EveryTick") -> 7114.75 | U76: 0.012956042 | V76: =RTD("cqg.rtd",,"StudyData", "Close("&$D$12&") when LocalYear("&$D$12&")="&$D$8&" and localMonth("&$D$12&") ="&$E$8&" and LocalDay("&$D$12&")="&$F$8&" and Barix("&$D$12&",reference:=StartOfSession)="&A76&"", "Bar", "", "Close","5","0","PrimaryOnly",,,"False","T","EveryTick") ->  | X76: =RTD("cqg.rtd",,"StudyData", "Close("&$D$12&") when LocalYear("&$D$12&")="&$D$9&" and localMonth("&$D$12&") ="&$E$9&" and LocalDay("&$D$12&")="&$F$9&" and Barix("&$D$12&",reference:=StartOfSession)="&A76&"", "Bar", "", "Close","5","0","PrimaryOnly",,,"False","T","EveryTick") -> 7102.25 | Y76: 0.005023525666 | Z76: =RTD("cqg.rtd",,"StudyData", "Close("&$D$12&") when LocalYear("&$D$12&")="&$D$10&" and localMonth("&$D$12&") ="&$E$10&" and LocalDay("&$D$12&")="&$F$10&" and Barix("&$D$12&",reference:=StartOfSession)="&A76&"", "Bar", "", "Close","5","0","PrimaryOnly",,,"False","T","EveryTick") -> 7081.5 | AA76: 0.002974293605
A77: 76 | B77: 14:50:00 | C77: -1 | D77: =RTD("cqg.rtd",,"StudyData", $D$12, "Tick", "FlatTicks=0", "Tick","D",C77,"PrimaryOnly") -> 7402.5 | H77: =RTD("cqg.rtd",,"StudyData", "Close("&$D$12&") when LocalYear("&$D$12&")="&$D$1&" and localMonth("&$D$12&") ="&$E$1&" and LocalDay("&$D$12&")="&$F$1&" and Barix("&$D$12&",reference:=StartOfSession)="&A77&"", "Bar", "", "Close","5","0","PrimaryOnly",,,"False","T","EveryTick") ->  | J77: =RTD("cqg.rtd",,"StudyData", "Close("&$D$12&") when LocalYear("&$D$12&")="&$D$2&" and localMonth("&$D$12&") ="&$E$2&" and LocalDay("&$D$12&")="&$F$2&" and Barix("&$D$12&",reference:=StartOfSession)="&A77&"", "Bar", "", "Close","5","0","PrimaryOnly",,,"False","T","EveryTick") -> 7378.5 | K77: 0.01719800103 | L77: =RTD("cqg.rtd",,"StudyData", "Close("&$D$12&") when LocalYear("&$D$12&")="&$D$3&" and localMonth("&$D$12&") ="&$E$3&" and LocalDay("&$D$12&")="&$F$3&" and Barix("&$D$12&",reference:=StartOfSession)="&A77&"", "Bar", "", "Close","5","0","PrimaryOnly",,,"False","T","EveryTick") -> 7265.5 | M77: -0.004930493734 | N77: =RTD("cqg.rtd",,"StudyData", "Close("&$D$12&") when LocalYear("&$D$12&")="&$D$4&" and localMonth("&$D$12&") ="&$E$4&" and LocalDay("&$D$12&")="&$F$4&" and Barix("&$D$12&",reference:=StartOfSession)="&A77&"", "Bar", "", "Close","5","0","PrimaryOnly",,,"False","T","EveryTick") -> 7302 | O77: 0.0002397178179 | P77: =RTD("cqg.rtd",,"StudyData", "Close("&$D$12&") when LocalYear("&$D$12&")="&$D$5&" and localMonth("&$D$12&") ="&$E$5&" and LocalDay("&$D$12&")="&$F$5&" and Barix("&$D$12&",reference:=StartOfSession)="&A77&"", "Bar", "", "Close","5","0","PrimaryOnly",,,"False","T","EveryTick") -> 7291.25 | Q77: 0.007983687012 | R77: =RTD("cqg.rtd",,"StudyData", "Close("&$D$12&") when LocalYear("&$D$12&")="&$D$6&" and localMonth("&$D$12&") ="&$E$6&" and LocalDay("&$D$12&")="&$F$6&" and Barix("&$D$12&",reference:=StartOfSession)="&A77&"", "Bar", "", "Close","5","0","PrimaryOnly",,,"False","T","EveryTick") -> 7223.75 | S77: 0.01375293829 | T77: =RTD("cqg.rtd",,"StudyData", "Close("&$D$12&") when LocalYear("&$D$12&")="&$D$7&" and localMonth("&$D$12&") ="&$E$7&" and LocalDay("&$D$12&")="&$F$7&" and Barix("&$D$12&",reference:=StartOfSession)="&A77&"", "Bar", "", "Close","5","0","PrimaryOnly",,,"False","T","EveryTick") -> 7122.75 | U77: 0.0140950347 | V77: =RTD("cqg.rtd",,"StudyData", "Close("&$D$12&") when LocalYear("&$D$12&")="&$D$8&" and localMonth("&$D$12&") ="&$E$8&" and LocalDay("&$D$12&")="&$F$8&" and Barix("&$D$12&",reference:=StartOfSession)="&A77&"", "Bar", "", "Close","5","0","PrimaryOnly",,,"False","T","EveryTick") ->  | X77: =RTD("cqg.rtd",,"StudyData", "Close("&$D$12&") when LocalYear("&$D$12&")="&$D$9&" and localMonth("&$D$12&") ="&$E$9&" and LocalDay("&$D$12&")="&$F$9&" and Barix("&$D$12&",reference:=StartOfSession)="&A77&"", "Bar", "", "Close","5","0","PrimaryOnly",,,"False","T","EveryTick") -> 7108.5 | Y77: 0.005907949199 | Z77: =RTD("cqg.rtd",,"StudyData", "Close("&$D$12&") when LocalYear("&$D$12&")="&$D$10&" and localMonth("&$D$12&") ="&$E$10&" and LocalDay("&$D$12&")="&$F$10&" and Barix("&$D$12&",reference:=StartOfSession)="&A77&"", "Bar", "", "Close","5","0","PrimaryOnly",,,"False","T","EveryTick") -> 7073.25 | AA77: 0.001805821117
A78: 77 | B78: 14:55:00 | C78: =C77+1 -> 0 | D78: =RTD("cqg.rtd",,"StudyData", $D$12, "Tick", "FlatTicks=0", "Tick","D",C78,"PrimaryOnly") -> 7402.75 | H78: =RTD("cqg.rtd",,"StudyData", "Close("&$D$12&") when LocalYear("&$D$12&")="&$D$1&" and localMonth("&$D$12&") ="&$E$1&" and LocalDay("&$D$12&")="&$F$1&" and Barix("&$D$12&",reference:=StartOfSession)="&A78&"", "Bar", "", "Close","5","0","PrimaryOnly",,,"False","T","EveryTick") ->  | J78: =RTD("cqg.rtd",,"StudyData", "Close("&$D$12&") when LocalYear("&$D$12&")="&$D$2&" and localMonth("&$D$12&") ="&$E$2&" and LocalDay("&$D$12&")="&$F$2&" and Barix("&$D$12&",reference:=StartOfSession)="&A78&"", "Bar", "", "Close","5","0","PrimaryOnly",,,"False","T","EveryTick") -> 7384.25 | K78: 0.01799069447 | L78: =RTD("cqg.rtd",,"StudyData", "Close("&$D$12&") when LocalYear("&$D$12&")="&$D$3&" and localMonth("&$D$12&") ="&$E$3&" and LocalDay("&$D$12&")="&$F$3&" and Barix("&$D$12&",reference:=StartOfSession)="&A78&"", "Bar", "", "Close","5","0","PrimaryOnly",,,"False","T","EveryTick") -> 7263.25 | M78: -0.005238649593 | N78: =RTD("cqg.rtd",,"StudyData", "Close("&$D$12&") when LocalYear("&$D$12&")="&$D$4&" and localMonth("&$D$12&") ="&$E$4&" and LocalDay("&$D$12&")="&$F$4&" and Barix("&$D$12&",reference:=StartOfSession)="&A78&"", "Bar", "", "Close","5","0","PrimaryOnly",,,"False","T","EveryTick") -> 7300.75 | O78: 6.849080511e-05 | P78: =RTD("cqg.rtd",,"StudyData", "Close("&$D$12&") when LocalYear("&$D$12&")="&$D$5&" and localMonth("&$D$12&") ="&$E$5&" and LocalDay("&$D$12&")="&$F$5&" and Barix("&$D$12&",reference:=StartOfSession)="&A78&"", "Bar", "", "Close","5","0","PrimaryOnly",,,"False","T","EveryTick") -> 7296.75 | Q78: 0.008744038156 | R78: =RTD("cqg.rtd",,"StudyData", "Close("&$D$12&") when LocalYear("&$D$12&")="&$D$6&" and localMonth("&$D$12&") ="&$E$6&" and LocalDay("&$D$12&")="&$F$6&" and Barix("&$D$12&",reference:=StartOfSession)="&A78&"", "Bar", "", "Close","5","0","PrimaryOnly",,,"False","T","EveryTick") -> 7228.5 | S78: 0.01441953479 | T78: =RTD("cqg.rtd",,"StudyData", "Close("&$D$12&") when LocalYear("&$D$12&")="&$D$7&" and localMonth("&$D$12&") ="&$E$7&" and LocalDay("&$D$12&")="&$F$7&" and Barix("&$D$12&",reference:=StartOfSession)="&A78&"", "Bar", "", "Close","5","0","PrimaryOnly",,,"False","T","EveryTick") -> 7121.5 | U78: 0.01391706709 | V78: =RTD("cqg.rtd",,"StudyData", "Close("&$D$12&") when LocalYear("&$D$12&")="&$D$8&" and localMonth("&$D$12&") ="&$E$8&" and LocalDay("&$D$12&")="&$F$8&" and Barix("&$D$12&",reference:=StartOfSession)="&A78&"", "Bar", "", "Close","5","0","PrimaryOnly",,,"False","T","EveryTick") ->  | X78: =RTD("cqg.rtd",,"StudyData", "Close("&$D$12&") when LocalYear("&$D$12&")="&$D$9&" and localMonth("&$D$12&") ="&$E$9&" and LocalDay("&$D$12&")="&$F$9&" and Barix("&$D$12&",reference:=StartOfSession)="&A78&"", "Bar", "", "Close","5","0","PrimaryOnly",,,"False","T","EveryTick") -> 7117.5 | Y78: 0.007181519086 | Z78: =RTD("cqg.rtd",,"StudyData", "Close("&$D$12&") when LocalYear("&$D$12&")="&$D$10&" and localMonth("&$D$12&") ="&$E$10&" and LocalDay("&$D$12&")="&$F$10&" and Barix("&$D$12&",reference:=StartOfSession)="&A78&"", "Bar", "", "Close","5","0","PrimaryOnly",,,"False","T","EveryTick") -> 7062.25 | AA78: 0.0002478578004
A79: 78 | B79: 15:00:00 | H79: =RTD("cqg.rtd",,"StudyData", "Close("&$D$12&") when LocalYear("&$D$12&")="&$D$1&" and localMonth("&$D$12&") ="&$E$1&" and LocalDay("&$D$12&")="&$F$1&" and Barix("&$D$12&",reference:=StartOfSession)="&A79&"", "Bar", "", "Close","5","0","PrimaryOnly",,,"False","T","EveryTick") ->  | J79: =RTD("cqg.rtd",,"StudyData", "Close("&$D$12&") when LocalYear("&$D$12&")="&$D$2&" and localMonth("&$D$12&") ="&$E$2&" and LocalDay("&$D$12&")="&$F$2&" and Barix("&$D$12&",reference:=StartOfSession)="&A79&"", "Bar", "", "Close","5","0","PrimaryOnly",,,"False","T","EveryTick") -> 7381.75 | K79: 0.01764604515 | L79: =RTD("cqg.rtd",,"StudyData", "Close("&$D$12&") when LocalYear("&$D$12&")="&$D$3&" and localMonth("&$D$12&") ="&$E$3&" and LocalDay("&$D$12&")="&$F$3&" and Barix("&$D$12&",reference:=StartOfSession)="&A79&"", "Bar", "", "Close","5","0","PrimaryOnly",,,"False","T","EveryTick") -> 7261.5 | M79: -0.005478326371 | N79: =RTD("cqg.rtd",,"StudyData", "Close("&$D$12&") when LocalYear("&$D$12&")="&$D$4&" and localMonth("&$D$12&") ="&$E$4&" and LocalDay("&$D$12&")="&$F$4&" and Barix("&$D$12&",reference:=StartOfSession)="&A79&"", "Bar", "", "Close","5","0","PrimaryOnly",,,"False","T","EveryTick") -> 7302.75 | O79: 0.0003424540255 | P79: =RTD("cqg.rtd",,"StudyData", "Close("&$D$12&") when LocalYear("&$D$12&")="&$D$5&" and localMonth("&$D$12&") ="&$E$5&" and LocalDay("&$D$12&")="&$F$5&" and Barix("&$D$12&",reference:=StartOfSession)="&A79&"", "Bar", "", "Close","5","0","PrimaryOnly",,,"False","T","EveryTick") -> 7297 | Q79: 0.008778599571 | R79: =RTD("cqg.rtd",,"StudyData", "Close("&$D$12&") when LocalYear("&$D$12&")="&$D$6&" and localMonth("&$D$12&") ="&$E$6&" and LocalDay("&$D$12&")="&$F$6&" and Barix("&$D$12&",reference:=StartOfSession)="&A79&"", "Bar", "", "Close","5","0","PrimaryOnly",,,"False","T","EveryTick") -> 7232.25 | S79: 0.01494579518 | T79: =RTD("cqg.rtd",,"StudyData", "Close("&$D$12&") when LocalYear("&$D$12&")="&$D$7&" and localMonth("&$D$12&") ="&$E$7&" and LocalDay("&$D$12&")="&$F$7&" and Barix("&$D$12&",reference:=StartOfSession)="&A79&"", "Bar", "", "Close","5","0","PrimaryOnly",,,"False","T","EveryTick") -> 7122.75 | U79: 0.0140950347 | V79: =RTD("cqg.rtd",,"StudyData", "Close("&$D$12&") when LocalYear("&$D$12&")="&$D$8&" and localMonth("&$D$12&") ="&$E$8&" and LocalDay("&$D$12&")="&$F$8&" and Barix("&$D$12&",reference:=StartOfSession)="&A79&"", "Bar", "", "Close","5","0","PrimaryOnly",,,"False","T","EveryTick") ->  | X79: =RTD("cqg.rtd",,"StudyData", "Close("&$D$12&") when LocalYear("&$D$12&")="&$D$9&" and localMonth("&$D$12&") ="&$E$9&" and LocalDay("&$D$12&")="&$F$9&" and Barix("&$D$12&",reference:=StartOfSession)="&A79&"", "Bar", "", "Close","5","0","PrimaryOnly",,,"False","T","EveryTick") -> 7118.75 | Y79: 0.007358403792 | Z79: =RTD("cqg.rtd",,"StudyData", "Close("&$D$12&") when LocalYear("&$D$12&")="&$D$10&" and localMonth("&$D$12&") ="&$E$10&" and LocalDay("&$D$12&")="&$F$10&" and Barix("&$D$12&",reference:=StartOfSession)="&A79&"", "Bar", "", "Close","5","0","PrimaryOnly",,,"False","T","EveryTick") -> 7077.25 | AA79: 0.002372353233
A80: 79 | B80: 15:05:00 | H80: =RTD("cqg.rtd",,"StudyData", "Close("&$D$12&") when LocalYear("&$D$12&")="&$D$1&" and localMonth("&$D$12&") ="&$E$1&" and LocalDay("&$D$12&")="&$F$1&" and Barix("&$D$12&",reference:=StartOfSession)="&A80&"", "Bar", "", "Close","5","0","PrimaryOnly",,,"False","T","EveryTick") ->  | J80: =RTD("cqg.rtd",,"StudyData", "Close("&$D$12&") when LocalYear("&$D$12&")="&$D$2&" and localMonth("&$D$12&") ="&$E$2&" and LocalDay("&$D$12&")="&$F$2&" and Barix("&$D$12&",reference:=StartOfSession)="&A80&"", "Bar", "", "Close","5","0","PrimaryOnly",,,"False","T","EveryTick") -> 7379.5 | K80: 0.01733586076 | L80: =RTD("cqg.rtd",,"StudyData", "Close("&$D$12&") when LocalYear("&$D$12&")="&$D$3&" and localMonth("&$D$12&") ="&$E$3&" and LocalDay("&$D$12&")="&$F$3&" and Barix("&$D$12&",reference:=StartOfSession)="&A80&"", "Bar", "", "Close","5","0","PrimaryOnly",,,"False","T","EveryTick") -> 7256.5 | M80: -0.006163117168 | N80: =RTD("cqg.rtd",,"StudyData", "Close("&$D$12&") when LocalYear("&$D$12&")="&$D$4&" and localMonth("&$D$12&") ="&$E$4&" and LocalDay("&$D$12&")="&$F$4&" and Barix("&$D$12&",reference:=StartOfSession)="&A80&"", "Bar", "", "Close","5","0","PrimaryOnly",,,"False","T","EveryTick") -> 7304.25 | O80: 0.0005479264409 | P80: =RTD("cqg.rtd",,"StudyData", "Close("&$D$12&") when LocalYear("&$D$12&")="&$D$5&" and localMonth("&$D$12&") ="&$E$5&" and LocalDay("&$D$12&")="&$F$5&" and Barix("&$D$12&",reference:=StartOfSession)="&A80&"", "Bar", "", "Close","5","0","PrimaryOnly",,,"False","T","EveryTick") -> 7297.5 | Q80: 0.008847722403 | R80: =RTD("cqg.rtd",,"StudyData", "Close("&$D$12&") when LocalYear("&$D$12&")="&$D$6&" and localMonth("&$D$12&") ="&$E$6&" and LocalDay("&$D$12&")="&$F$6&" and Barix("&$D$12&",reference:=StartOfSession)="&A80&"", "Bar", "", "Close","5","0","PrimaryOnly",,,"False","T","EveryTick") -> 7232 | S80: 0.01491071115 | T80: =RTD("cqg.rtd",,"StudyData", "Close("&$D$12&") when LocalYear("&$D$12&")="&$D$7&" and localMonth("&$D$12&") ="&$E$7&" and LocalDay("&$D$12&")="&$F$7&" and Barix("&$D$12&",reference:=StartOfSession)="&A80&"", "Bar", "", "Close","5","0","PrimaryOnly",,,"False","T","EveryTick") -> 7125.25 | U80: 0.01445096992 | V80: =RTD("cqg.rtd",,"StudyData", "Close("&$D$12&") when LocalYear("&$D$12&")="&$D$8&" and localMonth("&$D$12&") ="&$E$8&" and LocalDay("&$D$12&")="&$F$8&" and Barix("&$D$12&",reference:=StartOfSession)="&A80&"", "Bar", "", "Close","5","0","PrimaryOnly",,,"False","T","EveryTick") ->  | X80: =RTD("cqg.rtd",,"StudyData", "Close("&$D$12&") when LocalYear("&$D$12&")="&$D$9&" and localMonth("&$D$12&") ="&$E$9&" and LocalDay("&$D$12&")="&$F$9&" and Barix("&$D$12&",reference:=StartOfSession)="&A80&"", "Bar", "", "Close","5","0","PrimaryOnly",,,"False","T","EveryTick") -> 7118 | Y80: 0.007252272968 | Z80: =RTD("cqg.rtd",,"StudyData", "Close("&$D$12&") when LocalYear("&$D$12&")="&$D$10&" and localMonth("&$D$12&") ="&$E$10&" and LocalDay("&$D$12&")="&$F$10&" and Barix("&$D$12&",reference:=StartOfSession)="&A80&"", "Bar", "", "Close","5","0","PrimaryOnly",,,"False","T","EveryTick") -> 7072.75 | AA80: 0.001735004603
A81: 80 | B81: 15:10:00 | H81: =RTD("cqg.rtd",,"StudyData", "Close("&$D$12&") when LocalYear("&$D$12&")="&$D$1&" and localMonth("&$D$12&") ="&$E$1&" and LocalDay("&$D$12&")="&$F$1&" and Barix("&$D$12&",reference:=StartOfSession)="&A81&"", "Bar", "", "Close","5","0","PrimaryOnly",,,"False","T","EveryTick") ->  | J81: =RTD("cqg.rtd",,"StudyData", "Close("&$D$12&") when LocalYear("&$D$12&")="&$D$2&" and localMonth("&$D$12&") ="&$E$2&" and LocalDay("&$D$12&")="&$F$2&" and Barix("&$D$12&",reference:=StartOfSession)="&A81&"", "Bar", "", "Close","5","0","PrimaryOnly",,,"False","T","EveryTick") -> 7382.75 | K81: 0.01778390488 | L81: =RTD("cqg.rtd",,"StudyData", "Close("&$D$12&") when LocalYear("&$D$12&")="&$D$3&" and localMonth("&$D$12&") ="&$E$3&" and LocalDay("&$D$12&")="&$F$3&" and Barix("&$D$12&",reference:=StartOfSession)="&A81&"", "Bar", "", "Close","5","0","PrimaryOnly",,,"False","T","EveryTick") -> 7253.75 | M81: -0.006539752106 | N81: =RTD("cqg.rtd",,"StudyData", "Close("&$D$12&") when LocalYear("&$D$12&")="&$D$4&" and localMonth("&$D$12&") ="&$E$4&" and LocalDay("&$D$12&")="&$F$4&" and Barix("&$D$12&",reference:=StartOfSession)="&A81&"", "Bar", "", "Close","5","0","PrimaryOnly",,,"False","T","EveryTick") -> 7301.5 | O81: 0.0001712270128 | P81: =RTD("cqg.rtd",,"StudyData", "Close("&$D$12&") when LocalYear("&$D$12&")="&$D$5&" and localMonth("&$D$12&") ="&$E$5&" and LocalDay("&$D$12&")="&$F$5&" and Barix("&$D$12&",reference:=StartOfSession)="&A81&"", "Bar", "", "Close","5","0","PrimaryOnly",,,"False","T","EveryTick") -> 7300.25 | Q81: 0.009227897975 | R81: =RTD("cqg.rtd",,"StudyData", "Close("&$D$12&") when LocalYear("&$D$12&")="&$D$6&" and localMonth("&$D$12&") ="&$E$6&" and LocalDay("&$D$12&")="&$F$6&" and Barix("&$D$12&",reference:=StartOfSession)="&A81&"", "Bar", "", "Close","5","0","PrimaryOnly",,,"False","T","EveryTick") -> 7233.5 | S81: 0.01512121531 | T81: =RTD("cqg.rtd",,"StudyData", "Close("&$D$12&") when LocalYear("&$D$12&")="&$D$7&" and localMonth("&$D$12&") ="&$E$7&" and LocalDay("&$D$12&")="&$F$7&" and Barix("&$D$12&",reference:=StartOfSession)="&A81&"", "Bar", "", "Close","5","0","PrimaryOnly",,,"False","T","EveryTick") -> 7125.75 | U81: 0.01452215697 | V81: =RTD("cqg.rtd",,"StudyData", "Close("&$D$12&") when LocalYear("&$D$12&")="&$D$8&" and localMonth("&$D$12&") ="&$E$8&" and LocalDay("&$D$12&")="&$F$8&" and Barix("&$D$12&",reference:=StartOfSession)="&A81&"", "Bar", "", "Close","5","0","PrimaryOnly",,,"False","T","EveryTick") ->  | X81: =RTD("cqg.rtd",,"StudyData", "Close("&$D$12&") when LocalYear("&$D$12&")="&$D$9&" and localMonth("&$D$12&") ="&$E$9&" and LocalDay("&$D$12&")="&$F$9&" and Barix("&$D$12&",reference:=StartOfSession)="&A81&"", "Bar", "", "Close","5","0","PrimaryOnly",,,"False","T","EveryTick") -> 7116.5 | Y81: 0.007040011321 | Z81: =RTD("cqg.rtd",,"StudyData", "Close("&$D$12&") when LocalYear("&$D$12&")="&$D$10&" and localMonth("&$D$12&") ="&$E$10&" and LocalDay("&$D$12&")="&$F$10&" and Barix("&$D$12&",reference:=StartOfSession)="&A81&"", "Bar", "", "Close","5","0","PrimaryOnly",,,"False","T","EveryTick") -> 7073 | AA81: 0.00177041286
AE83: =MAX(AE1:AE81) -> 23

Sheet Sheet4 (hidden)
B1: =Sheet3!I1 -> 0.001422234262 | C1: =Sheet3!K1 -> 0.006479407203 | E1: =Sheet3!M1 -> -0.005444086831 | G1: =Sheet3!O1 -> -0.000616417246 | I1: =Sheet3!Q1 -> 0.006013686321 | K1: =Sheet3!S1 -> 0.0008771006561 | M1: =Sheet3!U1 -> 0.008791599929 | O1: =Sheet3!W1 -> 0.001580833275 | Q1: =Sheet3!Y1 -> -0.009339512506 | S1: =Sheet3!AA1 -> 0.00506338078
B2: =Sheet3!I2 -> 0.00125292066 | C2: =Sheet3!K2 -> 0.007513355161 | D2: =IF(ISNUMBER(C2),CORREL($B$1:B2,$C$1:C2),"") -> -1 | E2: =Sheet3!M2 -> -0.004930493734 | F2: =IF(ISNUMBER(E2),CORREL($B$1:B2,$E$1:E2),"") -> -1 | G2: =Sheet3!O2 -> 0.0006849080511 | H2: =IF(ISNUMBER(G2),CORREL($B$1:B2,$G$1:G2),"") -> -1 | I2: =Sheet3!Q2 -> 0.00570263358 | J2: =IF(ISNUMBER(I2),CORREL($B$1:B2,$I$1:I2),"") -> 1 | K2: =Sheet3!S2 -> 0.003508402624 | L2: =IF(ISNUMBER(K2),CORREL($B$1:B2,$K$1:K2),"") -> -1 | M2: =Sheet3!U2 -> 0.01010856024 | N2: =IF(ISNUMBER(M2),CORREL($B$1:B2,$M$1:M2),"") -> -1 | O2: =Sheet3!W2 -> -0.0009133703365 | P2: =IF(ISNUMBER(O2),CORREL($B$1:B2,$O$1:O2),"") -> 1 | Q2: =Sheet3!Y2 -> -0.006615488025 | R2: =IF(ISNUMBER(Q2),CORREL($B$1:B2,$Q$1:Q2),"") -> -1 | S2: =Sheet3!AA2 -> 0.004744706466 | T2: =IF(ISNUMBER(S2),CORREL($B$1:B2,$S$1:S2),"") -> 1
B3: =Sheet3!I3 -> 0.0004402153669 | C3: =Sheet3!K3 -> 0.007065311046 | D3: =IF(ISNUMBER(C3),CORREL($B$1:B3,$C$1:C3),"") -> -0.2365350362 | E3: =Sheet3!M3 -> -0.005957679929 | F3: =IF(ISNUMBER(E3),CORREL($B$1:B3,$E$1:E3),"") -> 0.7740593146 | G3: =Sheet3!O3 -> 0.0004109448307 | H3: =IF(ISNUMBER(G3),CORREL($B$1:B3,$G$1:G3),"") -> -0.4658100493 | I3: =Sheet3!Q3 -> 0.006013686321 | J3: =IF(ISNUMBER(I3),CORREL($B$1:B3,$I$1:I3),"") -> -0.3537984883 | K3: =Sheet3!S3 -> 0.003473318598 | L3: =IF(ISNUMBER(K3),CORREL($B$1:B3,$K$1:K3),"") -> -0.6240728665 | M3: =Sheet3!U3 -> 0.01042890194 | N3: =IF(ISNUMBER(M3),CORREL($B$1:B3,$M$1:M3),"") -> -0.7651140542 | O3: =Sheet3!W3 -> -0.001791611045 | P3: =IF(ISNUMBER(O3),CORREL($B$1:B3,$O$1:O3),"") -> 0.8071275748 | Q3: =Sheet3!Y3 -> -0.00757066544 | R3: =IF(ISNUMBER(Q3),CORREL($B$1:B3,$Q$1:Q3),"") -> -0.3266387983 | S3: =Sheet3!AA3 -> 0.006975426669 | T3: =IF(ISNUMBER(S3),CORREL($B$1:B3,$S$1:S3),"") -> -0.9569693869
B4: =Sheet3!I4 -> 0.0006772544106 | C4: =Sheet3!K4 -> 0.006927451318 | D4: =IF(ISNUMBER(C4),CORREL($B$1:B4,$C$1:C4),"") -> -0.1748030685 | E4: =Sheet3!M4 -> -0.00568376361 | F4: =IF(ISNUMBER(E4),CORREL($B$1:B4,$E$1:E4),"") -> 0.7925599725 | G4: =Sheet3!O4 -> -0.001061607479 | H4: =IF(ISNUMBER(G4),CORREL($B$1:B4,$G$1:G4),"") -> -0.004011407615 | I4: =Sheet3!Q4 -> 0.005633510749 | J4: =IF(ISNUMBER(I4),CORREL($B$1:B4,$I$1:I4),"") -> 0.02913330386 | K4: =Sheet3!S4 -> 0.003087394309 | L4: =IF(ISNUMBER(K4),CORREL($B$1:B4,$K$1:K4),"") -> -0.6374282727 | M4: =Sheet3!U4 -> 0.0097170315 | N4: =IF(ISNUMBER(M4),CORREL($B$1:B4,$M$1:M4),"") -> -0.688224196 | O4: =Sheet3!W4 -> -0.001545703646 | P4: =IF(ISNUMBER(O4),CORREL($B$1:B4,$O$1:O4),"") -> 0.8354904056 | Q4: =Sheet3!Y4 -> -0.005271164255 | R4: =IF(ISNUMBER(Q4),CORREL($B$1:B4,$Q$1:Q4),"") -> -0.4903818963 | S4: =Sheet3!AA4 -> 0.006869201898 | T4: =IF(ISNUMBER(S4),CORREL($B$1:B4,$S$1:S4),"") -> -0.9513474054
B5: =Sheet3!I5 -> -0.00128678338 | C5: =Sheet3!K5 -> 0.00803032914 | D5: =IF(ISNUMBER(C5),CORREL($B$1:B5,$C$1:C5),"") -> -0.7658661857 | E5: =Sheet3!M5 -> -0.004588098336 | F5: =IF(ISNUMBER(E5),CORREL($B$1:B5,$E$1:E5),"") -> -0.4810324031 | G5: =Sheet3!O5 -> -0.0013355707 | H5: =IF(ISNUMBER(G5),CORREL($B$1:B5,$G$1:G5),"") -> 0.5512678081 | I5: =Sheet3!Q5 -> 0.00324877307 | J5: =IF(ISNUMBER(I5),CORREL($B$1:B5,$I$1:I5),"") -> 0.9187947239 | K5: =Sheet3!S5 -> 0.004139915097 | L5: =IF(ISNUMBER(K5),CORREL($B$1:B5,$K$1:K5),"") -> -0.6703343046 | M5: =Sheet3!U5 -> 0.009147535149 | N5: =IF(ISNUMBER(M5),CORREL($B$1:B5,$M$1:M5),"") -> 0.1437370964 | O5: =Sheet3!W5 -> -0.002599592496 | P5: =IF(ISNUMBER(O5),CORREL($B$1:B5,$O$1:O5),"") -> 0.7657370297 | Q5: =Sheet3!Y5 -> -0.004740510135 | R5: =IF(ISNUMBER(Q5),CORREL($B$1:B5,$Q$1:Q5),"") -> -0.7000133627 | S5: =Sheet3!AA5 -> 0.006515119326 | T5: =IF(ISNUMBER(S5),CORREL($B$1:B5,$S$1:S5),"") -> -0.5812844401
B6: =Sheet3!I6 -> -0.00128678338 | C6: =Sheet3!K6 -> 0.008788557643 | D6: =IF(ISNUMBER(C6),CORREL($B$1:B6,$C$1:C6),"") -> -0.853829781 | E6: =Sheet3!M6 -> -0.005170170513 | F6: =IF(ISNUMBER(E6),CORREL($B$1:B6,$E$1:E6),"") -> -0.4545371428 | G6: =Sheet3!O6 -> -0.0008218896613 | H6: =IF(ISNUMBER(G6),CORREL($B$1:B6,$G$1:G6),"") -> 0.5607712282 | I6: =Sheet3!Q6 -> 0.004147369876 | J6: =IF(ISNUMBER(I6),CORREL($B$1:B6,$I$1:I6),"") -> 0.9172328078 | K6: =Sheet3!S6 -> 0.005052099779 | L6: =IF(ISNUMBER(K6),CORREL($B$1:B6,$K$1:K6),"") -> -0.7887241305 | M6: =Sheet3!U6 -> 0.007617013704 | N6: =IF(ISNUMBER(M6),CORREL($B$1:B6,$M$1:M6),"") -> 0.5553518552 | O6: =Sheet3!W6 -> -0.001967259186 | P6: =IF(ISNUMBER(O6),CORREL($B$1:B6,$O$1:O6),"") -> 0.7434736306 | Q6: =Sheet3!Y6 -> -0.004563625429 | R6: =IF(ISNUMBER(Q6),CORREL($B$1:B6,$Q$1:Q6),"") -> -0.7758845495 | S6: =Sheet3!AA6 -> 0.006408894554 | T6: =IF(ISNUMBER(S6),CORREL($B$1:B6,$S$1:S6),"") -> -0.5544735653
B7: =Sheet3!I7 -> 3.386272053e-05 | C7: =Sheet3!K7 -> 0.009788040669 | D7: =IF(ISNUMBER(C7),CORREL($B$1:B7,$C$1:C7),"") -> -0.6031525772 | E7: =Sheet3!M7 -> -0.003150037663 | F7: =IF(ISNUMBER(E7),CORREL($B$1:B7,$E$1:E7),"") -> -0.2736727364 | G7: =Sheet3!O7 -> -0.0004794356358 | H7: =IF(ISNUMBER(G7),CORREL($B$1:B7,$G$1:G7),"") -> 0.5604617793 | I7: =Sheet3!Q7 -> 0.003732632889 | J7: =IF(ISNUMBER(I7),CORREL($B$1:B7,$I$1:I7),"") -> 0.8447524192 | K7: =Sheet3!S7 -> 0.005332771989 | L7: =IF(ISNUMBER(K7),CORREL($B$1:B7,$K$1:K7),"") -> -0.7085800169 | M7: =Sheet3!U7 -> 0.007118704396 | N7: =IF(ISNUMBER(M7),CORREL($B$1:B7,$M$1:M7),"") -> 0.4535524128 | O7: =Sheet3!W7 -> -0.001756481416 | P7: =IF(ISNUMBER(O7),CORREL($B$1:B7,$O$1:O7),"") -> 0.7423447766 | Q7: =Sheet3!Y7 -> -0.0032546786 | R7: =IF(ISNUMBER(Q7),CORREL($B$1:B7,$Q$1:Q7),"") -> -0.671431354 | S7: =Sheet3!AA7 -> 0.007010834927 | T7: =IF(ISNUMBER(S7),CORREL($B$1:B7,$S$1:S7),"") -> -0.5357663934
B8: =Sheet3!I8 -> 0.001185195219 | C8: =Sheet3!K8 -> 0.01033947958 | D8: =IF(ISNUMBER(C8),CORREL($B$1:B8,$C$1:C8),"") -> -0.2270752035 | E8: =Sheet3!M8 -> -0.00376634938 | F8: =IF(ISNUMBER(E8),CORREL($B$1:B8,$E$1:E8),"") -> -0.08397251016 | G8: =Sheet3!O8 -> -0.000616417246 | H8: =IF(ISNUMBER(G8),CORREL($B$1:B8,$G$1:G8),"") -> 0.5015443318 | I8: =Sheet3!Q8 -> 0.003179650238 | J8: =IF(ISNUMBER(I8),CORREL($B$1:B8,$I$1:I8),"") -> 0.5321699771 | K8: =Sheet3!S8 -> 0.005438024068 | L8: =IF(ISNUMBER(K8),CORREL($B$1:B8,$K$1:K8),"") -> -0.4684093658 | M8: =Sheet3!U8 -> 0.008328884143 | N8: =IF(ISNUMBER(M8),CORREL($B$1:B8,$M$1:M8),"") -> 0.3546371062 | O8: =Sheet3!W8 -> -0.00189699993 | P8: =IF(ISNUMBER(O8),CORREL($B$1:B8,$O$1:O8),"") -> 0.6354162851 | Q8: =Sheet3!Y8 -> -0.00378533272 | R8: =IF(ISNUMBER(Q8),CORREL($B$1:B8,$Q$1:Q8),"") -> -0.4706566353 | S8: =Sheet3!AA8 -> 0.006125628497 | T8: =IF(ISNUMBER(S8),CORREL($B$1:B8,$S$1:S8),"") -> -0.5191821703
B9: =Sheet3!I9 -> 0.00125292066 | C9: =Sheet3!K9 -> 0.009925900396 | D9: =IF(ISNUMBER(C9),CORREL($B$1:B9,$C$1:C9),"") -> -0.07256694267 | E9: =Sheet3!M9 -> -0.004245702938 | F9: =IF(ISNUMBER(E9),CORREL($B$1:B9,$E$1:E9),"") -> -0.0148765865 | G9: =Sheet3!O9 -> -0.001301325297 | H9: =IF(ISNUMBER(G9),CORREL($B$1:B9,$G$1:G9),"") -> 0.3254883448 | I9: =Sheet3!Q9 -> 0.001486140872 | J9: =IF(ISNUMBER(I9),CORREL($B$1:B9,$I$1:I9),"") -> 0.1733481675 | K9: =Sheet3!S9 -> 0.005297687963 | L9: =IF(ISNUMBER(K9),CORREL($B$1:B9,$K$1:K9),"") -> -0.3280139497 | M9: =Sheet3!U9 -> 0.006335646912 | N9: =IF(ISNUMBER(M9),CORREL($B$1:B9,$M$1:M9),"") -> 0.08411635634 | O9: =Sheet3!W9 -> -0.0009484999649 | P9: =IF(ISNUMBER(O9),CORREL($B$1:B9,$O$1:O9),"") -> 0.6366842947 | Q9: =Sheet3!Y9 -> -0.005766441433 | R9: =IF(ISNUMBER(Q9),CORREL($B$1:B9,$Q$1:Q9),"") -> -0.4556035227 | S9: =Sheet3!AA9 -> 0.004992564266 | T9: =IF(ISNUMBER(S9),CORREL($B$1:B9,$S$1:S9),"") -> -0.5765136023
B10: =Sheet3!I10 -> 0.0004740780874 | C10: =Sheet3!K10 -> 0.01044287438 | D10: =IF(ISNUMBER(C10),CORREL($B$1:B10,$C$1:C10),"") -> -0.05610571682 | E10: =Sheet3!M10 -> -0.002396767787 | F10: =IF(ISNUMBER(E10),CORREL($B$1:B10,$E$1:E10),"") -> 0.00192484039 | G10: =Sheet3!O10 -> 0 | H10: =IF(ISNUMBER(G10),CORREL($B$1:B10,$G$1:G10),"") -> 0.3193422901 | I10: =Sheet3!Q10 -> 0.001658947951 | J10: =IF(ISNUMBER(I10),CORREL($B$1:B10,$I$1:I10),"") -> 0.1407262787 | K10: =Sheet3!S10 -> 0.004806511595 | L10: =IF(ISNUMBER(K10),CORREL($B$1:B10,$K$1:K10),"") -> -0.3194502766 | M10: =Sheet3!U10 -> 0.00594411817 | N10: =IF(ISNUMBER(M10),CORREL($B$1:B10,$M$1:M10),"") -> 0.0597728483 | O10: =Sheet3!W10 -> -0.0004918147966 | P10: =IF(ISNUMBER(O10),CORREL($B$1:B10,$O$1:O10),"") -> 0.6249214373 | Q10: =Sheet3!Y10 -> -0.004032971309 | R10: =IF(ISNUMBER(Q10),CORREL($B$1:B10,$Q$1:Q10),"") -> -0.4327937445 | S10: =Sheet3!AA10 -> 0.005382055095 | T10: =IF(ISNUMBER(S10),CORREL($B$1:B10,$S$1:S10),"") -> -0.5632424003
B11: =Sheet3!I11 -> 0.001456096983 | C11: =Sheet3!K11 -> 0.01033947958 | D11: =IF(ISNUMBER(C11),CORREL($B$1:B11,$C$1:C11),"") -> 0.06120713413 | E11: =Sheet3!M11 -> -0.002294049168 | F11: =IF(ISNUMBER(E11),CORREL($B$1:B11,$E$1:E11),"") -> 0.1664881763 | G11: =Sheet3!O11 -> -0.0002397178179 | H11: =IF(ISNUMBER(G11),CORREL($B$1:B11,$G$1:G11),"") -> 0.3401682998 | I11: =Sheet3!Q11 -> 0.002384737679 | J11: =IF(ISNUMBER(I11),CORREL($B$1:B11,$I$1:I11),"") -> 0.03396373826 | K11: =Sheet3!S11 -> 0.004455671333 | L11: =IF(ISNUMBER(K11),CORREL($B$1:B11,$K$1:K11),"") -> -0.2777499531 | M11: =Sheet3!U11 -> 0.005908524649 | N11: =IF(ISNUMBER(M11),CORREL($B$1:B11,$M$1:M11),"") -> -0.08862009654 | O11: =Sheet3!W11 -> -0.0005972036816 | P11: =IF(ISNUMBER(O11),CORREL($B$1:B11,$O$1:O11),"") -> 0.6383194106 | Q11: =Sheet3!Y11 -> -0.003820709661 | R11: =IF(ISNUMBER(Q11),CORREL($B$1:B11,$Q$1:Q11),"") -> -0.3104704998 | S11: =Sheet3!AA11 -> 0.006408894554 | T11: =IF(ISNUMBER(S11),CORREL($B$1:B11,$S$1:S11),"") -> -0.4847754525
B12: =Sheet3!I12 -> 0.001828586909 | C12: =Sheet3!K12 -> 0.01189040152 | D12: =IF(ISNUMBER(C12),CORREL($B$1:B12,$C$1:C12),"") -> 0.2452374428 | E12: =Sheet3!M12 -> -0.002157091009 | F12: =IF(ISNUMBER(E12),CORREL($B$1:B12,$E$1:E12),"") -> 0.3066373493 | G12: =Sheet3!O12 -> 3.424540255e-05 | H12: =IF(ISNUMBER(G12),CORREL($B$1:B12,$G$1:G12),"") -> 0.3938163452 | I12: =Sheet3!Q12 -> 0.001451579457 | J12: =IF(ISNUMBER(I12),CORREL($B$1:B12,$I$1:I12),"") -> -0.1195740294 | K12: =Sheet3!S12 -> 0.005122267831 | L12: =IF(ISNUMBER(K12),CORREL($B$1:B12,$K$1:K12),"") -> -0.1721463212 | M12: =Sheet3!U12 -> 0.006015305214 | N12: =IF(ISNUMBER(M12),CORREL($B$1:B12,$M$1:M12),"") -> -0.2103889192 | O12: =Sheet3!W12 -> -0.00105388885 | P12: =IF(ISNUMBER(O12),CORREL($B$1:B12,$O$1:O12),"") -> 0.6047308617 | Q12: =Sheet3!Y12 -> -0.002122616479 | R12: =IF(ISNUMBER(Q12),CORREL($B$1:B12,$Q$1:Q12),"") -> -0.08330707798 | S12: =Sheet3!AA12 -> 0.005169605552 | T12: =IF(ISNUMBER(S12),CORREL($B$1:B12,$S$1:S12),"") -> -0.5403878059
B13: =Sheet3!I13 -> 0.001591547865 | C13: =Sheet3!K13 -> 0.0123039807 | D13: =IF(ISNUMBER(C13),CORREL($B$1:B13,$C$1:C13),"") -> 0.3353078652 | E13: =Sheet3!M13 -> -0.002602205026 | F13: =IF(ISNUMBER(E13),CORREL($B$1:B13,$E$1:E13),"") -> 0.363043385 | G13: =Sheet3!O13 -> 0.0007876442588 | H13: =IF(ISNUMBER(G13),CORREL($B$1:B13,$G$1:G13),"") -> 0.4602221712 | I13: =Sheet3!Q13 -> 0.001244210963 | J13: =IF(ISNUMBER(I13),CORREL($B$1:B13,$I$1:I13),"") -> -0.2055961773 | K13: =Sheet3!S13 -> 0.004315335228 | L13: =IF(ISNUMBER(K13),CORREL($B$1:B13,$K$1:K13),"") -> -0.1602539634 | M13: =Sheet3!U13 -> 0.005410215341 | N13: =IF(ISNUMBER(M13),CORREL($B$1:B13,$M$1:M13),"") -> -0.2914800621 | O13: =Sheet3!W13 -> 0.0002459073983 | P13: =IF(ISNUMBER(O13),CORREL($B$1:B13,$O$1:O13),"") -> 0.6391305596 | Q13: =Sheet3!Y13 -> -0.001415077652 | R13: =IF(ISNUMBER(Q13),CORREL($B$1:B13,$Q$1:Q13),"") -> 0.05265136282 | S13: =Sheet3!AA13 -> 0.005913178953 | T13: =IF(ISNUMBER(S13),CORREL($B$1:B13,$S$1:S13),"") -> -0.5264233999
B14: =Sheet3!I14 -> 0.002234939555 | C14: =Sheet3!K14 -> 0.01223505084 | D14: =IF(ISNUMBER(C14),CORREL($B$1:B14,$C$1:C14),"") -> 0.4392177396 | E14: =Sheet3!M14 -> -0.002362528248 | F14: =IF(ISNUMBER(E14),CORREL($B$1:B14,$E$1:E14),"") -> 0.4404231816 | G14: =Sheet3!O14 -> 0.001369816102 | H14: =IF(ISNUMBER(G14),CORREL($B$1:B14,$G$1:G14),"") -> 0.5685173332 | I14: =Sheet3!Q14 -> 0.00245386051 | J14: =IF(ISNUMBER(I14),CORREL($B$1:B14,$I$1:I14),"") -> -0.249308314 | K14: =Sheet3!S14 -> 0.0049468477 | L14: =IF(ISNUMBER(K14),CORREL($B$1:B14,$K$1:K14),"") -> -0.08526723021 | M14: =Sheet3!U14 -> 0.004413596725 | N14: =IF(ISNUMBER(M14),CORREL($B$1:B14,$M$1:M14),"") -> -0.4181989489 | O14: =Sheet3!W14 -> 0.0005972036816 | P14: =IF(ISNUMBER(O14),CORREL($B$1:B14,$O$1:O14),"") -> 0.6932546549 | Q14: =Sheet3!Y14 -> -0.001025931298 | R14: =IF(ISNUMBER(Q14),CORREL($B$1:B14,$Q$1:Q14),"") -> 0.2122662299 | S14: =Sheet3!AA14 -> 0.006444302811 | T14: =IF(ISNUMBER(S14),CORREL($B$1:B14,$S$1:S14),"") -> -0.4163966724
B15: =Sheet3!I15 -> 0.001862449629 | C15: =Sheet3!K15 -> 0.01178700672 | D15: =IF(ISNUMBER(C15),CORREL($B$1:B15,$C$1:C15),"") -> 0.4822744109 | E15: =Sheet3!M15 -> -0.002978839964 | F15: =IF(ISNUMBER(E15),CORREL($B$1:B15,$E$1:E15),"") -> 0.4641228173 | G15: =Sheet3!O15 -> 0.001917742543 | H15: =IF(ISNUMBER(G15),CORREL($B$1:B15,$G$1:G15),"") -> 0.5976953921 | I15: =Sheet3!Q15 -> 0.00190087786 | J15: =IF(ISNUMBER(I15),CORREL($B$1:B15,$I$1:I15),"") -> -0.2929341464 | K15: =Sheet3!S15 -> 0.006490544855 | L15: =IF(ISNUMBER(K15),CORREL($B$1:B15,$K$1:K15),"") -> 0.03739387088 | M15: =Sheet3!U15 -> 0.005374621819 | N15: =IF(ISNUMBER(M15),CORREL($B$1:B15,$M$1:M15),"") -> -0.4610047275 | O15: =Sheet3!W15 -> 0.0001756481416 | P15: =IF(ISNUMBER(O15),CORREL($B$1:B15,$O$1:O15),"") -> 0.7132414751 | Q15: =Sheet3!Y15 -> -0.0009551774154 | R15: =IF(ISNUMBER(Q15),CORREL($B$1:B15,$Q$1:Q15),"") -> 0.2879597093 | S15: =Sheet3!AA15 -> 0.006621344097 | T15: =IF(ISNUMBER(S15),CORREL($B$1:B15,$S$1:S15),"") -> -0.3406447491
B16: =Sheet3!I16 -> 0.001388371542 | C16: =Sheet3!K16 -> 0.01130449767 | D16: =IF(ISNUMBER(C16),CORREL($B$1:B16,$C$1:C16),"") -> 0.4940489961 | E16: =Sheet3!M16 -> -0.004040265699 | F16: =IF(ISNUMBER(E16),CORREL($B$1:B16,$E$1:E16),"") -> 0.4557406265 | G16: =Sheet3!O16 -> 0.001164343687 | H16: =IF(ISNUMBER(G16),CORREL($B$1:B16,$G$1:G16),"") -> 0.6018127753 | I16: =Sheet3!Q16 -> 0.002384737679 | J16: =IF(ISNUMBER(I16),CORREL($B$1:B16,$I$1:I16),"") -> -0.3051593596 | K16: =Sheet3!S16 -> 0.00635020875 | L16: =IF(ISNUMBER(K16),CORREL($B$1:B16,$K$1:K16),"") -> 0.07861424758 | M16: =Sheet3!U16 -> 0.006050898736 | N16: =IF(ISNUMBER(M16),CORREL($B$1:B16,$M$1:M16),"") -> -0.4721126153 | O16: =Sheet3!W16 -> -0.001791611045 | P16: =IF(ISNUMBER(O16),CORREL($B$1:B16,$O$1:O16),"") -> 0.6668053465 | Q16: =Sheet3!Y16 -> -0.00215799342 | R16: =IF(ISNUMBER(Q16),CORREL($B$1:B16,$Q$1:Q16),"") -> 0.3062070558 | S16: =Sheet3!AA16 -> 0.007046243184 | T16: =IF(ISNUMBER(S16),CORREL($B$1:B16,$S$1:S16),"") -> -0.2811991439
